Workbook

Sheet Grafic împrumut
B1: GRAFIC DE AMORTIZARE A ÎMPRUMUTULUI
C2: INTRODUCEȚI VALORI | G2: REZUMAT ÎMPRUMUT
C3: Valoare împrumut | E3: 5,000.00 lei | G3: Plată planificată | I3: =IF(ÎmprumutEsteBun,-PMT(RataDobânzii/PlățiPeAn,NumărPlanificatDePlăți,ValoareÎmprumut),"") -> 425.75 lei
C4: Rata anuală a dobânzii | E4: 4.00% | G4: Număr de plăți planificate | I4: =IF(ÎmprumutEsteBun,PerioadăÎmprumut*PlățiPeAn,"") -> 12
C5: Perioadă împrumut în ani | E5: 1 | G5: Număr de plăți efective | I5: =NumărDePlățiEfective -> 10
C6: Număr de plăți pe an | E6: 12 | G6: Total plăți anticipate | I6: =TotalPlățiAnticipate -> 900.00 lei
C7: Dată de început împrumut | E7: =TODAY() -> 2020-04-15 | G7: Total dobândă | I7: =TotalDobândă -> 89.62 lei
C9: Plăți suplimentare opționale | E9: 100.00 lei | G9: NUME CREDITOR | H9: Woodgrove Bank
B11: NR. PLĂȚI | C11: DATĂ DE PLATĂ | D11: SOLD INIȚIAL | E11: PLATĂ PLANIFICATĂ | F11: PLATĂ SUPLIMENTARĂ | G11: TOTAL DE PLATĂ | H11: PRINCIPAL | I11: DOBÂNDĂ | J11: SOLD FINAL | K11: DOBÂNDĂ CUMULATĂ
B12: =IF(ÎmprumutEsteBun,IF(ROW()-ROW(PlanificarePlăți[[#Headers],[NR. PLĂȚI]])>NumărPlanificatDePlăți,"",ROW()-ROW(PlanificarePlăți[[#Headers],[NR. PLĂȚI]])),"") -> 1 | C12: =IF(PlanificarePlăți[[#This Row],[NR. PLĂȚI]]<>"",EOMONTH(DataDeÎnceputÎmprumut,ROW(PlanificarePlăți[[#This Row],[NR. PLĂȚI]])-ROW(PlanificarePlăți[[#Headers],[NR. PLĂȚI]])-2)+DAY(DataDeÎnceputÎmprumut),"") -> 2020-04-15 | D12: =IF(PlanificarePlăți[[#This Row],[NR. PLĂȚI]]<>"",IF(ROW()-ROW(PlanificarePlăți[[#Headers],[SOLD INIȚIAL]])=1,ValoareÎmprumut,INDEX(PlanificarePlăți[SOLD FINAL],ROW()-ROW(PlanificarePlăți[[#Headers],[SOLD INIȚIAL]])-1)),"") -> 5,000.00 lei | E12: =IF(PlanificarePlăți[[#This Row],[NR. PLĂȚI]]<>"",PlatăPlanificată,"") -> 425.75 lei | F12: =IF(PlanificarePlăți[[#This Row],[NR. PLĂȚI]]<>"",IF(PlanificarePlăți[[#This Row],[PLATĂ PLANIFICATĂ]]+PlățiSuplimentare<PlanificarePlăți[[#This Row],[SOLD INIȚIAL]],PlățiSuplimentare,IF(PlanificarePlăți[[#This Row],[SOLD INIȚIAL]]-PlanificarePlăți[[#This Row],[PLATĂ PLANIFICATĂ]]>0,PlanificarePlăți[[#This Row],[SOLD INIȚIAL]]-PlanificarePlăți[[#This Row],[PLATĂ PLANIFICATĂ]],0)),"") -> 100.00 lei | G12: =IF(PlanificarePlăți[[#This Row],[NR. PLĂȚI]]<>"",IF(PlanificarePlăți[[#This Row],[PLATĂ PLANIFICATĂ]]+PlanificarePlăți[[#This Row],[PLATĂ SUPLIMENTARĂ]]<=PlanificarePlăți[[#This Row],[SOLD INIȚIAL]],PlanificarePlăți[[#This Row],[PLATĂ PLANIFICATĂ]]+PlanificarePlăți[[#This Row],[PLATĂ SUPLIMENTARĂ]],PlanificarePlăți[[#This Row],[SOLD INIȚIAL]]),"") -> 525.75 lei | H12: =IF(PlanificarePlăți[[#This Row],[NR. PLĂȚI]]<>"",PlanificarePlăți[[#This Row],[TOTAL DE PLATĂ]]-PlanificarePlăți[[#This Row],[DOBÂNDĂ]],"") -> 509.08 lei | I12: =IF(PlanificarePlăți[[#This Row],[NR. PLĂȚI]]<>"",PlanificarePlăți[[#This Row],[SOLD INIȚIAL]]*(RataDobânzii/PlățiPeAn),"") -> 16.67 lei | J12: =IF(PlanificarePlăți[[#This Row],[NR. PLĂȚI]]<>"",IF(PlanificarePlăți[[#This Row],[PLATĂ PLANIFICATĂ]]+PlanificarePlăți[[#This Row],[PLATĂ SUPLIMENTARĂ]]<=PlanificarePlăți[[#This Row],[SOLD INIȚIAL]],PlanificarePlăți[[#This Row],[SOLD INIȚIAL]]-PlanificarePlăți[[#This Row],[PRINCIPAL]],0),"") -> 4,490.92 lei | K12: =IF(PlanificarePlăți[[#This Row],[NR. PLĂȚI]]<>"",SUM(INDEX(PlanificarePlăți[DOBÂNDĂ],1,1):PlanificarePlăți[[#This Row],[DOBÂNDĂ]]),"") -> 16.67 lei
B13: =IF(ÎmprumutEsteBun,IF(ROW()-ROW(PlanificarePlăți[[#Headers],[NR. PLĂȚI]])>NumărPlanificatDePlăți,"",ROW()-ROW(PlanificarePlăți[[#Headers],[NR. PLĂȚI]])),"") -> 2 | C13: =IF(PlanificarePlăți[[#This Row],[NR. PLĂȚI]]<>"",EOMONTH(DataDeÎnceputÎmprumut,ROW(PlanificarePlăți[[#This Row],[NR. PLĂȚI]])-ROW(PlanificarePlăți[[#Headers],[NR. PLĂȚI]])-2)+DAY(DataDeÎnceputÎmprumut),"") -> 2020-05-15 | D13: =IF(PlanificarePlăți[[#This Row],[NR. PLĂȚI]]<>"",IF(ROW()-ROW(PlanificarePlăți[[#Headers],[SOLD INIȚIAL]])=1,ValoareÎmprumut,INDEX(PlanificarePlăți[SOLD FINAL],ROW()-ROW(PlanificarePlăți[[#Headers],[SOLD INIȚIAL]])-1)),"") -> 4,490.92 lei | E13: =IF(PlanificarePlăți[[#This Row],[NR. PLĂȚI]]<>"",PlatăPlanificată,"") -> 425.75 lei | F13: =IF(PlanificarePlăți[[#This Row],[NR. PLĂȚI]]<>"",IF(PlanificarePlăți[[#This Row],[PLATĂ PLANIFICATĂ]]+PlățiSuplimentare<PlanificarePlăți[[#This Row],[SOLD INIȚIAL]],PlățiSuplimentare,IF(PlanificarePlăți[[#This Row],[SOLD INIȚIAL]]-PlanificarePlăți[[#This Row],[PLATĂ PLANIFICATĂ]]>0,PlanificarePlăți[[#This Row],[SOLD INIȚIAL]]-PlanificarePlăți[[#This Row],[PLATĂ PLANIFICATĂ]],0)),"") -> 100.00 lei | G13: =IF(PlanificarePlăți[[#This Row],[NR. PLĂȚI]]<>"",IF(PlanificarePlăți[[#This Row],[PLATĂ PLANIFICATĂ]]+PlanificarePlăți[[#This Row],[PLATĂ SUPLIMENTARĂ]]<=PlanificarePlăți[[#This Row],[SOLD INIȚIAL]],PlanificarePlăți[[#This Row],[PLATĂ PLANIFICATĂ]]+PlanificarePlăți[[#This Row],[PLATĂ SUPLIMENTARĂ]],PlanificarePlăți[[#This Row],[SOLD INIȚIAL]]),"") -> 525.75 lei | H13: =IF(PlanificarePlăți[[#This Row],[NR. PLĂȚI]]<>"",PlanificarePlăți[[#This Row],[TOTAL DE PLATĂ]]-PlanificarePlăți[[#This Row],[DOBÂNDĂ]],"") -> 510.78 lei | I13: =IF(PlanificarePlăți[[#This Row],[NR. PLĂȚI]]<>"",PlanificarePlăți[[#This Row],[SOLD INIȚIAL]]*(RataDobânzii/PlățiPeAn),"") -> 14.97 lei | J13: =IF(PlanificarePlăți[[#This Row],[NR. PLĂȚI]]<>"",IF(PlanificarePlăți[[#This Row],[PLATĂ PLANIFICATĂ]]+PlanificarePlăți[[#This Row],[PLATĂ SUPLIMENTARĂ]]<=PlanificarePlăți[[#This Row],[SOLD INIȚIAL]],PlanificarePlăți[[#This Row],[SOLD INIȚIAL]]-PlanificarePlăți[[#This Row],[PRINCIPAL]],0),"") -> 3,980.14 lei | K13: =IF(PlanificarePlăți[[#This Row],[NR. PLĂȚI]]<>"",SUM(INDEX(PlanificarePlăți[DOBÂNDĂ],1,1):PlanificarePlăți[[#This Row],[DOBÂNDĂ]]),"") -> 31.64 lei
B14: =IF(ÎmprumutEsteBun,IF(ROW()-ROW(PlanificarePlăți[[#Headers],[NR. PLĂȚI]])>NumărPlanificatDePlăți,"",ROW()-ROW(PlanificarePlăți[[#Headers],[NR. PLĂȚI]])),"") -> 3 | C14: =IF(PlanificarePlăți[[#This Row],[NR. PLĂȚI]]<>"",EOMONTH(DataDeÎnceputÎmprumut,ROW(PlanificarePlăți[[#This Row],[NR. PLĂȚI]])-ROW(PlanificarePlăți[[#Headers],[NR. PLĂȚI]])-2)+DAY(DataDeÎnceputÎmprumut),"") -> 2020-06-15 | D14: =IF(PlanificarePlăți[[#This Row],[NR. PLĂȚI]]<>"",IF(ROW()-ROW(PlanificarePlăți[[#Headers],[SOLD INIȚIAL]])=1,ValoareÎmprumut,INDEX(PlanificarePlăți[SOLD FINAL],ROW()-ROW(PlanificarePlăți[[#Headers],[SOLD INIȚIAL]])-1)),"") -> 3,980.14 lei | E14: =IF(PlanificarePlăți[[#This Row],[NR. PLĂȚI]]<>"",PlatăPlanificată,"") -> 425.75 lei | F14: =IF(PlanificarePlăți[[#This Row],[NR. PLĂȚI]]<>"",IF(PlanificarePlăți[[#This Row],[PLATĂ PLANIFICATĂ]]+PlățiSuplimentare<PlanificarePlăți[[#This Row],[SOLD INIȚIAL]],PlățiSuplimentare,IF(PlanificarePlăți[[#This Row],[SOLD INIȚIAL]]-PlanificarePlăți[[#This Row],[PLATĂ PLANIFICATĂ]]>0,PlanificarePlăți[[#This Row],[SOLD INIȚIAL]]-PlanificarePlăți[[#This Row],[PLATĂ PLANIFICATĂ]],0)),"") -> 100.00 lei | G14: =IF(PlanificarePlăți[[#This Row],[NR. PLĂȚI]]<>"",IF(PlanificarePlăți[[#This Row],[PLATĂ PLANIFICATĂ]]+PlanificarePlăți[[#This Row],[PLATĂ SUPLIMENTARĂ]]<=PlanificarePlăți[[#This Row],[SOLD INIȚIAL]],PlanificarePlăți[[#This Row],[PLATĂ PLANIFICATĂ]]+PlanificarePlăți[[#This Row],[PLATĂ SUPLIMENTARĂ]],PlanificarePlăți[[#This Row],[SOLD INIȚIAL]]),"") -> 525.75 lei | H14: =IF(PlanificarePlăți[[#This Row],[NR. PLĂȚI]]<>"",PlanificarePlăți[[#This Row],[TOTAL DE PLATĂ]]-PlanificarePlăți[[#This Row],[DOBÂNDĂ]],"") -> 512.48 lei | I14: =IF(PlanificarePlăți[[#This Row],[NR. PLĂȚI]]<>"",PlanificarePlăți[[#This Row],[SOLD INIȚIAL]]*(RataDobânzii/PlățiPeAn),"") -> 13.27 lei | J14: =IF(PlanificarePlăți[[#This Row],[NR. PLĂȚI]]<>"",IF(PlanificarePlăți[[#This Row],[PLATĂ PLANIFICATĂ]]+PlanificarePlăți[[#This Row],[PLATĂ SUPLIMENTARĂ]]<=PlanificarePlăți[[#This Row],[SOLD INIȚIAL]],PlanificarePlăți[[#This Row],[SOLD INIȚIAL]]-PlanificarePlăți[[#This Row],[PRINCIPAL]],0),"") -> 3,467.65 lei | K14: =IF(PlanificarePlăți[[#This Row],[NR. PLĂȚI]]<>"",SUM(INDEX(PlanificarePlăți[DOBÂNDĂ],1,1):PlanificarePlăți[[#This Row],[DOBÂNDĂ]]),"") -> 44.90 lei
B15: =IF(ÎmprumutEsteBun,IF(ROW()-ROW(PlanificarePlăți[[#Headers],[NR. PLĂȚI]])>NumărPlanificatDePlăți,"",ROW()-ROW(PlanificarePlăți[[#Headers],[NR. PLĂȚI]])),"") -> 4 | C15: =IF(PlanificarePlăți[[#This Row],[NR. PLĂȚI]]<>"",EOMONTH(DataDeÎnceputÎmprumut,ROW(PlanificarePlăți[[#This Row],[NR. PLĂȚI]])-ROW(PlanificarePlăți[[#Headers],[NR. PLĂȚI]])-2)+DAY(DataDeÎnceputÎmprumut),"") -> 2020-07-15 | D15: =IF(PlanificarePlăți[[#This Row],[NR. PLĂȚI]]<>"",IF(ROW()-ROW(PlanificarePlăți[[#Headers],[SOLD INIȚIAL]])=1,ValoareÎmprumut,INDEX(PlanificarePlăți[SOLD FINAL],ROW()-ROW(PlanificarePlăți[[#Headers],[SOLD INIȚIAL]])-1)),"") -> 3,467.65 lei | E15: =IF(PlanificarePlăți[[#This Row],[NR. PLĂȚI]]<>"",PlatăPlanificată,"") -> 425.75 lei | F15: =IF(PlanificarePlăți[[#This Row],[NR. PLĂȚI]]<>"",IF(PlanificarePlăți[[#This Row],[PLATĂ PLANIFICATĂ]]+PlățiSuplimentare<PlanificarePlăți[[#This Row],[SOLD INIȚIAL]],PlățiSuplimentare,IF(PlanificarePlăți[[#This Row],[SOLD INIȚIAL]]-PlanificarePlăți[[#This Row],[PLATĂ PLANIFICATĂ]]>0,PlanificarePlăți[[#This Row],[SOLD INIȚIAL]]-PlanificarePlăți[[#This Row],[PLATĂ PLANIFICATĂ]],0)),"") -> 100.00 lei | G15: =IF(PlanificarePlăți[[#This Row],[NR. PLĂȚI]]<>"",IF(PlanificarePlăți[[#This Row],[PLATĂ PLANIFICATĂ]]+PlanificarePlăți[[#This Row],[PLATĂ SUPLIMENTARĂ]]<=PlanificarePlăți[[#This Row],[SOLD INIȚIAL]],PlanificarePlăți[[#This Row],[PLATĂ PLANIFICATĂ]]+PlanificarePlăți[[#This Row],[PLATĂ SUPLIMENTARĂ]],PlanificarePlăți[[#This Row],[SOLD INIȚIAL]]),"") -> 525.75 lei | H15: =IF(PlanificarePlăți[[#This Row],[NR. PLĂȚI]]<>"",PlanificarePlăți[[#This Row],[TOTAL DE PLATĂ]]-PlanificarePlăți[[#This Row],[DOBÂNDĂ]],"") -> 514.19 lei | I15: =IF(PlanificarePlăți[[#This Row],[NR. PLĂȚI]]<>"",PlanificarePlăți[[#This Row],[SOLD INIȚIAL]]*(RataDobânzii/PlățiPeAn),"") -> 11.56 lei | J15: =IF(PlanificarePlăți[[#This Row],[NR. PLĂȚI]]<>"",IF(PlanificarePlăți[[#This Row],[PLATĂ PLANIFICATĂ]]+PlanificarePlăți[[#This Row],[PLATĂ SUPLIMENTARĂ]]<=PlanificarePlăți[[#This Row],[SOLD INIȚIAL]],PlanificarePlăți[[#This Row],[SOLD INIȚIAL]]-PlanificarePlăți[[#This Row],[PRINCIPAL]],0),"") -> 2,953.46 lei | K15: =IF(PlanificarePlăți[[#This Row],[NR. PLĂȚI]]<>"",SUM(INDEX(PlanificarePlăți[DOBÂNDĂ],1,1):PlanificarePlăți[[#This Row],[DOBÂNDĂ]]),"") -> 56.46 lei
B16: =IF(ÎmprumutEsteBun,IF(ROW()-ROW(PlanificarePlăți[[#Headers],[NR. PLĂȚI]])>NumărPlanificatDePlăți,"",ROW()-ROW(PlanificarePlăți[[#Headers],[NR. PLĂȚI]])),"") -> 5 | C16: =IF(PlanificarePlăți[[#This Row],[NR. PLĂȚI]]<>"",EOMONTH(DataDeÎnceputÎmprumut,ROW(PlanificarePlăți[[#This Row],[NR. PLĂȚI]])-ROW(PlanificarePlăți[[#Headers],[NR. PLĂȚI]])-2)+DAY(DataDeÎnceputÎmprumut),"") -> 2020-08-15 | D16: =IF(PlanificarePlăți[[#This Row],[NR. PLĂȚI]]<>"",IF(ROW()-ROW(PlanificarePlăți[[#Headers],[SOLD INIȚIAL]])=1,ValoareÎmprumut,INDEX(PlanificarePlăți[SOLD FINAL],ROW()-ROW(PlanificarePlăți[[#Headers],[SOLD INIȚIAL]])-1)),"") -> 2,953.46 lei | E16: =IF(PlanificarePlăți[[#This Row],[NR. PLĂȚI]]<>"",PlatăPlanificată,"") -> 425.75 lei | F16: =IF(PlanificarePlăți[[#This Row],[NR. PLĂȚI]]<>"",IF(PlanificarePlăți[[#This Row],[PLATĂ PLANIFICATĂ]]+PlățiSuplimentare<PlanificarePlăți[[#This Row],[SOLD INIȚIAL]],PlățiSuplimentare,IF(PlanificarePlăți[[#This Row],[SOLD INIȚIAL]]-PlanificarePlăți[[#This Row],[PLATĂ PLANIFICATĂ]]>0,PlanificarePlăți[[#This Row],[SOLD INIȚIAL]]-PlanificarePlăți[[#This Row],[PLATĂ PLANIFICATĂ]],0)),"") -> 100.00 lei | G16: =IF(PlanificarePlăți[[#This Row],[NR. PLĂȚI]]<>"",IF(PlanificarePlăți[[#This Row],[PLATĂ PLANIFICATĂ]]+PlanificarePlăți[[#This Row],[PLATĂ SUPLIMENTARĂ]]<=PlanificarePlăți[[#This Row],[SOLD INIȚIAL]],PlanificarePlăți[[#This Row],[PLATĂ PLANIFICATĂ]]+PlanificarePlăți[[#This Row],[PLATĂ SUPLIMENTARĂ]],PlanificarePlăți[[#This Row],[SOLD INIȚIAL]]),"") -> 525.75 lei | H16: =IF(PlanificarePlăți[[#This Row],[NR. PLĂȚI]]<>"",PlanificarePlăți[[#This Row],[TOTAL DE PLATĂ]]-PlanificarePlăți[[#This Row],[DOBÂNDĂ]],"") -> 515.90 lei | I16: =IF(PlanificarePlăți[[#This Row],[NR. PLĂȚI]]<>"",PlanificarePlăți[[#This Row],[SOLD INIȚIAL]]*(RataDobânzii/PlățiPeAn),"") -> 9.84 lei | J16: =IF(PlanificarePlăți[[#This Row],[NR. PLĂȚI]]<>"",IF(PlanificarePlăți[[#This Row],[PLATĂ PLANIFICATĂ]]+PlanificarePlăți[[#This Row],[PLATĂ SUPLIMENTARĂ]]<=PlanificarePlăți[[#This Row],[SOLD INIȚIAL]],PlanificarePlăți[[#This Row],[SOLD INIȚIAL]]-PlanificarePlăți[[#This Row],[PRINCIPAL]],0),"") -> 2,437.56 lei | K16: =IF(PlanificarePlăți[[#This Row],[NR. PLĂȚI]]<>"",SUM(INDEX(PlanificarePlăți[DOBÂNDĂ],1,1):PlanificarePlăți[[#This Row],[DOBÂNDĂ]]),"") -> 66.31 lei
B17: =IF(ÎmprumutEsteBun,IF(ROW()-ROW(PlanificarePlăți[[#Headers],[NR. PLĂȚI]])>NumărPlanificatDePlăți,"",ROW()-ROW(PlanificarePlăți[[#Headers],[NR. PLĂȚI]])),"") -> 6 | C17: =IF(PlanificarePlăți[[#This Row],[NR. PLĂȚI]]<>"",EOMONTH(DataDeÎnceputÎmprumut,ROW(PlanificarePlăți[[#This Row],[NR. PLĂȚI]])-ROW(PlanificarePlăți[[#Headers],[NR. PLĂȚI]])-2)+DAY(DataDeÎnceputÎmprumut),"") -> 2020-09-15 | D17: =IF(PlanificarePlăți[[#This Row],[NR. PLĂȚI]]<>"",IF(ROW()-ROW(PlanificarePlăți[[#Headers],[SOLD INIȚIAL]])=1,ValoareÎmprumut,INDEX(PlanificarePlăți[SOLD FINAL],ROW()-ROW(PlanificarePlăți[[#Headers],[SOLD INIȚIAL]])-1)),"") -> 2,437.56 lei | E17: =IF(PlanificarePlăți[[#This Row],[NR. PLĂȚI]]<>"",PlatăPlanificată,"") -> 425.75 lei | F17: =IF(PlanificarePlăți[[#This Row],[NR. PLĂȚI]]<>"",IF(PlanificarePlăți[[#This Row],[PLATĂ PLANIFICATĂ]]+PlățiSuplimentare<PlanificarePlăți[[#This Row],[SOLD INIȚIAL]],PlățiSuplimentare,IF(PlanificarePlăți[[#This Row],[SOLD INIȚIAL]]-PlanificarePlăți[[#This Row],[PLATĂ PLANIFICATĂ]]>0,PlanificarePlăți[[#This Row],[SOLD INIȚIAL]]-PlanificarePlăți[[#This Row],[PLATĂ PLANIFICATĂ]],0)),"") -> 100.00 lei | G17: =IF(PlanificarePlăți[[#This Row],[NR. PLĂȚI]]<>"",IF(PlanificarePlăți[[#This Row],[PLATĂ PLANIFICATĂ]]+PlanificarePlăți[[#This Row],[PLATĂ SUPLIMENTARĂ]]<=PlanificarePlăți[[#This Row],[SOLD INIȚIAL]],PlanificarePlăți[[#This Row],[PLATĂ PLANIFICATĂ]]+PlanificarePlăți[[#This Row],[PLATĂ SUPLIMENTARĂ]],PlanificarePlăți[[#This Row],[SOLD INIȚIAL]]),"") -> 525.75 lei | H17: =IF(PlanificarePlăți[[#This Row],[NR. PLĂȚI]]<>"",PlanificarePlăți[[#This Row],[TOTAL DE PLATĂ]]-PlanificarePlăți[[#This Row],[DOBÂNDĂ]],"") -> 517.62 lei | I17: =IF(PlanificarePlăți[[#This Row],[NR. PLĂȚI]]<>"",PlanificarePlăți[[#This Row],[SOLD INIȚIAL]]*(RataDobânzii/PlățiPeAn),"") -> 8.13 lei | J17: =IF(PlanificarePlăți[[#This Row],[NR. PLĂȚI]]<>"",IF(PlanificarePlăți[[#This Row],[PLATĂ PLANIFICATĂ]]+PlanificarePlăți[[#This Row],[PLATĂ SUPLIMENTARĂ]]<=PlanificarePlăți[[#This Row],[SOLD INIȚIAL]],PlanificarePlăți[[#This Row],[SOLD INIȚIAL]]-PlanificarePlăți[[#This Row],[PRINCIPAL]],0),"") -> 1,919.94 lei | K17: =IF(PlanificarePlăți[[#This Row],[NR. PLĂȚI]]<>"",SUM(INDEX(PlanificarePlăți[DOBÂNDĂ],1,1):PlanificarePlăți[[#This Row],[DOBÂNDĂ]]),"") -> 74.43 lei
B18: =IF(ÎmprumutEsteBun,IF(ROW()-ROW(PlanificarePlăți[[#Headers],[NR. PLĂȚI]])>NumărPlanificatDePlăți,"",ROW()-ROW(PlanificarePlăți[[#Headers],[NR. PLĂȚI]])),"") -> 7 | C18: =IF(PlanificarePlăți[[#This Row],[NR. PLĂȚI]]<>"",EOMONTH(DataDeÎnceputÎmprumut,ROW(PlanificarePlăți[[#This Row],[NR. PLĂȚI]])-ROW(PlanificarePlăți[[#Headers],[NR. PLĂȚI]])-2)+DAY(DataDeÎnceputÎmprumut),"") -> 2020-10-15 | D18: =IF(PlanificarePlăți[[#This Row],[NR. PLĂȚI]]<>"",IF(ROW()-ROW(PlanificarePlăți[[#Headers],[SOLD INIȚIAL]])=1,ValoareÎmprumut,INDEX(PlanificarePlăți[SOLD FINAL],ROW()-ROW(PlanificarePlăți[[#Headers],[SOLD INIȚIAL]])-1)),"") -> 1,919.94 lei | E18: =IF(PlanificarePlăți[[#This Row],[NR. PLĂȚI]]<>"",PlatăPlanificată,"") -> 425.75 lei | F18: =IF(PlanificarePlăți[[#This Row],[NR. PLĂȚI]]<>"",IF(PlanificarePlăți[[#This Row],[PLATĂ PLANIFICATĂ]]+PlățiSuplimentare<PlanificarePlăți[[#This Row],[SOLD INIȚIAL]],PlățiSuplimentare,IF(PlanificarePlăți[[#This Row],[SOLD INIȚIAL]]-PlanificarePlăți[[#This Row],[PLATĂ PLANIFICATĂ]]>0,PlanificarePlăți[[#This Row],[SOLD INIȚIAL]]-PlanificarePlăți[[#This Row],[PLATĂ PLANIFICATĂ]],0)),"") -> 100.00 lei | G18: =IF(PlanificarePlăți[[#This Row],[NR. PLĂȚI]]<>"",IF(PlanificarePlăți[[#This Row],[PLATĂ PLANIFICATĂ]]+PlanificarePlăți[[#This Row],[PLATĂ SUPLIMENTARĂ]]<=PlanificarePlăți[[#This Row],[SOLD INIȚIAL]],PlanificarePlăți[[#This Row],[PLATĂ PLANIFICATĂ]]+PlanificarePlăți[[#This Row],[PLATĂ SUPLIMENTARĂ]],PlanificarePlăți[[#This Row],[SOLD INIȚIAL]]),"") -> 525.75 lei | H18: =IF(PlanificarePlăți[[#This Row],[NR. PLĂȚI]]<>"",PlanificarePlăți[[#This Row],[TOTAL DE PLATĂ]]-PlanificarePlăți[[#This Row],[DOBÂNDĂ]],"") -> 519.35 lei | I18: =IF(PlanificarePlăți[[#This Row],[NR. PLĂȚI]]<>"",PlanificarePlăți[[#This Row],[SOLD INIȚIAL]]*(RataDobânzii/PlățiPeAn),"") -> 6.40 lei | J18: =IF(PlanificarePlăți[[#This Row],[NR. PLĂȚI]]<>"",IF(PlanificarePlăți[[#This Row],[PLATĂ PLANIFICATĂ]]+PlanificarePlăți[[#This Row],[PLATĂ SUPLIMENTARĂ]]<=PlanificarePlăți[[#This Row],[SOLD INIȚIAL]],PlanificarePlăți[[#This Row],[SOLD INIȚIAL]]-PlanificarePlăți[[#This Row],[PRINCIPAL]],0),"") -> 1,400.59 lei | K18: =IF(PlanificarePlăți[[#This Row],[NR. PLĂȚI]]<>"",SUM(INDEX(PlanificarePlăți[DOBÂNDĂ],1,1):PlanificarePlăți[[#This Row],[DOBÂNDĂ]]),"") -> 80.83 lei
B19: =IF(ÎmprumutEsteBun,IF(ROW()-ROW(PlanificarePlăți[[#Headers],[NR. PLĂȚI]])>NumărPlanificatDePlăți,"",ROW()-ROW(PlanificarePlăți[[#Headers],[NR. PLĂȚI]])),"") -> 8 | C19: =IF(PlanificarePlăți[[#This Row],[NR. PLĂȚI]]<>"",EOMONTH(DataDeÎnceputÎmprumut,ROW(PlanificarePlăți[[#This Row],[NR. PLĂȚI]])-ROW(PlanificarePlăți[[#Headers],[NR. PLĂȚI]])-2)+DAY(DataDeÎnceputÎmprumut),"") -> 2020-11-15 | D19: =IF(PlanificarePlăți[[#This Row],[NR. PLĂȚI]]<>"",IF(ROW()-ROW(PlanificarePlăți[[#Headers],[SOLD INIȚIAL]])=1,ValoareÎmprumut,INDEX(PlanificarePlăți[SOLD FINAL],ROW()-ROW(PlanificarePlăți[[#Headers],[SOLD INIȚIAL]])-1)),"") -> 1,400.59 lei | E19: =IF(PlanificarePlăți[[#This Row],[NR. PLĂȚI]]<>"",PlatăPlanificată,"") -> 425.75 lei | F19: =IF(PlanificarePlăți[[#This Row],[NR. PLĂȚI]]<>"",IF(PlanificarePlăți[[#This Row],[PLATĂ PLANIFICATĂ]]+PlățiSuplimentare<PlanificarePlăți[[#This Row],[SOLD INIȚIAL]],PlățiSuplimentare,IF(PlanificarePlăți[[#This Row],[SOLD INIȚIAL]]-PlanificarePlăți[[#This Row],[PLATĂ PLANIFICATĂ]]>0,PlanificarePlăți[[#This Row],[SOLD INIȚIAL]]-PlanificarePlăți[[#This Row],[PLATĂ PLANIFICATĂ]],0)),"") -> 100.00 lei | G19: =IF(PlanificarePlăți[[#This Row],[NR. PLĂȚI]]<>"",IF(PlanificarePlăți[[#This Row],[PLATĂ PLANIFICATĂ]]+PlanificarePlăți[[#This Row],[PLATĂ SUPLIMENTARĂ]]<=PlanificarePlăți[[#This Row],[SOLD INIȚIAL]],PlanificarePlăți[[#This Row],[PLATĂ PLANIFICATĂ]]+PlanificarePlăți[[#This Row],[PLATĂ SUPLIMENTARĂ]],PlanificarePlăți[[#This Row],[SOLD INIȚIAL]]),"") -> 525.75 lei | H19: =IF(PlanificarePlăți[[#This Row],[NR. PLĂȚI]]<>"",PlanificarePlăți[[#This Row],[TOTAL DE PLATĂ]]-PlanificarePlăți[[#This Row],[DOBÂNDĂ]],"") -> 521.08 lei | I19: =IF(PlanificarePlăți[[#This Row],[NR. PLĂȚI]]<>"",PlanificarePlăți[[#This Row],[SOLD INIȚIAL]]*(RataDobânzii/PlățiPeAn),"") -> 4.67 lei | J19: =IF(PlanificarePlăți[[#This Row],[NR. PLĂȚI]]<>"",IF(PlanificarePlăți[[#This Row],[PLATĂ PLANIFICATĂ]]+PlanificarePlăți[[#This Row],[PLATĂ SUPLIMENTARĂ]]<=PlanificarePlăți[[#This Row],[SOLD INIȚIAL]],PlanificarePlăți[[#This Row],[SOLD INIȚIAL]]-PlanificarePlăți[[#This Row],[PRINCIPAL]],0),"") -> 879.50 lei | K19: =IF(PlanificarePlăți[[#This Row],[NR. PLĂȚI]]<>"",SUM(INDEX(PlanificarePlăți[DOBÂNDĂ],1,1):PlanificarePlăți[[#This Row],[DOBÂNDĂ]]),"") -> 85.50 lei
B20: =IF(ÎmprumutEsteBun,IF(ROW()-ROW(PlanificarePlăți[[#Headers],[NR. PLĂȚI]])>NumărPlanificatDePlăți,"",ROW()-ROW(PlanificarePlăți[[#Headers],[NR. PLĂȚI]])),"") -> 9 | C20: =IF(PlanificarePlăți[[#This Row],[NR. PLĂȚI]]<>"",EOMONTH(DataDeÎnceputÎmprumut,ROW(PlanificarePlăți[[#This Row],[NR. PLĂȚI]])-ROW(PlanificarePlăți[[#Headers],[NR. PLĂȚI]])-2)+DAY(DataDeÎnceputÎmprumut),"") -> 2020-12-15 | D20: =IF(PlanificarePlăți[[#This Row],[NR. PLĂȚI]]<>"",IF(ROW()-ROW(PlanificarePlăți[[#Headers],[SOLD INIȚIAL]])=1,ValoareÎmprumut,INDEX(PlanificarePlăți[SOLD FINAL],ROW()-ROW(PlanificarePlăți[[#Headers],[SOLD INIȚIAL]])-1)),"") -> 879.50 lei | E20: =IF(PlanificarePlăți[[#This Row],[NR. PLĂȚI]]<>"",PlatăPlanificată,"") -> 425.75 lei | F20: =IF(PlanificarePlăți[[#This Row],[NR. PLĂȚI]]<>"",IF(PlanificarePlăți[[#This Row],[PLATĂ PLANIFICATĂ]]+PlățiSuplimentare<PlanificarePlăți[[#This Row],[SOLD INIȚIAL]],PlățiSuplimentare,IF(PlanificarePlăți[[#This Row],[SOLD INIȚIAL]]-PlanificarePlăți[[#This Row],[PLATĂ PLANIFICATĂ]]>0,PlanificarePlăți[[#This Row],[SOLD INIȚIAL]]-PlanificarePlăți[[#This Row],[PLATĂ PLANIFICATĂ]],0)),"") -> 100.00 lei | G20: =IF(PlanificarePlăți[[#This Row],[NR. PLĂȚI]]<>"",IF(PlanificarePlăți[[#This Row],[PLATĂ PLANIFICATĂ]]+PlanificarePlăți[[#This Row],[PLATĂ SUPLIMENTARĂ]]<=PlanificarePlăți[[#This Row],[SOLD INIȚIAL]],PlanificarePlăți[[#This Row],[PLATĂ PLANIFICATĂ]]+PlanificarePlăți[[#This Row],[PLATĂ SUPLIMENTARĂ]],PlanificarePlăți[[#This Row],[SOLD INIȚIAL]]),"") -> 525.75 lei | H20: =IF(PlanificarePlăți[[#This Row],[NR. PLĂȚI]]<>"",PlanificarePlăți[[#This Row],[TOTAL DE PLATĂ]]-PlanificarePlăți[[#This Row],[DOBÂNDĂ]],"") -> 522.82 lei | I20: =IF(PlanificarePlăți[[#This Row],[NR. PLĂȚI]]<>"",PlanificarePlăți[[#This Row],[SOLD INIȚIAL]]*(RataDobânzii/PlățiPeAn),"") -> 2.93 lei | J20: =IF(PlanificarePlăți[[#This Row],[NR. PLĂȚI]]<>"",IF(PlanificarePlăți[[#This Row],[PLATĂ PLANIFICATĂ]]+PlanificarePlăți[[#This Row],[PLATĂ SUPLIMENTARĂ]]<=PlanificarePlăți[[#This Row],[SOLD INIȚIAL]],PlanificarePlăți[[#This Row],[SOLD INIȚIAL]]-PlanificarePlăți[[#This Row],[PRINCIPAL]],0),"") -> 356.69 lei | K20: =IF(PlanificarePlăți[[#This Row],[NR. PLĂȚI]]<>"",SUM(INDEX(PlanificarePlăți[DOBÂNDĂ],1,1):PlanificarePlăți[[#This Row],[DOBÂNDĂ]]),"") -> 88.43 lei
B21: =IF(ÎmprumutEsteBun,IF(ROW()-ROW(PlanificarePlăți[[#Headers],[NR. PLĂȚI]])>NumărPlanificatDePlăți,"",ROW()-ROW(PlanificarePlăți[[#Headers],[NR. PLĂȚI]])),"") -> 10 | C21: =IF(PlanificarePlăți[[#This Row],[NR. PLĂȚI]]<>"",EOMONTH(DataDeÎnceputÎmprumut,ROW(PlanificarePlăți[[#This Row],[NR. PLĂȚI]])-ROW(PlanificarePlăți[[#Headers],[NR. PLĂȚI]])-2)+DAY(DataDeÎnceputÎmprumut),"") -> 2021-01-15 | D21: =IF(PlanificarePlăți[[#This Row],[NR. PLĂȚI]]<>"",IF(ROW()-ROW(PlanificarePlăți[[#Headers],[SOLD INIȚIAL]])=1,ValoareÎmprumut,INDEX(PlanificarePlăți[SOLD FINAL],ROW()-ROW(PlanificarePlăți[[#Headers],[SOLD INIȚIAL]])-1)),"") -> 356.69 lei | E21: =IF(PlanificarePlăți[[#This Row],[NR. PLĂȚI]]<>"",PlatăPlanificată,"") -> 425.75 lei | F21: =IF(PlanificarePlăți[[#This Row],[NR. PLĂȚI]]<>"",IF(PlanificarePlăți[[#This Row],[PLATĂ PLANIFICATĂ]]+PlățiSuplimentare<PlanificarePlăți[[#This Row],[SOLD INIȚIAL]],PlățiSuplimentare,IF(PlanificarePlăți[[#This Row],[SOLD INIȚIAL]]-PlanificarePlăți[[#This Row],[PLATĂ PLANIFICATĂ]]>0,PlanificarePlăți[[#This Row],[SOLD INIȚIAL]]-PlanificarePlăți[[#This Row],[PLATĂ PLANIFICATĂ]],0)),"") -> 0.00 lei | G21: =IF(PlanificarePlăți[[#This Row],[NR. PLĂȚI]]<>"",IF(PlanificarePlăți[[#This Row],[PLATĂ PLANIFICATĂ]]+PlanificarePlăți[[#This Row],[PLATĂ SUPLIMENTARĂ]]<=PlanificarePlăți[[#This Row],[SOLD INIȚIAL]],PlanificarePlăți[[#This Row],[PLATĂ PLANIFICATĂ]]+PlanificarePlăți[[#This Row],[PLATĂ SUPLIMENTARĂ]],PlanificarePlăți[[#This Row],[SOLD INIȚIAL]]),"") -> 356.69 lei | H21: =IF(PlanificarePlăți[[#This Row],[NR. PLĂȚI]]<>"",PlanificarePlăți[[#This Row],[TOTAL DE PLATĂ]]-PlanificarePlăți[[#This Row],[DOBÂNDĂ]],"") -> 355.50 lei | I21: =IF(PlanificarePlăți[[#This Row],[NR. PLĂȚI]]<>"",PlanificarePlăți[[#This Row],[SOLD INIȚIAL]]*(RataDobânzii/PlățiPeAn),"") -> 1.19 lei | J21: =IF(PlanificarePlăți[[#This Row],[NR. PLĂȚI]]<>"",IF(PlanificarePlăți[[#This Row],[PLATĂ PLANIFICATĂ]]+PlanificarePlăți[[#This Row],[PLATĂ SUPLIMENTARĂ]]<=PlanificarePlăți[[#This Row],[SOLD INIȚIAL]],PlanificarePlăți[[#This Row],[SOLD INIȚIAL]]-PlanificarePlăți[[#This Row],[PRINCIPAL]],0),"") -> 0.00 lei | K21: =IF(PlanificarePlăți[[#This Row],[NR. PLĂȚI]]<>"",SUM(INDEX(PlanificarePlăți[DOBÂNDĂ],1,1):PlanificarePlăți[[#This Row],[DOBÂNDĂ]]),"") -> 89.62 lei
B22: =IF(ÎmprumutEsteBun,IF(ROW()-ROW(PlanificarePlăți[[#Headers],[NR. PLĂȚI]])>NumărPlanificatDePlăți,"",ROW()-ROW(PlanificarePlăți[[#Headers],[NR. PLĂȚI]])),"") -> 11 | C22: =IF(PlanificarePlăți[[#This Row],[NR. PLĂȚI]]<>"",EOMONTH(DataDeÎnceputÎmprumut,ROW(PlanificarePlăți[[#This Row],[NR. PLĂȚI]])-ROW(PlanificarePlăți[[#Headers],[NR. PLĂȚI]])-2)+DAY(DataDeÎnceputÎmprumut),"") -> 2021-02-15 | D22: =IF(PlanificarePlăți[[#This Row],[NR. PLĂȚI]]<>"",IF(ROW()-ROW(PlanificarePlăți[[#Headers],[SOLD INIȚIAL]])=1,ValoareÎmprumut,INDEX(PlanificarePlăți[SOLD FINAL],ROW()-ROW(PlanificarePlăți[[#Headers],[SOLD INIȚIAL]])-1)),"") -> 0.00 lei | E22: =IF(PlanificarePlăți[[#This Row],[NR. PLĂȚI]]<>"",PlatăPlanificată,"") -> 425.75 lei | F22: =IF(PlanificarePlăți[[#This Row],[NR. PLĂȚI]]<>"",IF(PlanificarePlăți[[#This Row],[PLATĂ PLANIFICATĂ]]+PlățiSuplimentare<PlanificarePlăți[[#This Row],[SOLD INIȚIAL]],PlățiSuplimentare,IF(PlanificarePlăți[[#This Row],[SOLD INIȚIAL]]-PlanificarePlăți[[#This Row],[PLATĂ PLANIFICATĂ]]>0,PlanificarePlăți[[#This Row],[SOLD INIȚIAL]]-PlanificarePlăți[[#This Row],[PLATĂ PLANIFICATĂ]],0)),"") -> 0.00 lei | G22: =IF(PlanificarePlăți[[#This Row],[NR. PLĂȚI]]<>"",IF(PlanificarePlăți[[#This Row],[PLATĂ PLANIFICATĂ]]+PlanificarePlăți[[#This Row],[PLATĂ SUPLIMENTARĂ]]<=PlanificarePlăți[[#This Row],[SOLD INIȚIAL]],PlanificarePlăți[[#This Row],[PLATĂ PLANIFICATĂ]]+PlanificarePlăți[[#This Row],[PLATĂ SUPLIMENTARĂ]],PlanificarePlăți[[#This Row],[SOLD INIȚIAL]]),"") -> 0.00 lei | H22: =IF(PlanificarePlăți[[#This Row],[NR. PLĂȚI]]<>"",PlanificarePlăți[[#This Row],[TOTAL DE PLATĂ]]-PlanificarePlăți[[#This Row],[DOBÂNDĂ]],"") -> 0.00 lei | I22: =IF(PlanificarePlăți[[#This Row],[NR. PLĂȚI]]<>"",PlanificarePlăți[[#This Row],[SOLD INIȚIAL]]*(RataDobânzii/PlățiPeAn),"") -> 0.00 lei | J22: =IF(PlanificarePlăți[[#This Row],[NR. PLĂȚI]]<>"",IF(PlanificarePlăți[[#This Row],[PLATĂ PLANIFICATĂ]]+PlanificarePlăți[[#This Row],[PLATĂ SUPLIMENTARĂ]]<=PlanificarePlăți[[#This Row],[SOLD INIȚIAL]],PlanificarePlăți[[#This Row],[SOLD INIȚIAL]]-PlanificarePlăți[[#This Row],[PRINCIPAL]],0),"") -> 0.00 lei | K22: =IF(PlanificarePlăți[[#This Row],[NR. PLĂȚI]]<>"",SUM(INDEX(PlanificarePlăți[DOBÂNDĂ],1,1):PlanificarePlăți[[#This Row],[DOBÂNDĂ]]),"") -> 89.62 lei
B23: =IF(ÎmprumutEsteBun,IF(ROW()-ROW(PlanificarePlăți[[#Headers],[NR. PLĂȚI]])>NumărPlanificatDePlăți,"",ROW()-ROW(PlanificarePlăți[[#Headers],[NR. PLĂȚI]])),"") -> 12 | C23: =IF(PlanificarePlăți[[#This Row],[NR. PLĂȚI]]<>"",EOMONTH(DataDeÎnceputÎmprumut,ROW(PlanificarePlăți[[#This Row],[NR. PLĂȚI]])-ROW(PlanificarePlăți[[#Headers],[NR. PLĂȚI]])-2)+DAY(DataDeÎnceputÎmprumut),"") -> 2021-03-15 | D23: =IF(PlanificarePlăți[[#This Row],[NR. PLĂȚI]]<>"",IF(ROW()-ROW(PlanificarePlăți[[#Headers],[SOLD INIȚIAL]])=1,ValoareÎmprumut,INDEX(PlanificarePlăți[SOLD FINAL],ROW()-ROW(PlanificarePlăți[[#Headers],[SOLD INIȚIAL]])-1)),"") -> 0.00 lei | E23: =IF(PlanificarePlăți[[#This Row],[NR. PLĂȚI]]<>"",PlatăPlanificată,"") -> 425.75 lei | F23: =IF(PlanificarePlăți[[#This Row],[NR. PLĂȚI]]<>"",IF(PlanificarePlăți[[#This Row],[PLATĂ PLANIFICATĂ]]+PlățiSuplimentare<PlanificarePlăți[[#This Row],[SOLD INIȚIAL]],PlățiSuplimentare,IF(PlanificarePlăți[[#This Row],[SOLD INIȚIAL]]-PlanificarePlăți[[#This Row],[PLATĂ PLANIFICATĂ]]>0,PlanificarePlăți[[#This Row],[SOLD INIȚIAL]]-PlanificarePlăți[[#This Row],[PLATĂ PLANIFICATĂ]],0)),"") -> 0.00 lei | G23: =IF(PlanificarePlăți[[#This Row],[NR. PLĂȚI]]<>"",IF(PlanificarePlăți[[#This Row],[PLATĂ PLANIFICATĂ]]+PlanificarePlăți[[#This Row],[PLATĂ SUPLIMENTARĂ]]<=PlanificarePlăți[[#This Row],[SOLD INIȚIAL]],PlanificarePlăți[[#This Row],[PLATĂ PLANIFICATĂ]]+PlanificarePlăți[[#This Row],[PLATĂ SUPLIMENTARĂ]],PlanificarePlăți[[#This Row],[SOLD INIȚIAL]]),"") -> 0.00 lei | H23: =IF(PlanificarePlăți[[#This Row],[NR. PLĂȚI]]<>"",PlanificarePlăți[[#This Row],[TOTAL DE PLATĂ]]-PlanificarePlăți[[#This Row],[DOBÂNDĂ]],"") -> 0.00 lei | I23: =IF(PlanificarePlăți[[#This Row],[NR. PLĂȚI]]<>"",PlanificarePlăți[[#This Row],[SOLD INIȚIAL]]*(RataDobânzii/PlățiPeAn),"") -> 0.00 lei | J23: =IF(PlanificarePlăți[[#This Row],[NR. PLĂȚI]]<>"",IF(PlanificarePlăți[[#This Row],[PLATĂ PLANIFICATĂ]]+PlanificarePlăți[[#This Row],[PLATĂ SUPLIMENTARĂ]]<=PlanificarePlăți[[#This Row],[SOLD INIȚIAL]],PlanificarePlăți[[#This Row],[SOLD INIȚIAL]]-PlanificarePlăți[[#This Row],[PRINCIPAL]],0),"") -> 0.00 lei | K23: =IF(PlanificarePlăți[[#This Row],[NR. PLĂȚI]]<>"",SUM(INDEX(PlanificarePlăți[DOBÂNDĂ],1,1):PlanificarePlăți[[#This Row],[DOBÂNDĂ]]),"") -> 89.62 lei
B24: =IF(ÎmprumutEsteBun,IF(ROW()-ROW(PlanificarePlăți[[#Headers],[NR. PLĂȚI]])>NumărPlanificatDePlăți,"",ROW()-ROW(PlanificarePlăți[[#Headers],[NR. PLĂȚI]])),"") ->  | C24: =IF(PlanificarePlăți[[#This Row],[NR. PLĂȚI]]<>"",EOMONTH(DataDeÎnceputÎmprumut,ROW(PlanificarePlăți[[#This Row],[NR. PLĂȚI]])-ROW(PlanificarePlăți[[#Headers],[NR. PLĂȚI]])-2)+DAY(DataDeÎnceputÎmprumut),"") ->  | D24: =IF(PlanificarePlăți[[#This Row],[NR. PLĂȚI]]<>"",IF(ROW()-ROW(PlanificarePlăți[[#Headers],[SOLD INIȚIAL]])=1,ValoareÎmprumut,INDEX(PlanificarePlăți[SOLD FINAL],ROW()-ROW(PlanificarePlăți[[#Headers],[SOLD INIȚIAL]])-1)),"") ->  | E24: =IF(PlanificarePlăți[[#This Row],[NR. PLĂȚI]]<>"",PlatăPlanificată,"") ->  | F24: =IF(PlanificarePlăți[[#This Row],[NR. PLĂȚI]]<>"",IF(PlanificarePlăți[[#This Row],[PLATĂ PLANIFICATĂ]]+PlățiSuplimentare<PlanificarePlăți[[#This Row],[SOLD INIȚIAL]],PlățiSuplimentare,IF(PlanificarePlăți[[#This Row],[SOLD INIȚIAL]]-PlanificarePlăți[[#This Row],[PLATĂ PLANIFICATĂ]]>0,PlanificarePlăți[[#This Row],[SOLD INIȚIAL]]-PlanificarePlăți[[#This Row],[PLATĂ PLANIFICATĂ]],0)),"") ->  | G24: =IF(PlanificarePlăți[[#This Row],[NR. PLĂȚI]]<>"",IF(PlanificarePlăți[[#This Row],[PLATĂ PLANIFICATĂ]]+PlanificarePlăți[[#This Row],[PLATĂ SUPLIMENTARĂ]]<=PlanificarePlăți[[#This Row],[SOLD INIȚIAL]],PlanificarePlăți[[#This Row],[PLATĂ PLANIFICATĂ]]+PlanificarePlăți[[#This Row],[PLATĂ SUPLIMENTARĂ]],PlanificarePlăți[[#This Row],[SOLD INIȚIAL]]),"") ->  | H24: =IF(PlanificarePlăți[[#This Row],[NR. PLĂȚI]]<>"",PlanificarePlăți[[#This Row],[TOTAL DE PLATĂ]]-PlanificarePlăți[[#This Row],[DOBÂNDĂ]],"") ->  | I24: =IF(PlanificarePlăți[[#This Row],[NR. PLĂȚI]]<>"",PlanificarePlăți[[#This Row],[SOLD INIȚIAL]]*(RataDobânzii/PlățiPeAn),"") ->  | J24: =IF(PlanificarePlăți[[#This Row],[NR. PLĂȚI]]<>"",IF(PlanificarePlăți[[#This Row],[PLATĂ PLANIFICATĂ]]+PlanificarePlăți[[#This Row],[PLATĂ SUPLIMENTARĂ]]<=PlanificarePlăți[[#This Row],[SOLD INIȚIAL]],PlanificarePlăți[[#This Row],[SOLD INIȚIAL]]-PlanificarePlăți[[#This Row],[PRINCIPAL]],0),"") ->  | K24: =IF(PlanificarePlăți[[#This Row],[NR. PLĂȚI]]<>"",SUM(INDEX(PlanificarePlăți[DOBÂNDĂ],1,1):PlanificarePlăți[[#This Row],[DOBÂNDĂ]]),"") -> 
B25: =IF(ÎmprumutEsteBun,IF(ROW()-ROW(PlanificarePlăți[[#Headers],[NR. PLĂȚI]])>NumărPlanificatDePlăți,"",ROW()-ROW(PlanificarePlăți[[#Headers],[NR. PLĂȚI]])),"") ->  | C25: =IF(PlanificarePlăți[[#This Row],[NR. PLĂȚI]]<>"",EOMONTH(DataDeÎnceputÎmprumut,ROW(PlanificarePlăți[[#This Row],[NR. PLĂȚI]])-ROW(PlanificarePlăți[[#Headers],[NR. PLĂȚI]])-2)+DAY(DataDeÎnceputÎmprumut),"") ->  | D25: =IF(PlanificarePlăți[[#This Row],[NR. PLĂȚI]]<>"",IF(ROW()-ROW(PlanificarePlăți[[#Headers],[SOLD INIȚIAL]])=1,ValoareÎmprumut,INDEX(PlanificarePlăți[SOLD FINAL],ROW()-ROW(PlanificarePlăți[[#Headers],[SOLD INIȚIAL]])-1)),"") ->  | E25: =IF(PlanificarePlăți[[#This Row],[NR. PLĂȚI]]<>"",PlatăPlanificată,"") ->  | F25: =IF(PlanificarePlăți[[#This Row],[NR. PLĂȚI]]<>"",IF(PlanificarePlăți[[#This Row],[PLATĂ PLANIFICATĂ]]+PlățiSuplimentare<PlanificarePlăți[[#This Row],[SOLD INIȚIAL]],PlățiSuplimentare,IF(PlanificarePlăți[[#This Row],[SOLD INIȚIAL]]-PlanificarePlăți[[#This Row],[PLATĂ PLANIFICATĂ]]>0,PlanificarePlăți[[#This Row],[SOLD INIȚIAL]]-PlanificarePlăți[[#This Row],[PLATĂ PLANIFICATĂ]],0)),"") ->  | G25: =IF(PlanificarePlăți[[#This Row],[NR. PLĂȚI]]<>"",IF(PlanificarePlăți[[#This Row],[PLATĂ PLANIFICATĂ]]+PlanificarePlăți[[#This Row],[PLATĂ SUPLIMENTARĂ]]<=PlanificarePlăți[[#This Row],[SOLD INIȚIAL]],PlanificarePlăți[[#This Row],[PLATĂ PLANIFICATĂ]]+PlanificarePlăți[[#This Row],[PLATĂ SUPLIMENTARĂ]],PlanificarePlăți[[#This Row],[SOLD INIȚIAL]]),"") ->  | H25: =IF(PlanificarePlăți[[#This Row],[NR. PLĂȚI]]<>"",PlanificarePlăți[[#This Row],[TOTAL DE PLATĂ]]-PlanificarePlăți[[#This Row],[DOBÂNDĂ]],"") ->  | I25: =IF(PlanificarePlăți[[#This Row],[NR. PLĂȚI]]<>"",PlanificarePlăți[[#This Row],[SOLD INIȚIAL]]*(RataDobânzii/PlățiPeAn),"") ->  | J25: =IF(PlanificarePlăți[[#This Row],[NR. PLĂȚI]]<>"",IF(PlanificarePlăți[[#This Row],[PLATĂ PLANIFICATĂ]]+PlanificarePlăți[[#This Row],[PLATĂ SUPLIMENTARĂ]]<=PlanificarePlăți[[#This Row],[SOLD INIȚIAL]],PlanificarePlăți[[#This Row],[SOLD INIȚIAL]]-PlanificarePlăți[[#This Row],[PRINCIPAL]],0),"") ->  | K25: =IF(PlanificarePlăți[[#This Row],[NR. PLĂȚI]]<>"",SUM(INDEX(PlanificarePlăți[DOBÂNDĂ],1,1):PlanificarePlăți[[#This Row],[DOBÂNDĂ]]),"") -> 
B26: =IF(ÎmprumutEsteBun,IF(ROW()-ROW(PlanificarePlăți[[#Headers],[NR. PLĂȚI]])>NumărPlanificatDePlăți,"",ROW()-ROW(PlanificarePlăți[[#Headers],[NR. PLĂȚI]])),"") ->  | C26: =IF(PlanificarePlăți[[#This Row],[NR. PLĂȚI]]<>"",EOMONTH(DataDeÎnceputÎmprumut,ROW(PlanificarePlăți[[#This Row],[NR. PLĂȚI]])-ROW(PlanificarePlăți[[#Headers],[NR. PLĂȚI]])-2)+DAY(DataDeÎnceputÎmprumut),"") ->  | D26: =IF(PlanificarePlăți[[#This Row],[NR. PLĂȚI]]<>"",IF(ROW()-ROW(PlanificarePlăți[[#Headers],[SOLD INIȚIAL]])=1,ValoareÎmprumut,INDEX(PlanificarePlăți[SOLD FINAL],ROW()-ROW(PlanificarePlăți[[#Headers],[SOLD INIȚIAL]])-1)),"") ->  | E26: =IF(PlanificarePlăți[[#This Row],[NR. PLĂȚI]]<>"",PlatăPlanificată,"") ->  | F26: =IF(PlanificarePlăți[[#This Row],[NR. PLĂȚI]]<>"",IF(PlanificarePlăți[[#This Row],[PLATĂ PLANIFICATĂ]]+PlățiSuplimentare<PlanificarePlăți[[#This Row],[SOLD INIȚIAL]],PlățiSuplimentare,IF(PlanificarePlăți[[#This Row],[SOLD INIȚIAL]]-PlanificarePlăți[[#This Row],[PLATĂ PLANIFICATĂ]]>0,PlanificarePlăți[[#This Row],[SOLD INIȚIAL]]-PlanificarePlăți[[#This Row],[PLATĂ PLANIFICATĂ]],0)),"") ->  | G26: =IF(PlanificarePlăți[[#This Row],[NR. PLĂȚI]]<>"",IF(PlanificarePlăți[[#This Row],[PLATĂ PLANIFICATĂ]]+PlanificarePlăți[[#This Row],[PLATĂ SUPLIMENTARĂ]]<=PlanificarePlăți[[#This Row],[SOLD INIȚIAL]],PlanificarePlăți[[#This Row],[PLATĂ PLANIFICATĂ]]+PlanificarePlăți[[#This Row],[PLATĂ SUPLIMENTARĂ]],PlanificarePlăți[[#This Row],[SOLD INIȚIAL]]),"") ->  | H26: =IF(PlanificarePlăți[[#This Row],[NR. PLĂȚI]]<>"",PlanificarePlăți[[#This Row],[TOTAL DE PLATĂ]]-PlanificarePlăți[[#This Row],[DOBÂNDĂ]],"") ->  | I26: =IF(PlanificarePlăți[[#This Row],[NR. PLĂȚI]]<>"",PlanificarePlăți[[#This Row],[SOLD INIȚIAL]]*(RataDobânzii/PlățiPeAn),"") ->  | J26: =IF(PlanificarePlăți[[#This Row],[NR. PLĂȚI]]<>"",IF(PlanificarePlăți[[#This Row],[PLATĂ PLANIFICATĂ]]+PlanificarePlăți[[#This Row],[PLATĂ SUPLIMENTARĂ]]<=PlanificarePlăți[[#This Row],[SOLD INIȚIAL]],PlanificarePlăți[[#This Row],[SOLD INIȚIAL]]-PlanificarePlăți[[#This Row],[PRINCIPAL]],0),"") ->  | K26: =IF(PlanificarePlăți[[#This Row],[NR. PLĂȚI]]<>"",SUM(INDEX(PlanificarePlăți[DOBÂNDĂ],1,1):PlanificarePlăți[[#This Row],[DOBÂNDĂ]]),"") -> 
B27: =IF(ÎmprumutEsteBun,IF(ROW()-ROW(PlanificarePlăți[[#Headers],[NR. PLĂȚI]])>NumărPlanificatDePlăți,"",ROW()-ROW(PlanificarePlăți[[#Headers],[NR. PLĂȚI]])),"") ->  | C27: =IF(PlanificarePlăți[[#This Row],[NR. PLĂȚI]]<>"",EOMONTH(DataDeÎnceputÎmprumut,ROW(PlanificarePlăți[[#This Row],[NR. PLĂȚI]])-ROW(PlanificarePlăți[[#Headers],[NR. PLĂȚI]])-2)+DAY(DataDeÎnceputÎmprumut),"") ->  | D27: =IF(PlanificarePlăți[[#This Row],[NR. PLĂȚI]]<>"",IF(ROW()-ROW(PlanificarePlăți[[#Headers],[SOLD INIȚIAL]])=1,ValoareÎmprumut,INDEX(PlanificarePlăți[SOLD FINAL],ROW()-ROW(PlanificarePlăți[[#Headers],[SOLD INIȚIAL]])-1)),"") ->  | E27: =IF(PlanificarePlăți[[#This Row],[NR. PLĂȚI]]<>"",PlatăPlanificată,"") ->  | F27: =IF(PlanificarePlăți[[#This Row],[NR. PLĂȚI]]<>"",IF(PlanificarePlăți[[#This Row],[PLATĂ PLANIFICATĂ]]+PlățiSuplimentare<PlanificarePlăți[[#This Row],[SOLD INIȚIAL]],PlățiSuplimentare,IF(PlanificarePlăți[[#This Row],[SOLD INIȚIAL]]-PlanificarePlăți[[#This Row],[PLATĂ PLANIFICATĂ]]>0,PlanificarePlăți[[#This Row],[SOLD INIȚIAL]]-PlanificarePlăți[[#This Row],[PLATĂ PLANIFICATĂ]],0)),"") ->  | G27: =IF(PlanificarePlăți[[#This Row],[NR. PLĂȚI]]<>"",IF(PlanificarePlăți[[#This Row],[PLATĂ PLANIFICATĂ]]+PlanificarePlăți[[#This Row],[PLATĂ SUPLIMENTARĂ]]<=PlanificarePlăți[[#This Row],[SOLD INIȚIAL]],PlanificarePlăți[[#This Row],[PLATĂ PLANIFICATĂ]]+PlanificarePlăți[[#This Row],[PLATĂ SUPLIMENTARĂ]],PlanificarePlăți[[#This Row],[SOLD INIȚIAL]]),"") ->  | H27: =IF(PlanificarePlăți[[#This Row],[NR. PLĂȚI]]<>"",PlanificarePlăți[[#This Row],[TOTAL DE PLATĂ]]-PlanificarePlăți[[#This Row],[DOBÂNDĂ]],"") ->  | I27: =IF(PlanificarePlăți[[#This Row],[NR. PLĂȚI]]<>"",PlanificarePlăți[[#This Row],[SOLD INIȚIAL]]*(RataDobânzii/PlățiPeAn),"") ->  | J27: =IF(PlanificarePlăți[[#This Row],[NR. PLĂȚI]]<>"",IF(PlanificarePlăți[[#This Row],[PLATĂ PLANIFICATĂ]]+PlanificarePlăți[[#This Row],[PLATĂ SUPLIMENTARĂ]]<=PlanificarePlăți[[#This Row],[SOLD INIȚIAL]],PlanificarePlăți[[#This Row],[SOLD INIȚIAL]]-PlanificarePlăți[[#This Row],[PRINCIPAL]],0),"") ->  | K27: =IF(PlanificarePlăți[[#This Row],[NR. PLĂȚI]]<>"",SUM(INDEX(PlanificarePlăți[DOBÂNDĂ],1,1):PlanificarePlăți[[#This Row],[DOBÂNDĂ]]),"") -> 
B28: =IF(ÎmprumutEsteBun,IF(ROW()-ROW(PlanificarePlăți[[#Headers],[NR. PLĂȚI]])>NumărPlanificatDePlăți,"",ROW()-ROW(PlanificarePlăți[[#Headers],[NR. PLĂȚI]])),"") ->  | C28: =IF(PlanificarePlăți[[#This Row],[NR. PLĂȚI]]<>"",EOMONTH(DataDeÎnceputÎmprumut,ROW(PlanificarePlăți[[#This Row],[NR. PLĂȚI]])-ROW(PlanificarePlăți[[#Headers],[NR. PLĂȚI]])-2)+DAY(DataDeÎnceputÎmprumut),"") ->  | D28: =IF(PlanificarePlăți[[#This Row],[NR. PLĂȚI]]<>"",IF(ROW()-ROW(PlanificarePlăți[[#Headers],[SOLD INIȚIAL]])=1,ValoareÎmprumut,INDEX(PlanificarePlăți[SOLD FINAL],ROW()-ROW(PlanificarePlăți[[#Headers],[SOLD INIȚIAL]])-1)),"") ->  | E28: =IF(PlanificarePlăți[[#This Row],[NR. PLĂȚI]]<>"",PlatăPlanificată,"") ->  | F28: =IF(PlanificarePlăți[[#This Row],[NR. PLĂȚI]]<>"",IF(PlanificarePlăți[[#This Row],[PLATĂ PLANIFICATĂ]]+PlățiSuplimentare<PlanificarePlăți[[#This Row],[SOLD INIȚIAL]],PlățiSuplimentare,IF(PlanificarePlăți[[#This Row],[SOLD INIȚIAL]]-PlanificarePlăți[[#This Row],[PLATĂ PLANIFICATĂ]]>0,PlanificarePlăți[[#This Row],[SOLD INIȚIAL]]-PlanificarePlăți[[#This Row],[PLATĂ PLANIFICATĂ]],0)),"") ->  | G28: =IF(PlanificarePlăți[[#This Row],[NR. PLĂȚI]]<>"",IF(PlanificarePlăți[[#This Row],[PLATĂ PLANIFICATĂ]]+PlanificarePlăți[[#This Row],[PLATĂ SUPLIMENTARĂ]]<=PlanificarePlăți[[#This Row],[SOLD INIȚIAL]],PlanificarePlăți[[#This Row],[PLATĂ PLANIFICATĂ]]+PlanificarePlăți[[#This Row],[PLATĂ SUPLIMENTARĂ]],PlanificarePlăți[[#This Row],[SOLD INIȚIAL]]),"") ->  | H28: =IF(PlanificarePlăți[[#This Row],[NR. PLĂȚI]]<>"",PlanificarePlăți[[#This Row],[TOTAL DE PLATĂ]]-PlanificarePlăți[[#This Row],[DOBÂNDĂ]],"") ->  | I28: =IF(PlanificarePlăți[[#This Row],[NR. PLĂȚI]]<>"",PlanificarePlăți[[#This Row],[SOLD INIȚIAL]]*(RataDobânzii/PlățiPeAn),"") ->  | J28: =IF(PlanificarePlăți[[#This Row],[NR. PLĂȚI]]<>"",IF(PlanificarePlăți[[#This Row],[PLATĂ PLANIFICATĂ]]+PlanificarePlăți[[#This Row],[PLATĂ SUPLIMENTARĂ]]<=PlanificarePlăți[[#This Row],[SOLD INIȚIAL]],PlanificarePlăți[[#This Row],[SOLD INIȚIAL]]-PlanificarePlăți[[#This Row],[PRINCIPAL]],0),"") ->  | K28: =IF(PlanificarePlăți[[#This Row],[NR. PLĂȚI]]<>"",SUM(INDEX(PlanificarePlăți[DOBÂNDĂ],1,1):PlanificarePlăți[[#This Row],[DOBÂNDĂ]]),"") -> 
B29: =IF(ÎmprumutEsteBun,IF(ROW()-ROW(PlanificarePlăți[[#Headers],[NR. PLĂȚI]])>NumărPlanificatDePlăți,"",ROW()-ROW(PlanificarePlăți[[#Headers],[NR. PLĂȚI]])),"") ->  | C29: =IF(PlanificarePlăți[[#This Row],[NR. PLĂȚI]]<>"",EOMONTH(DataDeÎnceputÎmprumut,ROW(PlanificarePlăți[[#This Row],[NR. PLĂȚI]])-ROW(PlanificarePlăți[[#Headers],[NR. PLĂȚI]])-2)+DAY(DataDeÎnceputÎmprumut),"") ->  | D29: =IF(PlanificarePlăți[[#This Row],[NR. PLĂȚI]]<>"",IF(ROW()-ROW(PlanificarePlăți[[#Headers],[SOLD INIȚIAL]])=1,ValoareÎmprumut,INDEX(PlanificarePlăți[SOLD FINAL],ROW()-ROW(PlanificarePlăți[[#Headers],[SOLD INIȚIAL]])-1)),"") ->  | E29: =IF(PlanificarePlăți[[#This Row],[NR. PLĂȚI]]<>"",PlatăPlanificată,"") ->  | F29: =IF(PlanificarePlăți[[#This Row],[NR. PLĂȚI]]<>"",IF(PlanificarePlăți[[#This Row],[PLATĂ PLANIFICATĂ]]+PlățiSuplimentare<PlanificarePlăți[[#This Row],[SOLD INIȚIAL]],PlățiSuplimentare,IF(PlanificarePlăți[[#This Row],[SOLD INIȚIAL]]-PlanificarePlăți[[#This Row],[PLATĂ PLANIFICATĂ]]>0,PlanificarePlăți[[#This Row],[SOLD INIȚIAL]]-PlanificarePlăți[[#This Row],[PLATĂ PLANIFICATĂ]],0)),"") ->  | G29: =IF(PlanificarePlăți[[#This Row],[NR. PLĂȚI]]<>"",IF(PlanificarePlăți[[#This Row],[PLATĂ PLANIFICATĂ]]+PlanificarePlăți[[#This Row],[PLATĂ SUPLIMENTARĂ]]<=PlanificarePlăți[[#This Row],[SOLD INIȚIAL]],PlanificarePlăți[[#This Row],[PLATĂ PLANIFICATĂ]]+PlanificarePlăți[[#This Row],[PLATĂ SUPLIMENTARĂ]],PlanificarePlăți[[#This Row],[SOLD INIȚIAL]]),"") ->  | H29: =IF(PlanificarePlăți[[#This Row],[NR. PLĂȚI]]<>"",PlanificarePlăți[[#This Row],[TOTAL DE PLATĂ]]-PlanificarePlăți[[#This Row],[DOBÂNDĂ]],"") ->  | I29: =IF(PlanificarePlăți[[#This Row],[NR. PLĂȚI]]<>"",PlanificarePlăți[[#This Row],[SOLD INIȚIAL]]*(RataDobânzii/PlățiPeAn),"") ->  | J29: =IF(PlanificarePlăți[[#This Row],[NR. PLĂȚI]]<>"",IF(PlanificarePlăți[[#This Row],[PLATĂ PLANIFICATĂ]]+PlanificarePlăți[[#This Row],[PLATĂ SUPLIMENTARĂ]]<=PlanificarePlăți[[#This Row],[SOLD INIȚIAL]],PlanificarePlăți[[#This Row],[SOLD INIȚIAL]]-PlanificarePlăți[[#This Row],[PRINCIPAL]],0),"") ->  | K29: =IF(PlanificarePlăți[[#This Row],[NR. PLĂȚI]]<>"",SUM(INDEX(PlanificarePlăți[DOBÂNDĂ],1,1):PlanificarePlăți[[#This Row],[DOBÂNDĂ]]),"") -> 
B30: =IF(ÎmprumutEsteBun,IF(ROW()-ROW(PlanificarePlăți[[#Headers],[NR. PLĂȚI]])>NumărPlanificatDePlăți,"",ROW()-ROW(PlanificarePlăți[[#Headers],[NR. PLĂȚI]])),"") ->  | C30: =IF(PlanificarePlăți[[#This Row],[NR. PLĂȚI]]<>"",EOMONTH(DataDeÎnceputÎmprumut,ROW(PlanificarePlăți[[#This Row],[NR. PLĂȚI]])-ROW(PlanificarePlăți[[#Headers],[NR. PLĂȚI]])-2)+DAY(DataDeÎnceputÎmprumut),"") ->  | D30: =IF(PlanificarePlăți[[#This Row],[NR. PLĂȚI]]<>"",IF(ROW()-ROW(PlanificarePlăți[[#Headers],[SOLD INIȚIAL]])=1,ValoareÎmprumut,INDEX(PlanificarePlăți[SOLD FINAL],ROW()-ROW(PlanificarePlăți[[#Headers],[SOLD INIȚIAL]])-1)),"") ->  | E30: =IF(PlanificarePlăți[[#This Row],[NR. PLĂȚI]]<>"",PlatăPlanificată,"") ->  | F30: =IF(PlanificarePlăți[[#This Row],[NR. PLĂȚI]]<>"",IF(PlanificarePlăți[[#This Row],[PLATĂ PLANIFICATĂ]]+PlățiSuplimentare<PlanificarePlăți[[#This Row],[SOLD INIȚIAL]],PlățiSuplimentare,IF(PlanificarePlăți[[#This Row],[SOLD INIȚIAL]]-PlanificarePlăți[[#This Row],[PLATĂ PLANIFICATĂ]]>0,PlanificarePlăți[[#This Row],[SOLD INIȚIAL]]-PlanificarePlăți[[#This Row],[PLATĂ PLANIFICATĂ]],0)),"") ->  | G30: =IF(PlanificarePlăți[[#This Row],[NR. PLĂȚI]]<>"",IF(PlanificarePlăți[[#This Row],[PLATĂ PLANIFICATĂ]]+PlanificarePlăți[[#This Row],[PLATĂ SUPLIMENTARĂ]]<=PlanificarePlăți[[#This Row],[SOLD INIȚIAL]],PlanificarePlăți[[#This Row],[PLATĂ PLANIFICATĂ]]+PlanificarePlăți[[#This Row],[PLATĂ SUPLIMENTARĂ]],PlanificarePlăți[[#This Row],[SOLD INIȚIAL]]),"") ->  | H30: =IF(PlanificarePlăți[[#This Row],[NR. PLĂȚI]]<>"",PlanificarePlăți[[#This Row],[TOTAL DE PLATĂ]]-PlanificarePlăți[[#This Row],[DOBÂNDĂ]],"") ->  | I30: =IF(PlanificarePlăți[[#This Row],[NR. PLĂȚI]]<>"",PlanificarePlăți[[#This Row],[SOLD INIȚIAL]]*(RataDobânzii/PlățiPeAn),"") ->  | J30: =IF(PlanificarePlăți[[#This Row],[NR. PLĂȚI]]<>"",IF(PlanificarePlăți[[#This Row],[PLATĂ PLANIFICATĂ]]+PlanificarePlăți[[#This Row],[PLATĂ SUPLIMENTARĂ]]<=PlanificarePlăți[[#This Row],[SOLD INIȚIAL]],PlanificarePlăți[[#This Row],[SOLD INIȚIAL]]-PlanificarePlăți[[#This Row],[PRINCIPAL]],0),"") ->  | K30: =IF(PlanificarePlăți[[#This Row],[NR. PLĂȚI]]<>"",SUM(INDEX(PlanificarePlăți[DOBÂNDĂ],1,1):PlanificarePlăți[[#This Row],[DOBÂNDĂ]]),"") -> 
B31: =IF(ÎmprumutEsteBun,IF(ROW()-ROW(PlanificarePlăți[[#Headers],[NR. PLĂȚI]])>NumărPlanificatDePlăți,"",ROW()-ROW(PlanificarePlăți[[#Headers],[NR. PLĂȚI]])),"") ->  | C31: =IF(PlanificarePlăți[[#This Row],[NR. PLĂȚI]]<>"",EOMONTH(DataDeÎnceputÎmprumut,ROW(PlanificarePlăți[[#This Row],[NR. PLĂȚI]])-ROW(PlanificarePlăți[[#Headers],[NR. PLĂȚI]])-2)+DAY(DataDeÎnceputÎmprumut),"") ->  | D31: =IF(PlanificarePlăți[[#This Row],[NR. PLĂȚI]]<>"",IF(ROW()-ROW(PlanificarePlăți[[#Headers],[SOLD INIȚIAL]])=1,ValoareÎmprumut,INDEX(PlanificarePlăți[SOLD FINAL],ROW()-ROW(PlanificarePlăți[[#Headers],[SOLD INIȚIAL]])-1)),"") ->  | E31: =IF(PlanificarePlăți[[#This Row],[NR. PLĂȚI]]<>"",PlatăPlanificată,"") ->  | F31: =IF(PlanificarePlăți[[#This Row],[NR. PLĂȚI]]<>"",IF(PlanificarePlăți[[#This Row],[PLATĂ PLANIFICATĂ]]+PlățiSuplimentare<PlanificarePlăți[[#This Row],[SOLD INIȚIAL]],PlățiSuplimentare,IF(PlanificarePlăți[[#This Row],[SOLD INIȚIAL]]-PlanificarePlăți[[#This Row],[PLATĂ PLANIFICATĂ]]>0,PlanificarePlăți[[#This Row],[SOLD INIȚIAL]]-PlanificarePlăți[[#This Row],[PLATĂ PLANIFICATĂ]],0)),"") ->  | G31: =IF(PlanificarePlăți[[#This Row],[NR. PLĂȚI]]<>"",IF(PlanificarePlăți[[#This Row],[PLATĂ PLANIFICATĂ]]+PlanificarePlăți[[#This Row],[PLATĂ SUPLIMENTARĂ]]<=PlanificarePlăți[[#This Row],[SOLD INIȚIAL]],PlanificarePlăți[[#This Row],[PLATĂ PLANIFICATĂ]]+PlanificarePlăți[[#This Row],[PLATĂ SUPLIMENTARĂ]],PlanificarePlăți[[#This Row],[SOLD INIȚIAL]]),"") ->  | H31: =IF(PlanificarePlăți[[#This Row],[NR. PLĂȚI]]<>"",PlanificarePlăți[[#This Row],[TOTAL DE PLATĂ]]-PlanificarePlăți[[#This Row],[DOBÂNDĂ]],"") ->  | I31: =IF(PlanificarePlăți[[#This Row],[NR. PLĂȚI]]<>"",PlanificarePlăți[[#This Row],[SOLD INIȚIAL]]*(RataDobânzii/PlățiPeAn),"") ->  | J31: =IF(PlanificarePlăți[[#This Row],[NR. PLĂȚI]]<>"",IF(PlanificarePlăți[[#This Row],[PLATĂ PLANIFICATĂ]]+PlanificarePlăți[[#This Row],[PLATĂ SUPLIMENTARĂ]]<=PlanificarePlăți[[#This Row],[SOLD INIȚIAL]],PlanificarePlăți[[#This Row],[SOLD INIȚIAL]]-PlanificarePlăți[[#This Row],[PRINCIPAL]],0),"") ->  | K31: =IF(PlanificarePlăți[[#This Row],[NR. PLĂȚI]]<>"",SUM(INDEX(PlanificarePlăți[DOBÂNDĂ],1,1):PlanificarePlăți[[#This Row],[DOBÂNDĂ]]),"") -> 
B32: =IF(ÎmprumutEsteBun,IF(ROW()-ROW(PlanificarePlăți[[#Headers],[NR. PLĂȚI]])>NumărPlanificatDePlăți,"",ROW()-ROW(PlanificarePlăți[[#Headers],[NR. PLĂȚI]])),"") ->  | C32: =IF(PlanificarePlăți[[#This Row],[NR. PLĂȚI]]<>"",EOMONTH(DataDeÎnceputÎmprumut,ROW(PlanificarePlăți[[#This Row],[NR. PLĂȚI]])-ROW(PlanificarePlăți[[#Headers],[NR. PLĂȚI]])-2)+DAY(DataDeÎnceputÎmprumut),"") ->  | D32: =IF(PlanificarePlăți[[#This Row],[NR. PLĂȚI]]<>"",IF(ROW()-ROW(PlanificarePlăți[[#Headers],[SOLD INIȚIAL]])=1,ValoareÎmprumut,INDEX(PlanificarePlăți[SOLD FINAL],ROW()-ROW(PlanificarePlăți[[#Headers],[SOLD INIȚIAL]])-1)),"") ->  | E32: =IF(PlanificarePlăți[[#This Row],[NR. PLĂȚI]]<>"",PlatăPlanificată,"") ->  | F32: =IF(PlanificarePlăți[[#This Row],[NR. PLĂȚI]]<>"",IF(PlanificarePlăți[[#This Row],[PLATĂ PLANIFICATĂ]]+PlățiSuplimentare<PlanificarePlăți[[#This Row],[SOLD INIȚIAL]],PlățiSuplimentare,IF(PlanificarePlăți[[#This Row],[SOLD INIȚIAL]]-PlanificarePlăți[[#This Row],[PLATĂ PLANIFICATĂ]]>0,PlanificarePlăți[[#This Row],[SOLD INIȚIAL]]-PlanificarePlăți[[#This Row],[PLATĂ PLANIFICATĂ]],0)),"") ->  | G32: =IF(PlanificarePlăți[[#This Row],[NR. PLĂȚI]]<>"",IF(PlanificarePlăți[[#This Row],[PLATĂ PLANIFICATĂ]]+PlanificarePlăți[[#This Row],[PLATĂ SUPLIMENTARĂ]]<=PlanificarePlăți[[#This Row],[SOLD INIȚIAL]],PlanificarePlăți[[#This Row],[PLATĂ PLANIFICATĂ]]+PlanificarePlăți[[#This Row],[PLATĂ SUPLIMENTARĂ]],PlanificarePlăți[[#This Row],[SOLD INIȚIAL]]),"") ->  | H32: =IF(PlanificarePlăți[[#This Row],[NR. PLĂȚI]]<>"",PlanificarePlăți[[#This Row],[TOTAL DE PLATĂ]]-PlanificarePlăți[[#This Row],[DOBÂNDĂ]],"") ->  | I32: =IF(PlanificarePlăți[[#This Row],[NR. PLĂȚI]]<>"",PlanificarePlăți[[#This Row],[SOLD INIȚIAL]]*(RataDobânzii/PlățiPeAn),"") ->  | J32: =IF(PlanificarePlăți[[#This Row],[NR. PLĂȚI]]<>"",IF(PlanificarePlăți[[#This Row],[PLATĂ PLANIFICATĂ]]+PlanificarePlăți[[#This Row],[PLATĂ SUPLIMENTARĂ]]<=PlanificarePlăți[[#This Row],[SOLD INIȚIAL]],PlanificarePlăți[[#This Row],[SOLD INIȚIAL]]-PlanificarePlăți[[#This Row],[PRINCIPAL]],0),"") ->  | K32: =IF(PlanificarePlăți[[#This Row],[NR. PLĂȚI]]<>"",SUM(INDEX(PlanificarePlăți[DOBÂNDĂ],1,1):PlanificarePlăți[[#This Row],[DOBÂNDĂ]]),"") -> 
B33: =IF(ÎmprumutEsteBun,IF(ROW()-ROW(PlanificarePlăți[[#Headers],[NR. PLĂȚI]])>NumărPlanificatDePlăți,"",ROW()-ROW(PlanificarePlăți[[#Headers],[NR. PLĂȚI]])),"") ->  | C33: =IF(PlanificarePlăți[[#This Row],[NR. PLĂȚI]]<>"",EOMONTH(DataDeÎnceputÎmprumut,ROW(PlanificarePlăți[[#This Row],[NR. PLĂȚI]])-ROW(PlanificarePlăți[[#Headers],[NR. PLĂȚI]])-2)+DAY(DataDeÎnceputÎmprumut),"") ->  | D33: =IF(PlanificarePlăți[[#This Row],[NR. PLĂȚI]]<>"",IF(ROW()-ROW(PlanificarePlăți[[#Headers],[SOLD INIȚIAL]])=1,ValoareÎmprumut,INDEX(PlanificarePlăți[SOLD FINAL],ROW()-ROW(PlanificarePlăți[[#Headers],[SOLD INIȚIAL]])-1)),"") ->  | E33: =IF(PlanificarePlăți[[#This Row],[NR. PLĂȚI]]<>"",PlatăPlanificată,"") ->  | F33: =IF(PlanificarePlăți[[#This Row],[NR. PLĂȚI]]<>"",IF(PlanificarePlăți[[#This Row],[PLATĂ PLANIFICATĂ]]+PlățiSuplimentare<PlanificarePlăți[[#This Row],[SOLD INIȚIAL]],PlățiSuplimentare,IF(PlanificarePlăți[[#This Row],[SOLD INIȚIAL]]-PlanificarePlăți[[#This Row],[PLATĂ PLANIFICATĂ]]>0,PlanificarePlăți[[#This Row],[SOLD INIȚIAL]]-PlanificarePlăți[[#This Row],[PLATĂ PLANIFICATĂ]],0)),"") ->  | G33: =IF(PlanificarePlăți[[#This Row],[NR. PLĂȚI]]<>"",IF(PlanificarePlăți[[#This Row],[PLATĂ PLANIFICATĂ]]+PlanificarePlăți[[#This Row],[PLATĂ SUPLIMENTARĂ]]<=PlanificarePlăți[[#This Row],[SOLD INIȚIAL]],PlanificarePlăți[[#This Row],[PLATĂ PLANIFICATĂ]]+PlanificarePlăți[[#This Row],[PLATĂ SUPLIMENTARĂ]],PlanificarePlăți[[#This Row],[SOLD INIȚIAL]]),"") ->  | H33: =IF(PlanificarePlăți[[#This Row],[NR. PLĂȚI]]<>"",PlanificarePlăți[[#This Row],[TOTAL DE PLATĂ]]-PlanificarePlăți[[#This Row],[DOBÂNDĂ]],"") ->  | I33: =IF(PlanificarePlăți[[#This Row],[NR. PLĂȚI]]<>"",PlanificarePlăți[[#This Row],[SOLD INIȚIAL]]*(RataDobânzii/PlățiPeAn),"") ->  | J33: =IF(PlanificarePlăți[[#This Row],[NR. PLĂȚI]]<>"",IF(PlanificarePlăți[[#This Row],[PLATĂ PLANIFICATĂ]]+PlanificarePlăți[[#This Row],[PLATĂ SUPLIMENTARĂ]]<=PlanificarePlăți[[#This Row],[SOLD INIȚIAL]],PlanificarePlăți[[#This Row],[SOLD INIȚIAL]]-PlanificarePlăți[[#This Row],[PRINCIPAL]],0),"") ->  | K33: =IF(PlanificarePlăți[[#This Row],[NR. PLĂȚI]]<>"",SUM(INDEX(PlanificarePlăți[DOBÂNDĂ],1,1):PlanificarePlăți[[#This Row],[DOBÂNDĂ]]),"") -> 
B34: =IF(ÎmprumutEsteBun,IF(ROW()-ROW(PlanificarePlăți[[#Headers],[NR. PLĂȚI]])>NumărPlanificatDePlăți,"",ROW()-ROW(PlanificarePlăți[[#Headers],[NR. PLĂȚI]])),"") ->  | C34: =IF(PlanificarePlăți[[#This Row],[NR. PLĂȚI]]<>"",EOMONTH(DataDeÎnceputÎmprumut,ROW(PlanificarePlăți[[#This Row],[NR. PLĂȚI]])-ROW(PlanificarePlăți[[#Headers],[NR. PLĂȚI]])-2)+DAY(DataDeÎnceputÎmprumut),"") ->  | D34: =IF(PlanificarePlăți[[#This Row],[NR. PLĂȚI]]<>"",IF(ROW()-ROW(PlanificarePlăți[[#Headers],[SOLD INIȚIAL]])=1,ValoareÎmprumut,INDEX(PlanificarePlăți[SOLD FINAL],ROW()-ROW(PlanificarePlăți[[#Headers],[SOLD INIȚIAL]])-1)),"") ->  | E34: =IF(PlanificarePlăți[[#This Row],[NR. PLĂȚI]]<>"",PlatăPlanificată,"") ->  | F34: =IF(PlanificarePlăți[[#This Row],[NR. PLĂȚI]]<>"",IF(PlanificarePlăți[[#This Row],[PLATĂ PLANIFICATĂ]]+PlățiSuplimentare<PlanificarePlăți[[#This Row],[SOLD INIȚIAL]],PlățiSuplimentare,IF(PlanificarePlăți[[#This Row],[SOLD INIȚIAL]]-PlanificarePlăți[[#This Row],[PLATĂ PLANIFICATĂ]]>0,PlanificarePlăți[[#This Row],[SOLD INIȚIAL]]-PlanificarePlăți[[#This Row],[PLATĂ PLANIFICATĂ]],0)),"") ->  | G34: =IF(PlanificarePlăți[[#This Row],[NR. PLĂȚI]]<>"",IF(PlanificarePlăți[[#This Row],[PLATĂ PLANIFICATĂ]]+PlanificarePlăți[[#This Row],[PLATĂ SUPLIMENTARĂ]]<=PlanificarePlăți[[#This Row],[SOLD INIȚIAL]],PlanificarePlăți[[#This Row],[PLATĂ PLANIFICATĂ]]+PlanificarePlăți[[#This Row],[PLATĂ SUPLIMENTARĂ]],PlanificarePlăți[[#This Row],[SOLD INIȚIAL]]),"") ->  | H34: =IF(PlanificarePlăți[[#This Row],[NR. PLĂȚI]]<>"",PlanificarePlăți[[#This Row],[TOTAL DE PLATĂ]]-PlanificarePlăți[[#This Row],[DOBÂNDĂ]],"") ->  | I34: =IF(PlanificarePlăți[[#This Row],[NR. PLĂȚI]]<>"",PlanificarePlăți[[#This Row],[SOLD INIȚIAL]]*(RataDobânzii/PlățiPeAn),"") ->  | J34: =IF(PlanificarePlăți[[#This Row],[NR. PLĂȚI]]<>"",IF(PlanificarePlăți[[#This Row],[PLATĂ PLANIFICATĂ]]+PlanificarePlăți[[#This Row],[PLATĂ SUPLIMENTARĂ]]<=PlanificarePlăți[[#This Row],[SOLD INIȚIAL]],PlanificarePlăți[[#This Row],[SOLD INIȚIAL]]-PlanificarePlăți[[#This Row],[PRINCIPAL]],0),"") ->  | K34: =IF(PlanificarePlăți[[#This Row],[NR. PLĂȚI]]<>"",SUM(INDEX(PlanificarePlăți[DOBÂNDĂ],1,1):PlanificarePlăți[[#This Row],[DOBÂNDĂ]]),"") -> 
B35: =IF(ÎmprumutEsteBun,IF(ROW()-ROW(PlanificarePlăți[[#Headers],[NR. PLĂȚI]])>NumărPlanificatDePlăți,"",ROW()-ROW(PlanificarePlăți[[#Headers],[NR. PLĂȚI]])),"") ->  | C35: =IF(PlanificarePlăți[[#This Row],[NR. PLĂȚI]]<>"",EOMONTH(DataDeÎnceputÎmprumut,ROW(PlanificarePlăți[[#This Row],[NR. PLĂȚI]])-ROW(PlanificarePlăți[[#Headers],[NR. PLĂȚI]])-2)+DAY(DataDeÎnceputÎmprumut),"") ->  | D35: =IF(PlanificarePlăți[[#This Row],[NR. PLĂȚI]]<>"",IF(ROW()-ROW(PlanificarePlăți[[#Headers],[SOLD INIȚIAL]])=1,ValoareÎmprumut,INDEX(PlanificarePlăți[SOLD FINAL],ROW()-ROW(PlanificarePlăți[[#Headers],[SOLD INIȚIAL]])-1)),"") ->  | E35: =IF(PlanificarePlăți[[#This Row],[NR. PLĂȚI]]<>"",PlatăPlanificată,"") ->  | F35: =IF(PlanificarePlăți[[#This Row],[NR. PLĂȚI]]<>"",IF(PlanificarePlăți[[#This Row],[PLATĂ PLANIFICATĂ]]+PlățiSuplimentare<PlanificarePlăți[[#This Row],[SOLD INIȚIAL]],PlățiSuplimentare,IF(PlanificarePlăți[[#This Row],[SOLD INIȚIAL]]-PlanificarePlăți[[#This Row],[PLATĂ PLANIFICATĂ]]>0,PlanificarePlăți[[#This Row],[SOLD INIȚIAL]]-PlanificarePlăți[[#This Row],[PLATĂ PLANIFICATĂ]],0)),"") ->  | G35: =IF(PlanificarePlăți[[#This Row],[NR. PLĂȚI]]<>"",IF(PlanificarePlăți[[#This Row],[PLATĂ PLANIFICATĂ]]+PlanificarePlăți[[#This Row],[PLATĂ SUPLIMENTARĂ]]<=PlanificarePlăți[[#This Row],[SOLD INIȚIAL]],PlanificarePlăți[[#This Row],[PLATĂ PLANIFICATĂ]]+PlanificarePlăți[[#This Row],[PLATĂ SUPLIMENTARĂ]],PlanificarePlăți[[#This Row],[SOLD INIȚIAL]]),"") ->  | H35: =IF(PlanificarePlăți[[#This Row],[NR. PLĂȚI]]<>"",PlanificarePlăți[[#This Row],[TOTAL DE PLATĂ]]-PlanificarePlăți[[#This Row],[DOBÂNDĂ]],"") ->  | I35: =IF(PlanificarePlăți[[#This Row],[NR. PLĂȚI]]<>"",PlanificarePlăți[[#This Row],[SOLD INIȚIAL]]*(RataDobânzii/PlățiPeAn),"") ->  | J35: =IF(PlanificarePlăți[[#This Row],[NR. PLĂȚI]]<>"",IF(PlanificarePlăți[[#This Row],[PLATĂ PLANIFICATĂ]]+PlanificarePlăți[[#This Row],[PLATĂ SUPLIMENTARĂ]]<=PlanificarePlăți[[#This Row],[SOLD INIȚIAL]],PlanificarePlăți[[#This Row],[SOLD INIȚIAL]]-PlanificarePlăți[[#This Row],[PRINCIPAL]],0),"") ->  | K35: =IF(PlanificarePlăți[[#This Row],[NR. PLĂȚI]]<>"",SUM(INDEX(PlanificarePlăți[DOBÂNDĂ],1,1):PlanificarePlăți[[#This Row],[DOBÂNDĂ]]),"") -> 
B36: =IF(ÎmprumutEsteBun,IF(ROW()-ROW(PlanificarePlăți[[#Headers],[NR. PLĂȚI]])>NumărPlanificatDePlăți,"",ROW()-ROW(PlanificarePlăți[[#Headers],[NR. PLĂȚI]])),"") ->  | C36: =IF(PlanificarePlăți[[#This Row],[NR. PLĂȚI]]<>"",EOMONTH(DataDeÎnceputÎmprumut,ROW(PlanificarePlăți[[#This Row],[NR. PLĂȚI]])-ROW(PlanificarePlăți[[#Headers],[NR. PLĂȚI]])-2)+DAY(DataDeÎnceputÎmprumut),"") ->  | D36: =IF(PlanificarePlăți[[#This Row],[NR. PLĂȚI]]<>"",IF(ROW()-ROW(PlanificarePlăți[[#Headers],[SOLD INIȚIAL]])=1,ValoareÎmprumut,INDEX(PlanificarePlăți[SOLD FINAL],ROW()-ROW(PlanificarePlăți[[#Headers],[SOLD INIȚIAL]])-1)),"") ->  | E36: =IF(PlanificarePlăți[[#This Row],[NR. PLĂȚI]]<>"",PlatăPlanificată,"") ->  | F36: =IF(PlanificarePlăți[[#This Row],[NR. PLĂȚI]]<>"",IF(PlanificarePlăți[[#This Row],[PLATĂ PLANIFICATĂ]]+PlățiSuplimentare<PlanificarePlăți[[#This Row],[SOLD INIȚIAL]],PlățiSuplimentare,IF(PlanificarePlăți[[#This Row],[SOLD INIȚIAL]]-PlanificarePlăți[[#This Row],[PLATĂ PLANIFICATĂ]]>0,PlanificarePlăți[[#This Row],[SOLD INIȚIAL]]-PlanificarePlăți[[#This Row],[PLATĂ PLANIFICATĂ]],0)),"") ->  | G36: =IF(PlanificarePlăți[[#This Row],[NR. PLĂȚI]]<>"",IF(PlanificarePlăți[[#This Row],[PLATĂ PLANIFICATĂ]]+PlanificarePlăți[[#This Row],[PLATĂ SUPLIMENTARĂ]]<=PlanificarePlăți[[#This Row],[SOLD INIȚIAL]],PlanificarePlăți[[#This Row],[PLATĂ PLANIFICATĂ]]+PlanificarePlăți[[#This Row],[PLATĂ SUPLIMENTARĂ]],PlanificarePlăți[[#This Row],[SOLD INIȚIAL]]),"") ->  | H36: =IF(PlanificarePlăți[[#This Row],[NR. PLĂȚI]]<>"",PlanificarePlăți[[#This Row],[TOTAL DE PLATĂ]]-PlanificarePlăți[[#This Row],[DOBÂNDĂ]],"") ->  | I36: =IF(PlanificarePlăți[[#This Row],[NR. PLĂȚI]]<>"",PlanificarePlăți[[#This Row],[SOLD INIȚIAL]]*(RataDobânzii/PlățiPeAn),"") ->  | J36: =IF(PlanificarePlăți[[#This Row],[NR. PLĂȚI]]<>"",IF(PlanificarePlăți[[#This Row],[PLATĂ PLANIFICATĂ]]+PlanificarePlăți[[#This Row],[PLATĂ SUPLIMENTARĂ]]<=PlanificarePlăți[[#This Row],[SOLD INIȚIAL]],PlanificarePlăți[[#This Row],[SOLD INIȚIAL]]-PlanificarePlăți[[#This Row],[PRINCIPAL]],0),"") ->  | K36: =IF(PlanificarePlăți[[#This Row],[NR. PLĂȚI]]<>"",SUM(INDEX(PlanificarePlăți[DOBÂNDĂ],1,1):PlanificarePlăți[[#This Row],[DOBÂNDĂ]]),"") -> 
B37: =IF(ÎmprumutEsteBun,IF(ROW()-ROW(PlanificarePlăți[[#Headers],[NR. PLĂȚI]])>NumărPlanificatDePlăți,"",ROW()-ROW(PlanificarePlăți[[#Headers],[NR. PLĂȚI]])),"") ->  | C37: =IF(PlanificarePlăți[[#This Row],[NR. PLĂȚI]]<>"",EOMONTH(DataDeÎnceputÎmprumut,ROW(PlanificarePlăți[[#This Row],[NR. PLĂȚI]])-ROW(PlanificarePlăți[[#Headers],[NR. PLĂȚI]])-2)+DAY(DataDeÎnceputÎmprumut),"") ->  | D37: =IF(PlanificarePlăți[[#This Row],[NR. PLĂȚI]]<>"",IF(ROW()-ROW(PlanificarePlăți[[#Headers],[SOLD INIȚIAL]])=1,ValoareÎmprumut,INDEX(PlanificarePlăți[SOLD FINAL],ROW()-ROW(PlanificarePlăți[[#Headers],[SOLD INIȚIAL]])-1)),"") ->  | E37: =IF(PlanificarePlăți[[#This Row],[NR. PLĂȚI]]<>"",PlatăPlanificată,"") ->  | F37: =IF(PlanificarePlăți[[#This Row],[NR. PLĂȚI]]<>"",IF(PlanificarePlăți[[#This Row],[PLATĂ PLANIFICATĂ]]+PlățiSuplimentare<PlanificarePlăți[[#This Row],[SOLD INIȚIAL]],PlățiSuplimentare,IF(PlanificarePlăți[[#This Row],[SOLD INIȚIAL]]-PlanificarePlăți[[#This Row],[PLATĂ PLANIFICATĂ]]>0,PlanificarePlăți[[#This Row],[SOLD INIȚIAL]]-PlanificarePlăți[[#This Row],[PLATĂ PLANIFICATĂ]],0)),"") ->  | G37: =IF(PlanificarePlăți[[#This Row],[NR. PLĂȚI]]<>"",IF(PlanificarePlăți[[#This Row],[PLATĂ PLANIFICATĂ]]+PlanificarePlăți[[#This Row],[PLATĂ SUPLIMENTARĂ]]<=PlanificarePlăți[[#This Row],[SOLD INIȚIAL]],PlanificarePlăți[[#This Row],[PLATĂ PLANIFICATĂ]]+PlanificarePlăți[[#This Row],[PLATĂ SUPLIMENTARĂ]],PlanificarePlăți[[#This Row],[SOLD INIȚIAL]]),"") ->  | H37: =IF(PlanificarePlăți[[#This Row],[NR. PLĂȚI]]<>"",PlanificarePlăți[[#This Row],[TOTAL DE PLATĂ]]-PlanificarePlăți[[#This Row],[DOBÂNDĂ]],"") ->  | I37: =IF(PlanificarePlăți[[#This Row],[NR. PLĂȚI]]<>"",PlanificarePlăți[[#This Row],[SOLD INIȚIAL]]*(RataDobânzii/PlățiPeAn),"") ->  | J37: =IF(PlanificarePlăți[[#This Row],[NR. PLĂȚI]]<>"",IF(PlanificarePlăți[[#This Row],[PLATĂ PLANIFICATĂ]]+PlanificarePlăți[[#This Row],[PLATĂ SUPLIMENTARĂ]]<=PlanificarePlăți[[#This Row],[SOLD INIȚIAL]],PlanificarePlăți[[#This Row],[SOLD INIȚIAL]]-PlanificarePlăți[[#This Row],[PRINCIPAL]],0),"") ->  | K37: =IF(PlanificarePlăți[[#This Row],[NR. PLĂȚI]]<>"",SUM(INDEX(PlanificarePlăți[DOBÂNDĂ],1,1):PlanificarePlăți[[#This Row],[DOBÂNDĂ]]),"") -> 
B38: =IF(ÎmprumutEsteBun,IF(ROW()-ROW(PlanificarePlăți[[#Headers],[NR. PLĂȚI]])>NumărPlanificatDePlăți,"",ROW()-ROW(PlanificarePlăți[[#Headers],[NR. PLĂȚI]])),"") ->  | C38: =IF(PlanificarePlăți[[#This Row],[NR. PLĂȚI]]<>"",EOMONTH(DataDeÎnceputÎmprumut,ROW(PlanificarePlăți[[#This Row],[NR. PLĂȚI]])-ROW(PlanificarePlăți[[#Headers],[NR. PLĂȚI]])-2)+DAY(DataDeÎnceputÎmprumut),"") ->  | D38: =IF(PlanificarePlăți[[#This Row],[NR. PLĂȚI]]<>"",IF(ROW()-ROW(PlanificarePlăți[[#Headers],[SOLD INIȚIAL]])=1,ValoareÎmprumut,INDEX(PlanificarePlăți[SOLD FINAL],ROW()-ROW(PlanificarePlăți[[#Headers],[SOLD INIȚIAL]])-1)),"") ->  | E38: =IF(PlanificarePlăți[[#This Row],[NR. PLĂȚI]]<>"",PlatăPlanificată,"") ->  | F38: =IF(PlanificarePlăți[[#This Row],[NR. PLĂȚI]]<>"",IF(PlanificarePlăți[[#This Row],[PLATĂ PLANIFICATĂ]]+PlățiSuplimentare<PlanificarePlăți[[#This Row],[SOLD INIȚIAL]],PlățiSuplimentare,IF(PlanificarePlăți[[#This Row],[SOLD INIȚIAL]]-PlanificarePlăți[[#This Row],[PLATĂ PLANIFICATĂ]]>0,PlanificarePlăți[[#This Row],[SOLD INIȚIAL]]-PlanificarePlăți[[#This Row],[PLATĂ PLANIFICATĂ]],0)),"") ->  | G38: =IF(PlanificarePlăți[[#This Row],[NR. PLĂȚI]]<>"",IF(PlanificarePlăți[[#This Row],[PLATĂ PLANIFICATĂ]]+PlanificarePlăți[[#This Row],[PLATĂ SUPLIMENTARĂ]]<=PlanificarePlăți[[#This Row],[SOLD INIȚIAL]],PlanificarePlăți[[#This Row],[PLATĂ PLANIFICATĂ]]+PlanificarePlăți[[#This Row],[PLATĂ SUPLIMENTARĂ]],PlanificarePlăți[[#This Row],[SOLD INIȚIAL]]),"") ->  | H38: =IF(PlanificarePlăți[[#This Row],[NR. PLĂȚI]]<>"",PlanificarePlăți[[#This Row],[TOTAL DE PLATĂ]]-PlanificarePlăți[[#This Row],[DOBÂNDĂ]],"") ->  | I38: =IF(PlanificarePlăți[[#This Row],[NR. PLĂȚI]]<>"",PlanificarePlăți[[#This Row],[SOLD INIȚIAL]]*(RataDobânzii/PlățiPeAn),"") ->  | J38: =IF(PlanificarePlăți[[#This Row],[NR. PLĂȚI]]<>"",IF(PlanificarePlăți[[#This Row],[PLATĂ PLANIFICATĂ]]+PlanificarePlăți[[#This Row],[PLATĂ SUPLIMENTARĂ]]<=PlanificarePlăți[[#This Row],[SOLD INIȚIAL]],PlanificarePlăți[[#This Row],[SOLD INIȚIAL]]-PlanificarePlăți[[#This Row],[PRINCIPAL]],0),"") ->  | K38: =IF(PlanificarePlăți[[#This Row],[NR. PLĂȚI]]<>"",SUM(INDEX(PlanificarePlăți[DOBÂNDĂ],1,1):PlanificarePlăți[[#This Row],[DOBÂNDĂ]]),"") -> 
B39: =IF(ÎmprumutEsteBun,IF(ROW()-ROW(PlanificarePlăți[[#Headers],[NR. PLĂȚI]])>NumărPlanificatDePlăți,"",ROW()-ROW(PlanificarePlăți[[#Headers],[NR. PLĂȚI]])),"") ->  | C39: =IF(PlanificarePlăți[[#This Row],[NR. PLĂȚI]]<>"",EOMONTH(DataDeÎnceputÎmprumut,ROW(PlanificarePlăți[[#This Row],[NR. PLĂȚI]])-ROW(PlanificarePlăți[[#Headers],[NR. PLĂȚI]])-2)+DAY(DataDeÎnceputÎmprumut),"") ->  | D39: =IF(PlanificarePlăți[[#This Row],[NR. PLĂȚI]]<>"",IF(ROW()-ROW(PlanificarePlăți[[#Headers],[SOLD INIȚIAL]])=1,ValoareÎmprumut,INDEX(PlanificarePlăți[SOLD FINAL],ROW()-ROW(PlanificarePlăți[[#Headers],[SOLD INIȚIAL]])-1)),"") ->  | E39: =IF(PlanificarePlăți[[#This Row],[NR. PLĂȚI]]<>"",PlatăPlanificată,"") ->  | F39: =IF(PlanificarePlăți[[#This Row],[NR. PLĂȚI]]<>"",IF(PlanificarePlăți[[#This Row],[PLATĂ PLANIFICATĂ]]+PlățiSuplimentare<PlanificarePlăți[[#This Row],[SOLD INIȚIAL]],PlățiSuplimentare,IF(PlanificarePlăți[[#This Row],[SOLD INIȚIAL]]-PlanificarePlăți[[#This Row],[PLATĂ PLANIFICATĂ]]>0,PlanificarePlăți[[#This Row],[SOLD INIȚIAL]]-PlanificarePlăți[[#This Row],[PLATĂ PLANIFICATĂ]],0)),"") ->  | G39: =IF(PlanificarePlăți[[#This Row],[NR. PLĂȚI]]<>"",IF(PlanificarePlăți[[#This Row],[PLATĂ PLANIFICATĂ]]+PlanificarePlăți[[#This Row],[PLATĂ SUPLIMENTARĂ]]<=PlanificarePlăți[[#This Row],[SOLD INIȚIAL]],PlanificarePlăți[[#This Row],[PLATĂ PLANIFICATĂ]]+PlanificarePlăți[[#This Row],[PLATĂ SUPLIMENTARĂ]],PlanificarePlăți[[#This Row],[SOLD INIȚIAL]]),"") ->  | H39: =IF(PlanificarePlăți[[#This Row],[NR. PLĂȚI]]<>"",PlanificarePlăți[[#This Row],[TOTAL DE PLATĂ]]-PlanificarePlăți[[#This Row],[DOBÂNDĂ]],"") ->  | I39: =IF(PlanificarePlăți[[#This Row],[NR. PLĂȚI]]<>"",PlanificarePlăți[[#This Row],[SOLD INIȚIAL]]*(RataDobânzii/PlățiPeAn),"") ->  | J39: =IF(PlanificarePlăți[[#This Row],[NR. PLĂȚI]]<>"",IF(PlanificarePlăți[[#This Row],[PLATĂ PLANIFICATĂ]]+PlanificarePlăți[[#This Row],[PLATĂ SUPLIMENTARĂ]]<=PlanificarePlăți[[#This Row],[SOLD INIȚIAL]],PlanificarePlăți[[#This Row],[SOLD INIȚIAL]]-PlanificarePlăți[[#This Row],[PRINCIPAL]],0),"") ->  | K39: =IF(PlanificarePlăți[[#This Row],[NR. PLĂȚI]]<>"",SUM(INDEX(PlanificarePlăți[DOBÂNDĂ],1,1):PlanificarePlăți[[#This Row],[DOBÂNDĂ]]),"") -> 
B40: =IF(ÎmprumutEsteBun,IF(ROW()-ROW(PlanificarePlăți[[#Headers],[NR. PLĂȚI]])>NumărPlanificatDePlăți,"",ROW()-ROW(PlanificarePlăți[[#Headers],[NR. PLĂȚI]])),"") ->  | C40: =IF(PlanificarePlăți[[#This Row],[NR. PLĂȚI]]<>"",EOMONTH(DataDeÎnceputÎmprumut,ROW(PlanificarePlăți[[#This Row],[NR. PLĂȚI]])-ROW(PlanificarePlăți[[#Headers],[NR. PLĂȚI]])-2)+DAY(DataDeÎnceputÎmprumut),"") ->  | D40: =IF(PlanificarePlăți[[#This Row],[NR. PLĂȚI]]<>"",IF(ROW()-ROW(PlanificarePlăți[[#Headers],[SOLD INIȚIAL]])=1,ValoareÎmprumut,INDEX(PlanificarePlăți[SOLD FINAL],ROW()-ROW(PlanificarePlăți[[#Headers],[SOLD INIȚIAL]])-1)),"") ->  | E40: =IF(PlanificarePlăți[[#This Row],[NR. PLĂȚI]]<>"",PlatăPlanificată,"") ->  | F40: =IF(PlanificarePlăți[[#This Row],[NR. PLĂȚI]]<>"",IF(PlanificarePlăți[[#This Row],[PLATĂ PLANIFICATĂ]]+PlățiSuplimentare<PlanificarePlăți[[#This Row],[SOLD INIȚIAL]],PlățiSuplimentare,IF(PlanificarePlăți[[#This Row],[SOLD INIȚIAL]]-PlanificarePlăți[[#This Row],[PLATĂ PLANIFICATĂ]]>0,PlanificarePlăți[[#This Row],[SOLD INIȚIAL]]-PlanificarePlăți[[#This Row],[PLATĂ PLANIFICATĂ]],0)),"") ->  | G40: =IF(PlanificarePlăți[[#This Row],[NR. PLĂȚI]]<>"",IF(PlanificarePlăți[[#This Row],[PLATĂ PLANIFICATĂ]]+PlanificarePlăți[[#This Row],[PLATĂ SUPLIMENTARĂ]]<=PlanificarePlăți[[#This Row],[SOLD INIȚIAL]],PlanificarePlăți[[#This Row],[PLATĂ PLANIFICATĂ]]+PlanificarePlăți[[#This Row],[PLATĂ SUPLIMENTARĂ]],PlanificarePlăți[[#This Row],[SOLD INIȚIAL]]),"") ->  | H40: =IF(PlanificarePlăți[[#This Row],[NR. PLĂȚI]]<>"",PlanificarePlăți[[#This Row],[TOTAL DE PLATĂ]]-PlanificarePlăți[[#This Row],[DOBÂNDĂ]],"") ->  | I40: =IF(PlanificarePlăți[[#This Row],[NR. PLĂȚI]]<>"",PlanificarePlăți[[#This Row],[SOLD INIȚIAL]]*(RataDobânzii/PlățiPeAn),"") ->  | J40: =IF(PlanificarePlăți[[#This Row],[NR. PLĂȚI]]<>"",IF(PlanificarePlăți[[#This Row],[PLATĂ PLANIFICATĂ]]+PlanificarePlăți[[#This Row],[PLATĂ SUPLIMENTARĂ]]<=PlanificarePlăți[[#This Row],[SOLD INIȚIAL]],PlanificarePlăți[[#This Row],[SOLD INIȚIAL]]-PlanificarePlăți[[#This Row],[PRINCIPAL]],0),"") ->  | K40: =IF(PlanificarePlăți[[#This Row],[NR. PLĂȚI]]<>"",SUM(INDEX(PlanificarePlăți[DOBÂNDĂ],1,1):PlanificarePlăți[[#This Row],[DOBÂNDĂ]]),"") -> 
B41: =IF(ÎmprumutEsteBun,IF(ROW()-ROW(PlanificarePlăți[[#Headers],[NR. PLĂȚI]])>NumărPlanificatDePlăți,"",ROW()-ROW(PlanificarePlăți[[#Headers],[NR. PLĂȚI]])),"") ->  | C41: =IF(PlanificarePlăți[[#This Row],[NR. PLĂȚI]]<>"",EOMONTH(DataDeÎnceputÎmprumut,ROW(PlanificarePlăți[[#This Row],[NR. PLĂȚI]])-ROW(PlanificarePlăți[[#Headers],[NR. PLĂȚI]])-2)+DAY(DataDeÎnceputÎmprumut),"") ->  | D41: =IF(PlanificarePlăți[[#This Row],[NR. PLĂȚI]]<>"",IF(ROW()-ROW(PlanificarePlăți[[#Headers],[SOLD INIȚIAL]])=1,ValoareÎmprumut,INDEX(PlanificarePlăți[SOLD FINAL],ROW()-ROW(PlanificarePlăți[[#Headers],[SOLD INIȚIAL]])-1)),"") ->  | E41: =IF(PlanificarePlăți[[#This Row],[NR. PLĂȚI]]<>"",PlatăPlanificată,"") ->  | F41: =IF(PlanificarePlăți[[#This Row],[NR. PLĂȚI]]<>"",IF(PlanificarePlăți[[#This Row],[PLATĂ PLANIFICATĂ]]+PlățiSuplimentare<PlanificarePlăți[[#This Row],[SOLD INIȚIAL]],PlățiSuplimentare,IF(PlanificarePlăți[[#This Row],[SOLD INIȚIAL]]-PlanificarePlăți[[#This Row],[PLATĂ PLANIFICATĂ]]>0,PlanificarePlăți[[#This Row],[SOLD INIȚIAL]]-PlanificarePlăți[[#This Row],[PLATĂ PLANIFICATĂ]],0)),"") ->  | G41: =IF(PlanificarePlăți[[#This Row],[NR. PLĂȚI]]<>"",IF(PlanificarePlăți[[#This Row],[PLATĂ PLANIFICATĂ]]+PlanificarePlăți[[#This Row],[PLATĂ SUPLIMENTARĂ]]<=PlanificarePlăți[[#This Row],[SOLD INIȚIAL]],PlanificarePlăți[[#This Row],[PLATĂ PLANIFICATĂ]]+PlanificarePlăți[[#This Row],[PLATĂ SUPLIMENTARĂ]],PlanificarePlăți[[#This Row],[SOLD INIȚIAL]]),"") ->  | H41: =IF(PlanificarePlăți[[#This Row],[NR. PLĂȚI]]<>"",PlanificarePlăți[[#This Row],[TOTAL DE PLATĂ]]-PlanificarePlăți[[#This Row],[DOBÂNDĂ]],"") ->  | I41: =IF(PlanificarePlăți[[#This Row],[NR. PLĂȚI]]<>"",PlanificarePlăți[[#This Row],[SOLD INIȚIAL]]*(RataDobânzii/PlățiPeAn),"") ->  | J41: =IF(PlanificarePlăți[[#This Row],[NR. PLĂȚI]]<>"",IF(PlanificarePlăți[[#This Row],[PLATĂ PLANIFICATĂ]]+PlanificarePlăți[[#This Row],[PLATĂ SUPLIMENTARĂ]]<=PlanificarePlăți[[#This Row],[SOLD INIȚIAL]],PlanificarePlăți[[#This Row],[SOLD INIȚIAL]]-PlanificarePlăți[[#This Row],[PRINCIPAL]],0),"") ->  | K41: =IF(PlanificarePlăți[[#This Row],[NR. PLĂȚI]]<>"",SUM(INDEX(PlanificarePlăți[DOBÂNDĂ],1,1):PlanificarePlăți[[#This Row],[DOBÂNDĂ]]),"") -> 
B42: =IF(ÎmprumutEsteBun,IF(ROW()-ROW(PlanificarePlăți[[#Headers],[NR. PLĂȚI]])>NumărPlanificatDePlăți,"",ROW()-ROW(PlanificarePlăți[[#Headers],[NR. PLĂȚI]])),"") ->  | C42: =IF(PlanificarePlăți[[#This Row],[NR. PLĂȚI]]<>"",EOMONTH(DataDeÎnceputÎmprumut,ROW(PlanificarePlăți[[#This Row],[NR. PLĂȚI]])-ROW(PlanificarePlăți[[#Headers],[NR. PLĂȚI]])-2)+DAY(DataDeÎnceputÎmprumut),"") ->  | D42: =IF(PlanificarePlăți[[#This Row],[NR. PLĂȚI]]<>"",IF(ROW()-ROW(PlanificarePlăți[[#Headers],[SOLD INIȚIAL]])=1,ValoareÎmprumut,INDEX(PlanificarePlăți[SOLD FINAL],ROW()-ROW(PlanificarePlăți[[#Headers],[SOLD INIȚIAL]])-1)),"") ->  | E42: =IF(PlanificarePlăți[[#This Row],[NR. PLĂȚI]]<>"",PlatăPlanificată,"") ->  | F42: =IF(PlanificarePlăți[[#This Row],[NR. PLĂȚI]]<>"",IF(PlanificarePlăți[[#This Row],[PLATĂ PLANIFICATĂ]]+PlățiSuplimentare<PlanificarePlăți[[#This Row],[SOLD INIȚIAL]],PlățiSuplimentare,IF(PlanificarePlăți[[#This Row],[SOLD INIȚIAL]]-PlanificarePlăți[[#This Row],[PLATĂ PLANIFICATĂ]]>0,PlanificarePlăți[[#This Row],[SOLD INIȚIAL]]-PlanificarePlăți[[#This Row],[PLATĂ PLANIFICATĂ]],0)),"") ->  | G42: =IF(PlanificarePlăți[[#This Row],[NR. PLĂȚI]]<>"",IF(PlanificarePlăți[[#This Row],[PLATĂ PLANIFICATĂ]]+PlanificarePlăți[[#This Row],[PLATĂ SUPLIMENTARĂ]]<=PlanificarePlăți[[#This Row],[SOLD INIȚIAL]],PlanificarePlăți[[#This Row],[PLATĂ PLANIFICATĂ]]+PlanificarePlăți[[#This Row],[PLATĂ SUPLIMENTARĂ]],PlanificarePlăți[[#This Row],[SOLD INIȚIAL]]),"") ->  | H42: =IF(PlanificarePlăți[[#This Row],[NR. PLĂȚI]]<>"",PlanificarePlăți[[#This Row],[TOTAL DE PLATĂ]]-PlanificarePlăți[[#This Row],[DOBÂNDĂ]],"") ->  | I42: =IF(PlanificarePlăți[[#This Row],[NR. PLĂȚI]]<>"",PlanificarePlăți[[#This Row],[SOLD INIȚIAL]]*(RataDobânzii/PlățiPeAn),"") ->  | J42: =IF(PlanificarePlăți[[#This Row],[NR. PLĂȚI]]<>"",IF(PlanificarePlăți[[#This Row],[PLATĂ PLANIFICATĂ]]+PlanificarePlăți[[#This Row],[PLATĂ SUPLIMENTARĂ]]<=PlanificarePlăți[[#This Row],[SOLD INIȚIAL]],PlanificarePlăți[[#This Row],[SOLD INIȚIAL]]-PlanificarePlăți[[#This Row],[PRINCIPAL]],0),"") ->  | K42: =IF(PlanificarePlăți[[#This Row],[NR. PLĂȚI]]<>"",SUM(INDEX(PlanificarePlăți[DOBÂNDĂ],1,1):PlanificarePlăți[[#This Row],[DOBÂNDĂ]]),"") -> 
B43: =IF(ÎmprumutEsteBun,IF(ROW()-ROW(PlanificarePlăți[[#Headers],[NR. PLĂȚI]])>NumărPlanificatDePlăți,"",ROW()-ROW(PlanificarePlăți[[#Headers],[NR. PLĂȚI]])),"") ->  | C43: =IF(PlanificarePlăți[[#This Row],[NR. PLĂȚI]]<>"",EOMONTH(DataDeÎnceputÎmprumut,ROW(PlanificarePlăți[[#This Row],[NR. PLĂȚI]])-ROW(PlanificarePlăți[[#Headers],[NR. PLĂȚI]])-2)+DAY(DataDeÎnceputÎmprumut),"") ->  | D43: =IF(PlanificarePlăți[[#This Row],[NR. PLĂȚI]]<>"",IF(ROW()-ROW(PlanificarePlăți[[#Headers],[SOLD INIȚIAL]])=1,ValoareÎmprumut,INDEX(PlanificarePlăți[SOLD FINAL],ROW()-ROW(PlanificarePlăți[[#Headers],[SOLD INIȚIAL]])-1)),"") ->  | E43: =IF(PlanificarePlăți[[#This Row],[NR. PLĂȚI]]<>"",PlatăPlanificată,"") ->  | F43: =IF(PlanificarePlăți[[#This Row],[NR. PLĂȚI]]<>"",IF(PlanificarePlăți[[#This Row],[PLATĂ PLANIFICATĂ]]+PlățiSuplimentare<PlanificarePlăți[[#This Row],[SOLD INIȚIAL]],PlățiSuplimentare,IF(PlanificarePlăți[[#This Row],[SOLD INIȚIAL]]-PlanificarePlăți[[#This Row],[PLATĂ PLANIFICATĂ]]>0,PlanificarePlăți[[#This Row],[SOLD INIȚIAL]]-PlanificarePlăți[[#This Row],[PLATĂ PLANIFICATĂ]],0)),"") ->  | G43: =IF(PlanificarePlăți[[#This Row],[NR. PLĂȚI]]<>"",IF(PlanificarePlăți[[#This Row],[PLATĂ PLANIFICATĂ]]+PlanificarePlăți[[#This Row],[PLATĂ SUPLIMENTARĂ]]<=PlanificarePlăți[[#This Row],[SOLD INIȚIAL]],PlanificarePlăți[[#This Row],[PLATĂ PLANIFICATĂ]]+PlanificarePlăți[[#This Row],[PLATĂ SUPLIMENTARĂ]],PlanificarePlăți[[#This Row],[SOLD INIȚIAL]]),"") ->  | H43: =IF(PlanificarePlăți[[#This Row],[NR. PLĂȚI]]<>"",PlanificarePlăți[[#This Row],[TOTAL DE PLATĂ]]-PlanificarePlăți[[#This Row],[DOBÂNDĂ]],"") ->  | I43: =IF(PlanificarePlăți[[#This Row],[NR. PLĂȚI]]<>"",PlanificarePlăți[[#This Row],[SOLD INIȚIAL]]*(RataDobânzii/PlățiPeAn),"") ->  | J43: =IF(PlanificarePlăți[[#This Row],[NR. PLĂȚI]]<>"",IF(PlanificarePlăți[[#This Row],[PLATĂ PLANIFICATĂ]]+PlanificarePlăți[[#This Row],[PLATĂ SUPLIMENTARĂ]]<=PlanificarePlăți[[#This Row],[SOLD INIȚIAL]],PlanificarePlăți[[#This Row],[SOLD INIȚIAL]]-PlanificarePlăți[[#This Row],[PRINCIPAL]],0),"") ->  | K43: =IF(PlanificarePlăți[[#This Row],[NR. PLĂȚI]]<>"",SUM(INDEX(PlanificarePlăți[DOBÂNDĂ],1,1):PlanificarePlăți[[#This Row],[DOBÂNDĂ]]),"") -> 
B44: =IF(ÎmprumutEsteBun,IF(ROW()-ROW(PlanificarePlăți[[#Headers],[NR. PLĂȚI]])>NumărPlanificatDePlăți,"",ROW()-ROW(PlanificarePlăți[[#Headers],[NR. PLĂȚI]])),"") ->  | C44: =IF(PlanificarePlăți[[#This Row],[NR. PLĂȚI]]<>"",EOMONTH(DataDeÎnceputÎmprumut,ROW(PlanificarePlăți[[#This Row],[NR. PLĂȚI]])-ROW(PlanificarePlăți[[#Headers],[NR. PLĂȚI]])-2)+DAY(DataDeÎnceputÎmprumut),"") ->  | D44: =IF(PlanificarePlăți[[#This Row],[NR. PLĂȚI]]<>"",IF(ROW()-ROW(PlanificarePlăți[[#Headers],[SOLD INIȚIAL]])=1,ValoareÎmprumut,INDEX(PlanificarePlăți[SOLD FINAL],ROW()-ROW(PlanificarePlăți[[#Headers],[SOLD INIȚIAL]])-1)),"") ->  | E44: =IF(PlanificarePlăți[[#This Row],[NR. PLĂȚI]]<>"",PlatăPlanificată,"") ->  | F44: =IF(PlanificarePlăți[[#This Row],[NR. PLĂȚI]]<>"",IF(PlanificarePlăți[[#This Row],[PLATĂ PLANIFICATĂ]]+PlățiSuplimentare<PlanificarePlăți[[#This Row],[SOLD INIȚIAL]],PlățiSuplimentare,IF(PlanificarePlăți[[#This Row],[SOLD INIȚIAL]]-PlanificarePlăți[[#This Row],[PLATĂ PLANIFICATĂ]]>0,PlanificarePlăți[[#This Row],[SOLD INIȚIAL]]-PlanificarePlăți[[#This Row],[PLATĂ PLANIFICATĂ]],0)),"") ->  | G44: =IF(PlanificarePlăți[[#This Row],[NR. PLĂȚI]]<>"",IF(PlanificarePlăți[[#This Row],[PLATĂ PLANIFICATĂ]]+PlanificarePlăți[[#This Row],[PLATĂ SUPLIMENTARĂ]]<=PlanificarePlăți[[#This Row],[SOLD INIȚIAL]],PlanificarePlăți[[#This Row],[PLATĂ PLANIFICATĂ]]+PlanificarePlăți[[#This Row],[PLATĂ SUPLIMENTARĂ]],PlanificarePlăți[[#This Row],[SOLD INIȚIAL]]),"") ->  | H44: =IF(PlanificarePlăți[[#This Row],[NR. PLĂȚI]]<>"",PlanificarePlăți[[#This Row],[TOTAL DE PLATĂ]]-PlanificarePlăți[[#This Row],[DOBÂNDĂ]],"") ->  | I44: =IF(PlanificarePlăți[[#This Row],[NR. PLĂȚI]]<>"",PlanificarePlăți[[#This Row],[SOLD INIȚIAL]]*(RataDobânzii/PlățiPeAn),"") ->  | J44: =IF(PlanificarePlăți[[#This Row],[NR. PLĂȚI]]<>"",IF(PlanificarePlăți[[#This Row],[PLATĂ PLANIFICATĂ]]+PlanificarePlăți[[#This Row],[PLATĂ SUPLIMENTARĂ]]<=PlanificarePlăți[[#This Row],[SOLD INIȚIAL]],PlanificarePlăți[[#This Row],[SOLD INIȚIAL]]-PlanificarePlăți[[#This Row],[PRINCIPAL]],0),"") ->  | K44: =IF(PlanificarePlăți[[#This Row],[NR. PLĂȚI]]<>"",SUM(INDEX(PlanificarePlăți[DOBÂNDĂ],1,1):PlanificarePlăți[[#This Row],[DOBÂNDĂ]]),"") -> 
B45: =IF(ÎmprumutEsteBun,IF(ROW()-ROW(PlanificarePlăți[[#Headers],[NR. PLĂȚI]])>NumărPlanificatDePlăți,"",ROW()-ROW(PlanificarePlăți[[#Headers],[NR. PLĂȚI]])),"") ->  | C45: =IF(PlanificarePlăți[[#This Row],[NR. PLĂȚI]]<>"",EOMONTH(DataDeÎnceputÎmprumut,ROW(PlanificarePlăți[[#This Row],[NR. PLĂȚI]])-ROW(PlanificarePlăți[[#Headers],[NR. PLĂȚI]])-2)+DAY(DataDeÎnceputÎmprumut),"") ->  | D45: =IF(PlanificarePlăți[[#This Row],[NR. PLĂȚI]]<>"",IF(ROW()-ROW(PlanificarePlăți[[#Headers],[SOLD INIȚIAL]])=1,ValoareÎmprumut,INDEX(PlanificarePlăți[SOLD FINAL],ROW()-ROW(PlanificarePlăți[[#Headers],[SOLD INIȚIAL]])-1)),"") ->  | E45: =IF(PlanificarePlăți[[#This Row],[NR. PLĂȚI]]<>"",PlatăPlanificată,"") ->  | F45: =IF(PlanificarePlăți[[#This Row],[NR. PLĂȚI]]<>"",IF(PlanificarePlăți[[#This Row],[PLATĂ PLANIFICATĂ]]+PlățiSuplimentare<PlanificarePlăți[[#This Row],[SOLD INIȚIAL]],PlățiSuplimentare,IF(PlanificarePlăți[[#This Row],[SOLD INIȚIAL]]-PlanificarePlăți[[#This Row],[PLATĂ PLANIFICATĂ]]>0,PlanificarePlăți[[#This Row],[SOLD INIȚIAL]]-PlanificarePlăți[[#This Row],[PLATĂ PLANIFICATĂ]],0)),"") ->  | G45: =IF(PlanificarePlăți[[#This Row],[NR. PLĂȚI]]<>"",IF(PlanificarePlăți[[#This Row],[PLATĂ PLANIFICATĂ]]+PlanificarePlăți[[#This Row],[PLATĂ SUPLIMENTARĂ]]<=PlanificarePlăți[[#This Row],[SOLD INIȚIAL]],PlanificarePlăți[[#This Row],[PLATĂ PLANIFICATĂ]]+PlanificarePlăți[[#This Row],[PLATĂ SUPLIMENTARĂ]],PlanificarePlăți[[#This Row],[SOLD INIȚIAL]]),"") ->  | H45: =IF(PlanificarePlăți[[#This Row],[NR. PLĂȚI]]<>"",PlanificarePlăți[[#This Row],[TOTAL DE PLATĂ]]-PlanificarePlăți[[#This Row],[DOBÂNDĂ]],"") ->  | I45: =IF(PlanificarePlăți[[#This Row],[NR. PLĂȚI]]<>"",PlanificarePlăți[[#This Row],[SOLD INIȚIAL]]*(RataDobânzii/PlățiPeAn),"") ->  | J45: =IF(PlanificarePlăți[[#This Row],[NR. PLĂȚI]]<>"",IF(PlanificarePlăți[[#This Row],[PLATĂ PLANIFICATĂ]]+PlanificarePlăți[[#This Row],[PLATĂ SUPLIMENTARĂ]]<=PlanificarePlăți[[#This Row],[SOLD INIȚIAL]],PlanificarePlăți[[#This Row],[SOLD INIȚIAL]]-PlanificarePlăți[[#This Row],[PRINCIPAL]],0),"") ->  | K45: =IF(PlanificarePlăți[[#This Row],[NR. PLĂȚI]]<>"",SUM(INDEX(PlanificarePlăți[DOBÂNDĂ],1,1):PlanificarePlăți[[#This Row],[DOBÂNDĂ]]),"") -> 
B46: =IF(ÎmprumutEsteBun,IF(ROW()-ROW(PlanificarePlăți[[#Headers],[NR. PLĂȚI]])>NumărPlanificatDePlăți,"",ROW()-ROW(PlanificarePlăți[[#Headers],[NR. PLĂȚI]])),"") ->  | C46: =IF(PlanificarePlăți[[#This Row],[NR. PLĂȚI]]<>"",EOMONTH(DataDeÎnceputÎmprumut,ROW(PlanificarePlăți[[#This Row],[NR. PLĂȚI]])-ROW(PlanificarePlăți[[#Headers],[NR. PLĂȚI]])-2)+DAY(DataDeÎnceputÎmprumut),"") ->  | D46: =IF(PlanificarePlăți[[#This Row],[NR. PLĂȚI]]<>"",IF(ROW()-ROW(PlanificarePlăți[[#Headers],[SOLD INIȚIAL]])=1,ValoareÎmprumut,INDEX(PlanificarePlăți[SOLD FINAL],ROW()-ROW(PlanificarePlăți[[#Headers],[SOLD INIȚIAL]])-1)),"") ->  | E46: =IF(PlanificarePlăți[[#This Row],[NR. PLĂȚI]]<>"",PlatăPlanificată,"") ->  | F46: =IF(PlanificarePlăți[[#This Row],[NR. PLĂȚI]]<>"",IF(PlanificarePlăți[[#This Row],[PLATĂ PLANIFICATĂ]]+PlățiSuplimentare<PlanificarePlăți[[#This Row],[SOLD INIȚIAL]],PlățiSuplimentare,IF(PlanificarePlăți[[#This Row],[SOLD INIȚIAL]]-PlanificarePlăți[[#This Row],[PLATĂ PLANIFICATĂ]]>0,PlanificarePlăți[[#This Row],[SOLD INIȚIAL]]-PlanificarePlăți[[#This Row],[PLATĂ PLANIFICATĂ]],0)),"") ->  | G46: =IF(PlanificarePlăți[[#This Row],[NR. PLĂȚI]]<>"",IF(PlanificarePlăți[[#This Row],[PLATĂ PLANIFICATĂ]]+PlanificarePlăți[[#This Row],[PLATĂ SUPLIMENTARĂ]]<=PlanificarePlăți[[#This Row],[SOLD INIȚIAL]],PlanificarePlăți[[#This Row],[PLATĂ PLANIFICATĂ]]+PlanificarePlăți[[#This Row],[PLATĂ SUPLIMENTARĂ]],PlanificarePlăți[[#This Row],[SOLD INIȚIAL]]),"") ->  | H46: =IF(PlanificarePlăți[[#This Row],[NR. PLĂȚI]]<>"",PlanificarePlăți[[#This Row],[TOTAL DE PLATĂ]]-PlanificarePlăți[[#This Row],[DOBÂNDĂ]],"") ->  | I46: =IF(PlanificarePlăți[[#This Row],[NR. PLĂȚI]]<>"",PlanificarePlăți[[#This Row],[SOLD INIȚIAL]]*(RataDobânzii/PlățiPeAn),"") ->  | J46: =IF(PlanificarePlăți[[#This Row],[NR. PLĂȚI]]<>"",IF(PlanificarePlăți[[#This Row],[PLATĂ PLANIFICATĂ]]+PlanificarePlăți[[#This Row],[PLATĂ SUPLIMENTARĂ]]<=PlanificarePlăți[[#This Row],[SOLD INIȚIAL]],PlanificarePlăți[[#This Row],[SOLD INIȚIAL]]-PlanificarePlăți[[#This Row],[PRINCIPAL]],0),"") ->  | K46: =IF(PlanificarePlăți[[#This Row],[NR. PLĂȚI]]<>"",SUM(INDEX(PlanificarePlăți[DOBÂNDĂ],1,1):PlanificarePlăți[[#This Row],[DOBÂNDĂ]]),"") -> 
B47: =IF(ÎmprumutEsteBun,IF(ROW()-ROW(PlanificarePlăți[[#Headers],[NR. PLĂȚI]])>NumărPlanificatDePlăți,"",ROW()-ROW(PlanificarePlăți[[#Headers],[NR. PLĂȚI]])),"") ->  | C47: =IF(PlanificarePlăți[[#This Row],[NR. PLĂȚI]]<>"",EOMONTH(DataDeÎnceputÎmprumut,ROW(PlanificarePlăți[[#This Row],[NR. PLĂȚI]])-ROW(PlanificarePlăți[[#Headers],[NR. PLĂȚI]])-2)+DAY(DataDeÎnceputÎmprumut),"") ->  | D47: =IF(PlanificarePlăți[[#This Row],[NR. PLĂȚI]]<>"",IF(ROW()-ROW(PlanificarePlăți[[#Headers],[SOLD INIȚIAL]])=1,ValoareÎmprumut,INDEX(PlanificarePlăți[SOLD FINAL],ROW()-ROW(PlanificarePlăți[[#Headers],[SOLD INIȚIAL]])-1)),"") ->  | E47: =IF(PlanificarePlăți[[#This Row],[NR. PLĂȚI]]<>"",PlatăPlanificată,"") ->  | F47: =IF(PlanificarePlăți[[#This Row],[NR. PLĂȚI]]<>"",IF(PlanificarePlăți[[#This Row],[PLATĂ PLANIFICATĂ]]+PlățiSuplimentare<PlanificarePlăți[[#This Row],[SOLD INIȚIAL]],PlățiSuplimentare,IF(PlanificarePlăți[[#This Row],[SOLD INIȚIAL]]-PlanificarePlăți[[#This Row],[PLATĂ PLANIFICATĂ]]>0,PlanificarePlăți[[#This Row],[SOLD INIȚIAL]]-PlanificarePlăți[[#This Row],[PLATĂ PLANIFICATĂ]],0)),"") ->  | G47: =IF(PlanificarePlăți[[#This Row],[NR. PLĂȚI]]<>"",IF(PlanificarePlăți[[#This Row],[PLATĂ PLANIFICATĂ]]+PlanificarePlăți[[#This Row],[PLATĂ SUPLIMENTARĂ]]<=PlanificarePlăți[[#This Row],[SOLD INIȚIAL]],PlanificarePlăți[[#This Row],[PLATĂ PLANIFICATĂ]]+PlanificarePlăți[[#This Row],[PLATĂ SUPLIMENTARĂ]],PlanificarePlăți[[#This Row],[SOLD INIȚIAL]]),"") ->  | H47: =IF(PlanificarePlăți[[#This Row],[NR. PLĂȚI]]<>"",PlanificarePlăți[[#This Row],[TOTAL DE PLATĂ]]-PlanificarePlăți[[#This Row],[DOBÂNDĂ]],"") ->  | I47: =IF(PlanificarePlăți[[#This Row],[NR. PLĂȚI]]<>"",PlanificarePlăți[[#This Row],[SOLD INIȚIAL]]*(RataDobânzii/PlățiPeAn),"") ->  | J47: =IF(PlanificarePlăți[[#This Row],[NR. PLĂȚI]]<>"",IF(PlanificarePlăți[[#This Row],[PLATĂ PLANIFICATĂ]]+PlanificarePlăți[[#This Row],[PLATĂ SUPLIMENTARĂ]]<=PlanificarePlăți[[#This Row],[SOLD INIȚIAL]],PlanificarePlăți[[#This Row],[SOLD INIȚIAL]]-PlanificarePlăți[[#This Row],[PRINCIPAL]],0),"") ->  | K47: =IF(PlanificarePlăți[[#This Row],[NR. PLĂȚI]]<>"",SUM(INDEX(PlanificarePlăți[DOBÂNDĂ],1,1):PlanificarePlăți[[#This Row],[DOBÂNDĂ]]),"") -> 
B48: =IF(ÎmprumutEsteBun,IF(ROW()-ROW(PlanificarePlăți[[#Headers],[NR. PLĂȚI]])>NumărPlanificatDePlăți,"",ROW()-ROW(PlanificarePlăți[[#Headers],[NR. PLĂȚI]])),"") ->  | C48: =IF(PlanificarePlăți[[#This Row],[NR. PLĂȚI]]<>"",EOMONTH(DataDeÎnceputÎmprumut,ROW(PlanificarePlăți[[#This Row],[NR. PLĂȚI]])-ROW(PlanificarePlăți[[#Headers],[NR. PLĂȚI]])-2)+DAY(DataDeÎnceputÎmprumut),"") ->  | D48: =IF(PlanificarePlăți[[#This Row],[NR. PLĂȚI]]<>"",IF(ROW()-ROW(PlanificarePlăți[[#Headers],[SOLD INIȚIAL]])=1,ValoareÎmprumut,INDEX(PlanificarePlăți[SOLD FINAL],ROW()-ROW(PlanificarePlăți[[#Headers],[SOLD INIȚIAL]])-1)),"") ->  | E48: =IF(PlanificarePlăți[[#This Row],[NR. PLĂȚI]]<>"",PlatăPlanificată,"") ->  | F48: =IF(PlanificarePlăți[[#This Row],[NR. PLĂȚI]]<>"",IF(PlanificarePlăți[[#This Row],[PLATĂ PLANIFICATĂ]]+PlățiSuplimentare<PlanificarePlăți[[#This Row],[SOLD INIȚIAL]],PlățiSuplimentare,IF(PlanificarePlăți[[#This Row],[SOLD INIȚIAL]]-PlanificarePlăți[[#This Row],[PLATĂ PLANIFICATĂ]]>0,PlanificarePlăți[[#This Row],[SOLD INIȚIAL]]-PlanificarePlăți[[#This Row],[PLATĂ PLANIFICATĂ]],0)),"") ->  | G48: =IF(PlanificarePlăți[[#This Row],[NR. PLĂȚI]]<>"",IF(PlanificarePlăți[[#This Row],[PLATĂ PLANIFICATĂ]]+PlanificarePlăți[[#This Row],[PLATĂ SUPLIMENTARĂ]]<=PlanificarePlăți[[#This Row],[SOLD INIȚIAL]],PlanificarePlăți[[#This Row],[PLATĂ PLANIFICATĂ]]+PlanificarePlăți[[#This Row],[PLATĂ SUPLIMENTARĂ]],PlanificarePlăți[[#This Row],[SOLD INIȚIAL]]),"") ->  | H48: =IF(PlanificarePlăți[[#This Row],[NR. PLĂȚI]]<>"",PlanificarePlăți[[#This Row],[TOTAL DE PLATĂ]]-PlanificarePlăți[[#This Row],[DOBÂNDĂ]],"") ->  | I48: =IF(PlanificarePlăți[[#This Row],[NR. PLĂȚI]]<>"",PlanificarePlăți[[#This Row],[SOLD INIȚIAL]]*(RataDobânzii/PlățiPeAn),"") ->  | J48: =IF(PlanificarePlăți[[#This Row],[NR. PLĂȚI]]<>"",IF(PlanificarePlăți[[#This Row],[PLATĂ PLANIFICATĂ]]+PlanificarePlăți[[#This Row],[PLATĂ SUPLIMENTARĂ]]<=PlanificarePlăți[[#This Row],[SOLD INIȚIAL]],PlanificarePlăți[[#This Row],[SOLD INIȚIAL]]-PlanificarePlăți[[#This Row],[PRINCIPAL]],0),"") ->  | K48: =IF(PlanificarePlăți[[#This Row],[NR. PLĂȚI]]<>"",SUM(INDEX(PlanificarePlăți[DOBÂNDĂ],1,1):PlanificarePlăți[[#This Row],[DOBÂNDĂ]]),"") -> 
B49: =IF(ÎmprumutEsteBun,IF(ROW()-ROW(PlanificarePlăți[[#Headers],[NR. PLĂȚI]])>NumărPlanificatDePlăți,"",ROW()-ROW(PlanificarePlăți[[#Headers],[NR. PLĂȚI]])),"") ->  | C49: =IF(PlanificarePlăți[[#This Row],[NR. PLĂȚI]]<>"",EOMONTH(DataDeÎnceputÎmprumut,ROW(PlanificarePlăți[[#This Row],[NR. PLĂȚI]])-ROW(PlanificarePlăți[[#Headers],[NR. PLĂȚI]])-2)+DAY(DataDeÎnceputÎmprumut),"") ->  | D49: =IF(PlanificarePlăți[[#This Row],[NR. PLĂȚI]]<>"",IF(ROW()-ROW(PlanificarePlăți[[#Headers],[SOLD INIȚIAL]])=1,ValoareÎmprumut,INDEX(PlanificarePlăți[SOLD FINAL],ROW()-ROW(PlanificarePlăți[[#Headers],[SOLD INIȚIAL]])-1)),"") ->  | E49: =IF(PlanificarePlăți[[#This Row],[NR. PLĂȚI]]<>"",PlatăPlanificată,"") ->  | F49: =IF(PlanificarePlăți[[#This Row],[NR. PLĂȚI]]<>"",IF(PlanificarePlăți[[#This Row],[PLATĂ PLANIFICATĂ]]+PlățiSuplimentare<PlanificarePlăți[[#This Row],[SOLD INIȚIAL]],PlățiSuplimentare,IF(PlanificarePlăți[[#This Row],[SOLD INIȚIAL]]-PlanificarePlăți[[#This Row],[PLATĂ PLANIFICATĂ]]>0,PlanificarePlăți[[#This Row],[SOLD INIȚIAL]]-PlanificarePlăți[[#This Row],[PLATĂ PLANIFICATĂ]],0)),"") ->  | G49: =IF(PlanificarePlăți[[#This Row],[NR. PLĂȚI]]<>"",IF(PlanificarePlăți[[#This Row],[PLATĂ PLANIFICATĂ]]+PlanificarePlăți[[#This Row],[PLATĂ SUPLIMENTARĂ]]<=PlanificarePlăți[[#This Row],[SOLD INIȚIAL]],PlanificarePlăți[[#This Row],[PLATĂ PLANIFICATĂ]]+PlanificarePlăți[[#This Row],[PLATĂ SUPLIMENTARĂ]],PlanificarePlăți[[#This Row],[SOLD INIȚIAL]]),"") ->  | H49: =IF(PlanificarePlăți[[#This Row],[NR. PLĂȚI]]<>"",PlanificarePlăți[[#This Row],[TOTAL DE PLATĂ]]-PlanificarePlăți[[#This Row],[DOBÂNDĂ]],"") ->  | I49: =IF(PlanificarePlăți[[#This Row],[NR. PLĂȚI]]<>"",PlanificarePlăți[[#This Row],[SOLD INIȚIAL]]*(RataDobânzii/PlățiPeAn),"") ->  | J49: =IF(PlanificarePlăți[[#This Row],[NR. PLĂȚI]]<>"",IF(PlanificarePlăți[[#This Row],[PLATĂ PLANIFICATĂ]]+PlanificarePlăți[[#This Row],[PLATĂ SUPLIMENTARĂ]]<=PlanificarePlăți[[#This Row],[SOLD INIȚIAL]],PlanificarePlăți[[#This Row],[SOLD INIȚIAL]]-PlanificarePlăți[[#This Row],[PRINCIPAL]],0),"") ->  | K49: =IF(PlanificarePlăți[[#This Row],[NR. PLĂȚI]]<>"",SUM(INDEX(PlanificarePlăți[DOBÂNDĂ],1,1):PlanificarePlăți[[#This Row],[DOBÂNDĂ]]),"") -> 
B50: =IF(ÎmprumutEsteBun,IF(ROW()-ROW(PlanificarePlăți[[#Headers],[NR. PLĂȚI]])>NumărPlanificatDePlăți,"",ROW()-ROW(PlanificarePlăți[[#Headers],[NR. PLĂȚI]])),"") ->  | C50: =IF(PlanificarePlăți[[#This Row],[NR. PLĂȚI]]<>"",EOMONTH(DataDeÎnceputÎmprumut,ROW(PlanificarePlăți[[#This Row],[NR. PLĂȚI]])-ROW(PlanificarePlăți[[#Headers],[NR. PLĂȚI]])-2)+DAY(DataDeÎnceputÎmprumut),"") ->  | D50: =IF(PlanificarePlăți[[#This Row],[NR. PLĂȚI]]<>"",IF(ROW()-ROW(PlanificarePlăți[[#Headers],[SOLD INIȚIAL]])=1,ValoareÎmprumut,INDEX(PlanificarePlăți[SOLD FINAL],ROW()-ROW(PlanificarePlăți[[#Headers],[SOLD INIȚIAL]])-1)),"") ->  | E50: =IF(PlanificarePlăți[[#This Row],[NR. PLĂȚI]]<>"",PlatăPlanificată,"") ->  | F50: =IF(PlanificarePlăți[[#This Row],[NR. PLĂȚI]]<>"",IF(PlanificarePlăți[[#This Row],[PLATĂ PLANIFICATĂ]]+PlățiSuplimentare<PlanificarePlăți[[#This Row],[SOLD INIȚIAL]],PlățiSuplimentare,IF(PlanificarePlăți[[#This Row],[SOLD INIȚIAL]]-PlanificarePlăți[[#This Row],[PLATĂ PLANIFICATĂ]]>0,PlanificarePlăți[[#This Row],[SOLD INIȚIAL]]-PlanificarePlăți[[#This Row],[PLATĂ PLANIFICATĂ]],0)),"") ->  | G50: =IF(PlanificarePlăți[[#This Row],[NR. PLĂȚI]]<>"",IF(PlanificarePlăți[[#This Row],[PLATĂ PLANIFICATĂ]]+PlanificarePlăți[[#This Row],[PLATĂ SUPLIMENTARĂ]]<=PlanificarePlăți[[#This Row],[SOLD INIȚIAL]],PlanificarePlăți[[#This Row],[PLATĂ PLANIFICATĂ]]+PlanificarePlăți[[#This Row],[PLATĂ SUPLIMENTARĂ]],PlanificarePlăți[[#This Row],[SOLD INIȚIAL]]),"") ->  | H50: =IF(PlanificarePlăți[[#This Row],[NR. PLĂȚI]]<>"",PlanificarePlăți[[#This Row],[TOTAL DE PLATĂ]]-PlanificarePlăți[[#This Row],[DOBÂNDĂ]],"") ->  | I50: =IF(PlanificarePlăți[[#This Row],[NR. PLĂȚI]]<>"",PlanificarePlăți[[#This Row],[SOLD INIȚIAL]]*(RataDobânzii/PlățiPeAn),"") ->  | J50: =IF(PlanificarePlăți[[#This Row],[NR. PLĂȚI]]<>"",IF(PlanificarePlăți[[#This Row],[PLATĂ PLANIFICATĂ]]+PlanificarePlăți[[#This Row],[PLATĂ SUPLIMENTARĂ]]<=PlanificarePlăți[[#This Row],[SOLD INIȚIAL]],PlanificarePlăți[[#This Row],[SOLD INIȚIAL]]-PlanificarePlăți[[#This Row],[PRINCIPAL]],0),"") ->  | K50: =IF(PlanificarePlăți[[#This Row],[NR. PLĂȚI]]<>"",SUM(INDEX(PlanificarePlăți[DOBÂNDĂ],1,1):PlanificarePlăți[[#This Row],[DOBÂNDĂ]]),"") -> 
B51: =IF(ÎmprumutEsteBun,IF(ROW()-ROW(PlanificarePlăți[[#Headers],[NR. PLĂȚI]])>NumărPlanificatDePlăți,"",ROW()-ROW(PlanificarePlăți[[#Headers],[NR. PLĂȚI]])),"") ->  | C51: =IF(PlanificarePlăți[[#This Row],[NR. PLĂȚI]]<>"",EOMONTH(DataDeÎnceputÎmprumut,ROW(PlanificarePlăți[[#This Row],[NR. PLĂȚI]])-ROW(PlanificarePlăți[[#Headers],[NR. PLĂȚI]])-2)+DAY(DataDeÎnceputÎmprumut),"") ->  | D51: =IF(PlanificarePlăți[[#This Row],[NR. PLĂȚI]]<>"",IF(ROW()-ROW(PlanificarePlăți[[#Headers],[SOLD INIȚIAL]])=1,ValoareÎmprumut,INDEX(PlanificarePlăți[SOLD FINAL],ROW()-ROW(PlanificarePlăți[[#Headers],[SOLD INIȚIAL]])-1)),"") ->  | E51: =IF(PlanificarePlăți[[#This Row],[NR. PLĂȚI]]<>"",PlatăPlanificată,"") ->  | F51: =IF(PlanificarePlăți[[#This Row],[NR. PLĂȚI]]<>"",IF(PlanificarePlăți[[#This Row],[PLATĂ PLANIFICATĂ]]+PlățiSuplimentare<PlanificarePlăți[[#This Row],[SOLD INIȚIAL]],PlățiSuplimentare,IF(PlanificarePlăți[[#This Row],[SOLD INIȚIAL]]-PlanificarePlăți[[#This Row],[PLATĂ PLANIFICATĂ]]>0,PlanificarePlăți[[#This Row],[SOLD INIȚIAL]]-PlanificarePlăți[[#This Row],[PLATĂ PLANIFICATĂ]],0)),"") ->  | G51: =IF(PlanificarePlăți[[#This Row],[NR. PLĂȚI]]<>"",IF(PlanificarePlăți[[#This Row],[PLATĂ PLANIFICATĂ]]+PlanificarePlăți[[#This Row],[PLATĂ SUPLIMENTARĂ]]<=PlanificarePlăți[[#This Row],[SOLD INIȚIAL]],PlanificarePlăți[[#This Row],[PLATĂ PLANIFICATĂ]]+PlanificarePlăți[[#This Row],[PLATĂ SUPLIMENTARĂ]],PlanificarePlăți[[#This Row],[SOLD INIȚIAL]]),"") ->  | H51: =IF(PlanificarePlăți[[#This Row],[NR. PLĂȚI]]<>"",PlanificarePlăți[[#This Row],[TOTAL DE PLATĂ]]-PlanificarePlăți[[#This Row],[DOBÂNDĂ]],"") ->  | I51: =IF(PlanificarePlăți[[#This Row],[NR. PLĂȚI]]<>"",PlanificarePlăți[[#This Row],[SOLD INIȚIAL]]*(RataDobânzii/PlățiPeAn),"") ->  | J51: =IF(PlanificarePlăți[[#This Row],[NR. PLĂȚI]]<>"",IF(PlanificarePlăți[[#This Row],[PLATĂ PLANIFICATĂ]]+PlanificarePlăți[[#This Row],[PLATĂ SUPLIMENTARĂ]]<=PlanificarePlăți[[#This Row],[SOLD INIȚIAL]],PlanificarePlăți[[#This Row],[SOLD INIȚIAL]]-PlanificarePlăți[[#This Row],[PRINCIPAL]],0),"") ->  | K51: =IF(PlanificarePlăți[[#This Row],[NR. PLĂȚI]]<>"",SUM(INDEX(PlanificarePlăți[DOBÂNDĂ],1,1):PlanificarePlăți[[#This Row],[DOBÂNDĂ]]),"") -> 
B52: =IF(ÎmprumutEsteBun,IF(ROW()-ROW(PlanificarePlăți[[#Headers],[NR. PLĂȚI]])>NumărPlanificatDePlăți,"",ROW()-ROW(PlanificarePlăți[[#Headers],[NR. PLĂȚI]])),"") ->  | C52: =IF(PlanificarePlăți[[#This Row],[NR. PLĂȚI]]<>"",EOMONTH(DataDeÎnceputÎmprumut,ROW(PlanificarePlăți[[#This Row],[NR. PLĂȚI]])-ROW(PlanificarePlăți[[#Headers],[NR. PLĂȚI]])-2)+DAY(DataDeÎnceputÎmprumut),"") ->  | D52: =IF(PlanificarePlăți[[#This Row],[NR. PLĂȚI]]<>"",IF(ROW()-ROW(PlanificarePlăți[[#Headers],[SOLD INIȚIAL]])=1,ValoareÎmprumut,INDEX(PlanificarePlăți[SOLD FINAL],ROW()-ROW(PlanificarePlăți[[#Headers],[SOLD INIȚIAL]])-1)),"") ->  | E52: =IF(PlanificarePlăți[[#This Row],[NR. PLĂȚI]]<>"",PlatăPlanificată,"") ->  | F52: =IF(PlanificarePlăți[[#This Row],[NR. PLĂȚI]]<>"",IF(PlanificarePlăți[[#This Row],[PLATĂ PLANIFICATĂ]]+PlățiSuplimentare<PlanificarePlăți[[#This Row],[SOLD INIȚIAL]],PlățiSuplimentare,IF(PlanificarePlăți[[#This Row],[SOLD INIȚIAL]]-PlanificarePlăți[[#This Row],[PLATĂ PLANIFICATĂ]]>0,PlanificarePlăți[[#This Row],[SOLD INIȚIAL]]-PlanificarePlăți[[#This Row],[PLATĂ PLANIFICATĂ]],0)),"") ->  | G52: =IF(PlanificarePlăți[[#This Row],[NR. PLĂȚI]]<>"",IF(PlanificarePlăți[[#This Row],[PLATĂ PLANIFICATĂ]]+PlanificarePlăți[[#This Row],[PLATĂ SUPLIMENTARĂ]]<=PlanificarePlăți[[#This Row],[SOLD INIȚIAL]],PlanificarePlăți[[#This Row],[PLATĂ PLANIFICATĂ]]+PlanificarePlăți[[#This Row],[PLATĂ SUPLIMENTARĂ]],PlanificarePlăți[[#This Row],[SOLD INIȚIAL]]),"") ->  | H52: =IF(PlanificarePlăți[[#This Row],[NR. PLĂȚI]]<>"",PlanificarePlăți[[#This Row],[TOTAL DE PLATĂ]]-PlanificarePlăți[[#This Row],[DOBÂNDĂ]],"") ->  | I52: =IF(PlanificarePlăți[[#This Row],[NR. PLĂȚI]]<>"",PlanificarePlăți[[#This Row],[SOLD INIȚIAL]]*(RataDobânzii/PlățiPeAn),"") ->  | J52: =IF(PlanificarePlăți[[#This Row],[NR. PLĂȚI]]<>"",IF(PlanificarePlăți[[#This Row],[PLATĂ PLANIFICATĂ]]+PlanificarePlăți[[#This Row],[PLATĂ SUPLIMENTARĂ]]<=PlanificarePlăți[[#This Row],[SOLD INIȚIAL]],PlanificarePlăți[[#This Row],[SOLD INIȚIAL]]-PlanificarePlăți[[#This Row],[PRINCIPAL]],0),"") ->  | K52: =IF(PlanificarePlăți[[#This Row],[NR. PLĂȚI]]<>"",SUM(INDEX(PlanificarePlăți[DOBÂNDĂ],1,1):PlanificarePlăți[[#This Row],[DOBÂNDĂ]]),"") -> 
B53: =IF(ÎmprumutEsteBun,IF(ROW()-ROW(PlanificarePlăți[[#Headers],[NR. PLĂȚI]])>NumărPlanificatDePlăți,"",ROW()-ROW(PlanificarePlăți[[#Headers],[NR. PLĂȚI]])),"") ->  | C53: =IF(PlanificarePlăți[[#This Row],[NR. PLĂȚI]]<>"",EOMONTH(DataDeÎnceputÎmprumut,ROW(PlanificarePlăți[[#This Row],[NR. PLĂȚI]])-ROW(PlanificarePlăți[[#Headers],[NR. PLĂȚI]])-2)+DAY(DataDeÎnceputÎmprumut),"") ->  | D53: =IF(PlanificarePlăți[[#This Row],[NR. PLĂȚI]]<>"",IF(ROW()-ROW(PlanificarePlăți[[#Headers],[SOLD INIȚIAL]])=1,ValoareÎmprumut,INDEX(PlanificarePlăți[SOLD FINAL],ROW()-ROW(PlanificarePlăți[[#Headers],[SOLD INIȚIAL]])-1)),"") ->  | E53: =IF(PlanificarePlăți[[#This Row],[NR. PLĂȚI]]<>"",PlatăPlanificată,"") ->  | F53: =IF(PlanificarePlăți[[#This Row],[NR. PLĂȚI]]<>"",IF(PlanificarePlăți[[#This Row],[PLATĂ PLANIFICATĂ]]+PlățiSuplimentare<PlanificarePlăți[[#This Row],[SOLD INIȚIAL]],PlățiSuplimentare,IF(PlanificarePlăți[[#This Row],[SOLD INIȚIAL]]-PlanificarePlăți[[#This Row],[PLATĂ PLANIFICATĂ]]>0,PlanificarePlăți[[#This Row],[SOLD INIȚIAL]]-PlanificarePlăți[[#This Row],[PLATĂ PLANIFICATĂ]],0)),"") ->  | G53: =IF(PlanificarePlăți[[#This Row],[NR. PLĂȚI]]<>"",IF(PlanificarePlăți[[#This Row],[PLATĂ PLANIFICATĂ]]+PlanificarePlăți[[#This Row],[PLATĂ SUPLIMENTARĂ]]<=PlanificarePlăți[[#This Row],[SOLD INIȚIAL]],PlanificarePlăți[[#This Row],[PLATĂ PLANIFICATĂ]]+PlanificarePlăți[[#This Row],[PLATĂ SUPLIMENTARĂ]],PlanificarePlăți[[#This Row],[SOLD INIȚIAL]]),"") ->  | H53: =IF(PlanificarePlăți[[#This Row],[NR. PLĂȚI]]<>"",PlanificarePlăți[[#This Row],[TOTAL DE PLATĂ]]-PlanificarePlăți[[#This Row],[DOBÂNDĂ]],"") ->  | I53: =IF(PlanificarePlăți[[#This Row],[NR. PLĂȚI]]<>"",PlanificarePlăți[[#This Row],[SOLD INIȚIAL]]*(RataDobânzii/PlățiPeAn),"") ->  | J53: =IF(PlanificarePlăți[[#This Row],[NR. PLĂȚI]]<>"",IF(PlanificarePlăți[[#This Row],[PLATĂ PLANIFICATĂ]]+PlanificarePlăți[[#This Row],[PLATĂ SUPLIMENTARĂ]]<=PlanificarePlăți[[#This Row],[SOLD INIȚIAL]],PlanificarePlăți[[#This Row],[SOLD INIȚIAL]]-PlanificarePlăți[[#This Row],[PRINCIPAL]],0),"") ->  | K53: =IF(PlanificarePlăți[[#This Row],[NR. PLĂȚI]]<>"",SUM(INDEX(PlanificarePlăți[DOBÂNDĂ],1,1):PlanificarePlăți[[#This Row],[DOBÂNDĂ]]),"") -> 
B54: =IF(ÎmprumutEsteBun,IF(ROW()-ROW(PlanificarePlăți[[#Headers],[NR. PLĂȚI]])>NumărPlanificatDePlăți,"",ROW()-ROW(PlanificarePlăți[[#Headers],[NR. PLĂȚI]])),"") ->  | C54: =IF(PlanificarePlăți[[#This Row],[NR. PLĂȚI]]<>"",EOMONTH(DataDeÎnceputÎmprumut,ROW(PlanificarePlăți[[#This Row],[NR. PLĂȚI]])-ROW(PlanificarePlăți[[#Headers],[NR. PLĂȚI]])-2)+DAY(DataDeÎnceputÎmprumut),"") ->  | D54: =IF(PlanificarePlăți[[#This Row],[NR. PLĂȚI]]<>"",IF(ROW()-ROW(PlanificarePlăți[[#Headers],[SOLD INIȚIAL]])=1,ValoareÎmprumut,INDEX(PlanificarePlăți[SOLD FINAL],ROW()-ROW(PlanificarePlăți[[#Headers],[SOLD INIȚIAL]])-1)),"") ->  | E54: =IF(PlanificarePlăți[[#This Row],[NR. PLĂȚI]]<>"",PlatăPlanificată,"") ->  | F54: =IF(PlanificarePlăți[[#This Row],[NR. PLĂȚI]]<>"",IF(PlanificarePlăți[[#This Row],[PLATĂ PLANIFICATĂ]]+PlățiSuplimentare<PlanificarePlăți[[#This Row],[SOLD INIȚIAL]],PlățiSuplimentare,IF(PlanificarePlăți[[#This Row],[SOLD INIȚIAL]]-PlanificarePlăți[[#This Row],[PLATĂ PLANIFICATĂ]]>0,PlanificarePlăți[[#This Row],[SOLD INIȚIAL]]-PlanificarePlăți[[#This Row],[PLATĂ PLANIFICATĂ]],0)),"") ->  | G54: =IF(PlanificarePlăți[[#This Row],[NR. PLĂȚI]]<>"",IF(PlanificarePlăți[[#This Row],[PLATĂ PLANIFICATĂ]]+PlanificarePlăți[[#This Row],[PLATĂ SUPLIMENTARĂ]]<=PlanificarePlăți[[#This Row],[SOLD INIȚIAL]],PlanificarePlăți[[#This Row],[PLATĂ PLANIFICATĂ]]+PlanificarePlăți[[#This Row],[PLATĂ SUPLIMENTARĂ]],PlanificarePlăți[[#This Row],[SOLD INIȚIAL]]),"") ->  | H54: =IF(PlanificarePlăți[[#This Row],[NR. PLĂȚI]]<>"",PlanificarePlăți[[#This Row],[TOTAL DE PLATĂ]]-PlanificarePlăți[[#This Row],[DOBÂNDĂ]],"") ->  | I54: =IF(PlanificarePlăți[[#This Row],[NR. PLĂȚI]]<>"",PlanificarePlăți[[#This Row],[SOLD INIȚIAL]]*(RataDobânzii/PlățiPeAn),"") ->  | J54: =IF(PlanificarePlăți[[#This Row],[NR. PLĂȚI]]<>"",IF(PlanificarePlăți[[#This Row],[PLATĂ PLANIFICATĂ]]+PlanificarePlăți[[#This Row],[PLATĂ SUPLIMENTARĂ]]<=PlanificarePlăți[[#This Row],[SOLD INIȚIAL]],PlanificarePlăți[[#This Row],[SOLD INIȚIAL]]-PlanificarePlăți[[#This Row],[PRINCIPAL]],0),"") ->  | K54: =IF(PlanificarePlăți[[#This Row],[NR. PLĂȚI]]<>"",SUM(INDEX(PlanificarePlăți[DOBÂNDĂ],1,1):PlanificarePlăți[[#This Row],[DOBÂNDĂ]]),"") -> 
B55: =IF(ÎmprumutEsteBun,IF(ROW()-ROW(PlanificarePlăți[[#Headers],[NR. PLĂȚI]])>NumărPlanificatDePlăți,"",ROW()-ROW(PlanificarePlăți[[#Headers],[NR. PLĂȚI]])),"") ->  | C55: =IF(PlanificarePlăți[[#This Row],[NR. PLĂȚI]]<>"",EOMONTH(DataDeÎnceputÎmprumut,ROW(PlanificarePlăți[[#This Row],[NR. PLĂȚI]])-ROW(PlanificarePlăți[[#Headers],[NR. PLĂȚI]])-2)+DAY(DataDeÎnceputÎmprumut),"") ->  | D55: =IF(PlanificarePlăți[[#This Row],[NR. PLĂȚI]]<>"",IF(ROW()-ROW(PlanificarePlăți[[#Headers],[SOLD INIȚIAL]])=1,ValoareÎmprumut,INDEX(PlanificarePlăți[SOLD FINAL],ROW()-ROW(PlanificarePlăți[[#Headers],[SOLD INIȚIAL]])-1)),"") ->  | E55: =IF(PlanificarePlăți[[#This Row],[NR. PLĂȚI]]<>"",PlatăPlanificată,"") ->  | F55: =IF(PlanificarePlăți[[#This Row],[NR. PLĂȚI]]<>"",IF(PlanificarePlăți[[#This Row],[PLATĂ PLANIFICATĂ]]+PlățiSuplimentare<PlanificarePlăți[[#This Row],[SOLD INIȚIAL]],PlățiSuplimentare,IF(PlanificarePlăți[[#This Row],[SOLD INIȚIAL]]-PlanificarePlăți[[#This Row],[PLATĂ PLANIFICATĂ]]>0,PlanificarePlăți[[#This Row],[SOLD INIȚIAL]]-PlanificarePlăți[[#This Row],[PLATĂ PLANIFICATĂ]],0)),"") ->  | G55: =IF(PlanificarePlăți[[#This Row],[NR. PLĂȚI]]<>"",IF(PlanificarePlăți[[#This Row],[PLATĂ PLANIFICATĂ]]+PlanificarePlăți[[#This Row],[PLATĂ SUPLIMENTARĂ]]<=PlanificarePlăți[[#This Row],[SOLD INIȚIAL]],PlanificarePlăți[[#This Row],[PLATĂ PLANIFICATĂ]]+PlanificarePlăți[[#This Row],[PLATĂ SUPLIMENTARĂ]],PlanificarePlăți[[#This Row],[SOLD INIȚIAL]]),"") ->  | H55: =IF(PlanificarePlăți[[#This Row],[NR. PLĂȚI]]<>"",PlanificarePlăți[[#This Row],[TOTAL DE PLATĂ]]-PlanificarePlăți[[#This Row],[DOBÂNDĂ]],"") ->  | I55: =IF(PlanificarePlăți[[#This Row],[NR. PLĂȚI]]<>"",PlanificarePlăți[[#This Row],[SOLD INIȚIAL]]*(RataDobânzii/PlățiPeAn),"") ->  | J55: =IF(PlanificarePlăți[[#This Row],[NR. PLĂȚI]]<>"",IF(PlanificarePlăți[[#This Row],[PLATĂ PLANIFICATĂ]]+PlanificarePlăți[[#This Row],[PLATĂ SUPLIMENTARĂ]]<=PlanificarePlăți[[#This Row],[SOLD INIȚIAL]],PlanificarePlăți[[#This Row],[SOLD INIȚIAL]]-PlanificarePlăți[[#This Row],[PRINCIPAL]],0),"") ->  | K55: =IF(PlanificarePlăți[[#This Row],[NR. PLĂȚI]]<>"",SUM(INDEX(PlanificarePlăți[DOBÂNDĂ],1,1):PlanificarePlăți[[#This Row],[DOBÂNDĂ]]),"") -> 
B56: =IF(ÎmprumutEsteBun,IF(ROW()-ROW(PlanificarePlăți[[#Headers],[NR. PLĂȚI]])>NumărPlanificatDePlăți,"",ROW()-ROW(PlanificarePlăți[[#Headers],[NR. PLĂȚI]])),"") ->  | C56: =IF(PlanificarePlăți[[#This Row],[NR. PLĂȚI]]<>"",EOMONTH(DataDeÎnceputÎmprumut,ROW(PlanificarePlăți[[#This Row],[NR. PLĂȚI]])-ROW(PlanificarePlăți[[#Headers],[NR. PLĂȚI]])-2)+DAY(DataDeÎnceputÎmprumut),"") ->  | D56: =IF(PlanificarePlăți[[#This Row],[NR. PLĂȚI]]<>"",IF(ROW()-ROW(PlanificarePlăți[[#Headers],[SOLD INIȚIAL]])=1,ValoareÎmprumut,INDEX(PlanificarePlăți[SOLD FINAL],ROW()-ROW(PlanificarePlăți[[#Headers],[SOLD INIȚIAL]])-1)),"") ->  | E56: =IF(PlanificarePlăți[[#This Row],[NR. PLĂȚI]]<>"",PlatăPlanificată,"") ->  | F56: =IF(PlanificarePlăți[[#This Row],[NR. PLĂȚI]]<>"",IF(PlanificarePlăți[[#This Row],[PLATĂ PLANIFICATĂ]]+PlățiSuplimentare<PlanificarePlăți[[#This Row],[SOLD INIȚIAL]],PlățiSuplimentare,IF(PlanificarePlăți[[#This Row],[SOLD INIȚIAL]]-PlanificarePlăți[[#This Row],[PLATĂ PLANIFICATĂ]]>0,PlanificarePlăți[[#This Row],[SOLD INIȚIAL]]-PlanificarePlăți[[#This Row],[PLATĂ PLANIFICATĂ]],0)),"") ->  | G56: =IF(PlanificarePlăți[[#This Row],[NR. PLĂȚI]]<>"",IF(PlanificarePlăți[[#This Row],[PLATĂ PLANIFICATĂ]]+PlanificarePlăți[[#This Row],[PLATĂ SUPLIMENTARĂ]]<=PlanificarePlăți[[#This Row],[SOLD INIȚIAL]],PlanificarePlăți[[#This Row],[PLATĂ PLANIFICATĂ]]+PlanificarePlăți[[#This Row],[PLATĂ SUPLIMENTARĂ]],PlanificarePlăți[[#This Row],[SOLD INIȚIAL]]),"") ->  | H56: =IF(PlanificarePlăți[[#This Row],[NR. PLĂȚI]]<>"",PlanificarePlăți[[#This Row],[TOTAL DE PLATĂ]]-PlanificarePlăți[[#This Row],[DOBÂNDĂ]],"") ->  | I56: =IF(PlanificarePlăți[[#This Row],[NR. PLĂȚI]]<>"",PlanificarePlăți[[#This Row],[SOLD INIȚIAL]]*(RataDobânzii/PlățiPeAn),"") ->  | J56: =IF(PlanificarePlăți[[#This Row],[NR. PLĂȚI]]<>"",IF(PlanificarePlăți[[#This Row],[PLATĂ PLANIFICATĂ]]+PlanificarePlăți[[#This Row],[PLATĂ SUPLIMENTARĂ]]<=PlanificarePlăți[[#This Row],[SOLD INIȚIAL]],PlanificarePlăți[[#This Row],[SOLD INIȚIAL]]-PlanificarePlăți[[#This Row],[PRINCIPAL]],0),"") ->  | K56: =IF(PlanificarePlăți[[#This Row],[NR. PLĂȚI]]<>"",SUM(INDEX(PlanificarePlăți[DOBÂNDĂ],1,1):PlanificarePlăți[[#This Row],[DOBÂNDĂ]]),"") -> 
B57: =IF(ÎmprumutEsteBun,IF(ROW()-ROW(PlanificarePlăți[[#Headers],[NR. PLĂȚI]])>NumărPlanificatDePlăți,"",ROW()-ROW(PlanificarePlăți[[#Headers],[NR. PLĂȚI]])),"") ->  | C57: =IF(PlanificarePlăți[[#This Row],[NR. PLĂȚI]]<>"",EOMONTH(DataDeÎnceputÎmprumut,ROW(PlanificarePlăți[[#This Row],[NR. PLĂȚI]])-ROW(PlanificarePlăți[[#Headers],[NR. PLĂȚI]])-2)+DAY(DataDeÎnceputÎmprumut),"") ->  | D57: =IF(PlanificarePlăți[[#This Row],[NR. PLĂȚI]]<>"",IF(ROW()-ROW(PlanificarePlăți[[#Headers],[SOLD INIȚIAL]])=1,ValoareÎmprumut,INDEX(PlanificarePlăți[SOLD FINAL],ROW()-ROW(PlanificarePlăți[[#Headers],[SOLD INIȚIAL]])-1)),"") ->  | E57: =IF(PlanificarePlăți[[#This Row],[NR. PLĂȚI]]<>"",PlatăPlanificată,"") ->  | F57: =IF(PlanificarePlăți[[#This Row],[NR. PLĂȚI]]<>"",IF(PlanificarePlăți[[#This Row],[PLATĂ PLANIFICATĂ]]+PlățiSuplimentare<PlanificarePlăți[[#This Row],[SOLD INIȚIAL]],PlățiSuplimentare,IF(PlanificarePlăți[[#This Row],[SOLD INIȚIAL]]-PlanificarePlăți[[#This Row],[PLATĂ PLANIFICATĂ]]>0,PlanificarePlăți[[#This Row],[SOLD INIȚIAL]]-PlanificarePlăți[[#This Row],[PLATĂ PLANIFICATĂ]],0)),"") ->  | G57: =IF(PlanificarePlăți[[#This Row],[NR. PLĂȚI]]<>"",IF(PlanificarePlăți[[#This Row],[PLATĂ PLANIFICATĂ]]+PlanificarePlăți[[#This Row],[PLATĂ SUPLIMENTARĂ]]<=PlanificarePlăți[[#This Row],[SOLD INIȚIAL]],PlanificarePlăți[[#This Row],[PLATĂ PLANIFICATĂ]]+PlanificarePlăți[[#This Row],[PLATĂ SUPLIMENTARĂ]],PlanificarePlăți[[#This Row],[SOLD INIȚIAL]]),"") ->  | H57: =IF(PlanificarePlăți[[#This Row],[NR. PLĂȚI]]<>"",PlanificarePlăți[[#This Row],[TOTAL DE PLATĂ]]-PlanificarePlăți[[#This Row],[DOBÂNDĂ]],"") ->  | I57: =IF(PlanificarePlăți[[#This Row],[NR. PLĂȚI]]<>"",PlanificarePlăți[[#This Row],[SOLD INIȚIAL]]*(RataDobânzii/PlățiPeAn),"") ->  | J57: =IF(PlanificarePlăți[[#This Row],[NR. PLĂȚI]]<>"",IF(PlanificarePlăți[[#This Row],[PLATĂ PLANIFICATĂ]]+PlanificarePlăți[[#This Row],[PLATĂ SUPLIMENTARĂ]]<=PlanificarePlăți[[#This Row],[SOLD INIȚIAL]],PlanificarePlăți[[#This Row],[SOLD INIȚIAL]]-PlanificarePlăți[[#This Row],[PRINCIPAL]],0),"") ->  | K57: =IF(PlanificarePlăți[[#This Row],[NR. PLĂȚI]]<>"",SUM(INDEX(PlanificarePlăți[DOBÂNDĂ],1,1):PlanificarePlăți[[#This Row],[DOBÂNDĂ]]),"") -> 
B58: =IF(ÎmprumutEsteBun,IF(ROW()-ROW(PlanificarePlăți[[#Headers],[NR. PLĂȚI]])>NumărPlanificatDePlăți,"",ROW()-ROW(PlanificarePlăți[[#Headers],[NR. PLĂȚI]])),"") ->  | C58: =IF(PlanificarePlăți[[#This Row],[NR. PLĂȚI]]<>"",EOMONTH(DataDeÎnceputÎmprumut,ROW(PlanificarePlăți[[#This Row],[NR. PLĂȚI]])-ROW(PlanificarePlăți[[#Headers],[NR. PLĂȚI]])-2)+DAY(DataDeÎnceputÎmprumut),"") ->  | D58: =IF(PlanificarePlăți[[#This Row],[NR. PLĂȚI]]<>"",IF(ROW()-ROW(PlanificarePlăți[[#Headers],[SOLD INIȚIAL]])=1,ValoareÎmprumut,INDEX(PlanificarePlăți[SOLD FINAL],ROW()-ROW(PlanificarePlăți[[#Headers],[SOLD INIȚIAL]])-1)),"") ->  | E58: =IF(PlanificarePlăți[[#This Row],[NR. PLĂȚI]]<>"",PlatăPlanificată,"") ->  | F58: =IF(PlanificarePlăți[[#This Row],[NR. PLĂȚI]]<>"",IF(PlanificarePlăți[[#This Row],[PLATĂ PLANIFICATĂ]]+PlățiSuplimentare<PlanificarePlăți[[#This Row],[SOLD INIȚIAL]],PlățiSuplimentare,IF(PlanificarePlăți[[#This Row],[SOLD INIȚIAL]]-PlanificarePlăți[[#This Row],[PLATĂ PLANIFICATĂ]]>0,PlanificarePlăți[[#This Row],[SOLD INIȚIAL]]-PlanificarePlăți[[#This Row],[PLATĂ PLANIFICATĂ]],0)),"") ->  | G58: =IF(PlanificarePlăți[[#This Row],[NR. PLĂȚI]]<>"",IF(PlanificarePlăți[[#This Row],[PLATĂ PLANIFICATĂ]]+PlanificarePlăți[[#This Row],[PLATĂ SUPLIMENTARĂ]]<=PlanificarePlăți[[#This Row],[SOLD INIȚIAL]],PlanificarePlăți[[#This Row],[PLATĂ PLANIFICATĂ]]+PlanificarePlăți[[#This Row],[PLATĂ SUPLIMENTARĂ]],PlanificarePlăți[[#This Row],[SOLD INIȚIAL]]),"") ->  | H58: =IF(PlanificarePlăți[[#This Row],[NR. PLĂȚI]]<>"",PlanificarePlăți[[#This Row],[TOTAL DE PLATĂ]]-PlanificarePlăți[[#This Row],[DOBÂNDĂ]],"") ->  | I58: =IF(PlanificarePlăți[[#This Row],[NR. PLĂȚI]]<>"",PlanificarePlăți[[#This Row],[SOLD INIȚIAL]]*(RataDobânzii/PlățiPeAn),"") ->  | J58: =IF(PlanificarePlăți[[#This Row],[NR. PLĂȚI]]<>"",IF(PlanificarePlăți[[#This Row],[PLATĂ PLANIFICATĂ]]+PlanificarePlăți[[#This Row],[PLATĂ SUPLIMENTARĂ]]<=PlanificarePlăți[[#This Row],[SOLD INIȚIAL]],PlanificarePlăți[[#This Row],[SOLD INIȚIAL]]-PlanificarePlăți[[#This Row],[PRINCIPAL]],0),"") ->  | K58: =IF(PlanificarePlăți[[#This Row],[NR. PLĂȚI]]<>"",SUM(INDEX(PlanificarePlăți[DOBÂNDĂ],1,1):PlanificarePlăți[[#This Row],[DOBÂNDĂ]]),"") -> 
B59: =IF(ÎmprumutEsteBun,IF(ROW()-ROW(PlanificarePlăți[[#Headers],[NR. PLĂȚI]])>NumărPlanificatDePlăți,"",ROW()-ROW(PlanificarePlăți[[#Headers],[NR. PLĂȚI]])),"") ->  | C59: =IF(PlanificarePlăți[[#This Row],[NR. PLĂȚI]]<>"",EOMONTH(DataDeÎnceputÎmprumut,ROW(PlanificarePlăți[[#This Row],[NR. PLĂȚI]])-ROW(PlanificarePlăți[[#Headers],[NR. PLĂȚI]])-2)+DAY(DataDeÎnceputÎmprumut),"") ->  | D59: =IF(PlanificarePlăți[[#This Row],[NR. PLĂȚI]]<>"",IF(ROW()-ROW(PlanificarePlăți[[#Headers],[SOLD INIȚIAL]])=1,ValoareÎmprumut,INDEX(PlanificarePlăți[SOLD FINAL],ROW()-ROW(PlanificarePlăți[[#Headers],[SOLD INIȚIAL]])-1)),"") ->  | E59: =IF(PlanificarePlăți[[#This Row],[NR. PLĂȚI]]<>"",PlatăPlanificată,"") ->  | F59: =IF(PlanificarePlăți[[#This Row],[NR. PLĂȚI]]<>"",IF(PlanificarePlăți[[#This Row],[PLATĂ PLANIFICATĂ]]+PlățiSuplimentare<PlanificarePlăți[[#This Row],[SOLD INIȚIAL]],PlățiSuplimentare,IF(PlanificarePlăți[[#This Row],[SOLD INIȚIAL]]-PlanificarePlăți[[#This Row],[PLATĂ PLANIFICATĂ]]>0,PlanificarePlăți[[#This Row],[SOLD INIȚIAL]]-PlanificarePlăți[[#This Row],[PLATĂ PLANIFICATĂ]],0)),"") ->  | G59: =IF(PlanificarePlăți[[#This Row],[NR. PLĂȚI]]<>"",IF(PlanificarePlăți[[#This Row],[PLATĂ PLANIFICATĂ]]+PlanificarePlăți[[#This Row],[PLATĂ SUPLIMENTARĂ]]<=PlanificarePlăți[[#This Row],[SOLD INIȚIAL]],PlanificarePlăți[[#This Row],[PLATĂ PLANIFICATĂ]]+PlanificarePlăți[[#This Row],[PLATĂ SUPLIMENTARĂ]],PlanificarePlăți[[#This Row],[SOLD INIȚIAL]]),"") ->  | H59: =IF(PlanificarePlăți[[#This Row],[NR. PLĂȚI]]<>"",PlanificarePlăți[[#This Row],[TOTAL DE PLATĂ]]-PlanificarePlăți[[#This Row],[DOBÂNDĂ]],"") ->  | I59: =IF(PlanificarePlăți[[#This Row],[NR. PLĂȚI]]<>"",PlanificarePlăți[[#This Row],[SOLD INIȚIAL]]*(RataDobânzii/PlățiPeAn),"") ->  | J59: =IF(PlanificarePlăți[[#This Row],[NR. PLĂȚI]]<>"",IF(PlanificarePlăți[[#This Row],[PLATĂ PLANIFICATĂ]]+PlanificarePlăți[[#This Row],[PLATĂ SUPLIMENTARĂ]]<=PlanificarePlăți[[#This Row],[SOLD INIȚIAL]],PlanificarePlăți[[#This Row],[SOLD INIȚIAL]]-PlanificarePlăți[[#This Row],[PRINCIPAL]],0),"") ->  | K59: =IF(PlanificarePlăți[[#This Row],[NR. PLĂȚI]]<>"",SUM(INDEX(PlanificarePlăți[DOBÂNDĂ],1,1):PlanificarePlăți[[#This Row],[DOBÂNDĂ]]),"") -> 
B60: =IF(ÎmprumutEsteBun,IF(ROW()-ROW(PlanificarePlăți[[#Headers],[NR. PLĂȚI]])>NumărPlanificatDePlăți,"",ROW()-ROW(PlanificarePlăți[[#Headers],[NR. PLĂȚI]])),"") ->  | C60: =IF(PlanificarePlăți[[#This Row],[NR. PLĂȚI]]<>"",EOMONTH(DataDeÎnceputÎmprumut,ROW(PlanificarePlăți[[#This Row],[NR. PLĂȚI]])-ROW(PlanificarePlăți[[#Headers],[NR. PLĂȚI]])-2)+DAY(DataDeÎnceputÎmprumut),"") ->  | D60: =IF(PlanificarePlăți[[#This Row],[NR. PLĂȚI]]<>"",IF(ROW()-ROW(PlanificarePlăți[[#Headers],[SOLD INIȚIAL]])=1,ValoareÎmprumut,INDEX(PlanificarePlăți[SOLD FINAL],ROW()-ROW(PlanificarePlăți[[#Headers],[SOLD INIȚIAL]])-1)),"") ->  | E60: =IF(PlanificarePlăți[[#This Row],[NR. PLĂȚI]]<>"",PlatăPlanificată,"") ->  | F60: =IF(PlanificarePlăți[[#This Row],[NR. PLĂȚI]]<>"",IF(PlanificarePlăți[[#This Row],[PLATĂ PLANIFICATĂ]]+PlățiSuplimentare<PlanificarePlăți[[#This Row],[SOLD INIȚIAL]],PlățiSuplimentare,IF(PlanificarePlăți[[#This Row],[SOLD INIȚIAL]]-PlanificarePlăți[[#This Row],[PLATĂ PLANIFICATĂ]]>0,PlanificarePlăți[[#This Row],[SOLD INIȚIAL]]-PlanificarePlăți[[#This Row],[PLATĂ PLANIFICATĂ]],0)),"") ->  | G60: =IF(PlanificarePlăți[[#This Row],[NR. PLĂȚI]]<>"",IF(PlanificarePlăți[[#This Row],[PLATĂ PLANIFICATĂ]]+PlanificarePlăți[[#This Row],[PLATĂ SUPLIMENTARĂ]]<=PlanificarePlăți[[#This Row],[SOLD INIȚIAL]],PlanificarePlăți[[#This Row],[PLATĂ PLANIFICATĂ]]+PlanificarePlăți[[#This Row],[PLATĂ SUPLIMENTARĂ]],PlanificarePlăți[[#This Row],[SOLD INIȚIAL]]),"") ->  | H60: =IF(PlanificarePlăți[[#This Row],[NR. PLĂȚI]]<>"",PlanificarePlăți[[#This Row],[TOTAL DE PLATĂ]]-PlanificarePlăți[[#This Row],[DOBÂNDĂ]],"") ->  | I60: =IF(PlanificarePlăți[[#This Row],[NR. PLĂȚI]]<>"",PlanificarePlăți[[#This Row],[SOLD INIȚIAL]]*(RataDobânzii/PlățiPeAn),"") ->  | J60: =IF(PlanificarePlăți[[#This Row],[NR. PLĂȚI]]<>"",IF(PlanificarePlăți[[#This Row],[PLATĂ PLANIFICATĂ]]+PlanificarePlăți[[#This Row],[PLATĂ SUPLIMENTARĂ]]<=PlanificarePlăți[[#This Row],[SOLD INIȚIAL]],PlanificarePlăți[[#This Row],[SOLD INIȚIAL]]-PlanificarePlăți[[#This Row],[PRINCIPAL]],0),"") ->  | K60: =IF(PlanificarePlăți[[#This Row],[NR. PLĂȚI]]<>"",SUM(INDEX(PlanificarePlăți[DOBÂNDĂ],1,1):PlanificarePlăți[[#This Row],[DOBÂNDĂ]]),"") -> 
B61: =IF(ÎmprumutEsteBun,IF(ROW()-ROW(PlanificarePlăți[[#Headers],[NR. PLĂȚI]])>NumărPlanificatDePlăți,"",ROW()-ROW(PlanificarePlăți[[#Headers],[NR. PLĂȚI]])),"") ->  | C61: =IF(PlanificarePlăți[[#This Row],[NR. PLĂȚI]]<>"",EOMONTH(DataDeÎnceputÎmprumut,ROW(PlanificarePlăți[[#This Row],[NR. PLĂȚI]])-ROW(PlanificarePlăți[[#Headers],[NR. PLĂȚI]])-2)+DAY(DataDeÎnceputÎmprumut),"") ->  | D61: =IF(PlanificarePlăți[[#This Row],[NR. PLĂȚI]]<>"",IF(ROW()-ROW(PlanificarePlăți[[#Headers],[SOLD INIȚIAL]])=1,ValoareÎmprumut,INDEX(PlanificarePlăți[SOLD FINAL],ROW()-ROW(PlanificarePlăți[[#Headers],[SOLD INIȚIAL]])-1)),"") ->  | E61: =IF(PlanificarePlăți[[#This Row],[NR. PLĂȚI]]<>"",PlatăPlanificată,"") ->  | F61: =IF(PlanificarePlăți[[#This Row],[NR. PLĂȚI]]<>"",IF(PlanificarePlăți[[#This Row],[PLATĂ PLANIFICATĂ]]+PlățiSuplimentare<PlanificarePlăți[[#This Row],[SOLD INIȚIAL]],PlățiSuplimentare,IF(PlanificarePlăți[[#This Row],[SOLD INIȚIAL]]-PlanificarePlăți[[#This Row],[PLATĂ PLANIFICATĂ]]>0,PlanificarePlăți[[#This Row],[SOLD INIȚIAL]]-PlanificarePlăți[[#This Row],[PLATĂ PLANIFICATĂ]],0)),"") ->  | G61: =IF(PlanificarePlăți[[#This Row],[NR. PLĂȚI]]<>"",IF(PlanificarePlăți[[#This Row],[PLATĂ PLANIFICATĂ]]+PlanificarePlăți[[#This Row],[PLATĂ SUPLIMENTARĂ]]<=PlanificarePlăți[[#This Row],[SOLD INIȚIAL]],PlanificarePlăți[[#This Row],[PLATĂ PLANIFICATĂ]]+PlanificarePlăți[[#This Row],[PLATĂ SUPLIMENTARĂ]],PlanificarePlăți[[#This Row],[SOLD INIȚIAL]]),"") ->  | H61: =IF(PlanificarePlăți[[#This Row],[NR. PLĂȚI]]<>"",PlanificarePlăți[[#This Row],[TOTAL DE PLATĂ]]-PlanificarePlăți[[#This Row],[DOBÂNDĂ]],"") ->  | I61: =IF(PlanificarePlăți[[#This Row],[NR. PLĂȚI]]<>"",PlanificarePlăți[[#This Row],[SOLD INIȚIAL]]*(RataDobânzii/PlățiPeAn),"") ->  | J61: =IF(PlanificarePlăți[[#This Row],[NR. PLĂȚI]]<>"",IF(PlanificarePlăți[[#This Row],[PLATĂ PLANIFICATĂ]]+PlanificarePlăți[[#This Row],[PLATĂ SUPLIMENTARĂ]]<=PlanificarePlăți[[#This Row],[SOLD INIȚIAL]],PlanificarePlăți[[#This Row],[SOLD INIȚIAL]]-PlanificarePlăți[[#This Row],[PRINCIPAL]],0),"") ->  | K61: =IF(PlanificarePlăți[[#This Row],[NR. PLĂȚI]]<>"",SUM(INDEX(PlanificarePlăți[DOBÂNDĂ],1,1):PlanificarePlăți[[#This Row],[DOBÂNDĂ]]),"") -> 
B62: =IF(ÎmprumutEsteBun,IF(ROW()-ROW(PlanificarePlăți[[#Headers],[NR. PLĂȚI]])>NumărPlanificatDePlăți,"",ROW()-ROW(PlanificarePlăți[[#Headers],[NR. PLĂȚI]])),"") ->  | C62: =IF(PlanificarePlăți[[#This Row],[NR. PLĂȚI]]<>"",EOMONTH(DataDeÎnceputÎmprumut,ROW(PlanificarePlăți[[#This Row],[NR. PLĂȚI]])-ROW(PlanificarePlăți[[#Headers],[NR. PLĂȚI]])-2)+DAY(DataDeÎnceputÎmprumut),"") ->  | D62: =IF(PlanificarePlăți[[#This Row],[NR. PLĂȚI]]<>"",IF(ROW()-ROW(PlanificarePlăți[[#Headers],[SOLD INIȚIAL]])=1,ValoareÎmprumut,INDEX(PlanificarePlăți[SOLD FINAL],ROW()-ROW(PlanificarePlăți[[#Headers],[SOLD INIȚIAL]])-1)),"") ->  | E62: =IF(PlanificarePlăți[[#This Row],[NR. PLĂȚI]]<>"",PlatăPlanificată,"") ->  | F62: =IF(PlanificarePlăți[[#This Row],[NR. PLĂȚI]]<>"",IF(PlanificarePlăți[[#This Row],[PLATĂ PLANIFICATĂ]]+PlățiSuplimentare<PlanificarePlăți[[#This Row],[SOLD INIȚIAL]],PlățiSuplimentare,IF(PlanificarePlăți[[#This Row],[SOLD INIȚIAL]]-PlanificarePlăți[[#This Row],[PLATĂ PLANIFICATĂ]]>0,PlanificarePlăți[[#This Row],[SOLD INIȚIAL]]-PlanificarePlăți[[#This Row],[PLATĂ PLANIFICATĂ]],0)),"") ->  | G62: =IF(PlanificarePlăți[[#This Row],[NR. PLĂȚI]]<>"",IF(PlanificarePlăți[[#This Row],[PLATĂ PLANIFICATĂ]]+PlanificarePlăți[[#This Row],[PLATĂ SUPLIMENTARĂ]]<=PlanificarePlăți[[#This Row],[SOLD INIȚIAL]],PlanificarePlăți[[#This Row],[PLATĂ PLANIFICATĂ]]+PlanificarePlăți[[#This Row],[PLATĂ SUPLIMENTARĂ]],PlanificarePlăți[[#This Row],[SOLD INIȚIAL]]),"") ->  | H62: =IF(PlanificarePlăți[[#This Row],[NR. PLĂȚI]]<>"",PlanificarePlăți[[#This Row],[TOTAL DE PLATĂ]]-PlanificarePlăți[[#This Row],[DOBÂNDĂ]],"") ->  | I62: =IF(PlanificarePlăți[[#This Row],[NR. PLĂȚI]]<>"",PlanificarePlăți[[#This Row],[SOLD INIȚIAL]]*(RataDobânzii/PlățiPeAn),"") ->  | J62: =IF(PlanificarePlăți[[#This Row],[NR. PLĂȚI]]<>"",IF(PlanificarePlăți[[#This Row],[PLATĂ PLANIFICATĂ]]+PlanificarePlăți[[#This Row],[PLATĂ SUPLIMENTARĂ]]<=PlanificarePlăți[[#This Row],[SOLD INIȚIAL]],PlanificarePlăți[[#This Row],[SOLD INIȚIAL]]-PlanificarePlăți[[#This Row],[PRINCIPAL]],0),"") ->  | K62: =IF(PlanificarePlăți[[#This Row],[NR. PLĂȚI]]<>"",SUM(INDEX(PlanificarePlăți[DOBÂNDĂ],1,1):PlanificarePlăți[[#This Row],[DOBÂNDĂ]]),"") -> 
B63: =IF(ÎmprumutEsteBun,IF(ROW()-ROW(PlanificarePlăți[[#Headers],[NR. PLĂȚI]])>NumărPlanificatDePlăți,"",ROW()-ROW(PlanificarePlăți[[#Headers],[NR. PLĂȚI]])),"") ->  | C63: =IF(PlanificarePlăți[[#This Row],[NR. PLĂȚI]]<>"",EOMONTH(DataDeÎnceputÎmprumut,ROW(PlanificarePlăți[[#This Row],[NR. PLĂȚI]])-ROW(PlanificarePlăți[[#Headers],[NR. PLĂȚI]])-2)+DAY(DataDeÎnceputÎmprumut),"") ->  | D63: =IF(PlanificarePlăți[[#This Row],[NR. PLĂȚI]]<>"",IF(ROW()-ROW(PlanificarePlăți[[#Headers],[SOLD INIȚIAL]])=1,ValoareÎmprumut,INDEX(PlanificarePlăți[SOLD FINAL],ROW()-ROW(PlanificarePlăți[[#Headers],[SOLD INIȚIAL]])-1)),"") ->  | E63: =IF(PlanificarePlăți[[#This Row],[NR. PLĂȚI]]<>"",PlatăPlanificată,"") ->  | F63: =IF(PlanificarePlăți[[#This Row],[NR. PLĂȚI]]<>"",IF(PlanificarePlăți[[#This Row],[PLATĂ PLANIFICATĂ]]+PlățiSuplimentare<PlanificarePlăți[[#This Row],[SOLD INIȚIAL]],PlățiSuplimentare,IF(PlanificarePlăți[[#This Row],[SOLD INIȚIAL]]-PlanificarePlăți[[#This Row],[PLATĂ PLANIFICATĂ]]>0,PlanificarePlăți[[#This Row],[SOLD INIȚIAL]]-PlanificarePlăți[[#This Row],[PLATĂ PLANIFICATĂ]],0)),"") ->  | G63: =IF(PlanificarePlăți[[#This Row],[NR. PLĂȚI]]<>"",IF(PlanificarePlăți[[#This Row],[PLATĂ PLANIFICATĂ]]+PlanificarePlăți[[#This Row],[PLATĂ SUPLIMENTARĂ]]<=PlanificarePlăți[[#This Row],[SOLD INIȚIAL]],PlanificarePlăți[[#This Row],[PLATĂ PLANIFICATĂ]]+PlanificarePlăți[[#This Row],[PLATĂ SUPLIMENTARĂ]],PlanificarePlăți[[#This Row],[SOLD INIȚIAL]]),"") ->  | H63: =IF(PlanificarePlăți[[#This Row],[NR. PLĂȚI]]<>"",PlanificarePlăți[[#This Row],[TOTAL DE PLATĂ]]-PlanificarePlăți[[#This Row],[DOBÂNDĂ]],"") ->  | I63: =IF(PlanificarePlăți[[#This Row],[NR. PLĂȚI]]<>"",PlanificarePlăți[[#This Row],[SOLD INIȚIAL]]*(RataDobânzii/PlățiPeAn),"") ->  | J63: =IF(PlanificarePlăți[[#This Row],[NR. PLĂȚI]]<>"",IF(PlanificarePlăți[[#This Row],[PLATĂ PLANIFICATĂ]]+PlanificarePlăți[[#This Row],[PLATĂ SUPLIMENTARĂ]]<=PlanificarePlăți[[#This Row],[SOLD INIȚIAL]],PlanificarePlăți[[#This Row],[SOLD INIȚIAL]]-PlanificarePlăți[[#This Row],[PRINCIPAL]],0),"") ->  | K63: =IF(PlanificarePlăți[[#This Row],[NR. PLĂȚI]]<>"",SUM(INDEX(PlanificarePlăți[DOBÂNDĂ],1,1):PlanificarePlăți[[#This Row],[DOBÂNDĂ]]),"") -> 
B64: =IF(ÎmprumutEsteBun,IF(ROW()-ROW(PlanificarePlăți[[#Headers],[NR. PLĂȚI]])>NumărPlanificatDePlăți,"",ROW()-ROW(PlanificarePlăți[[#Headers],[NR. PLĂȚI]])),"") ->  | C64: =IF(PlanificarePlăți[[#This Row],[NR. PLĂȚI]]<>"",EOMONTH(DataDeÎnceputÎmprumut,ROW(PlanificarePlăți[[#This Row],[NR. PLĂȚI]])-ROW(PlanificarePlăți[[#Headers],[NR. PLĂȚI]])-2)+DAY(DataDeÎnceputÎmprumut),"") ->  | D64: =IF(PlanificarePlăți[[#This Row],[NR. PLĂȚI]]<>"",IF(ROW()-ROW(PlanificarePlăți[[#Headers],[SOLD INIȚIAL]])=1,ValoareÎmprumut,INDEX(PlanificarePlăți[SOLD FINAL],ROW()-ROW(PlanificarePlăți[[#Headers],[SOLD INIȚIAL]])-1)),"") ->  | E64: =IF(PlanificarePlăți[[#This Row],[NR. PLĂȚI]]<>"",PlatăPlanificată,"") ->  | F64: =IF(PlanificarePlăți[[#This Row],[NR. PLĂȚI]]<>"",IF(PlanificarePlăți[[#This Row],[PLATĂ PLANIFICATĂ]]+PlățiSuplimentare<PlanificarePlăți[[#This Row],[SOLD INIȚIAL]],PlățiSuplimentare,IF(PlanificarePlăți[[#This Row],[SOLD INIȚIAL]]-PlanificarePlăți[[#This Row],[PLATĂ PLANIFICATĂ]]>0,PlanificarePlăți[[#This Row],[SOLD INIȚIAL]]-PlanificarePlăți[[#This Row],[PLATĂ PLANIFICATĂ]],0)),"") ->  | G64: =IF(PlanificarePlăți[[#This Row],[NR. PLĂȚI]]<>"",IF(PlanificarePlăți[[#This Row],[PLATĂ PLANIFICATĂ]]+PlanificarePlăți[[#This Row],[PLATĂ SUPLIMENTARĂ]]<=PlanificarePlăți[[#This Row],[SOLD INIȚIAL]],PlanificarePlăți[[#This Row],[PLATĂ PLANIFICATĂ]]+PlanificarePlăți[[#This Row],[PLATĂ SUPLIMENTARĂ]],PlanificarePlăți[[#This Row],[SOLD INIȚIAL]]),"") ->  | H64: =IF(PlanificarePlăți[[#This Row],[NR. PLĂȚI]]<>"",PlanificarePlăți[[#This Row],[TOTAL DE PLATĂ]]-PlanificarePlăți[[#This Row],[DOBÂNDĂ]],"") ->  | I64: =IF(PlanificarePlăți[[#This Row],[NR. PLĂȚI]]<>"",PlanificarePlăți[[#This Row],[SOLD INIȚIAL]]*(RataDobânzii/PlățiPeAn),"") ->  | J64: =IF(PlanificarePlăți[[#This Row],[NR. PLĂȚI]]<>"",IF(PlanificarePlăți[[#This Row],[PLATĂ PLANIFICATĂ]]+PlanificarePlăți[[#This Row],[PLATĂ SUPLIMENTARĂ]]<=PlanificarePlăți[[#This Row],[SOLD INIȚIAL]],PlanificarePlăți[[#This Row],[SOLD INIȚIAL]]-PlanificarePlăți[[#This Row],[PRINCIPAL]],0),"") ->  | K64: =IF(PlanificarePlăți[[#This Row],[NR. PLĂȚI]]<>"",SUM(INDEX(PlanificarePlăți[DOBÂNDĂ],1,1):PlanificarePlăți[[#This Row],[DOBÂNDĂ]]),"") -> 
B65: =IF(ÎmprumutEsteBun,IF(ROW()-ROW(PlanificarePlăți[[#Headers],[NR. PLĂȚI]])>NumărPlanificatDePlăți,"",ROW()-ROW(PlanificarePlăți[[#Headers],[NR. PLĂȚI]])),"") ->  | C65: =IF(PlanificarePlăți[[#This Row],[NR. PLĂȚI]]<>"",EOMONTH(DataDeÎnceputÎmprumut,ROW(PlanificarePlăți[[#This Row],[NR. PLĂȚI]])-ROW(PlanificarePlăți[[#Headers],[NR. PLĂȚI]])-2)+DAY(DataDeÎnceputÎmprumut),"") ->  | D65: =IF(PlanificarePlăți[[#This Row],[NR. PLĂȚI]]<>"",IF(ROW()-ROW(PlanificarePlăți[[#Headers],[SOLD INIȚIAL]])=1,ValoareÎmprumut,INDEX(PlanificarePlăți[SOLD FINAL],ROW()-ROW(PlanificarePlăți[[#Headers],[SOLD INIȚIAL]])-1)),"") ->  | E65: =IF(PlanificarePlăți[[#This Row],[NR. PLĂȚI]]<>"",PlatăPlanificată,"") ->  | F65: =IF(PlanificarePlăți[[#This Row],[NR. PLĂȚI]]<>"",IF(PlanificarePlăți[[#This Row],[PLATĂ PLANIFICATĂ]]+PlățiSuplimentare<PlanificarePlăți[[#This Row],[SOLD INIȚIAL]],PlățiSuplimentare,IF(PlanificarePlăți[[#This Row],[SOLD INIȚIAL]]-PlanificarePlăți[[#This Row],[PLATĂ PLANIFICATĂ]]>0,PlanificarePlăți[[#This Row],[SOLD INIȚIAL]]-PlanificarePlăți[[#This Row],[PLATĂ PLANIFICATĂ]],0)),"") ->  | G65: =IF(PlanificarePlăți[[#This Row],[NR. PLĂȚI]]<>"",IF(PlanificarePlăți[[#This Row],[PLATĂ PLANIFICATĂ]]+PlanificarePlăți[[#This Row],[PLATĂ SUPLIMENTARĂ]]<=PlanificarePlăți[[#This Row],[SOLD INIȚIAL]],PlanificarePlăți[[#This Row],[PLATĂ PLANIFICATĂ]]+PlanificarePlăți[[#This Row],[PLATĂ SUPLIMENTARĂ]],PlanificarePlăți[[#This Row],[SOLD INIȚIAL]]),"") ->  | H65: =IF(PlanificarePlăți[[#This Row],[NR. PLĂȚI]]<>"",PlanificarePlăți[[#This Row],[TOTAL DE PLATĂ]]-PlanificarePlăți[[#This Row],[DOBÂNDĂ]],"") ->  | I65: =IF(PlanificarePlăți[[#This Row],[NR. PLĂȚI]]<>"",PlanificarePlăți[[#This Row],[SOLD INIȚIAL]]*(RataDobânzii/PlățiPeAn),"") ->  | J65: =IF(PlanificarePlăți[[#This Row],[NR. PLĂȚI]]<>"",IF(PlanificarePlăți[[#This Row],[PLATĂ PLANIFICATĂ]]+PlanificarePlăți[[#This Row],[PLATĂ SUPLIMENTARĂ]]<=PlanificarePlăți[[#This Row],[SOLD INIȚIAL]],PlanificarePlăți[[#This Row],[SOLD INIȚIAL]]-PlanificarePlăți[[#This Row],[PRINCIPAL]],0),"") ->  | K65: =IF(PlanificarePlăți[[#This Row],[NR. PLĂȚI]]<>"",SUM(INDEX(PlanificarePlăți[DOBÂNDĂ],1,1):PlanificarePlăți[[#This Row],[DOBÂNDĂ]]),"") -> 
B66: =IF(ÎmprumutEsteBun,IF(ROW()-ROW(PlanificarePlăți[[#Headers],[NR. PLĂȚI]])>NumărPlanificatDePlăți,"",ROW()-ROW(PlanificarePlăți[[#Headers],[NR. PLĂȚI]])),"") ->  | C66: =IF(PlanificarePlăți[[#This Row],[NR. PLĂȚI]]<>"",EOMONTH(DataDeÎnceputÎmprumut,ROW(PlanificarePlăți[[#This Row],[NR. PLĂȚI]])-ROW(PlanificarePlăți[[#Headers],[NR. PLĂȚI]])-2)+DAY(DataDeÎnceputÎmprumut),"") ->  | D66: =IF(PlanificarePlăți[[#This Row],[NR. PLĂȚI]]<>"",IF(ROW()-ROW(PlanificarePlăți[[#Headers],[SOLD INIȚIAL]])=1,ValoareÎmprumut,INDEX(PlanificarePlăți[SOLD FINAL],ROW()-ROW(PlanificarePlăți[[#Headers],[SOLD INIȚIAL]])-1)),"") ->  | E66: =IF(PlanificarePlăți[[#This Row],[NR. PLĂȚI]]<>"",PlatăPlanificată,"") ->  | F66: =IF(PlanificarePlăți[[#This Row],[NR. PLĂȚI]]<>"",IF(PlanificarePlăți[[#This Row],[PLATĂ PLANIFICATĂ]]+PlățiSuplimentare<PlanificarePlăți[[#This Row],[SOLD INIȚIAL]],PlățiSuplimentare,IF(PlanificarePlăți[[#This Row],[SOLD INIȚIAL]]-PlanificarePlăți[[#This Row],[PLATĂ PLANIFICATĂ]]>0,PlanificarePlăți[[#This Row],[SOLD INIȚIAL]]-PlanificarePlăți[[#This Row],[PLATĂ PLANIFICATĂ]],0)),"") ->  | G66: =IF(PlanificarePlăți[[#This Row],[NR. PLĂȚI]]<>"",IF(PlanificarePlăți[[#This Row],[PLATĂ PLANIFICATĂ]]+PlanificarePlăți[[#This Row],[PLATĂ SUPLIMENTARĂ]]<=PlanificarePlăți[[#This Row],[SOLD INIȚIAL]],PlanificarePlăți[[#This Row],[PLATĂ PLANIFICATĂ]]+PlanificarePlăți[[#This Row],[PLATĂ SUPLIMENTARĂ]],PlanificarePlăți[[#This Row],[SOLD INIȚIAL]]),"") ->  | H66: =IF(PlanificarePlăți[[#This Row],[NR. PLĂȚI]]<>"",PlanificarePlăți[[#This Row],[TOTAL DE PLATĂ]]-PlanificarePlăți[[#This Row],[DOBÂNDĂ]],"") ->  | I66: =IF(PlanificarePlăți[[#This Row],[NR. PLĂȚI]]<>"",PlanificarePlăți[[#This Row],[SOLD INIȚIAL]]*(RataDobânzii/PlățiPeAn),"") ->  | J66: =IF(PlanificarePlăți[[#This Row],[NR. PLĂȚI]]<>"",IF(PlanificarePlăți[[#This Row],[PLATĂ PLANIFICATĂ]]+PlanificarePlăți[[#This Row],[PLATĂ SUPLIMENTARĂ]]<=PlanificarePlăți[[#This Row],[SOLD INIȚIAL]],PlanificarePlăți[[#This Row],[SOLD INIȚIAL]]-PlanificarePlăți[[#This Row],[PRINCIPAL]],0),"") ->  | K66: =IF(PlanificarePlăți[[#This Row],[NR. PLĂȚI]]<>"",SUM(INDEX(PlanificarePlăți[DOBÂNDĂ],1,1):PlanificarePlăți[[#This Row],[DOBÂNDĂ]]),"") -> 
B67: =IF(ÎmprumutEsteBun,IF(ROW()-ROW(PlanificarePlăți[[#Headers],[NR. PLĂȚI]])>NumărPlanificatDePlăți,"",ROW()-ROW(PlanificarePlăți[[#Headers],[NR. PLĂȚI]])),"") ->  | C67: =IF(PlanificarePlăți[[#This Row],[NR. PLĂȚI]]<>"",EOMONTH(DataDeÎnceputÎmprumut,ROW(PlanificarePlăți[[#This Row],[NR. PLĂȚI]])-ROW(PlanificarePlăți[[#Headers],[NR. PLĂȚI]])-2)+DAY(DataDeÎnceputÎmprumut),"") ->  | D67: =IF(PlanificarePlăți[[#This Row],[NR. PLĂȚI]]<>"",IF(ROW()-ROW(PlanificarePlăți[[#Headers],[SOLD INIȚIAL]])=1,ValoareÎmprumut,INDEX(PlanificarePlăți[SOLD FINAL],ROW()-ROW(PlanificarePlăți[[#Headers],[SOLD INIȚIAL]])-1)),"") ->  | E67: =IF(PlanificarePlăți[[#This Row],[NR. PLĂȚI]]<>"",PlatăPlanificată,"") ->  | F67: =IF(PlanificarePlăți[[#This Row],[NR. PLĂȚI]]<>"",IF(PlanificarePlăți[[#This Row],[PLATĂ PLANIFICATĂ]]+PlățiSuplimentare<PlanificarePlăți[[#This Row],[SOLD INIȚIAL]],PlățiSuplimentare,IF(PlanificarePlăți[[#This Row],[SOLD INIȚIAL]]-PlanificarePlăți[[#This Row],[PLATĂ PLANIFICATĂ]]>0,PlanificarePlăți[[#This Row],[SOLD INIȚIAL]]-PlanificarePlăți[[#This Row],[PLATĂ PLANIFICATĂ]],0)),"") ->  | G67: =IF(PlanificarePlăți[[#This Row],[NR. PLĂȚI]]<>"",IF(PlanificarePlăți[[#This Row],[PLATĂ PLANIFICATĂ]]+PlanificarePlăți[[#This Row],[PLATĂ SUPLIMENTARĂ]]<=PlanificarePlăți[[#This Row],[SOLD INIȚIAL]],PlanificarePlăți[[#This Row],[PLATĂ PLANIFICATĂ]]+PlanificarePlăți[[#This Row],[PLATĂ SUPLIMENTARĂ]],PlanificarePlăți[[#This Row],[SOLD INIȚIAL]]),"") ->  | H67: =IF(PlanificarePlăți[[#This Row],[NR. PLĂȚI]]<>"",PlanificarePlăți[[#This Row],[TOTAL DE PLATĂ]]-PlanificarePlăți[[#This Row],[DOBÂNDĂ]],"") ->  | I67: =IF(PlanificarePlăți[[#This Row],[NR. PLĂȚI]]<>"",PlanificarePlăți[[#This Row],[SOLD INIȚIAL]]*(RataDobânzii/PlățiPeAn),"") ->  | J67: =IF(PlanificarePlăți[[#This Row],[NR. PLĂȚI]]<>"",IF(PlanificarePlăți[[#This Row],[PLATĂ PLANIFICATĂ]]+PlanificarePlăți[[#This Row],[PLATĂ SUPLIMENTARĂ]]<=PlanificarePlăți[[#This Row],[SOLD INIȚIAL]],PlanificarePlăți[[#This Row],[SOLD INIȚIAL]]-PlanificarePlăți[[#This Row],[PRINCIPAL]],0),"") ->  | K67: =IF(PlanificarePlăți[[#This Row],[NR. PLĂȚI]]<>"",SUM(INDEX(PlanificarePlăți[DOBÂNDĂ],1,1):PlanificarePlăți[[#This Row],[DOBÂNDĂ]]),"") -> 
B68: =IF(ÎmprumutEsteBun,IF(ROW()-ROW(PlanificarePlăți[[#Headers],[NR. PLĂȚI]])>NumărPlanificatDePlăți,"",ROW()-ROW(PlanificarePlăți[[#Headers],[NR. PLĂȚI]])),"") ->  | C68: =IF(PlanificarePlăți[[#This Row],[NR. PLĂȚI]]<>"",EOMONTH(DataDeÎnceputÎmprumut,ROW(PlanificarePlăți[[#This Row],[NR. PLĂȚI]])-ROW(PlanificarePlăți[[#Headers],[NR. PLĂȚI]])-2)+DAY(DataDeÎnceputÎmprumut),"") ->  | D68: =IF(PlanificarePlăți[[#This Row],[NR. PLĂȚI]]<>"",IF(ROW()-ROW(PlanificarePlăți[[#Headers],[SOLD INIȚIAL]])=1,ValoareÎmprumut,INDEX(PlanificarePlăți[SOLD FINAL],ROW()-ROW(PlanificarePlăți[[#Headers],[SOLD INIȚIAL]])-1)),"") ->  | E68: =IF(PlanificarePlăți[[#This Row],[NR. PLĂȚI]]<>"",PlatăPlanificată,"") ->  | F68: =IF(PlanificarePlăți[[#This Row],[NR. PLĂȚI]]<>"",IF(PlanificarePlăți[[#This Row],[PLATĂ PLANIFICATĂ]]+PlățiSuplimentare<PlanificarePlăți[[#This Row],[SOLD INIȚIAL]],PlățiSuplimentare,IF(PlanificarePlăți[[#This Row],[SOLD INIȚIAL]]-PlanificarePlăți[[#This Row],[PLATĂ PLANIFICATĂ]]>0,PlanificarePlăți[[#This Row],[SOLD INIȚIAL]]-PlanificarePlăți[[#This Row],[PLATĂ PLANIFICATĂ]],0)),"") ->  | G68: =IF(PlanificarePlăți[[#This Row],[NR. PLĂȚI]]<>"",IF(PlanificarePlăți[[#This Row],[PLATĂ PLANIFICATĂ]]+PlanificarePlăți[[#This Row],[PLATĂ SUPLIMENTARĂ]]<=PlanificarePlăți[[#This Row],[SOLD INIȚIAL]],PlanificarePlăți[[#This Row],[PLATĂ PLANIFICATĂ]]+PlanificarePlăți[[#This Row],[PLATĂ SUPLIMENTARĂ]],PlanificarePlăți[[#This Row],[SOLD INIȚIAL]]),"") ->  | H68: =IF(PlanificarePlăți[[#This Row],[NR. PLĂȚI]]<>"",PlanificarePlăți[[#This Row],[TOTAL DE PLATĂ]]-PlanificarePlăți[[#This Row],[DOBÂNDĂ]],"") ->  | I68: =IF(PlanificarePlăți[[#This Row],[NR. PLĂȚI]]<>"",PlanificarePlăți[[#This Row],[SOLD INIȚIAL]]*(RataDobânzii/PlățiPeAn),"") ->  | J68: =IF(PlanificarePlăți[[#This Row],[NR. PLĂȚI]]<>"",IF(PlanificarePlăți[[#This Row],[PLATĂ PLANIFICATĂ]]+PlanificarePlăți[[#This Row],[PLATĂ SUPLIMENTARĂ]]<=PlanificarePlăți[[#This Row],[SOLD INIȚIAL]],PlanificarePlăți[[#This Row],[SOLD INIȚIAL]]-PlanificarePlăți[[#This Row],[PRINCIPAL]],0),"") ->  | K68: =IF(PlanificarePlăți[[#This Row],[NR. PLĂȚI]]<>"",SUM(INDEX(PlanificarePlăți[DOBÂNDĂ],1,1):PlanificarePlăți[[#This Row],[DOBÂNDĂ]]),"") -> 
B69: =IF(ÎmprumutEsteBun,IF(ROW()-ROW(PlanificarePlăți[[#Headers],[NR. PLĂȚI]])>NumărPlanificatDePlăți,"",ROW()-ROW(PlanificarePlăți[[#Headers],[NR. PLĂȚI]])),"") ->  | C69: =IF(PlanificarePlăți[[#This Row],[NR. PLĂȚI]]<>"",EOMONTH(DataDeÎnceputÎmprumut,ROW(PlanificarePlăți[[#This Row],[NR. PLĂȚI]])-ROW(PlanificarePlăți[[#Headers],[NR. PLĂȚI]])-2)+DAY(DataDeÎnceputÎmprumut),"") ->  | D69: =IF(PlanificarePlăți[[#This Row],[NR. PLĂȚI]]<>"",IF(ROW()-ROW(PlanificarePlăți[[#Headers],[SOLD INIȚIAL]])=1,ValoareÎmprumut,INDEX(PlanificarePlăți[SOLD FINAL],ROW()-ROW(PlanificarePlăți[[#Headers],[SOLD INIȚIAL]])-1)),"") ->  | E69: =IF(PlanificarePlăți[[#This Row],[NR. PLĂȚI]]<>"",PlatăPlanificată,"") ->  | F69: =IF(PlanificarePlăți[[#This Row],[NR. PLĂȚI]]<>"",IF(PlanificarePlăți[[#This Row],[PLATĂ PLANIFICATĂ]]+PlățiSuplimentare<PlanificarePlăți[[#This Row],[SOLD INIȚIAL]],PlățiSuplimentare,IF(PlanificarePlăți[[#This Row],[SOLD INIȚIAL]]-PlanificarePlăți[[#This Row],[PLATĂ PLANIFICATĂ]]>0,PlanificarePlăți[[#This Row],[SOLD INIȚIAL]]-PlanificarePlăți[[#This Row],[PLATĂ PLANIFICATĂ]],0)),"") ->  | G69: =IF(PlanificarePlăți[[#This Row],[NR. PLĂȚI]]<>"",IF(PlanificarePlăți[[#This Row],[PLATĂ PLANIFICATĂ]]+PlanificarePlăți[[#This Row],[PLATĂ SUPLIMENTARĂ]]<=PlanificarePlăți[[#This Row],[SOLD INIȚIAL]],PlanificarePlăți[[#This Row],[PLATĂ PLANIFICATĂ]]+PlanificarePlăți[[#This Row],[PLATĂ SUPLIMENTARĂ]],PlanificarePlăți[[#This Row],[SOLD INIȚIAL]]),"") ->  | H69: =IF(PlanificarePlăți[[#This Row],[NR. PLĂȚI]]<>"",PlanificarePlăți[[#This Row],[TOTAL DE PLATĂ]]-PlanificarePlăți[[#This Row],[DOBÂNDĂ]],"") ->  | I69: =IF(PlanificarePlăți[[#This Row],[NR. PLĂȚI]]<>"",PlanificarePlăți[[#This Row],[SOLD INIȚIAL]]*(RataDobânzii/PlățiPeAn),"") ->  | J69: =IF(PlanificarePlăți[[#This Row],[NR. PLĂȚI]]<>"",IF(PlanificarePlăți[[#This Row],[PLATĂ PLANIFICATĂ]]+PlanificarePlăți[[#This Row],[PLATĂ SUPLIMENTARĂ]]<=PlanificarePlăți[[#This Row],[SOLD INIȚIAL]],PlanificarePlăți[[#This Row],[SOLD INIȚIAL]]-PlanificarePlăți[[#This Row],[PRINCIPAL]],0),"") ->  | K69: =IF(PlanificarePlăți[[#This Row],[NR. PLĂȚI]]<>"",SUM(INDEX(PlanificarePlăți[DOBÂNDĂ],1,1):PlanificarePlăți[[#This Row],[DOBÂNDĂ]]),"") -> 
B70: =IF(ÎmprumutEsteBun,IF(ROW()-ROW(PlanificarePlăți[[#Headers],[NR. PLĂȚI]])>NumărPlanificatDePlăți,"",ROW()-ROW(PlanificarePlăți[[#Headers],[NR. PLĂȚI]])),"") ->  | C70: =IF(PlanificarePlăți[[#This Row],[NR. PLĂȚI]]<>"",EOMONTH(DataDeÎnceputÎmprumut,ROW(PlanificarePlăți[[#This Row],[NR. PLĂȚI]])-ROW(PlanificarePlăți[[#Headers],[NR. PLĂȚI]])-2)+DAY(DataDeÎnceputÎmprumut),"") ->  | D70: =IF(PlanificarePlăți[[#This Row],[NR. PLĂȚI]]<>"",IF(ROW()-ROW(PlanificarePlăți[[#Headers],[SOLD INIȚIAL]])=1,ValoareÎmprumut,INDEX(PlanificarePlăți[SOLD FINAL],ROW()-ROW(PlanificarePlăți[[#Headers],[SOLD INIȚIAL]])-1)),"") ->  | E70: =IF(PlanificarePlăți[[#This Row],[NR. PLĂȚI]]<>"",PlatăPlanificată,"") ->  | F70: =IF(PlanificarePlăți[[#This Row],[NR. PLĂȚI]]<>"",IF(PlanificarePlăți[[#This Row],[PLATĂ PLANIFICATĂ]]+PlățiSuplimentare<PlanificarePlăți[[#This Row],[SOLD INIȚIAL]],PlățiSuplimentare,IF(PlanificarePlăți[[#This Row],[SOLD INIȚIAL]]-PlanificarePlăți[[#This Row],[PLATĂ PLANIFICATĂ]]>0,PlanificarePlăți[[#This Row],[SOLD INIȚIAL]]-PlanificarePlăți[[#This Row],[PLATĂ PLANIFICATĂ]],0)),"") ->  | G70: =IF(PlanificarePlăți[[#This Row],[NR. PLĂȚI]]<>"",IF(PlanificarePlăți[[#This Row],[PLATĂ PLANIFICATĂ]]+PlanificarePlăți[[#This Row],[PLATĂ SUPLIMENTARĂ]]<=PlanificarePlăți[[#This Row],[SOLD INIȚIAL]],PlanificarePlăți[[#This Row],[PLATĂ PLANIFICATĂ]]+PlanificarePlăți[[#This Row],[PLATĂ SUPLIMENTARĂ]],PlanificarePlăți[[#This Row],[SOLD INIȚIAL]]),"") ->  | H70: =IF(PlanificarePlăți[[#This Row],[NR. PLĂȚI]]<>"",PlanificarePlăți[[#This Row],[TOTAL DE PLATĂ]]-PlanificarePlăți[[#This Row],[DOBÂNDĂ]],"") ->  | I70: =IF(PlanificarePlăți[[#This Row],[NR. PLĂȚI]]<>"",PlanificarePlăți[[#This Row],[SOLD INIȚIAL]]*(RataDobânzii/PlățiPeAn),"") ->  | J70: =IF(PlanificarePlăți[[#This Row],[NR. PLĂȚI]]<>"",IF(PlanificarePlăți[[#This Row],[PLATĂ PLANIFICATĂ]]+PlanificarePlăți[[#This Row],[PLATĂ SUPLIMENTARĂ]]<=PlanificarePlăți[[#This Row],[SOLD INIȚIAL]],PlanificarePlăți[[#This Row],[SOLD INIȚIAL]]-PlanificarePlăți[[#This Row],[PRINCIPAL]],0),"") ->  | K70: =IF(PlanificarePlăți[[#This Row],[NR. PLĂȚI]]<>"",SUM(INDEX(PlanificarePlăți[DOBÂNDĂ],1,1):PlanificarePlăți[[#This Row],[DOBÂNDĂ]]),"") -> 
B71: =IF(ÎmprumutEsteBun,IF(ROW()-ROW(PlanificarePlăți[[#Headers],[NR. PLĂȚI]])>NumărPlanificatDePlăți,"",ROW()-ROW(PlanificarePlăți[[#Headers],[NR. PLĂȚI]])),"") ->  | C71: =IF(PlanificarePlăți[[#This Row],[NR. PLĂȚI]]<>"",EOMONTH(DataDeÎnceputÎmprumut,ROW(PlanificarePlăți[[#This Row],[NR. PLĂȚI]])-ROW(PlanificarePlăți[[#Headers],[NR. PLĂȚI]])-2)+DAY(DataDeÎnceputÎmprumut),"") ->  | D71: =IF(PlanificarePlăți[[#This Row],[NR. PLĂȚI]]<>"",IF(ROW()-ROW(PlanificarePlăți[[#Headers],[SOLD INIȚIAL]])=1,ValoareÎmprumut,INDEX(PlanificarePlăți[SOLD FINAL],ROW()-ROW(PlanificarePlăți[[#Headers],[SOLD INIȚIAL]])-1)),"") ->  | E71: =IF(PlanificarePlăți[[#This Row],[NR. PLĂȚI]]<>"",PlatăPlanificată,"") ->  | F71: =IF(PlanificarePlăți[[#This Row],[NR. PLĂȚI]]<>"",IF(PlanificarePlăți[[#This Row],[PLATĂ PLANIFICATĂ]]+PlățiSuplimentare<PlanificarePlăți[[#This Row],[SOLD INIȚIAL]],PlățiSuplimentare,IF(PlanificarePlăți[[#This Row],[SOLD INIȚIAL]]-PlanificarePlăți[[#This Row],[PLATĂ PLANIFICATĂ]]>0,PlanificarePlăți[[#This Row],[SOLD INIȚIAL]]-PlanificarePlăți[[#This Row],[PLATĂ PLANIFICATĂ]],0)),"") ->  | G71: =IF(PlanificarePlăți[[#This Row],[NR. PLĂȚI]]<>"",IF(PlanificarePlăți[[#This Row],[PLATĂ PLANIFICATĂ]]+PlanificarePlăți[[#This Row],[PLATĂ SUPLIMENTARĂ]]<=PlanificarePlăți[[#This Row],[SOLD INIȚIAL]],PlanificarePlăți[[#This Row],[PLATĂ PLANIFICATĂ]]+PlanificarePlăți[[#This Row],[PLATĂ SUPLIMENTARĂ]],PlanificarePlăți[[#This Row],[SOLD INIȚIAL]]),"") ->  | H71: =IF(PlanificarePlăți[[#This Row],[NR. PLĂȚI]]<>"",PlanificarePlăți[[#This Row],[TOTAL DE PLATĂ]]-PlanificarePlăți[[#This Row],[DOBÂNDĂ]],"") ->  | I71: =IF(PlanificarePlăți[[#This Row],[NR. PLĂȚI]]<>"",PlanificarePlăți[[#This Row],[SOLD INIȚIAL]]*(RataDobânzii/PlățiPeAn),"") ->  | J71: =IF(PlanificarePlăți[[#This Row],[NR. PLĂȚI]]<>"",IF(PlanificarePlăți[[#This Row],[PLATĂ PLANIFICATĂ]]+PlanificarePlăți[[#This Row],[PLATĂ SUPLIMENTARĂ]]<=PlanificarePlăți[[#This Row],[SOLD INIȚIAL]],PlanificarePlăți[[#This Row],[SOLD INIȚIAL]]-PlanificarePlăți[[#This Row],[PRINCIPAL]],0),"") ->  | K71: =IF(PlanificarePlăți[[#This Row],[NR. PLĂȚI]]<>"",SUM(INDEX(PlanificarePlăți[DOBÂNDĂ],1,1):PlanificarePlăți[[#This Row],[DOBÂNDĂ]]),"") -> 
B72: =IF(ÎmprumutEsteBun,IF(ROW()-ROW(PlanificarePlăți[[#Headers],[NR. PLĂȚI]])>NumărPlanificatDePlăți,"",ROW()-ROW(PlanificarePlăți[[#Headers],[NR. PLĂȚI]])),"") ->  | C72: =IF(PlanificarePlăți[[#This Row],[NR. PLĂȚI]]<>"",EOMONTH(DataDeÎnceputÎmprumut,ROW(PlanificarePlăți[[#This Row],[NR. PLĂȚI]])-ROW(PlanificarePlăți[[#Headers],[NR. PLĂȚI]])-2)+DAY(DataDeÎnceputÎmprumut),"") ->  | D72: =IF(PlanificarePlăți[[#This Row],[NR. PLĂȚI]]<>"",IF(ROW()-ROW(PlanificarePlăți[[#Headers],[SOLD INIȚIAL]])=1,ValoareÎmprumut,INDEX(PlanificarePlăți[SOLD FINAL],ROW()-ROW(PlanificarePlăți[[#Headers],[SOLD INIȚIAL]])-1)),"") ->  | E72: =IF(PlanificarePlăți[[#This Row],[NR. PLĂȚI]]<>"",PlatăPlanificată,"") ->  | F72: =IF(PlanificarePlăți[[#This Row],[NR. PLĂȚI]]<>"",IF(PlanificarePlăți[[#This Row],[PLATĂ PLANIFICATĂ]]+PlățiSuplimentare<PlanificarePlăți[[#This Row],[SOLD INIȚIAL]],PlățiSuplimentare,IF(PlanificarePlăți[[#This Row],[SOLD INIȚIAL]]-PlanificarePlăți[[#This Row],[PLATĂ PLANIFICATĂ]]>0,PlanificarePlăți[[#This Row],[SOLD INIȚIAL]]-PlanificarePlăți[[#This Row],[PLATĂ PLANIFICATĂ]],0)),"") ->  | G72: =IF(PlanificarePlăți[[#This Row],[NR. PLĂȚI]]<>"",IF(PlanificarePlăți[[#This Row],[PLATĂ PLANIFICATĂ]]+PlanificarePlăți[[#This Row],[PLATĂ SUPLIMENTARĂ]]<=PlanificarePlăți[[#This Row],[SOLD INIȚIAL]],PlanificarePlăți[[#This Row],[PLATĂ PLANIFICATĂ]]+PlanificarePlăți[[#This Row],[PLATĂ SUPLIMENTARĂ]],PlanificarePlăți[[#This Row],[SOLD INIȚIAL]]),"") ->  | H72: =IF(PlanificarePlăți[[#This Row],[NR. PLĂȚI]]<>"",PlanificarePlăți[[#This Row],[TOTAL DE PLATĂ]]-PlanificarePlăți[[#This Row],[DOBÂNDĂ]],"") ->  | I72: =IF(PlanificarePlăți[[#This Row],[NR. PLĂȚI]]<>"",PlanificarePlăți[[#This Row],[SOLD INIȚIAL]]*(RataDobânzii/PlățiPeAn),"") ->  | J72: =IF(PlanificarePlăți[[#This Row],[NR. PLĂȚI]]<>"",IF(PlanificarePlăți[[#This Row],[PLATĂ PLANIFICATĂ]]+PlanificarePlăți[[#This Row],[PLATĂ SUPLIMENTARĂ]]<=PlanificarePlăți[[#This Row],[SOLD INIȚIAL]],PlanificarePlăți[[#This Row],[SOLD INIȚIAL]]-PlanificarePlăți[[#This Row],[PRINCIPAL]],0),"") ->  | K72: =IF(PlanificarePlăți[[#This Row],[NR. PLĂȚI]]<>"",SUM(INDEX(PlanificarePlăți[DOBÂNDĂ],1,1):PlanificarePlăți[[#This Row],[DOBÂNDĂ]]),"") -> 
B73: =IF(ÎmprumutEsteBun,IF(ROW()-ROW(PlanificarePlăți[[#Headers],[NR. PLĂȚI]])>NumărPlanificatDePlăți,"",ROW()-ROW(PlanificarePlăți[[#Headers],[NR. PLĂȚI]])),"") ->  | C73: =IF(PlanificarePlăți[[#This Row],[NR. PLĂȚI]]<>"",EOMONTH(DataDeÎnceputÎmprumut,ROW(PlanificarePlăți[[#This Row],[NR. PLĂȚI]])-ROW(PlanificarePlăți[[#Headers],[NR. PLĂȚI]])-2)+DAY(DataDeÎnceputÎmprumut),"") ->  | D73: =IF(PlanificarePlăți[[#This Row],[NR. PLĂȚI]]<>"",IF(ROW()-ROW(PlanificarePlăți[[#Headers],[SOLD INIȚIAL]])=1,ValoareÎmprumut,INDEX(PlanificarePlăți[SOLD FINAL],ROW()-ROW(PlanificarePlăți[[#Headers],[SOLD INIȚIAL]])-1)),"") ->  | E73: =IF(PlanificarePlăți[[#This Row],[NR. PLĂȚI]]<>"",PlatăPlanificată,"") ->  | F73: =IF(PlanificarePlăți[[#This Row],[NR. PLĂȚI]]<>"",IF(PlanificarePlăți[[#This Row],[PLATĂ PLANIFICATĂ]]+PlățiSuplimentare<PlanificarePlăți[[#This Row],[SOLD INIȚIAL]],PlățiSuplimentare,IF(PlanificarePlăți[[#This Row],[SOLD INIȚIAL]]-PlanificarePlăți[[#This Row],[PLATĂ PLANIFICATĂ]]>0,PlanificarePlăți[[#This Row],[SOLD INIȚIAL]]-PlanificarePlăți[[#This Row],[PLATĂ PLANIFICATĂ]],0)),"") ->  | G73: =IF(PlanificarePlăți[[#This Row],[NR. PLĂȚI]]<>"",IF(PlanificarePlăți[[#This Row],[PLATĂ PLANIFICATĂ]]+PlanificarePlăți[[#This Row],[PLATĂ SUPLIMENTARĂ]]<=PlanificarePlăți[[#This Row],[SOLD INIȚIAL]],PlanificarePlăți[[#This Row],[PLATĂ PLANIFICATĂ]]+PlanificarePlăți[[#This Row],[PLATĂ SUPLIMENTARĂ]],PlanificarePlăți[[#This Row],[SOLD INIȚIAL]]),"") ->  | H73: =IF(PlanificarePlăți[[#This Row],[NR. PLĂȚI]]<>"",PlanificarePlăți[[#This Row],[TOTAL DE PLATĂ]]-PlanificarePlăți[[#This Row],[DOBÂNDĂ]],"") ->  | I73: =IF(PlanificarePlăți[[#This Row],[NR. PLĂȚI]]<>"",PlanificarePlăți[[#This Row],[SOLD INIȚIAL]]*(RataDobânzii/PlățiPeAn),"") ->  | J73: =IF(PlanificarePlăți[[#This Row],[NR. PLĂȚI]]<>"",IF(PlanificarePlăți[[#This Row],[PLATĂ PLANIFICATĂ]]+PlanificarePlăți[[#This Row],[PLATĂ SUPLIMENTARĂ]]<=PlanificarePlăți[[#This Row],[SOLD INIȚIAL]],PlanificarePlăți[[#This Row],[SOLD INIȚIAL]]-PlanificarePlăți[[#This Row],[PRINCIPAL]],0),"") ->  | K73: =IF(PlanificarePlăți[[#This Row],[NR. PLĂȚI]]<>"",SUM(INDEX(PlanificarePlăți[DOBÂNDĂ],1,1):PlanificarePlăți[[#This Row],[DOBÂNDĂ]]),"") -> 
B74: =IF(ÎmprumutEsteBun,IF(ROW()-ROW(PlanificarePlăți[[#Headers],[NR. PLĂȚI]])>NumărPlanificatDePlăți,"",ROW()-ROW(PlanificarePlăți[[#Headers],[NR. PLĂȚI]])),"") ->  | C74: =IF(PlanificarePlăți[[#This Row],[NR. PLĂȚI]]<>"",EOMONTH(DataDeÎnceputÎmprumut,ROW(PlanificarePlăți[[#This Row],[NR. PLĂȚI]])-ROW(PlanificarePlăți[[#Headers],[NR. PLĂȚI]])-2)+DAY(DataDeÎnceputÎmprumut),"") ->  | D74: =IF(PlanificarePlăți[[#This Row],[NR. PLĂȚI]]<>"",IF(ROW()-ROW(PlanificarePlăți[[#Headers],[SOLD INIȚIAL]])=1,ValoareÎmprumut,INDEX(PlanificarePlăți[SOLD FINAL],ROW()-ROW(PlanificarePlăți[[#Headers],[SOLD INIȚIAL]])-1)),"") ->  | E74: =IF(PlanificarePlăți[[#This Row],[NR. PLĂȚI]]<>"",PlatăPlanificată,"") ->  | F74: =IF(PlanificarePlăți[[#This Row],[NR. PLĂȚI]]<>"",IF(PlanificarePlăți[[#This Row],[PLATĂ PLANIFICATĂ]]+PlățiSuplimentare<PlanificarePlăți[[#This Row],[SOLD INIȚIAL]],PlățiSuplimentare,IF(PlanificarePlăți[[#This Row],[SOLD INIȚIAL]]-PlanificarePlăți[[#This Row],[PLATĂ PLANIFICATĂ]]>0,PlanificarePlăți[[#This Row],[SOLD INIȚIAL]]-PlanificarePlăți[[#This Row],[PLATĂ PLANIFICATĂ]],0)),"") ->  | G74: =IF(PlanificarePlăți[[#This Row],[NR. PLĂȚI]]<>"",IF(PlanificarePlăți[[#This Row],[PLATĂ PLANIFICATĂ]]+PlanificarePlăți[[#This Row],[PLATĂ SUPLIMENTARĂ]]<=PlanificarePlăți[[#This Row],[SOLD INIȚIAL]],PlanificarePlăți[[#This Row],[PLATĂ PLANIFICATĂ]]+PlanificarePlăți[[#This Row],[PLATĂ SUPLIMENTARĂ]],PlanificarePlăți[[#This Row],[SOLD INIȚIAL]]),"") ->  | H74: =IF(PlanificarePlăți[[#This Row],[NR. PLĂȚI]]<>"",PlanificarePlăți[[#This Row],[TOTAL DE PLATĂ]]-PlanificarePlăți[[#This Row],[DOBÂNDĂ]],"") ->  | I74: =IF(PlanificarePlăți[[#This Row],[NR. PLĂȚI]]<>"",PlanificarePlăți[[#This Row],[SOLD INIȚIAL]]*(RataDobânzii/PlățiPeAn),"") ->  | J74: =IF(PlanificarePlăți[[#This Row],[NR. PLĂȚI]]<>"",IF(PlanificarePlăți[[#This Row],[PLATĂ PLANIFICATĂ]]+PlanificarePlăți[[#This Row],[PLATĂ SUPLIMENTARĂ]]<=PlanificarePlăți[[#This Row],[SOLD INIȚIAL]],PlanificarePlăți[[#This Row],[SOLD INIȚIAL]]-PlanificarePlăți[[#This Row],[PRINCIPAL]],0),"") ->  | K74: =IF(PlanificarePlăți[[#This Row],[NR. PLĂȚI]]<>"",SUM(INDEX(PlanificarePlăți[DOBÂNDĂ],1,1):PlanificarePlăți[[#This Row],[DOBÂNDĂ]]),"") -> 
B75: =IF(ÎmprumutEsteBun,IF(ROW()-ROW(PlanificarePlăți[[#Headers],[NR. PLĂȚI]])>NumărPlanificatDePlăți,"",ROW()-ROW(PlanificarePlăți[[#Headers],[NR. PLĂȚI]])),"") ->  | C75: =IF(PlanificarePlăți[[#This Row],[NR. PLĂȚI]]<>"",EOMONTH(DataDeÎnceputÎmprumut,ROW(PlanificarePlăți[[#This Row],[NR. PLĂȚI]])-ROW(PlanificarePlăți[[#Headers],[NR. PLĂȚI]])-2)+DAY(DataDeÎnceputÎmprumut),"") ->  | D75: =IF(PlanificarePlăți[[#This Row],[NR. PLĂȚI]]<>"",IF(ROW()-ROW(PlanificarePlăți[[#Headers],[SOLD INIȚIAL]])=1,ValoareÎmprumut,INDEX(PlanificarePlăți[SOLD FINAL],ROW()-ROW(PlanificarePlăți[[#Headers],[SOLD INIȚIAL]])-1)),"") ->  | E75: =IF(PlanificarePlăți[[#This Row],[NR. PLĂȚI]]<>"",PlatăPlanificată,"") ->  | F75: =IF(PlanificarePlăți[[#This Row],[NR. PLĂȚI]]<>"",IF(PlanificarePlăți[[#This Row],[PLATĂ PLANIFICATĂ]]+PlățiSuplimentare<PlanificarePlăți[[#This Row],[SOLD INIȚIAL]],PlățiSuplimentare,IF(PlanificarePlăți[[#This Row],[SOLD INIȚIAL]]-PlanificarePlăți[[#This Row],[PLATĂ PLANIFICATĂ]]>0,PlanificarePlăți[[#This Row],[SOLD INIȚIAL]]-PlanificarePlăți[[#This Row],[PLATĂ PLANIFICATĂ]],0)),"") ->  | G75: =IF(PlanificarePlăți[[#This Row],[NR. PLĂȚI]]<>"",IF(PlanificarePlăți[[#This Row],[PLATĂ PLANIFICATĂ]]+PlanificarePlăți[[#This Row],[PLATĂ SUPLIMENTARĂ]]<=PlanificarePlăți[[#This Row],[SOLD INIȚIAL]],PlanificarePlăți[[#This Row],[PLATĂ PLANIFICATĂ]]+PlanificarePlăți[[#This Row],[PLATĂ SUPLIMENTARĂ]],PlanificarePlăți[[#This Row],[SOLD INIȚIAL]]),"") ->  | H75: =IF(PlanificarePlăți[[#This Row],[NR. PLĂȚI]]<>"",PlanificarePlăți[[#This Row],[TOTAL DE PLATĂ]]-PlanificarePlăți[[#This Row],[DOBÂNDĂ]],"") ->  | I75: =IF(PlanificarePlăți[[#This Row],[NR. PLĂȚI]]<>"",PlanificarePlăți[[#This Row],[SOLD INIȚIAL]]*(RataDobânzii/PlățiPeAn),"") ->  | J75: =IF(PlanificarePlăți[[#This Row],[NR. PLĂȚI]]<>"",IF(PlanificarePlăți[[#This Row],[PLATĂ PLANIFICATĂ]]+PlanificarePlăți[[#This Row],[PLATĂ SUPLIMENTARĂ]]<=PlanificarePlăți[[#This Row],[SOLD INIȚIAL]],PlanificarePlăți[[#This Row],[SOLD INIȚIAL]]-PlanificarePlăți[[#This Row],[PRINCIPAL]],0),"") ->  | K75: =IF(PlanificarePlăți[[#This Row],[NR. PLĂȚI]]<>"",SUM(INDEX(PlanificarePlăți[DOBÂNDĂ],1,1):PlanificarePlăți[[#This Row],[DOBÂNDĂ]]),"") -> 
B76: =IF(ÎmprumutEsteBun,IF(ROW()-ROW(PlanificarePlăți[[#Headers],[NR. PLĂȚI]])>NumărPlanificatDePlăți,"",ROW()-ROW(PlanificarePlăți[[#Headers],[NR. PLĂȚI]])),"") ->  | C76: =IF(PlanificarePlăți[[#This Row],[NR. PLĂȚI]]<>"",EOMONTH(DataDeÎnceputÎmprumut,ROW(PlanificarePlăți[[#This Row],[NR. PLĂȚI]])-ROW(PlanificarePlăți[[#Headers],[NR. PLĂȚI]])-2)+DAY(DataDeÎnceputÎmprumut),"") ->  | D76: =IF(PlanificarePlăți[[#This Row],[NR. PLĂȚI]]<>"",IF(ROW()-ROW(PlanificarePlăți[[#Headers],[SOLD INIȚIAL]])=1,ValoareÎmprumut,INDEX(PlanificarePlăți[SOLD FINAL],ROW()-ROW(PlanificarePlăți[[#Headers],[SOLD INIȚIAL]])-1)),"") ->  | E76: =IF(PlanificarePlăți[[#This Row],[NR. PLĂȚI]]<>"",PlatăPlanificată,"") ->  | F76: =IF(PlanificarePlăți[[#This Row],[NR. PLĂȚI]]<>"",IF(PlanificarePlăți[[#This Row],[PLATĂ PLANIFICATĂ]]+PlățiSuplimentare<PlanificarePlăți[[#This Row],[SOLD INIȚIAL]],PlățiSuplimentare,IF(PlanificarePlăți[[#This Row],[SOLD INIȚIAL]]-PlanificarePlăți[[#This Row],[PLATĂ PLANIFICATĂ]]>0,PlanificarePlăți[[#This Row],[SOLD INIȚIAL]]-PlanificarePlăți[[#This Row],[PLATĂ PLANIFICATĂ]],0)),"") ->  | G76: =IF(PlanificarePlăți[[#This Row],[NR. PLĂȚI]]<>"",IF(PlanificarePlăți[[#This Row],[PLATĂ PLANIFICATĂ]]+PlanificarePlăți[[#This Row],[PLATĂ SUPLIMENTARĂ]]<=PlanificarePlăți[[#This Row],[SOLD INIȚIAL]],PlanificarePlăți[[#This Row],[PLATĂ PLANIFICATĂ]]+PlanificarePlăți[[#This Row],[PLATĂ SUPLIMENTARĂ]],PlanificarePlăți[[#This Row],[SOLD INIȚIAL]]),"") ->  | H76: =IF(PlanificarePlăți[[#This Row],[NR. PLĂȚI]]<>"",PlanificarePlăți[[#This Row],[TOTAL DE PLATĂ]]-PlanificarePlăți[[#This Row],[DOBÂNDĂ]],"") ->  | I76: =IF(PlanificarePlăți[[#This Row],[NR. PLĂȚI]]<>"",PlanificarePlăți[[#This Row],[SOLD INIȚIAL]]*(RataDobânzii/PlățiPeAn),"") ->  | J76: =IF(PlanificarePlăți[[#This Row],[NR. PLĂȚI]]<>"",IF(PlanificarePlăți[[#This Row],[PLATĂ PLANIFICATĂ]]+PlanificarePlăți[[#This Row],[PLATĂ SUPLIMENTARĂ]]<=PlanificarePlăți[[#This Row],[SOLD INIȚIAL]],PlanificarePlăți[[#This Row],[SOLD INIȚIAL]]-PlanificarePlăți[[#This Row],[PRINCIPAL]],0),"") ->  | K76: =IF(PlanificarePlăți[[#This Row],[NR. PLĂȚI]]<>"",SUM(INDEX(PlanificarePlăți[DOBÂNDĂ],1,1):PlanificarePlăți[[#This Row],[DOBÂNDĂ]]),"") -> 
B77: =IF(ÎmprumutEsteBun,IF(ROW()-ROW(PlanificarePlăți[[#Headers],[NR. PLĂȚI]])>NumărPlanificatDePlăți,"",ROW()-ROW(PlanificarePlăți[[#Headers],[NR. PLĂȚI]])),"") ->  | C77: =IF(PlanificarePlăți[[#This Row],[NR. PLĂȚI]]<>"",EOMONTH(DataDeÎnceputÎmprumut,ROW(PlanificarePlăți[[#This Row],[NR. PLĂȚI]])-ROW(PlanificarePlăți[[#Headers],[NR. PLĂȚI]])-2)+DAY(DataDeÎnceputÎmprumut),"") ->  | D77: =IF(PlanificarePlăți[[#This Row],[NR. PLĂȚI]]<>"",IF(ROW()-ROW(PlanificarePlăți[[#Headers],[SOLD INIȚIAL]])=1,ValoareÎmprumut,INDEX(PlanificarePlăți[SOLD FINAL],ROW()-ROW(PlanificarePlăți[[#Headers],[SOLD INIȚIAL]])-1)),"") ->  | E77: =IF(PlanificarePlăți[[#This Row],[NR. PLĂȚI]]<>"",PlatăPlanificată,"") ->  | F77: =IF(PlanificarePlăți[[#This Row],[NR. PLĂȚI]]<>"",IF(PlanificarePlăți[[#This Row],[PLATĂ PLANIFICATĂ]]+PlățiSuplimentare<PlanificarePlăți[[#This Row],[SOLD INIȚIAL]],PlățiSuplimentare,IF(PlanificarePlăți[[#This Row],[SOLD INIȚIAL]]-PlanificarePlăți[[#This Row],[PLATĂ PLANIFICATĂ]]>0,PlanificarePlăți[[#This Row],[SOLD INIȚIAL]]-PlanificarePlăți[[#This Row],[PLATĂ PLANIFICATĂ]],0)),"") ->  | G77: =IF(PlanificarePlăți[[#This Row],[NR. PLĂȚI]]<>"",IF(PlanificarePlăți[[#This Row],[PLATĂ PLANIFICATĂ]]+PlanificarePlăți[[#This Row],[PLATĂ SUPLIMENTARĂ]]<=PlanificarePlăți[[#This Row],[SOLD INIȚIAL]],PlanificarePlăți[[#This Row],[PLATĂ PLANIFICATĂ]]+PlanificarePlăți[[#This Row],[PLATĂ SUPLIMENTARĂ]],PlanificarePlăți[[#This Row],[SOLD INIȚIAL]]),"") ->  | H77: =IF(PlanificarePlăți[[#This Row],[NR. PLĂȚI]]<>"",PlanificarePlăți[[#This Row],[TOTAL DE PLATĂ]]-PlanificarePlăți[[#This Row],[DOBÂNDĂ]],"") ->  | I77: =IF(PlanificarePlăți[[#This Row],[NR. PLĂȚI]]<>"",PlanificarePlăți[[#This Row],[SOLD INIȚIAL]]*(RataDobânzii/PlățiPeAn),"") ->  | J77: =IF(PlanificarePlăți[[#This Row],[NR. PLĂȚI]]<>"",IF(PlanificarePlăți[[#This Row],[PLATĂ PLANIFICATĂ]]+PlanificarePlăți[[#This Row],[PLATĂ SUPLIMENTARĂ]]<=PlanificarePlăți[[#This Row],[SOLD INIȚIAL]],PlanificarePlăți[[#This Row],[SOLD INIȚIAL]]-PlanificarePlăți[[#This Row],[PRINCIPAL]],0),"") ->  | K77: =IF(PlanificarePlăți[[#This Row],[NR. PLĂȚI]]<>"",SUM(INDEX(PlanificarePlăți[DOBÂNDĂ],1,1):PlanificarePlăți[[#This Row],[DOBÂNDĂ]]),"") -> 
B78: =IF(ÎmprumutEsteBun,IF(ROW()-ROW(PlanificarePlăți[[#Headers],[NR. PLĂȚI]])>NumărPlanificatDePlăți,"",ROW()-ROW(PlanificarePlăți[[#Headers],[NR. PLĂȚI]])),"") ->  | C78: =IF(PlanificarePlăți[[#This Row],[NR. PLĂȚI]]<>"",EOMONTH(DataDeÎnceputÎmprumut,ROW(PlanificarePlăți[[#This Row],[NR. PLĂȚI]])-ROW(PlanificarePlăți[[#Headers],[NR. PLĂȚI]])-2)+DAY(DataDeÎnceputÎmprumut),"") ->  | D78: =IF(PlanificarePlăți[[#This Row],[NR. PLĂȚI]]<>"",IF(ROW()-ROW(PlanificarePlăți[[#Headers],[SOLD INIȚIAL]])=1,ValoareÎmprumut,INDEX(PlanificarePlăți[SOLD FINAL],ROW()-ROW(PlanificarePlăți[[#Headers],[SOLD INIȚIAL]])-1)),"") ->  | E78: =IF(PlanificarePlăți[[#This Row],[NR. PLĂȚI]]<>"",PlatăPlanificată,"") ->  | F78: =IF(PlanificarePlăți[[#This Row],[NR. PLĂȚI]]<>"",IF(PlanificarePlăți[[#This Row],[PLATĂ PLANIFICATĂ]]+PlățiSuplimentare<PlanificarePlăți[[#This Row],[SOLD INIȚIAL]],PlățiSuplimentare,IF(PlanificarePlăți[[#This Row],[SOLD INIȚIAL]]-PlanificarePlăți[[#This Row],[PLATĂ PLANIFICATĂ]]>0,PlanificarePlăți[[#This Row],[SOLD INIȚIAL]]-PlanificarePlăți[[#This Row],[PLATĂ PLANIFICATĂ]],0)),"") ->  | G78: =IF(PlanificarePlăți[[#This Row],[NR. PLĂȚI]]<>"",IF(PlanificarePlăți[[#This Row],[PLATĂ PLANIFICATĂ]]+PlanificarePlăți[[#This Row],[PLATĂ SUPLIMENTARĂ]]<=PlanificarePlăți[[#This Row],[SOLD INIȚIAL]],PlanificarePlăți[[#This Row],[PLATĂ PLANIFICATĂ]]+PlanificarePlăți[[#This Row],[PLATĂ SUPLIMENTARĂ]],PlanificarePlăți[[#This Row],[SOLD INIȚIAL]]),"") ->  | H78: =IF(PlanificarePlăți[[#This Row],[NR. PLĂȚI]]<>"",PlanificarePlăți[[#This Row],[TOTAL DE PLATĂ]]-PlanificarePlăți[[#This Row],[DOBÂNDĂ]],"") ->  | I78: =IF(PlanificarePlăți[[#This Row],[NR. PLĂȚI]]<>"",PlanificarePlăți[[#This Row],[SOLD INIȚIAL]]*(RataDobânzii/PlățiPeAn),"") ->  | J78: =IF(PlanificarePlăți[[#This Row],[NR. PLĂȚI]]<>"",IF(PlanificarePlăți[[#This Row],[PLATĂ PLANIFICATĂ]]+PlanificarePlăți[[#This Row],[PLATĂ SUPLIMENTARĂ]]<=PlanificarePlăți[[#This Row],[SOLD INIȚIAL]],PlanificarePlăți[[#This Row],[SOLD INIȚIAL]]-PlanificarePlăți[[#This Row],[PRINCIPAL]],0),"") ->  | K78: =IF(PlanificarePlăți[[#This Row],[NR. PLĂȚI]]<>"",SUM(INDEX(PlanificarePlăți[DOBÂNDĂ],1,1):PlanificarePlăți[[#This Row],[DOBÂNDĂ]]),"") -> 
B79: =IF(ÎmprumutEsteBun,IF(ROW()-ROW(PlanificarePlăți[[#Headers],[NR. PLĂȚI]])>NumărPlanificatDePlăți,"",ROW()-ROW(PlanificarePlăți[[#Headers],[NR. PLĂȚI]])),"") ->  | C79: =IF(PlanificarePlăți[[#This Row],[NR. PLĂȚI]]<>"",EOMONTH(DataDeÎnceputÎmprumut,ROW(PlanificarePlăți[[#This Row],[NR. PLĂȚI]])-ROW(PlanificarePlăți[[#Headers],[NR. PLĂȚI]])-2)+DAY(DataDeÎnceputÎmprumut),"") ->  | D79: =IF(PlanificarePlăți[[#This Row],[NR. PLĂȚI]]<>"",IF(ROW()-ROW(PlanificarePlăți[[#Headers],[SOLD INIȚIAL]])=1,ValoareÎmprumut,INDEX(PlanificarePlăți[SOLD FINAL],ROW()-ROW(PlanificarePlăți[[#Headers],[SOLD INIȚIAL]])-1)),"") ->  | E79: =IF(PlanificarePlăți[[#This Row],[NR. PLĂȚI]]<>"",PlatăPlanificată,"") ->  | F79: =IF(PlanificarePlăți[[#This Row],[NR. PLĂȚI]]<>"",IF(PlanificarePlăți[[#This Row],[PLATĂ PLANIFICATĂ]]+PlățiSuplimentare<PlanificarePlăți[[#This Row],[SOLD INIȚIAL]],PlățiSuplimentare,IF(PlanificarePlăți[[#This Row],[SOLD INIȚIAL]]-PlanificarePlăți[[#This Row],[PLATĂ PLANIFICATĂ]]>0,PlanificarePlăți[[#This Row],[SOLD INIȚIAL]]-PlanificarePlăți[[#This Row],[PLATĂ PLANIFICATĂ]],0)),"") ->  | G79: =IF(PlanificarePlăți[[#This Row],[NR. PLĂȚI]]<>"",IF(PlanificarePlăți[[#This Row],[PLATĂ PLANIFICATĂ]]+PlanificarePlăți[[#This Row],[PLATĂ SUPLIMENTARĂ]]<=PlanificarePlăți[[#This Row],[SOLD INIȚIAL]],PlanificarePlăți[[#This Row],[PLATĂ PLANIFICATĂ]]+PlanificarePlăți[[#This Row],[PLATĂ SUPLIMENTARĂ]],PlanificarePlăți[[#This Row],[SOLD INIȚIAL]]),"") ->  | H79: =IF(PlanificarePlăți[[#This Row],[NR. PLĂȚI]]<>"",PlanificarePlăți[[#This Row],[TOTAL DE PLATĂ]]-PlanificarePlăți[[#This Row],[DOBÂNDĂ]],"") ->  | I79: =IF(PlanificarePlăți[[#This Row],[NR. PLĂȚI]]<>"",PlanificarePlăți[[#This Row],[SOLD INIȚIAL]]*(RataDobânzii/PlățiPeAn),"") ->  | J79: =IF(PlanificarePlăți[[#This Row],[NR. PLĂȚI]]<>"",IF(PlanificarePlăți[[#This Row],[PLATĂ PLANIFICATĂ]]+PlanificarePlăți[[#This Row],[PLATĂ SUPLIMENTARĂ]]<=PlanificarePlăți[[#This Row],[SOLD INIȚIAL]],PlanificarePlăți[[#This Row],[SOLD INIȚIAL]]-PlanificarePlăți[[#This Row],[PRINCIPAL]],0),"") ->  | K79: =IF(PlanificarePlăți[[#This Row],[NR. PLĂȚI]]<>"",SUM(INDEX(PlanificarePlăți[DOBÂNDĂ],1,1):PlanificarePlăți[[#This Row],[DOBÂNDĂ]]),"") -> 
B80: =IF(ÎmprumutEsteBun,IF(ROW()-ROW(PlanificarePlăți[[#Headers],[NR. PLĂȚI]])>NumărPlanificatDePlăți,"",ROW()-ROW(PlanificarePlăți[[#Headers],[NR. PLĂȚI]])),"") ->  | C80: =IF(PlanificarePlăți[[#This Row],[NR. PLĂȚI]]<>"",EOMONTH(DataDeÎnceputÎmprumut,ROW(PlanificarePlăți[[#This Row],[NR. PLĂȚI]])-ROW(PlanificarePlăți[[#Headers],[NR. PLĂȚI]])-2)+DAY(DataDeÎnceputÎmprumut),"") ->  | D80: =IF(PlanificarePlăți[[#This Row],[NR. PLĂȚI]]<>"",IF(ROW()-ROW(PlanificarePlăți[[#Headers],[SOLD INIȚIAL]])=1,ValoareÎmprumut,INDEX(PlanificarePlăți[SOLD FINAL],ROW()-ROW(PlanificarePlăți[[#Headers],[SOLD INIȚIAL]])-1)),"") ->  | E80: =IF(PlanificarePlăți[[#This Row],[NR. PLĂȚI]]<>"",PlatăPlanificată,"") ->  | F80: =IF(PlanificarePlăți[[#This Row],[NR. PLĂȚI]]<>"",IF(PlanificarePlăți[[#This Row],[PLATĂ PLANIFICATĂ]]+PlățiSuplimentare<PlanificarePlăți[[#This Row],[SOLD INIȚIAL]],PlățiSuplimentare,IF(PlanificarePlăți[[#This Row],[SOLD INIȚIAL]]-PlanificarePlăți[[#This Row],[PLATĂ PLANIFICATĂ]]>0,PlanificarePlăți[[#This Row],[SOLD INIȚIAL]]-PlanificarePlăți[[#This Row],[PLATĂ PLANIFICATĂ]],0)),"") ->  | G80: =IF(PlanificarePlăți[[#This Row],[NR. PLĂȚI]]<>"",IF(PlanificarePlăți[[#This Row],[PLATĂ PLANIFICATĂ]]+PlanificarePlăți[[#This Row],[PLATĂ SUPLIMENTARĂ]]<=PlanificarePlăți[[#This Row],[SOLD INIȚIAL]],PlanificarePlăți[[#This Row],[PLATĂ PLANIFICATĂ]]+PlanificarePlăți[[#This Row],[PLATĂ SUPLIMENTARĂ]],PlanificarePlăți[[#This Row],[SOLD INIȚIAL]]),"") ->  | H80: =IF(PlanificarePlăți[[#This Row],[NR. PLĂȚI]]<>"",PlanificarePlăți[[#This Row],[TOTAL DE PLATĂ]]-PlanificarePlăți[[#This Row],[DOBÂNDĂ]],"") ->  | I80: =IF(PlanificarePlăți[[#This Row],[NR. PLĂȚI]]<>"",PlanificarePlăți[[#This Row],[SOLD INIȚIAL]]*(RataDobânzii/PlățiPeAn),"") ->  | J80: =IF(PlanificarePlăți[[#This Row],[NR. PLĂȚI]]<>"",IF(PlanificarePlăți[[#This Row],[PLATĂ PLANIFICATĂ]]+PlanificarePlăți[[#This Row],[PLATĂ SUPLIMENTARĂ]]<=PlanificarePlăți[[#This Row],[SOLD INIȚIAL]],PlanificarePlăți[[#This Row],[SOLD INIȚIAL]]-PlanificarePlăți[[#This Row],[PRINCIPAL]],0),"") ->  | K80: =IF(PlanificarePlăți[[#This Row],[NR. PLĂȚI]]<>"",SUM(INDEX(PlanificarePlăți[DOBÂNDĂ],1,1):PlanificarePlăți[[#This Row],[DOBÂNDĂ]]),"") -> 
B81: =IF(ÎmprumutEsteBun,IF(ROW()-ROW(PlanificarePlăți[[#Headers],[NR. PLĂȚI]])>NumărPlanificatDePlăți,"",ROW()-ROW(PlanificarePlăți[[#Headers],[NR. PLĂȚI]])),"") ->  | C81: =IF(PlanificarePlăți[[#This Row],[NR. PLĂȚI]]<>"",EOMONTH(DataDeÎnceputÎmprumut,ROW(PlanificarePlăți[[#This Row],[NR. PLĂȚI]])-ROW(PlanificarePlăți[[#Headers],[NR. PLĂȚI]])-2)+DAY(DataDeÎnceputÎmprumut),"") ->  | D81: =IF(PlanificarePlăți[[#This Row],[NR. PLĂȚI]]<>"",IF(ROW()-ROW(PlanificarePlăți[[#Headers],[SOLD INIȚIAL]])=1,ValoareÎmprumut,INDEX(PlanificarePlăți[SOLD FINAL],ROW()-ROW(PlanificarePlăți[[#Headers],[SOLD INIȚIAL]])-1)),"") ->  | E81: =IF(PlanificarePlăți[[#This Row],[NR. PLĂȚI]]<>"",PlatăPlanificată,"") ->  | F81: =IF(PlanificarePlăți[[#This Row],[NR. PLĂȚI]]<>"",IF(PlanificarePlăți[[#This Row],[PLATĂ PLANIFICATĂ]]+PlățiSuplimentare<PlanificarePlăți[[#This Row],[SOLD INIȚIAL]],PlățiSuplimentare,IF(PlanificarePlăți[[#This Row],[SOLD INIȚIAL]]-PlanificarePlăți[[#This Row],[PLATĂ PLANIFICATĂ]]>0,PlanificarePlăți[[#This Row],[SOLD INIȚIAL]]-PlanificarePlăți[[#This Row],[PLATĂ PLANIFICATĂ]],0)),"") ->  | G81: =IF(PlanificarePlăți[[#This Row],[NR. PLĂȚI]]<>"",IF(PlanificarePlăți[[#This Row],[PLATĂ PLANIFICATĂ]]+PlanificarePlăți[[#This Row],[PLATĂ SUPLIMENTARĂ]]<=PlanificarePlăți[[#This Row],[SOLD INIȚIAL]],PlanificarePlăți[[#This Row],[PLATĂ PLANIFICATĂ]]+PlanificarePlăți[[#This Row],[PLATĂ SUPLIMENTARĂ]],PlanificarePlăți[[#This Row],[SOLD INIȚIAL]]),"") ->  | H81: =IF(PlanificarePlăți[[#This Row],[NR. PLĂȚI]]<>"",PlanificarePlăți[[#This Row],[TOTAL DE PLATĂ]]-PlanificarePlăți[[#This Row],[DOBÂNDĂ]],"") ->  | I81: =IF(PlanificarePlăți[[#This Row],[NR. PLĂȚI]]<>"",PlanificarePlăți[[#This Row],[SOLD INIȚIAL]]*(RataDobânzii/PlățiPeAn),"") ->  | J81: =IF(PlanificarePlăți[[#This Row],[NR. PLĂȚI]]<>"",IF(PlanificarePlăți[[#This Row],[PLATĂ PLANIFICATĂ]]+PlanificarePlăți[[#This Row],[PLATĂ SUPLIMENTARĂ]]<=PlanificarePlăți[[#This Row],[SOLD INIȚIAL]],PlanificarePlăți[[#This Row],[SOLD INIȚIAL]]-PlanificarePlăți[[#This Row],[PRINCIPAL]],0),"") ->  | K81: =IF(PlanificarePlăți[[#This Row],[NR. PLĂȚI]]<>"",SUM(INDEX(PlanificarePlăți[DOBÂNDĂ],1,1):PlanificarePlăți[[#This Row],[DOBÂNDĂ]]),"") -> 
B82: =IF(ÎmprumutEsteBun,IF(ROW()-ROW(PlanificarePlăți[[#Headers],[NR. PLĂȚI]])>NumărPlanificatDePlăți,"",ROW()-ROW(PlanificarePlăți[[#Headers],[NR. PLĂȚI]])),"") ->  | C82: =IF(PlanificarePlăți[[#This Row],[NR. PLĂȚI]]<>"",EOMONTH(DataDeÎnceputÎmprumut,ROW(PlanificarePlăți[[#This Row],[NR. PLĂȚI]])-ROW(PlanificarePlăți[[#Headers],[NR. PLĂȚI]])-2)+DAY(DataDeÎnceputÎmprumut),"") ->  | D82: =IF(PlanificarePlăți[[#This Row],[NR. PLĂȚI]]<>"",IF(ROW()-ROW(PlanificarePlăți[[#Headers],[SOLD INIȚIAL]])=1,ValoareÎmprumut,INDEX(PlanificarePlăți[SOLD FINAL],ROW()-ROW(PlanificarePlăți[[#Headers],[SOLD INIȚIAL]])-1)),"") ->  | E82: =IF(PlanificarePlăți[[#This Row],[NR. PLĂȚI]]<>"",PlatăPlanificată,"") ->  | F82: =IF(PlanificarePlăți[[#This Row],[NR. PLĂȚI]]<>"",IF(PlanificarePlăți[[#This Row],[PLATĂ PLANIFICATĂ]]+PlățiSuplimentare<PlanificarePlăți[[#This Row],[SOLD INIȚIAL]],PlățiSuplimentare,IF(PlanificarePlăți[[#This Row],[SOLD INIȚIAL]]-PlanificarePlăți[[#This Row],[PLATĂ PLANIFICATĂ]]>0,PlanificarePlăți[[#This Row],[SOLD INIȚIAL]]-PlanificarePlăți[[#This Row],[PLATĂ PLANIFICATĂ]],0)),"") ->  | G82: =IF(PlanificarePlăți[[#This Row],[NR. PLĂȚI]]<>"",IF(PlanificarePlăți[[#This Row],[PLATĂ PLANIFICATĂ]]+PlanificarePlăți[[#This Row],[PLATĂ SUPLIMENTARĂ]]<=PlanificarePlăți[[#This Row],[SOLD INIȚIAL]],PlanificarePlăți[[#This Row],[PLATĂ PLANIFICATĂ]]+PlanificarePlăți[[#This Row],[PLATĂ SUPLIMENTARĂ]],PlanificarePlăți[[#This Row],[SOLD INIȚIAL]]),"") ->  | H82: =IF(PlanificarePlăți[[#This Row],[NR. PLĂȚI]]<>"",PlanificarePlăți[[#This Row],[TOTAL DE PLATĂ]]-PlanificarePlăți[[#This Row],[DOBÂNDĂ]],"") ->  | I82: =IF(PlanificarePlăți[[#This Row],[NR. PLĂȚI]]<>"",PlanificarePlăți[[#This Row],[SOLD INIȚIAL]]*(RataDobânzii/PlățiPeAn),"") ->  | J82: =IF(PlanificarePlăți[[#This Row],[NR. PLĂȚI]]<>"",IF(PlanificarePlăți[[#This Row],[PLATĂ PLANIFICATĂ]]+PlanificarePlăți[[#This Row],[PLATĂ SUPLIMENTARĂ]]<=PlanificarePlăți[[#This Row],[SOLD INIȚIAL]],PlanificarePlăți[[#This Row],[SOLD INIȚIAL]]-PlanificarePlăți[[#This Row],[PRINCIPAL]],0),"") ->  | K82: =IF(PlanificarePlăți[[#This Row],[NR. PLĂȚI]]<>"",SUM(INDEX(PlanificarePlăți[DOBÂNDĂ],1,1):PlanificarePlăți[[#This Row],[DOBÂNDĂ]]),"") -> 
B83: =IF(ÎmprumutEsteBun,IF(ROW()-ROW(PlanificarePlăți[[#Headers],[NR. PLĂȚI]])>NumărPlanificatDePlăți,"",ROW()-ROW(PlanificarePlăți[[#Headers],[NR. PLĂȚI]])),"") ->  | C83: =IF(PlanificarePlăți[[#This Row],[NR. PLĂȚI]]<>"",EOMONTH(DataDeÎnceputÎmprumut,ROW(PlanificarePlăți[[#This Row],[NR. PLĂȚI]])-ROW(PlanificarePlăți[[#Headers],[NR. PLĂȚI]])-2)+DAY(DataDeÎnceputÎmprumut),"") ->  | D83: =IF(PlanificarePlăți[[#This Row],[NR. PLĂȚI]]<>"",IF(ROW()-ROW(PlanificarePlăți[[#Headers],[SOLD INIȚIAL]])=1,ValoareÎmprumut,INDEX(PlanificarePlăți[SOLD FINAL],ROW()-ROW(PlanificarePlăți[[#Headers],[SOLD INIȚIAL]])-1)),"") ->  | E83: =IF(PlanificarePlăți[[#This Row],[NR. PLĂȚI]]<>"",PlatăPlanificată,"") ->  | F83: =IF(PlanificarePlăți[[#This Row],[NR. PLĂȚI]]<>"",IF(PlanificarePlăți[[#This Row],[PLATĂ PLANIFICATĂ]]+PlățiSuplimentare<PlanificarePlăți[[#This Row],[SOLD INIȚIAL]],PlățiSuplimentare,IF(PlanificarePlăți[[#This Row],[SOLD INIȚIAL]]-PlanificarePlăți[[#This Row],[PLATĂ PLANIFICATĂ]]>0,PlanificarePlăți[[#This Row],[SOLD INIȚIAL]]-PlanificarePlăți[[#This Row],[PLATĂ PLANIFICATĂ]],0)),"") ->  | G83: =IF(PlanificarePlăți[[#This Row],[NR. PLĂȚI]]<>"",IF(PlanificarePlăți[[#This Row],[PLATĂ PLANIFICATĂ]]+PlanificarePlăți[[#This Row],[PLATĂ SUPLIMENTARĂ]]<=PlanificarePlăți[[#This Row],[SOLD INIȚIAL]],PlanificarePlăți[[#This Row],[PLATĂ PLANIFICATĂ]]+PlanificarePlăți[[#This Row],[PLATĂ SUPLIMENTARĂ]],PlanificarePlăți[[#This Row],[SOLD INIȚIAL]]),"") ->  | H83: =IF(PlanificarePlăți[[#This Row],[NR. PLĂȚI]]<>"",PlanificarePlăți[[#This Row],[TOTAL DE PLATĂ]]-PlanificarePlăți[[#This Row],[DOBÂNDĂ]],"") ->  | I83: =IF(PlanificarePlăți[[#This Row],[NR. PLĂȚI]]<>"",PlanificarePlăți[[#This Row],[SOLD INIȚIAL]]*(RataDobânzii/PlățiPeAn),"") ->  | J83: =IF(PlanificarePlăți[[#This Row],[NR. PLĂȚI]]<>"",IF(PlanificarePlăți[[#This Row],[PLATĂ PLANIFICATĂ]]+PlanificarePlăți[[#This Row],[PLATĂ SUPLIMENTARĂ]]<=PlanificarePlăți[[#This Row],[SOLD INIȚIAL]],PlanificarePlăți[[#This Row],[SOLD INIȚIAL]]-PlanificarePlăți[[#This Row],[PRINCIPAL]],0),"") ->  | K83: =IF(PlanificarePlăți[[#This Row],[NR. PLĂȚI]]<>"",SUM(INDEX(PlanificarePlăți[DOBÂNDĂ],1,1):PlanificarePlăți[[#This Row],[DOBÂNDĂ]]),"") -> 
B84: =IF(ÎmprumutEsteBun,IF(ROW()-ROW(PlanificarePlăți[[#Headers],[NR. PLĂȚI]])>NumărPlanificatDePlăți,"",ROW()-ROW(PlanificarePlăți[[#Headers],[NR. PLĂȚI]])),"") ->  | C84: =IF(PlanificarePlăți[[#This Row],[NR. PLĂȚI]]<>"",EOMONTH(DataDeÎnceputÎmprumut,ROW(PlanificarePlăți[[#This Row],[NR. PLĂȚI]])-ROW(PlanificarePlăți[[#Headers],[NR. PLĂȚI]])-2)+DAY(DataDeÎnceputÎmprumut),"") ->  | D84: =IF(PlanificarePlăți[[#This Row],[NR. PLĂȚI]]<>"",IF(ROW()-ROW(PlanificarePlăți[[#Headers],[SOLD INIȚIAL]])=1,ValoareÎmprumut,INDEX(PlanificarePlăți[SOLD FINAL],ROW()-ROW(PlanificarePlăți[[#Headers],[SOLD INIȚIAL]])-1)),"") ->  | E84: =IF(PlanificarePlăți[[#This Row],[NR. PLĂȚI]]<>"",PlatăPlanificată,"") ->  | F84: =IF(PlanificarePlăți[[#This Row],[NR. PLĂȚI]]<>"",IF(PlanificarePlăți[[#This Row],[PLATĂ PLANIFICATĂ]]+PlățiSuplimentare<PlanificarePlăți[[#This Row],[SOLD INIȚIAL]],PlățiSuplimentare,IF(PlanificarePlăți[[#This Row],[SOLD INIȚIAL]]-PlanificarePlăți[[#This Row],[PLATĂ PLANIFICATĂ]]>0,PlanificarePlăți[[#This Row],[SOLD INIȚIAL]]-PlanificarePlăți[[#This Row],[PLATĂ PLANIFICATĂ]],0)),"") ->  | G84: =IF(PlanificarePlăți[[#This Row],[NR. PLĂȚI]]<>"",IF(PlanificarePlăți[[#This Row],[PLATĂ PLANIFICATĂ]]+PlanificarePlăți[[#This Row],[PLATĂ SUPLIMENTARĂ]]<=PlanificarePlăți[[#This Row],[SOLD INIȚIAL]],PlanificarePlăți[[#This Row],[PLATĂ PLANIFICATĂ]]+PlanificarePlăți[[#This Row],[PLATĂ SUPLIMENTARĂ]],PlanificarePlăți[[#This Row],[SOLD INIȚIAL]]),"") ->  | H84: =IF(PlanificarePlăți[[#This Row],[NR. PLĂȚI]]<>"",PlanificarePlăți[[#This Row],[TOTAL DE PLATĂ]]-PlanificarePlăți[[#This Row],[DOBÂNDĂ]],"") ->  | I84: =IF(PlanificarePlăți[[#This Row],[NR. PLĂȚI]]<>"",PlanificarePlăți[[#This Row],[SOLD INIȚIAL]]*(RataDobânzii/PlățiPeAn),"") ->  | J84: =IF(PlanificarePlăți[[#This Row],[NR. PLĂȚI]]<>"",IF(PlanificarePlăți[[#This Row],[PLATĂ PLANIFICATĂ]]+PlanificarePlăți[[#This Row],[PLATĂ SUPLIMENTARĂ]]<=PlanificarePlăți[[#This Row],[SOLD INIȚIAL]],PlanificarePlăți[[#This Row],[SOLD INIȚIAL]]-PlanificarePlăți[[#This Row],[PRINCIPAL]],0),"") ->  | K84: =IF(PlanificarePlăți[[#This Row],[NR. PLĂȚI]]<>"",SUM(INDEX(PlanificarePlăți[DOBÂNDĂ],1,1):PlanificarePlăți[[#This Row],[DOBÂNDĂ]]),"") -> 
B85: =IF(ÎmprumutEsteBun,IF(ROW()-ROW(PlanificarePlăți[[#Headers],[NR. PLĂȚI]])>NumărPlanificatDePlăți,"",ROW()-ROW(PlanificarePlăți[[#Headers],[NR. PLĂȚI]])),"") ->  | C85: =IF(PlanificarePlăți[[#This Row],[NR. PLĂȚI]]<>"",EOMONTH(DataDeÎnceputÎmprumut,ROW(PlanificarePlăți[[#This Row],[NR. PLĂȚI]])-ROW(PlanificarePlăți[[#Headers],[NR. PLĂȚI]])-2)+DAY(DataDeÎnceputÎmprumut),"") ->  | D85: =IF(PlanificarePlăți[[#This Row],[NR. PLĂȚI]]<>"",IF(ROW()-ROW(PlanificarePlăți[[#Headers],[SOLD INIȚIAL]])=1,ValoareÎmprumut,INDEX(PlanificarePlăți[SOLD FINAL],ROW()-ROW(PlanificarePlăți[[#Headers],[SOLD INIȚIAL]])-1)),"") ->  | E85: =IF(PlanificarePlăți[[#This Row],[NR. PLĂȚI]]<>"",PlatăPlanificată,"") ->  | F85: =IF(PlanificarePlăți[[#This Row],[NR. PLĂȚI]]<>"",IF(PlanificarePlăți[[#This Row],[PLATĂ PLANIFICATĂ]]+PlățiSuplimentare<PlanificarePlăți[[#This Row],[SOLD INIȚIAL]],PlățiSuplimentare,IF(PlanificarePlăți[[#This Row],[SOLD INIȚIAL]]-PlanificarePlăți[[#This Row],[PLATĂ PLANIFICATĂ]]>0,PlanificarePlăți[[#This Row],[SOLD INIȚIAL]]-PlanificarePlăți[[#This Row],[PLATĂ PLANIFICATĂ]],0)),"") ->  | G85: =IF(PlanificarePlăți[[#This Row],[NR. PLĂȚI]]<>"",IF(PlanificarePlăți[[#This Row],[PLATĂ PLANIFICATĂ]]+PlanificarePlăți[[#This Row],[PLATĂ SUPLIMENTARĂ]]<=PlanificarePlăți[[#This Row],[SOLD INIȚIAL]],PlanificarePlăți[[#This Row],[PLATĂ PLANIFICATĂ]]+PlanificarePlăți[[#This Row],[PLATĂ SUPLIMENTARĂ]],PlanificarePlăți[[#This Row],[SOLD INIȚIAL]]),"") ->  | H85: =IF(PlanificarePlăți[[#This Row],[NR. PLĂȚI]]<>"",PlanificarePlăți[[#This Row],[TOTAL DE PLATĂ]]-PlanificarePlăți[[#This Row],[DOBÂNDĂ]],"") ->  | I85: =IF(PlanificarePlăți[[#This Row],[NR. PLĂȚI]]<>"",PlanificarePlăți[[#This Row],[SOLD INIȚIAL]]*(RataDobânzii/PlățiPeAn),"") ->  | J85: =IF(PlanificarePlăți[[#This Row],[NR. PLĂȚI]]<>"",IF(PlanificarePlăți[[#This Row],[PLATĂ PLANIFICATĂ]]+PlanificarePlăți[[#This Row],[PLATĂ SUPLIMENTARĂ]]<=PlanificarePlăți[[#This Row],[SOLD INIȚIAL]],PlanificarePlăți[[#This Row],[SOLD INIȚIAL]]-PlanificarePlăți[[#This Row],[PRINCIPAL]],0),"") ->  | K85: =IF(PlanificarePlăți[[#This Row],[NR. PLĂȚI]]<>"",SUM(INDEX(PlanificarePlăți[DOBÂNDĂ],1,1):PlanificarePlăți[[#This Row],[DOBÂNDĂ]]),"") -> 
B86: =IF(ÎmprumutEsteBun,IF(ROW()-ROW(PlanificarePlăți[[#Headers],[NR. PLĂȚI]])>NumărPlanificatDePlăți,"",ROW()-ROW(PlanificarePlăți[[#Headers],[NR. PLĂȚI]])),"") ->  | C86: =IF(PlanificarePlăți[[#This Row],[NR. PLĂȚI]]<>"",EOMONTH(DataDeÎnceputÎmprumut,ROW(PlanificarePlăți[[#This Row],[NR. PLĂȚI]])-ROW(PlanificarePlăți[[#Headers],[NR. PLĂȚI]])-2)+DAY(DataDeÎnceputÎmprumut),"") ->  | D86: =IF(PlanificarePlăți[[#This Row],[NR. PLĂȚI]]<>"",IF(ROW()-ROW(PlanificarePlăți[[#Headers],[SOLD INIȚIAL]])=1,ValoareÎmprumut,INDEX(PlanificarePlăți[SOLD FINAL],ROW()-ROW(PlanificarePlăți[[#Headers],[SOLD INIȚIAL]])-1)),"") ->  | E86: =IF(PlanificarePlăți[[#This Row],[NR. PLĂȚI]]<>"",PlatăPlanificată,"") ->  | F86: =IF(PlanificarePlăți[[#This Row],[NR. PLĂȚI]]<>"",IF(PlanificarePlăți[[#This Row],[PLATĂ PLANIFICATĂ]]+PlățiSuplimentare<PlanificarePlăți[[#This Row],[SOLD INIȚIAL]],PlățiSuplimentare,IF(PlanificarePlăți[[#This Row],[SOLD INIȚIAL]]-PlanificarePlăți[[#This Row],[PLATĂ PLANIFICATĂ]]>0,PlanificarePlăți[[#This Row],[SOLD INIȚIAL]]-PlanificarePlăți[[#This Row],[PLATĂ PLANIFICATĂ]],0)),"") ->  | G86: =IF(PlanificarePlăți[[#This Row],[NR. PLĂȚI]]<>"",IF(PlanificarePlăți[[#This Row],[PLATĂ PLANIFICATĂ]]+PlanificarePlăți[[#This Row],[PLATĂ SUPLIMENTARĂ]]<=PlanificarePlăți[[#This Row],[SOLD INIȚIAL]],PlanificarePlăți[[#This Row],[PLATĂ PLANIFICATĂ]]+PlanificarePlăți[[#This Row],[PLATĂ SUPLIMENTARĂ]],PlanificarePlăți[[#This Row],[SOLD INIȚIAL]]),"") ->  | H86: =IF(PlanificarePlăți[[#This Row],[NR. PLĂȚI]]<>"",PlanificarePlăți[[#This Row],[TOTAL DE PLATĂ]]-PlanificarePlăți[[#This Row],[DOBÂNDĂ]],"") ->  | I86: =IF(PlanificarePlăți[[#This Row],[NR. PLĂȚI]]<>"",PlanificarePlăți[[#This Row],[SOLD INIȚIAL]]*(RataDobânzii/PlățiPeAn),"") ->  | J86: =IF(PlanificarePlăți[[#This Row],[NR. PLĂȚI]]<>"",IF(PlanificarePlăți[[#This Row],[PLATĂ PLANIFICATĂ]]+PlanificarePlăți[[#This Row],[PLATĂ SUPLIMENTARĂ]]<=PlanificarePlăți[[#This Row],[SOLD INIȚIAL]],PlanificarePlăți[[#This Row],[SOLD INIȚIAL]]-PlanificarePlăți[[#This Row],[PRINCIPAL]],0),"") ->  | K86: =IF(PlanificarePlăți[[#This Row],[NR. PLĂȚI]]<>"",SUM(INDEX(PlanificarePlăți[DOBÂNDĂ],1,1):PlanificarePlăți[[#This Row],[DOBÂNDĂ]]),"") -> 
B87: =IF(ÎmprumutEsteBun,IF(ROW()-ROW(PlanificarePlăți[[#Headers],[NR. PLĂȚI]])>NumărPlanificatDePlăți,"",ROW()-ROW(PlanificarePlăți[[#Headers],[NR. PLĂȚI]])),"") ->  | C87: =IF(PlanificarePlăți[[#This Row],[NR. PLĂȚI]]<>"",EOMONTH(DataDeÎnceputÎmprumut,ROW(PlanificarePlăți[[#This Row],[NR. PLĂȚI]])-ROW(PlanificarePlăți[[#Headers],[NR. PLĂȚI]])-2)+DAY(DataDeÎnceputÎmprumut),"") ->  | D87: =IF(PlanificarePlăți[[#This Row],[NR. PLĂȚI]]<>"",IF(ROW()-ROW(PlanificarePlăți[[#Headers],[SOLD INIȚIAL]])=1,ValoareÎmprumut,INDEX(PlanificarePlăți[SOLD FINAL],ROW()-ROW(PlanificarePlăți[[#Headers],[SOLD INIȚIAL]])-1)),"") ->  | E87: =IF(PlanificarePlăți[[#This Row],[NR. PLĂȚI]]<>"",PlatăPlanificată,"") ->  | F87: =IF(PlanificarePlăți[[#This Row],[NR. PLĂȚI]]<>"",IF(PlanificarePlăți[[#This Row],[PLATĂ PLANIFICATĂ]]+PlățiSuplimentare<PlanificarePlăți[[#This Row],[SOLD INIȚIAL]],PlățiSuplimentare,IF(PlanificarePlăți[[#This Row],[SOLD INIȚIAL]]-PlanificarePlăți[[#This Row],[PLATĂ PLANIFICATĂ]]>0,PlanificarePlăți[[#This Row],[SOLD INIȚIAL]]-PlanificarePlăți[[#This Row],[PLATĂ PLANIFICATĂ]],0)),"") ->  | G87: =IF(PlanificarePlăți[[#This Row],[NR. PLĂȚI]]<>"",IF(PlanificarePlăți[[#This Row],[PLATĂ PLANIFICATĂ]]+PlanificarePlăți[[#This Row],[PLATĂ SUPLIMENTARĂ]]<=PlanificarePlăți[[#This Row],[SOLD INIȚIAL]],PlanificarePlăți[[#This Row],[PLATĂ PLANIFICATĂ]]+PlanificarePlăți[[#This Row],[PLATĂ SUPLIMENTARĂ]],PlanificarePlăți[[#This Row],[SOLD INIȚIAL]]),"") ->  | H87: =IF(PlanificarePlăți[[#This Row],[NR. PLĂȚI]]<>"",PlanificarePlăți[[#This Row],[TOTAL DE PLATĂ]]-PlanificarePlăți[[#This Row],[DOBÂNDĂ]],"") ->  | I87: =IF(PlanificarePlăți[[#This Row],[NR. PLĂȚI]]<>"",PlanificarePlăți[[#This Row],[SOLD INIȚIAL]]*(RataDobânzii/PlățiPeAn),"") ->  | J87: =IF(PlanificarePlăți[[#This Row],[NR. PLĂȚI]]<>"",IF(PlanificarePlăți[[#This Row],[PLATĂ PLANIFICATĂ]]+PlanificarePlăți[[#This Row],[PLATĂ SUPLIMENTARĂ]]<=PlanificarePlăți[[#This Row],[SOLD INIȚIAL]],PlanificarePlăți[[#This Row],[SOLD INIȚIAL]]-PlanificarePlăți[[#This Row],[PRINCIPAL]],0),"") ->  | K87: =IF(PlanificarePlăți[[#This Row],[NR. PLĂȚI]]<>"",SUM(INDEX(PlanificarePlăți[DOBÂNDĂ],1,1):PlanificarePlăți[[#This Row],[DOBÂNDĂ]]),"") -> 
B88: =IF(ÎmprumutEsteBun,IF(ROW()-ROW(PlanificarePlăți[[#Headers],[NR. PLĂȚI]])>NumărPlanificatDePlăți,"",ROW()-ROW(PlanificarePlăți[[#Headers],[NR. PLĂȚI]])),"") ->  | C88: =IF(PlanificarePlăți[[#This Row],[NR. PLĂȚI]]<>"",EOMONTH(DataDeÎnceputÎmprumut,ROW(PlanificarePlăți[[#This Row],[NR. PLĂȚI]])-ROW(PlanificarePlăți[[#Headers],[NR. PLĂȚI]])-2)+DAY(DataDeÎnceputÎmprumut),"") ->  | D88: =IF(PlanificarePlăți[[#This Row],[NR. PLĂȚI]]<>"",IF(ROW()-ROW(PlanificarePlăți[[#Headers],[SOLD INIȚIAL]])=1,ValoareÎmprumut,INDEX(PlanificarePlăți[SOLD FINAL],ROW()-ROW(PlanificarePlăți[[#Headers],[SOLD INIȚIAL]])-1)),"") ->  | E88: =IF(PlanificarePlăți[[#This Row],[NR. PLĂȚI]]<>"",PlatăPlanificată,"") ->  | F88: =IF(PlanificarePlăți[[#This Row],[NR. PLĂȚI]]<>"",IF(PlanificarePlăți[[#This Row],[PLATĂ PLANIFICATĂ]]+PlățiSuplimentare<PlanificarePlăți[[#This Row],[SOLD INIȚIAL]],PlățiSuplimentare,IF(PlanificarePlăți[[#This Row],[SOLD INIȚIAL]]-PlanificarePlăți[[#This Row],[PLATĂ PLANIFICATĂ]]>0,PlanificarePlăți[[#This Row],[SOLD INIȚIAL]]-PlanificarePlăți[[#This Row],[PLATĂ PLANIFICATĂ]],0)),"") ->  | G88: =IF(PlanificarePlăți[[#This Row],[NR. PLĂȚI]]<>"",IF(PlanificarePlăți[[#This Row],[PLATĂ PLANIFICATĂ]]+PlanificarePlăți[[#This Row],[PLATĂ SUPLIMENTARĂ]]<=PlanificarePlăți[[#This Row],[SOLD INIȚIAL]],PlanificarePlăți[[#This Row],[PLATĂ PLANIFICATĂ]]+PlanificarePlăți[[#This Row],[PLATĂ SUPLIMENTARĂ]],PlanificarePlăți[[#This Row],[SOLD INIȚIAL]]),"") ->  | H88: =IF(PlanificarePlăți[[#This Row],[NR. PLĂȚI]]<>"",PlanificarePlăți[[#This Row],[TOTAL DE PLATĂ]]-PlanificarePlăți[[#This Row],[DOBÂNDĂ]],"") ->  | I88: =IF(PlanificarePlăți[[#This Row],[NR. PLĂȚI]]<>"",PlanificarePlăți[[#This Row],[SOLD INIȚIAL]]*(RataDobânzii/PlățiPeAn),"") ->  | J88: =IF(PlanificarePlăți[[#This Row],[NR. PLĂȚI]]<>"",IF(PlanificarePlăți[[#This Row],[PLATĂ PLANIFICATĂ]]+PlanificarePlăți[[#This Row],[PLATĂ SUPLIMENTARĂ]]<=PlanificarePlăți[[#This Row],[SOLD INIȚIAL]],PlanificarePlăți[[#This Row],[SOLD INIȚIAL]]-PlanificarePlăți[[#This Row],[PRINCIPAL]],0),"") ->  | K88: =IF(PlanificarePlăți[[#This Row],[NR. PLĂȚI]]<>"",SUM(INDEX(PlanificarePlăți[DOBÂNDĂ],1,1):PlanificarePlăți[[#This Row],[DOBÂNDĂ]]),"") -> 
B89: =IF(ÎmprumutEsteBun,IF(ROW()-ROW(PlanificarePlăți[[#Headers],[NR. PLĂȚI]])>NumărPlanificatDePlăți,"",ROW()-ROW(PlanificarePlăți[[#Headers],[NR. PLĂȚI]])),"") ->  | C89: =IF(PlanificarePlăți[[#This Row],[NR. PLĂȚI]]<>"",EOMONTH(DataDeÎnceputÎmprumut,ROW(PlanificarePlăți[[#This Row],[NR. PLĂȚI]])-ROW(PlanificarePlăți[[#Headers],[NR. PLĂȚI]])-2)+DAY(DataDeÎnceputÎmprumut),"") ->  | D89: =IF(PlanificarePlăți[[#This Row],[NR. PLĂȚI]]<>"",IF(ROW()-ROW(PlanificarePlăți[[#Headers],[SOLD INIȚIAL]])=1,ValoareÎmprumut,INDEX(PlanificarePlăți[SOLD FINAL],ROW()-ROW(PlanificarePlăți[[#Headers],[SOLD INIȚIAL]])-1)),"") ->  | E89: =IF(PlanificarePlăți[[#This Row],[NR. PLĂȚI]]<>"",PlatăPlanificată,"") ->  | F89: =IF(PlanificarePlăți[[#This Row],[NR. PLĂȚI]]<>"",IF(PlanificarePlăți[[#This Row],[PLATĂ PLANIFICATĂ]]+PlățiSuplimentare<PlanificarePlăți[[#This Row],[SOLD INIȚIAL]],PlățiSuplimentare,IF(PlanificarePlăți[[#This Row],[SOLD INIȚIAL]]-PlanificarePlăți[[#This Row],[PLATĂ PLANIFICATĂ]]>0,PlanificarePlăți[[#This Row],[SOLD INIȚIAL]]-PlanificarePlăți[[#This Row],[PLATĂ PLANIFICATĂ]],0)),"") ->  | G89: =IF(PlanificarePlăți[[#This Row],[NR. PLĂȚI]]<>"",IF(PlanificarePlăți[[#This Row],[PLATĂ PLANIFICATĂ]]+PlanificarePlăți[[#This Row],[PLATĂ SUPLIMENTARĂ]]<=PlanificarePlăți[[#This Row],[SOLD INIȚIAL]],PlanificarePlăți[[#This Row],[PLATĂ PLANIFICATĂ]]+PlanificarePlăți[[#This Row],[PLATĂ SUPLIMENTARĂ]],PlanificarePlăți[[#This Row],[SOLD INIȚIAL]]),"") ->  | H89: =IF(PlanificarePlăți[[#This Row],[NR. PLĂȚI]]<>"",PlanificarePlăți[[#This Row],[TOTAL DE PLATĂ]]-PlanificarePlăți[[#This Row],[DOBÂNDĂ]],"") ->  | I89: =IF(PlanificarePlăți[[#This Row],[NR. PLĂȚI]]<>"",PlanificarePlăți[[#This Row],[SOLD INIȚIAL]]*(RataDobânzii/PlățiPeAn),"") ->  | J89: =IF(PlanificarePlăți[[#This Row],[NR. PLĂȚI]]<>"",IF(PlanificarePlăți[[#This Row],[PLATĂ PLANIFICATĂ]]+PlanificarePlăți[[#This Row],[PLATĂ SUPLIMENTARĂ]]<=PlanificarePlăți[[#This Row],[SOLD INIȚIAL]],PlanificarePlăți[[#This Row],[SOLD INIȚIAL]]-PlanificarePlăți[[#This Row],[PRINCIPAL]],0),"") ->  | K89: =IF(PlanificarePlăți[[#This Row],[NR. PLĂȚI]]<>"",SUM(INDEX(PlanificarePlăți[DOBÂNDĂ],1,1):PlanificarePlăți[[#This Row],[DOBÂNDĂ]]),"") -> 
B90: =IF(ÎmprumutEsteBun,IF(ROW()-ROW(PlanificarePlăți[[#Headers],[NR. PLĂȚI]])>NumărPlanificatDePlăți,"",ROW()-ROW(PlanificarePlăți[[#Headers],[NR. PLĂȚI]])),"") ->  | C90: =IF(PlanificarePlăți[[#This Row],[NR. PLĂȚI]]<>"",EOMONTH(DataDeÎnceputÎmprumut,ROW(PlanificarePlăți[[#This Row],[NR. PLĂȚI]])-ROW(PlanificarePlăți[[#Headers],[NR. PLĂȚI]])-2)+DAY(DataDeÎnceputÎmprumut),"") ->  | D90: =IF(PlanificarePlăți[[#This Row],[NR. PLĂȚI]]<>"",IF(ROW()-ROW(PlanificarePlăți[[#Headers],[SOLD INIȚIAL]])=1,ValoareÎmprumut,INDEX(PlanificarePlăți[SOLD FINAL],ROW()-ROW(PlanificarePlăți[[#Headers],[SOLD INIȚIAL]])-1)),"") ->  | E90: =IF(PlanificarePlăți[[#This Row],[NR. PLĂȚI]]<>"",PlatăPlanificată,"") ->  | F90: =IF(PlanificarePlăți[[#This Row],[NR. PLĂȚI]]<>"",IF(PlanificarePlăți[[#This Row],[PLATĂ PLANIFICATĂ]]+PlățiSuplimentare<PlanificarePlăți[[#This Row],[SOLD INIȚIAL]],PlățiSuplimentare,IF(PlanificarePlăți[[#This Row],[SOLD INIȚIAL]]-PlanificarePlăți[[#This Row],[PLATĂ PLANIFICATĂ]]>0,PlanificarePlăți[[#This Row],[SOLD INIȚIAL]]-PlanificarePlăți[[#This Row],[PLATĂ PLANIFICATĂ]],0)),"") ->  | G90: =IF(PlanificarePlăți[[#This Row],[NR. PLĂȚI]]<>"",IF(PlanificarePlăți[[#This Row],[PLATĂ PLANIFICATĂ]]+PlanificarePlăți[[#This Row],[PLATĂ SUPLIMENTARĂ]]<=PlanificarePlăți[[#This Row],[SOLD INIȚIAL]],PlanificarePlăți[[#This Row],[PLATĂ PLANIFICATĂ]]+PlanificarePlăți[[#This Row],[PLATĂ SUPLIMENTARĂ]],PlanificarePlăți[[#This Row],[SOLD INIȚIAL]]),"") ->  | H90: =IF(PlanificarePlăți[[#This Row],[NR. PLĂȚI]]<>"",PlanificarePlăți[[#This Row],[TOTAL DE PLATĂ]]-PlanificarePlăți[[#This Row],[DOBÂNDĂ]],"") ->  | I90: =IF(PlanificarePlăți[[#This Row],[NR. PLĂȚI]]<>"",PlanificarePlăți[[#This Row],[SOLD INIȚIAL]]*(RataDobânzii/PlățiPeAn),"") ->  | J90: =IF(PlanificarePlăți[[#This Row],[NR. PLĂȚI]]<>"",IF(PlanificarePlăți[[#This Row],[PLATĂ PLANIFICATĂ]]+PlanificarePlăți[[#This Row],[PLATĂ SUPLIMENTARĂ]]<=PlanificarePlăți[[#This Row],[SOLD INIȚIAL]],PlanificarePlăți[[#This Row],[SOLD INIȚIAL]]-PlanificarePlăți[[#This Row],[PRINCIPAL]],0),"") ->  | K90: =IF(PlanificarePlăți[[#This Row],[NR. PLĂȚI]]<>"",SUM(INDEX(PlanificarePlăți[DOBÂNDĂ],1,1):PlanificarePlăți[[#This Row],[DOBÂNDĂ]]),"") -> 
B91: =IF(ÎmprumutEsteBun,IF(ROW()-ROW(PlanificarePlăți[[#Headers],[NR. PLĂȚI]])>NumărPlanificatDePlăți,"",ROW()-ROW(PlanificarePlăți[[#Headers],[NR. PLĂȚI]])),"") ->  | C91: =IF(PlanificarePlăți[[#This Row],[NR. PLĂȚI]]<>"",EOMONTH(DataDeÎnceputÎmprumut,ROW(PlanificarePlăți[[#This Row],[NR. PLĂȚI]])-ROW(PlanificarePlăți[[#Headers],[NR. PLĂȚI]])-2)+DAY(DataDeÎnceputÎmprumut),"") ->  | D91: =IF(PlanificarePlăți[[#This Row],[NR. PLĂȚI]]<>"",IF(ROW()-ROW(PlanificarePlăți[[#Headers],[SOLD INIȚIAL]])=1,ValoareÎmprumut,INDEX(PlanificarePlăți[SOLD FINAL],ROW()-ROW(PlanificarePlăți[[#Headers],[SOLD INIȚIAL]])-1)),"") ->  | E91: =IF(PlanificarePlăți[[#This Row],[NR. PLĂȚI]]<>"",PlatăPlanificată,"") ->  | F91: =IF(PlanificarePlăți[[#This Row],[NR. PLĂȚI]]<>"",IF(PlanificarePlăți[[#This Row],[PLATĂ PLANIFICATĂ]]+PlățiSuplimentare<PlanificarePlăți[[#This Row],[SOLD INIȚIAL]],PlățiSuplimentare,IF(PlanificarePlăți[[#This Row],[SOLD INIȚIAL]]-PlanificarePlăți[[#This Row],[PLATĂ PLANIFICATĂ]]>0,PlanificarePlăți[[#This Row],[SOLD INIȚIAL]]-PlanificarePlăți[[#This Row],[PLATĂ PLANIFICATĂ]],0)),"") ->  | G91: =IF(PlanificarePlăți[[#This Row],[NR. PLĂȚI]]<>"",IF(PlanificarePlăți[[#This Row],[PLATĂ PLANIFICATĂ]]+PlanificarePlăți[[#This Row],[PLATĂ SUPLIMENTARĂ]]<=PlanificarePlăți[[#This Row],[SOLD INIȚIAL]],PlanificarePlăți[[#This Row],[PLATĂ PLANIFICATĂ]]+PlanificarePlăți[[#This Row],[PLATĂ SUPLIMENTARĂ]],PlanificarePlăți[[#This Row],[SOLD INIȚIAL]]),"") ->  | H91: =IF(PlanificarePlăți[[#This Row],[NR. PLĂȚI]]<>"",PlanificarePlăți[[#This Row],[TOTAL DE PLATĂ]]-PlanificarePlăți[[#This Row],[DOBÂNDĂ]],"") ->  | I91: =IF(PlanificarePlăți[[#This Row],[NR. PLĂȚI]]<>"",PlanificarePlăți[[#This Row],[SOLD INIȚIAL]]*(RataDobânzii/PlățiPeAn),"") ->  | J91: =IF(PlanificarePlăți[[#This Row],[NR. PLĂȚI]]<>"",IF(PlanificarePlăți[[#This Row],[PLATĂ PLANIFICATĂ]]+PlanificarePlăți[[#This Row],[PLATĂ SUPLIMENTARĂ]]<=PlanificarePlăți[[#This Row],[SOLD INIȚIAL]],PlanificarePlăți[[#This Row],[SOLD INIȚIAL]]-PlanificarePlăți[[#This Row],[PRINCIPAL]],0),"") ->  | K91: =IF(PlanificarePlăți[[#This Row],[NR. PLĂȚI]]<>"",SUM(INDEX(PlanificarePlăți[DOBÂNDĂ],1,1):PlanificarePlăți[[#This Row],[DOBÂNDĂ]]),"") -> 
B92: =IF(ÎmprumutEsteBun,IF(ROW()-ROW(PlanificarePlăți[[#Headers],[NR. PLĂȚI]])>NumărPlanificatDePlăți,"",ROW()-ROW(PlanificarePlăți[[#Headers],[NR. PLĂȚI]])),"") ->  | C92: =IF(PlanificarePlăți[[#This Row],[NR. PLĂȚI]]<>"",EOMONTH(DataDeÎnceputÎmprumut,ROW(PlanificarePlăți[[#This Row],[NR. PLĂȚI]])-ROW(PlanificarePlăți[[#Headers],[NR. PLĂȚI]])-2)+DAY(DataDeÎnceputÎmprumut),"") ->  | D92: =IF(PlanificarePlăți[[#This Row],[NR. PLĂȚI]]<>"",IF(ROW()-ROW(PlanificarePlăți[[#Headers],[SOLD INIȚIAL]])=1,ValoareÎmprumut,INDEX(PlanificarePlăți[SOLD FINAL],ROW()-ROW(PlanificarePlăți[[#Headers],[SOLD INIȚIAL]])-1)),"") ->  | E92: =IF(PlanificarePlăți[[#This Row],[NR. PLĂȚI]]<>"",PlatăPlanificată,"") ->  | F92: =IF(PlanificarePlăți[[#This Row],[NR. PLĂȚI]]<>"",IF(PlanificarePlăți[[#This Row],[PLATĂ PLANIFICATĂ]]+PlățiSuplimentare<PlanificarePlăți[[#This Row],[SOLD INIȚIAL]],PlățiSuplimentare,IF(PlanificarePlăți[[#This Row],[SOLD INIȚIAL]]-PlanificarePlăți[[#This Row],[PLATĂ PLANIFICATĂ]]>0,PlanificarePlăți[[#This Row],[SOLD INIȚIAL]]-PlanificarePlăți[[#This Row],[PLATĂ PLANIFICATĂ]],0)),"") ->  | G92: =IF(PlanificarePlăți[[#This Row],[NR. PLĂȚI]]<>"",IF(PlanificarePlăți[[#This Row],[PLATĂ PLANIFICATĂ]]+PlanificarePlăți[[#This Row],[PLATĂ SUPLIMENTARĂ]]<=PlanificarePlăți[[#This Row],[SOLD INIȚIAL]],PlanificarePlăți[[#This Row],[PLATĂ PLANIFICATĂ]]+PlanificarePlăți[[#This Row],[PLATĂ SUPLIMENTARĂ]],PlanificarePlăți[[#This Row],[SOLD INIȚIAL]]),"") ->  | H92: =IF(PlanificarePlăți[[#This Row],[NR. PLĂȚI]]<>"",PlanificarePlăți[[#This Row],[TOTAL DE PLATĂ]]-PlanificarePlăți[[#This Row],[DOBÂNDĂ]],"") ->  | I92: =IF(PlanificarePlăți[[#This Row],[NR. PLĂȚI]]<>"",PlanificarePlăți[[#This Row],[SOLD INIȚIAL]]*(RataDobânzii/PlățiPeAn),"") ->  | J92: =IF(PlanificarePlăți[[#This Row],[NR. PLĂȚI]]<>"",IF(PlanificarePlăți[[#This Row],[PLATĂ PLANIFICATĂ]]+PlanificarePlăți[[#This Row],[PLATĂ SUPLIMENTARĂ]]<=PlanificarePlăți[[#This Row],[SOLD INIȚIAL]],PlanificarePlăți[[#This Row],[SOLD INIȚIAL]]-PlanificarePlăți[[#This Row],[PRINCIPAL]],0),"") ->  | K92: =IF(PlanificarePlăți[[#This Row],[NR. PLĂȚI]]<>"",SUM(INDEX(PlanificarePlăți[DOBÂNDĂ],1,1):PlanificarePlăți[[#This Row],[DOBÂNDĂ]]),"") -> 
B93: =IF(ÎmprumutEsteBun,IF(ROW()-ROW(PlanificarePlăți[[#Headers],[NR. PLĂȚI]])>NumărPlanificatDePlăți,"",ROW()-ROW(PlanificarePlăți[[#Headers],[NR. PLĂȚI]])),"") ->  | C93: =IF(PlanificarePlăți[[#This Row],[NR. PLĂȚI]]<>"",EOMONTH(DataDeÎnceputÎmprumut,ROW(PlanificarePlăți[[#This Row],[NR. PLĂȚI]])-ROW(PlanificarePlăți[[#Headers],[NR. PLĂȚI]])-2)+DAY(DataDeÎnceputÎmprumut),"") ->  | D93: =IF(PlanificarePlăți[[#This Row],[NR. PLĂȚI]]<>"",IF(ROW()-ROW(PlanificarePlăți[[#Headers],[SOLD INIȚIAL]])=1,ValoareÎmprumut,INDEX(PlanificarePlăți[SOLD FINAL],ROW()-ROW(PlanificarePlăți[[#Headers],[SOLD INIȚIAL]])-1)),"") ->  | E93: =IF(PlanificarePlăți[[#This Row],[NR. PLĂȚI]]<>"",PlatăPlanificată,"") ->  | F93: =IF(PlanificarePlăți[[#This Row],[NR. PLĂȚI]]<>"",IF(PlanificarePlăți[[#This Row],[PLATĂ PLANIFICATĂ]]+PlățiSuplimentare<PlanificarePlăți[[#This Row],[SOLD INIȚIAL]],PlățiSuplimentare,IF(PlanificarePlăți[[#This Row],[SOLD INIȚIAL]]-PlanificarePlăți[[#This Row],[PLATĂ PLANIFICATĂ]]>0,PlanificarePlăți[[#This Row],[SOLD INIȚIAL]]-PlanificarePlăți[[#This Row],[PLATĂ PLANIFICATĂ]],0)),"") ->  | G93: =IF(PlanificarePlăți[[#This Row],[NR. PLĂȚI]]<>"",IF(PlanificarePlăți[[#This Row],[PLATĂ PLANIFICATĂ]]+PlanificarePlăți[[#This Row],[PLATĂ SUPLIMENTARĂ]]<=PlanificarePlăți[[#This Row],[SOLD INIȚIAL]],PlanificarePlăți[[#This Row],[PLATĂ PLANIFICATĂ]]+PlanificarePlăți[[#This Row],[PLATĂ SUPLIMENTARĂ]],PlanificarePlăți[[#This Row],[SOLD INIȚIAL]]),"") ->  | H93: =IF(PlanificarePlăți[[#This Row],[NR. PLĂȚI]]<>"",PlanificarePlăți[[#This Row],[TOTAL DE PLATĂ]]-PlanificarePlăți[[#This Row],[DOBÂNDĂ]],"") ->  | I93: =IF(PlanificarePlăți[[#This Row],[NR. PLĂȚI]]<>"",PlanificarePlăți[[#This Row],[SOLD INIȚIAL]]*(RataDobânzii/PlățiPeAn),"") ->  | J93: =IF(PlanificarePlăți[[#This Row],[NR. PLĂȚI]]<>"",IF(PlanificarePlăți[[#This Row],[PLATĂ PLANIFICATĂ]]+PlanificarePlăți[[#This Row],[PLATĂ SUPLIMENTARĂ]]<=PlanificarePlăți[[#This Row],[SOLD INIȚIAL]],PlanificarePlăți[[#This Row],[SOLD INIȚIAL]]-PlanificarePlăți[[#This Row],[PRINCIPAL]],0),"") ->  | K93: =IF(PlanificarePlăți[[#This Row],[NR. PLĂȚI]]<>"",SUM(INDEX(PlanificarePlăți[DOBÂNDĂ],1,1):PlanificarePlăți[[#This Row],[DOBÂNDĂ]]),"") -> 
B94: =IF(ÎmprumutEsteBun,IF(ROW()-ROW(PlanificarePlăți[[#Headers],[NR. PLĂȚI]])>NumărPlanificatDePlăți,"",ROW()-ROW(PlanificarePlăți[[#Headers],[NR. PLĂȚI]])),"") ->  | C94: =IF(PlanificarePlăți[[#This Row],[NR. PLĂȚI]]<>"",EOMONTH(DataDeÎnceputÎmprumut,ROW(PlanificarePlăți[[#This Row],[NR. PLĂȚI]])-ROW(PlanificarePlăți[[#Headers],[NR. PLĂȚI]])-2)+DAY(DataDeÎnceputÎmprumut),"") ->  | D94: =IF(PlanificarePlăți[[#This Row],[NR. PLĂȚI]]<>"",IF(ROW()-ROW(PlanificarePlăți[[#Headers],[SOLD INIȚIAL]])=1,ValoareÎmprumut,INDEX(PlanificarePlăți[SOLD FINAL],ROW()-ROW(PlanificarePlăți[[#Headers],[SOLD INIȚIAL]])-1)),"") ->  | E94: =IF(PlanificarePlăți[[#This Row],[NR. PLĂȚI]]<>"",PlatăPlanificată,"") ->  | F94: =IF(PlanificarePlăți[[#This Row],[NR. PLĂȚI]]<>"",IF(PlanificarePlăți[[#This Row],[PLATĂ PLANIFICATĂ]]+PlățiSuplimentare<PlanificarePlăți[[#This Row],[SOLD INIȚIAL]],PlățiSuplimentare,IF(PlanificarePlăți[[#This Row],[SOLD INIȚIAL]]-PlanificarePlăți[[#This Row],[PLATĂ PLANIFICATĂ]]>0,PlanificarePlăți[[#This Row],[SOLD INIȚIAL]]-PlanificarePlăți[[#This Row],[PLATĂ PLANIFICATĂ]],0)),"") ->  | G94: =IF(PlanificarePlăți[[#This Row],[NR. PLĂȚI]]<>"",IF(PlanificarePlăți[[#This Row],[PLATĂ PLANIFICATĂ]]+PlanificarePlăți[[#This Row],[PLATĂ SUPLIMENTARĂ]]<=PlanificarePlăți[[#This Row],[SOLD INIȚIAL]],PlanificarePlăți[[#This Row],[PLATĂ PLANIFICATĂ]]+PlanificarePlăți[[#This Row],[PLATĂ SUPLIMENTARĂ]],PlanificarePlăți[[#This Row],[SOLD INIȚIAL]]),"") ->  | H94: =IF(PlanificarePlăți[[#This Row],[NR. PLĂȚI]]<>"",PlanificarePlăți[[#This Row],[TOTAL DE PLATĂ]]-PlanificarePlăți[[#This Row],[DOBÂNDĂ]],"") ->  | I94: =IF(PlanificarePlăți[[#This Row],[NR. PLĂȚI]]<>"",PlanificarePlăți[[#This Row],[SOLD INIȚIAL]]*(RataDobânzii/PlățiPeAn),"") ->  | J94: =IF(PlanificarePlăți[[#This Row],[NR. PLĂȚI]]<>"",IF(PlanificarePlăți[[#This Row],[PLATĂ PLANIFICATĂ]]+PlanificarePlăți[[#This Row],[PLATĂ SUPLIMENTARĂ]]<=PlanificarePlăți[[#This Row],[SOLD INIȚIAL]],PlanificarePlăți[[#This Row],[SOLD INIȚIAL]]-PlanificarePlăți[[#This Row],[PRINCIPAL]],0),"") ->  | K94: =IF(PlanificarePlăți[[#This Row],[NR. PLĂȚI]]<>"",SUM(INDEX(PlanificarePlăți[DOBÂNDĂ],1,1):PlanificarePlăți[[#This Row],[DOBÂNDĂ]]),"") -> 
B95: =IF(ÎmprumutEsteBun,IF(ROW()-ROW(PlanificarePlăți[[#Headers],[NR. PLĂȚI]])>NumărPlanificatDePlăți,"",ROW()-ROW(PlanificarePlăți[[#Headers],[NR. PLĂȚI]])),"") ->  | C95: =IF(PlanificarePlăți[[#This Row],[NR. PLĂȚI]]<>"",EOMONTH(DataDeÎnceputÎmprumut,ROW(PlanificarePlăți[[#This Row],[NR. PLĂȚI]])-ROW(PlanificarePlăți[[#Headers],[NR. PLĂȚI]])-2)+DAY(DataDeÎnceputÎmprumut),"") ->  | D95: =IF(PlanificarePlăți[[#This Row],[NR. PLĂȚI]]<>"",IF(ROW()-ROW(PlanificarePlăți[[#Headers],[SOLD INIȚIAL]])=1,ValoareÎmprumut,INDEX(PlanificarePlăți[SOLD FINAL],ROW()-ROW(PlanificarePlăți[[#Headers],[SOLD INIȚIAL]])-1)),"") ->  | E95: =IF(PlanificarePlăți[[#This Row],[NR. PLĂȚI]]<>"",PlatăPlanificată,"") ->  | F95: =IF(PlanificarePlăți[[#This Row],[NR. PLĂȚI]]<>"",IF(PlanificarePlăți[[#This Row],[PLATĂ PLANIFICATĂ]]+PlățiSuplimentare<PlanificarePlăți[[#This Row],[SOLD INIȚIAL]],PlățiSuplimentare,IF(PlanificarePlăți[[#This Row],[SOLD INIȚIAL]]-PlanificarePlăți[[#This Row],[PLATĂ PLANIFICATĂ]]>0,PlanificarePlăți[[#This Row],[SOLD INIȚIAL]]-PlanificarePlăți[[#This Row],[PLATĂ PLANIFICATĂ]],0)),"") ->  | G95: =IF(PlanificarePlăți[[#This Row],[NR. PLĂȚI]]<>"",IF(PlanificarePlăți[[#This Row],[PLATĂ PLANIFICATĂ]]+PlanificarePlăți[[#This Row],[PLATĂ SUPLIMENTARĂ]]<=PlanificarePlăți[[#This Row],[SOLD INIȚIAL]],PlanificarePlăți[[#This Row],[PLATĂ PLANIFICATĂ]]+PlanificarePlăți[[#This Row],[PLATĂ SUPLIMENTARĂ]],PlanificarePlăți[[#This Row],[SOLD INIȚIAL]]),"") ->  | H95: =IF(PlanificarePlăți[[#This Row],[NR. PLĂȚI]]<>"",PlanificarePlăți[[#This Row],[TOTAL DE PLATĂ]]-PlanificarePlăți[[#This Row],[DOBÂNDĂ]],"") ->  | I95: =IF(PlanificarePlăți[[#This Row],[NR. PLĂȚI]]<>"",PlanificarePlăți[[#This Row],[SOLD INIȚIAL]]*(RataDobânzii/PlățiPeAn),"") ->  | J95: =IF(PlanificarePlăți[[#This Row],[NR. PLĂȚI]]<>"",IF(PlanificarePlăți[[#This Row],[PLATĂ PLANIFICATĂ]]+PlanificarePlăți[[#This Row],[PLATĂ SUPLIMENTARĂ]]<=PlanificarePlăți[[#This Row],[SOLD INIȚIAL]],PlanificarePlăți[[#This Row],[SOLD INIȚIAL]]-PlanificarePlăți[[#This Row],[PRINCIPAL]],0),"") ->  | K95: =IF(PlanificarePlăți[[#This Row],[NR. PLĂȚI]]<>"",SUM(INDEX(PlanificarePlăți[DOBÂNDĂ],1,1):PlanificarePlăți[[#This Row],[DOBÂNDĂ]]),"") -> 
B96: =IF(ÎmprumutEsteBun,IF(ROW()-ROW(PlanificarePlăți[[#Headers],[NR. PLĂȚI]])>NumărPlanificatDePlăți,"",ROW()-ROW(PlanificarePlăți[[#Headers],[NR. PLĂȚI]])),"") ->  | C96: =IF(PlanificarePlăți[[#This Row],[NR. PLĂȚI]]<>"",EOMONTH(DataDeÎnceputÎmprumut,ROW(PlanificarePlăți[[#This Row],[NR. PLĂȚI]])-ROW(PlanificarePlăți[[#Headers],[NR. PLĂȚI]])-2)+DAY(DataDeÎnceputÎmprumut),"") ->  | D96: =IF(PlanificarePlăți[[#This Row],[NR. PLĂȚI]]<>"",IF(ROW()-ROW(PlanificarePlăți[[#Headers],[SOLD INIȚIAL]])=1,ValoareÎmprumut,INDEX(PlanificarePlăți[SOLD FINAL],ROW()-ROW(PlanificarePlăți[[#Headers],[SOLD INIȚIAL]])-1)),"") ->  | E96: =IF(PlanificarePlăți[[#This Row],[NR. PLĂȚI]]<>"",PlatăPlanificată,"") ->  | F96: =IF(PlanificarePlăți[[#This Row],[NR. PLĂȚI]]<>"",IF(PlanificarePlăți[[#This Row],[PLATĂ PLANIFICATĂ]]+PlățiSuplimentare<PlanificarePlăți[[#This Row],[SOLD INIȚIAL]],PlățiSuplimentare,IF(PlanificarePlăți[[#This Row],[SOLD INIȚIAL]]-PlanificarePlăți[[#This Row],[PLATĂ PLANIFICATĂ]]>0,PlanificarePlăți[[#This Row],[SOLD INIȚIAL]]-PlanificarePlăți[[#This Row],[PLATĂ PLANIFICATĂ]],0)),"") ->  | G96: =IF(PlanificarePlăți[[#This Row],[NR. PLĂȚI]]<>"",IF(PlanificarePlăți[[#This Row],[PLATĂ PLANIFICATĂ]]+PlanificarePlăți[[#This Row],[PLATĂ SUPLIMENTARĂ]]<=PlanificarePlăți[[#This Row],[SOLD INIȚIAL]],PlanificarePlăți[[#This Row],[PLATĂ PLANIFICATĂ]]+PlanificarePlăți[[#This Row],[PLATĂ SUPLIMENTARĂ]],PlanificarePlăți[[#This Row],[SOLD INIȚIAL]]),"") ->  | H96: =IF(PlanificarePlăți[[#This Row],[NR. PLĂȚI]]<>"",PlanificarePlăți[[#This Row],[TOTAL DE PLATĂ]]-PlanificarePlăți[[#This Row],[DOBÂNDĂ]],"") ->  | I96: =IF(PlanificarePlăți[[#This Row],[NR. PLĂȚI]]<>"",PlanificarePlăți[[#This Row],[SOLD INIȚIAL]]*(RataDobânzii/PlățiPeAn),"") ->  | J96: =IF(PlanificarePlăți[[#This Row],[NR. PLĂȚI]]<>"",IF(PlanificarePlăți[[#This Row],[PLATĂ PLANIFICATĂ]]+PlanificarePlăți[[#This Row],[PLATĂ SUPLIMENTARĂ]]<=PlanificarePlăți[[#This Row],[SOLD INIȚIAL]],PlanificarePlăți[[#This Row],[SOLD INIȚIAL]]-PlanificarePlăți[[#This Row],[PRINCIPAL]],0),"") ->  | K96: =IF(PlanificarePlăți[[#This Row],[NR. PLĂȚI]]<>"",SUM(INDEX(PlanificarePlăți[DOBÂNDĂ],1,1):PlanificarePlăți[[#This Row],[DOBÂNDĂ]]),"") -> 
B97: =IF(ÎmprumutEsteBun,IF(ROW()-ROW(PlanificarePlăți[[#Headers],[NR. PLĂȚI]])>NumărPlanificatDePlăți,"",ROW()-ROW(PlanificarePlăți[[#Headers],[NR. PLĂȚI]])),"") ->  | C97: =IF(PlanificarePlăți[[#This Row],[NR. PLĂȚI]]<>"",EOMONTH(DataDeÎnceputÎmprumut,ROW(PlanificarePlăți[[#This Row],[NR. PLĂȚI]])-ROW(PlanificarePlăți[[#Headers],[NR. PLĂȚI]])-2)+DAY(DataDeÎnceputÎmprumut),"") ->  | D97: =IF(PlanificarePlăți[[#This Row],[NR. PLĂȚI]]<>"",IF(ROW()-ROW(PlanificarePlăți[[#Headers],[SOLD INIȚIAL]])=1,ValoareÎmprumut,INDEX(PlanificarePlăți[SOLD FINAL],ROW()-ROW(PlanificarePlăți[[#Headers],[SOLD INIȚIAL]])-1)),"") ->  | E97: =IF(PlanificarePlăți[[#This Row],[NR. PLĂȚI]]<>"",PlatăPlanificată,"") ->  | F97: =IF(PlanificarePlăți[[#This Row],[NR. PLĂȚI]]<>"",IF(PlanificarePlăți[[#This Row],[PLATĂ PLANIFICATĂ]]+PlățiSuplimentare<PlanificarePlăți[[#This Row],[SOLD INIȚIAL]],PlățiSuplimentare,IF(PlanificarePlăți[[#This Row],[SOLD INIȚIAL]]-PlanificarePlăți[[#This Row],[PLATĂ PLANIFICATĂ]]>0,PlanificarePlăți[[#This Row],[SOLD INIȚIAL]]-PlanificarePlăți[[#This Row],[PLATĂ PLANIFICATĂ]],0)),"") ->  | G97: =IF(PlanificarePlăți[[#This Row],[NR. PLĂȚI]]<>"",IF(PlanificarePlăți[[#This Row],[PLATĂ PLANIFICATĂ]]+PlanificarePlăți[[#This Row],[PLATĂ SUPLIMENTARĂ]]<=PlanificarePlăți[[#This Row],[SOLD INIȚIAL]],PlanificarePlăți[[#This Row],[PLATĂ PLANIFICATĂ]]+PlanificarePlăți[[#This Row],[PLATĂ SUPLIMENTARĂ]],PlanificarePlăți[[#This Row],[SOLD INIȚIAL]]),"") ->  | H97: =IF(PlanificarePlăți[[#This Row],[NR. PLĂȚI]]<>"",PlanificarePlăți[[#This Row],[TOTAL DE PLATĂ]]-PlanificarePlăți[[#This Row],[DOBÂNDĂ]],"") ->  | I97: =IF(PlanificarePlăți[[#This Row],[NR. PLĂȚI]]<>"",PlanificarePlăți[[#This Row],[SOLD INIȚIAL]]*(RataDobânzii/PlățiPeAn),"") ->  | J97: =IF(PlanificarePlăți[[#This Row],[NR. PLĂȚI]]<>"",IF(PlanificarePlăți[[#This Row],[PLATĂ PLANIFICATĂ]]+PlanificarePlăți[[#This Row],[PLATĂ SUPLIMENTARĂ]]<=PlanificarePlăți[[#This Row],[SOLD INIȚIAL]],PlanificarePlăți[[#This Row],[SOLD INIȚIAL]]-PlanificarePlăți[[#This Row],[PRINCIPAL]],0),"") ->  | K97: =IF(PlanificarePlăți[[#This Row],[NR. PLĂȚI]]<>"",SUM(INDEX(PlanificarePlăți[DOBÂNDĂ],1,1):PlanificarePlăți[[#This Row],[DOBÂNDĂ]]),"") -> 
B98: =IF(ÎmprumutEsteBun,IF(ROW()-ROW(PlanificarePlăți[[#Headers],[NR. PLĂȚI]])>NumărPlanificatDePlăți,"",ROW()-ROW(PlanificarePlăți[[#Headers],[NR. PLĂȚI]])),"") ->  | C98: =IF(PlanificarePlăți[[#This Row],[NR. PLĂȚI]]<>"",EOMONTH(DataDeÎnceputÎmprumut,ROW(PlanificarePlăți[[#This Row],[NR. PLĂȚI]])-ROW(PlanificarePlăți[[#Headers],[NR. PLĂȚI]])-2)+DAY(DataDeÎnceputÎmprumut),"") ->  | D98: =IF(PlanificarePlăți[[#This Row],[NR. PLĂȚI]]<>"",IF(ROW()-ROW(PlanificarePlăți[[#Headers],[SOLD INIȚIAL]])=1,ValoareÎmprumut,INDEX(PlanificarePlăți[SOLD FINAL],ROW()-ROW(PlanificarePlăți[[#Headers],[SOLD INIȚIAL]])-1)),"") ->  | E98: =IF(PlanificarePlăți[[#This Row],[NR. PLĂȚI]]<>"",PlatăPlanificată,"") ->  | F98: =IF(PlanificarePlăți[[#This Row],[NR. PLĂȚI]]<>"",IF(PlanificarePlăți[[#This Row],[PLATĂ PLANIFICATĂ]]+PlățiSuplimentare<PlanificarePlăți[[#This Row],[SOLD INIȚIAL]],PlățiSuplimentare,IF(PlanificarePlăți[[#This Row],[SOLD INIȚIAL]]-PlanificarePlăți[[#This Row],[PLATĂ PLANIFICATĂ]]>0,PlanificarePlăți[[#This Row],[SOLD INIȚIAL]]-PlanificarePlăți[[#This Row],[PLATĂ PLANIFICATĂ]],0)),"") ->  | G98: =IF(PlanificarePlăți[[#This Row],[NR. PLĂȚI]]<>"",IF(PlanificarePlăți[[#This Row],[PLATĂ PLANIFICATĂ]]+PlanificarePlăți[[#This Row],[PLATĂ SUPLIMENTARĂ]]<=PlanificarePlăți[[#This Row],[SOLD INIȚIAL]],PlanificarePlăți[[#This Row],[PLATĂ PLANIFICATĂ]]+PlanificarePlăți[[#This Row],[PLATĂ SUPLIMENTARĂ]],PlanificarePlăți[[#This Row],[SOLD INIȚIAL]]),"") ->  | H98: =IF(PlanificarePlăți[[#This Row],[NR. PLĂȚI]]<>"",PlanificarePlăți[[#This Row],[TOTAL DE PLATĂ]]-PlanificarePlăți[[#This Row],[DOBÂNDĂ]],"") ->  | I98: =IF(PlanificarePlăți[[#This Row],[NR. PLĂȚI]]<>"",PlanificarePlăți[[#This Row],[SOLD INIȚIAL]]*(RataDobânzii/PlățiPeAn),"") ->  | J98: =IF(PlanificarePlăți[[#This Row],[NR. PLĂȚI]]<>"",IF(PlanificarePlăți[[#This Row],[PLATĂ PLANIFICATĂ]]+PlanificarePlăți[[#This Row],[PLATĂ SUPLIMENTARĂ]]<=PlanificarePlăți[[#This Row],[SOLD INIȚIAL]],PlanificarePlăți[[#This Row],[SOLD INIȚIAL]]-PlanificarePlăți[[#This Row],[PRINCIPAL]],0),"") ->  | K98: =IF(PlanificarePlăți[[#This Row],[NR. PLĂȚI]]<>"",SUM(INDEX(PlanificarePlăți[DOBÂNDĂ],1,1):PlanificarePlăți[[#This Row],[DOBÂNDĂ]]),"") -> 
B99: =IF(ÎmprumutEsteBun,IF(ROW()-ROW(PlanificarePlăți[[#Headers],[NR. PLĂȚI]])>NumărPlanificatDePlăți,"",ROW()-ROW(PlanificarePlăți[[#Headers],[NR. PLĂȚI]])),"") ->  | C99: =IF(PlanificarePlăți[[#This Row],[NR. PLĂȚI]]<>"",EOMONTH(DataDeÎnceputÎmprumut,ROW(PlanificarePlăți[[#This Row],[NR. PLĂȚI]])-ROW(PlanificarePlăți[[#Headers],[NR. PLĂȚI]])-2)+DAY(DataDeÎnceputÎmprumut),"") ->  | D99: =IF(PlanificarePlăți[[#This Row],[NR. PLĂȚI]]<>"",IF(ROW()-ROW(PlanificarePlăți[[#Headers],[SOLD INIȚIAL]])=1,ValoareÎmprumut,INDEX(PlanificarePlăți[SOLD FINAL],ROW()-ROW(PlanificarePlăți[[#Headers],[SOLD INIȚIAL]])-1)),"") ->  | E99: =IF(PlanificarePlăți[[#This Row],[NR. PLĂȚI]]<>"",PlatăPlanificată,"") ->  | F99: =IF(PlanificarePlăți[[#This Row],[NR. PLĂȚI]]<>"",IF(PlanificarePlăți[[#This Row],[PLATĂ PLANIFICATĂ]]+PlățiSuplimentare<PlanificarePlăți[[#This Row],[SOLD INIȚIAL]],PlățiSuplimentare,IF(PlanificarePlăți[[#This Row],[SOLD INIȚIAL]]-PlanificarePlăți[[#This Row],[PLATĂ PLANIFICATĂ]]>0,PlanificarePlăți[[#This Row],[SOLD INIȚIAL]]-PlanificarePlăți[[#This Row],[PLATĂ PLANIFICATĂ]],0)),"") ->  | G99: =IF(PlanificarePlăți[[#This Row],[NR. PLĂȚI]]<>"",IF(PlanificarePlăți[[#This Row],[PLATĂ PLANIFICATĂ]]+PlanificarePlăți[[#This Row],[PLATĂ SUPLIMENTARĂ]]<=PlanificarePlăți[[#This Row],[SOLD INIȚIAL]],PlanificarePlăți[[#This Row],[PLATĂ PLANIFICATĂ]]+PlanificarePlăți[[#This Row],[PLATĂ SUPLIMENTARĂ]],PlanificarePlăți[[#This Row],[SOLD INIȚIAL]]),"") ->  | H99: =IF(PlanificarePlăți[[#This Row],[NR. PLĂȚI]]<>"",PlanificarePlăți[[#This Row],[TOTAL DE PLATĂ]]-PlanificarePlăți[[#This Row],[DOBÂNDĂ]],"") ->  | I99: =IF(PlanificarePlăți[[#This Row],[NR. PLĂȚI]]<>"",PlanificarePlăți[[#This Row],[SOLD INIȚIAL]]*(RataDobânzii/PlățiPeAn),"") ->  | J99: =IF(PlanificarePlăți[[#This Row],[NR. PLĂȚI]]<>"",IF(PlanificarePlăți[[#This Row],[PLATĂ PLANIFICATĂ]]+PlanificarePlăți[[#This Row],[PLATĂ SUPLIMENTARĂ]]<=PlanificarePlăți[[#This Row],[SOLD INIȚIAL]],PlanificarePlăți[[#This Row],[SOLD INIȚIAL]]-PlanificarePlăți[[#This Row],[PRINCIPAL]],0),"") ->  | K99: =IF(PlanificarePlăți[[#This Row],[NR. PLĂȚI]]<>"",SUM(INDEX(PlanificarePlăți[DOBÂNDĂ],1,1):PlanificarePlăți[[#This Row],[DOBÂNDĂ]]),"") -> 
B100: =IF(ÎmprumutEsteBun,IF(ROW()-ROW(PlanificarePlăți[[#Headers],[NR. PLĂȚI]])>NumărPlanificatDePlăți,"",ROW()-ROW(PlanificarePlăți[[#Headers],[NR. PLĂȚI]])),"") ->  | C100: =IF(PlanificarePlăți[[#This Row],[NR. PLĂȚI]]<>"",EOMONTH(DataDeÎnceputÎmprumut,ROW(PlanificarePlăți[[#This Row],[NR. PLĂȚI]])-ROW(PlanificarePlăți[[#Headers],[NR. PLĂȚI]])-2)+DAY(DataDeÎnceputÎmprumut),"") ->  | D100: =IF(PlanificarePlăți[[#This Row],[NR. PLĂȚI]]<>"",IF(ROW()-ROW(PlanificarePlăți[[#Headers],[SOLD INIȚIAL]])=1,ValoareÎmprumut,INDEX(PlanificarePlăți[SOLD FINAL],ROW()-ROW(PlanificarePlăți[[#Headers],[SOLD INIȚIAL]])-1)),"") ->  | E100: =IF(PlanificarePlăți[[#This Row],[NR. PLĂȚI]]<>"",PlatăPlanificată,"") ->  | F100: =IF(PlanificarePlăți[[#This Row],[NR. PLĂȚI]]<>"",IF(PlanificarePlăți[[#This Row],[PLATĂ PLANIFICATĂ]]+PlățiSuplimentare<PlanificarePlăți[[#This Row],[SOLD INIȚIAL]],PlățiSuplimentare,IF(PlanificarePlăți[[#This Row],[SOLD INIȚIAL]]-PlanificarePlăți[[#This Row],[PLATĂ PLANIFICATĂ]]>0,PlanificarePlăți[[#This Row],[SOLD INIȚIAL]]-PlanificarePlăți[[#This Row],[PLATĂ PLANIFICATĂ]],0)),"") ->  | G100: =IF(PlanificarePlăți[[#This Row],[NR. PLĂȚI]]<>"",IF(PlanificarePlăți[[#This Row],[PLATĂ PLANIFICATĂ]]+PlanificarePlăți[[#This Row],[PLATĂ SUPLIMENTARĂ]]<=PlanificarePlăți[[#This Row],[SOLD INIȚIAL]],PlanificarePlăți[[#This Row],[PLATĂ PLANIFICATĂ]]+PlanificarePlăți[[#This Row],[PLATĂ SUPLIMENTARĂ]],PlanificarePlăți[[#This Row],[SOLD INIȚIAL]]),"") ->  | H100: =IF(PlanificarePlăți[[#This Row],[NR. PLĂȚI]]<>"",PlanificarePlăți[[#This Row],[TOTAL DE PLATĂ]]-PlanificarePlăți[[#This Row],[DOBÂNDĂ]],"") ->  | I100: =IF(PlanificarePlăți[[#This Row],[NR. PLĂȚI]]<>"",PlanificarePlăți[[#This Row],[SOLD INIȚIAL]]*(RataDobânzii/PlățiPeAn),"") ->  | J100: =IF(PlanificarePlăți[[#This Row],[NR. PLĂȚI]]<>"",IF(PlanificarePlăți[[#This Row],[PLATĂ PLANIFICATĂ]]+PlanificarePlăți[[#This Row],[PLATĂ SUPLIMENTARĂ]]<=PlanificarePlăți[[#This Row],[SOLD INIȚIAL]],PlanificarePlăți[[#This Row],[SOLD INIȚIAL]]-PlanificarePlăți[[#This Row],[PRINCIPAL]],0),"") ->  | K100: =IF(PlanificarePlăți[[#This Row],[NR. PLĂȚI]]<>"",SUM(INDEX(PlanificarePlăți[DOBÂNDĂ],1,1):PlanificarePlăți[[#This Row],[DOBÂNDĂ]]),"") -> 
B101: =IF(ÎmprumutEsteBun,IF(ROW()-ROW(PlanificarePlăți[[#Headers],[NR. PLĂȚI]])>NumărPlanificatDePlăți,"",ROW()-ROW(PlanificarePlăți[[#Headers],[NR. PLĂȚI]])),"") ->  | C101: =IF(PlanificarePlăți[[#This Row],[NR. PLĂȚI]]<>"",EOMONTH(DataDeÎnceputÎmprumut,ROW(PlanificarePlăți[[#This Row],[NR. PLĂȚI]])-ROW(PlanificarePlăți[[#Headers],[NR. PLĂȚI]])-2)+DAY(DataDeÎnceputÎmprumut),"") ->  | D101: =IF(PlanificarePlăți[[#This Row],[NR. PLĂȚI]]<>"",IF(ROW()-ROW(PlanificarePlăți[[#Headers],[SOLD INIȚIAL]])=1,ValoareÎmprumut,INDEX(PlanificarePlăți[SOLD FINAL],ROW()-ROW(PlanificarePlăți[[#Headers],[SOLD INIȚIAL]])-1)),"") ->  | E101: =IF(PlanificarePlăți[[#This Row],[NR. PLĂȚI]]<>"",PlatăPlanificată,"") ->  | F101: =IF(PlanificarePlăți[[#This Row],[NR. PLĂȚI]]<>"",IF(PlanificarePlăți[[#This Row],[PLATĂ PLANIFICATĂ]]+PlățiSuplimentare<PlanificarePlăți[[#This Row],[SOLD INIȚIAL]],PlățiSuplimentare,IF(PlanificarePlăți[[#This Row],[SOLD INIȚIAL]]-PlanificarePlăți[[#This Row],[PLATĂ PLANIFICATĂ]]>0,PlanificarePlăți[[#This Row],[SOLD INIȚIAL]]-PlanificarePlăți[[#This Row],[PLATĂ PLANIFICATĂ]],0)),"") ->  | G101: =IF(PlanificarePlăți[[#This Row],[NR. PLĂȚI]]<>"",IF(PlanificarePlăți[[#This Row],[PLATĂ PLANIFICATĂ]]+PlanificarePlăți[[#This Row],[PLATĂ SUPLIMENTARĂ]]<=PlanificarePlăți[[#This Row],[SOLD INIȚIAL]],PlanificarePlăți[[#This Row],[PLATĂ PLANIFICATĂ]]+PlanificarePlăți[[#This Row],[PLATĂ SUPLIMENTARĂ]],PlanificarePlăți[[#This Row],[SOLD INIȚIAL]]),"") ->  | H101: =IF(PlanificarePlăți[[#This Row],[NR. PLĂȚI]]<>"",PlanificarePlăți[[#This Row],[TOTAL DE PLATĂ]]-PlanificarePlăți[[#This Row],[DOBÂNDĂ]],"") ->  | I101: =IF(PlanificarePlăți[[#This Row],[NR. PLĂȚI]]<>"",PlanificarePlăți[[#This Row],[SOLD INIȚIAL]]*(RataDobânzii/PlățiPeAn),"") ->  | J101: =IF(PlanificarePlăți[[#This Row],[NR. PLĂȚI]]<>"",IF(PlanificarePlăți[[#This Row],[PLATĂ PLANIFICATĂ]]+PlanificarePlăți[[#This Row],[PLATĂ SUPLIMENTARĂ]]<=PlanificarePlăți[[#This Row],[SOLD INIȚIAL]],PlanificarePlăți[[#This Row],[SOLD INIȚIAL]]-PlanificarePlăți[[#This Row],[PRINCIPAL]],0),"") ->  | K101: =IF(PlanificarePlăți[[#This Row],[NR. PLĂȚI]]<>"",SUM(INDEX(PlanificarePlăți[DOBÂNDĂ],1,1):PlanificarePlăți[[#This Row],[DOBÂNDĂ]]),"") -> 
B102: =IF(ÎmprumutEsteBun,IF(ROW()-ROW(PlanificarePlăți[[#Headers],[NR. PLĂȚI]])>NumărPlanificatDePlăți,"",ROW()-ROW(PlanificarePlăți[[#Headers],[NR. PLĂȚI]])),"") ->  | C102: =IF(PlanificarePlăți[[#This Row],[NR. PLĂȚI]]<>"",EOMONTH(DataDeÎnceputÎmprumut,ROW(PlanificarePlăți[[#This Row],[NR. PLĂȚI]])-ROW(PlanificarePlăți[[#Headers],[NR. PLĂȚI]])-2)+DAY(DataDeÎnceputÎmprumut),"") ->  | D102: =IF(PlanificarePlăți[[#This Row],[NR. PLĂȚI]]<>"",IF(ROW()-ROW(PlanificarePlăți[[#Headers],[SOLD INIȚIAL]])=1,ValoareÎmprumut,INDEX(PlanificarePlăți[SOLD FINAL],ROW()-ROW(PlanificarePlăți[[#Headers],[SOLD INIȚIAL]])-1)),"") ->  | E102: =IF(PlanificarePlăți[[#This Row],[NR. PLĂȚI]]<>"",PlatăPlanificată,"") ->  | F102: =IF(PlanificarePlăți[[#This Row],[NR. PLĂȚI]]<>"",IF(PlanificarePlăți[[#This Row],[PLATĂ PLANIFICATĂ]]+PlățiSuplimentare<PlanificarePlăți[[#This Row],[SOLD INIȚIAL]],PlățiSuplimentare,IF(PlanificarePlăți[[#This Row],[SOLD INIȚIAL]]-PlanificarePlăți[[#This Row],[PLATĂ PLANIFICATĂ]]>0,PlanificarePlăți[[#This Row],[SOLD INIȚIAL]]-PlanificarePlăți[[#This Row],[PLATĂ PLANIFICATĂ]],0)),"") ->  | G102: =IF(PlanificarePlăți[[#This Row],[NR. PLĂȚI]]<>"",IF(PlanificarePlăți[[#This Row],[PLATĂ PLANIFICATĂ]]+PlanificarePlăți[[#This Row],[PLATĂ SUPLIMENTARĂ]]<=PlanificarePlăți[[#This Row],[SOLD INIȚIAL]],PlanificarePlăți[[#This Row],[PLATĂ PLANIFICATĂ]]+PlanificarePlăți[[#This Row],[PLATĂ SUPLIMENTARĂ]],PlanificarePlăți[[#This Row],[SOLD INIȚIAL]]),"") ->  | H102: =IF(PlanificarePlăți[[#This Row],[NR. PLĂȚI]]<>"",PlanificarePlăți[[#This Row],[TOTAL DE PLATĂ]]-PlanificarePlăți[[#This Row],[DOBÂNDĂ]],"") ->  | I102: =IF(PlanificarePlăți[[#This Row],[NR. PLĂȚI]]<>"",PlanificarePlăți[[#This Row],[SOLD INIȚIAL]]*(RataDobânzii/PlățiPeAn),"") ->  | J102: =IF(PlanificarePlăți[[#This Row],[NR. PLĂȚI]]<>"",IF(PlanificarePlăți[[#This Row],[PLATĂ PLANIFICATĂ]]+PlanificarePlăți[[#This Row],[PLATĂ SUPLIMENTARĂ]]<=PlanificarePlăți[[#This Row],[SOLD INIȚIAL]],PlanificarePlăți[[#This Row],[SOLD INIȚIAL]]-PlanificarePlăți[[#This Row],[PRINCIPAL]],0),"") ->  | K102: =IF(PlanificarePlăți[[#This Row],[NR. PLĂȚI]]<>"",SUM(INDEX(PlanificarePlăți[DOBÂNDĂ],1,1):PlanificarePlăți[[#This Row],[DOBÂNDĂ]]),"") -> 
B103: =IF(ÎmprumutEsteBun,IF(ROW()-ROW(PlanificarePlăți[[#Headers],[NR. PLĂȚI]])>NumărPlanificatDePlăți,"",ROW()-ROW(PlanificarePlăți[[#Headers],[NR. PLĂȚI]])),"") ->  | C103: =IF(PlanificarePlăți[[#This Row],[NR. PLĂȚI]]<>"",EOMONTH(DataDeÎnceputÎmprumut,ROW(PlanificarePlăți[[#This Row],[NR. PLĂȚI]])-ROW(PlanificarePlăți[[#Headers],[NR. PLĂȚI]])-2)+DAY(DataDeÎnceputÎmprumut),"") ->  | D103: =IF(PlanificarePlăți[[#This Row],[NR. PLĂȚI]]<>"",IF(ROW()-ROW(PlanificarePlăți[[#Headers],[SOLD INIȚIAL]])=1,ValoareÎmprumut,INDEX(PlanificarePlăți[SOLD FINAL],ROW()-ROW(PlanificarePlăți[[#Headers],[SOLD INIȚIAL]])-1)),"") ->  | E103: =IF(PlanificarePlăți[[#This Row],[NR. PLĂȚI]]<>"",PlatăPlanificată,"") ->  | F103: =IF(PlanificarePlăți[[#This Row],[NR. PLĂȚI]]<>"",IF(PlanificarePlăți[[#This Row],[PLATĂ PLANIFICATĂ]]+PlățiSuplimentare<PlanificarePlăți[[#This Row],[SOLD INIȚIAL]],PlățiSuplimentare,IF(PlanificarePlăți[[#This Row],[SOLD INIȚIAL]]-PlanificarePlăți[[#This Row],[PLATĂ PLANIFICATĂ]]>0,PlanificarePlăți[[#This Row],[SOLD INIȚIAL]]-PlanificarePlăți[[#This Row],[PLATĂ PLANIFICATĂ]],0)),"") ->  | G103: =IF(PlanificarePlăți[[#This Row],[NR. PLĂȚI]]<>"",IF(PlanificarePlăți[[#This Row],[PLATĂ PLANIFICATĂ]]+PlanificarePlăți[[#This Row],[PLATĂ SUPLIMENTARĂ]]<=PlanificarePlăți[[#This Row],[SOLD INIȚIAL]],PlanificarePlăți[[#This Row],[PLATĂ PLANIFICATĂ]]+PlanificarePlăți[[#This Row],[PLATĂ SUPLIMENTARĂ]],PlanificarePlăți[[#This Row],[SOLD INIȚIAL]]),"") ->  | H103: =IF(PlanificarePlăți[[#This Row],[NR. PLĂȚI]]<>"",PlanificarePlăți[[#This Row],[TOTAL DE PLATĂ]]-PlanificarePlăți[[#This Row],[DOBÂNDĂ]],"") ->  | I103: =IF(PlanificarePlăți[[#This Row],[NR. PLĂȚI]]<>"",PlanificarePlăți[[#This Row],[SOLD INIȚIAL]]*(RataDobânzii/PlățiPeAn),"") ->  | J103: =IF(PlanificarePlăți[[#This Row],[NR. PLĂȚI]]<>"",IF(PlanificarePlăți[[#This Row],[PLATĂ PLANIFICATĂ]]+PlanificarePlăți[[#This Row],[PLATĂ SUPLIMENTARĂ]]<=PlanificarePlăți[[#This Row],[SOLD INIȚIAL]],PlanificarePlăți[[#This Row],[SOLD INIȚIAL]]-PlanificarePlăți[[#This Row],[PRINCIPAL]],0),"") ->  | K103: =IF(PlanificarePlăți[[#This Row],[NR. PLĂȚI]]<>"",SUM(INDEX(PlanificarePlăți[DOBÂNDĂ],1,1):PlanificarePlăți[[#This Row],[DOBÂNDĂ]]),"") -> 
B104: =IF(ÎmprumutEsteBun,IF(ROW()-ROW(PlanificarePlăți[[#Headers],[NR. PLĂȚI]])>NumărPlanificatDePlăți,"",ROW()-ROW(PlanificarePlăți[[#Headers],[NR. PLĂȚI]])),"") ->  | C104: =IF(PlanificarePlăți[[#This Row],[NR. PLĂȚI]]<>"",EOMONTH(DataDeÎnceputÎmprumut,ROW(PlanificarePlăți[[#This Row],[NR. PLĂȚI]])-ROW(PlanificarePlăți[[#Headers],[NR. PLĂȚI]])-2)+DAY(DataDeÎnceputÎmprumut),"") ->  | D104: =IF(PlanificarePlăți[[#This Row],[NR. PLĂȚI]]<>"",IF(ROW()-ROW(PlanificarePlăți[[#Headers],[SOLD INIȚIAL]])=1,ValoareÎmprumut,INDEX(PlanificarePlăți[SOLD FINAL],ROW()-ROW(PlanificarePlăți[[#Headers],[SOLD INIȚIAL]])-1)),"") ->  | E104: =IF(PlanificarePlăți[[#This Row],[NR. PLĂȚI]]<>"",PlatăPlanificată,"") ->  | F104: =IF(PlanificarePlăți[[#This Row],[NR. PLĂȚI]]<>"",IF(PlanificarePlăți[[#This Row],[PLATĂ PLANIFICATĂ]]+PlățiSuplimentare<PlanificarePlăți[[#This Row],[SOLD INIȚIAL]],PlățiSuplimentare,IF(PlanificarePlăți[[#This Row],[SOLD INIȚIAL]]-PlanificarePlăți[[#This Row],[PLATĂ PLANIFICATĂ]]>0,PlanificarePlăți[[#This Row],[SOLD INIȚIAL]]-PlanificarePlăți[[#This Row],[PLATĂ PLANIFICATĂ]],0)),"") ->  | G104: =IF(PlanificarePlăți[[#This Row],[NR. PLĂȚI]]<>"",IF(PlanificarePlăți[[#This Row],[PLATĂ PLANIFICATĂ]]+PlanificarePlăți[[#This Row],[PLATĂ SUPLIMENTARĂ]]<=PlanificarePlăți[[#This Row],[SOLD INIȚIAL]],PlanificarePlăți[[#This Row],[PLATĂ PLANIFICATĂ]]+PlanificarePlăți[[#This Row],[PLATĂ SUPLIMENTARĂ]],PlanificarePlăți[[#This Row],[SOLD INIȚIAL]]),"") ->  | H104: =IF(PlanificarePlăți[[#This Row],[NR. PLĂȚI]]<>"",PlanificarePlăți[[#This Row],[TOTAL DE PLATĂ]]-PlanificarePlăți[[#This Row],[DOBÂNDĂ]],"") ->  | I104: =IF(PlanificarePlăți[[#This Row],[NR. PLĂȚI]]<>"",PlanificarePlăți[[#This Row],[SOLD INIȚIAL]]*(RataDobânzii/PlățiPeAn),"") ->  | J104: =IF(PlanificarePlăți[[#This Row],[NR. PLĂȚI]]<>"",IF(PlanificarePlăți[[#This Row],[PLATĂ PLANIFICATĂ]]+PlanificarePlăți[[#This Row],[PLATĂ SUPLIMENTARĂ]]<=PlanificarePlăți[[#This Row],[SOLD INIȚIAL]],PlanificarePlăți[[#This Row],[SOLD INIȚIAL]]-PlanificarePlăți[[#This Row],[PRINCIPAL]],0),"") ->  | K104: =IF(PlanificarePlăți[[#This Row],[NR. PLĂȚI]]<>"",SUM(INDEX(PlanificarePlăți[DOBÂNDĂ],1,1):PlanificarePlăți[[#This Row],[DOBÂNDĂ]]),"") -> 
B105: =IF(ÎmprumutEsteBun,IF(ROW()-ROW(PlanificarePlăți[[#Headers],[NR. PLĂȚI]])>NumărPlanificatDePlăți,"",ROW()-ROW(PlanificarePlăți[[#Headers],[NR. PLĂȚI]])),"") ->  | C105: =IF(PlanificarePlăți[[#This Row],[NR. PLĂȚI]]<>"",EOMONTH(DataDeÎnceputÎmprumut,ROW(PlanificarePlăți[[#This Row],[NR. PLĂȚI]])-ROW(PlanificarePlăți[[#Headers],[NR. PLĂȚI]])-2)+DAY(DataDeÎnceputÎmprumut),"") ->  | D105: =IF(PlanificarePlăți[[#This Row],[NR. PLĂȚI]]<>"",IF(ROW()-ROW(PlanificarePlăți[[#Headers],[SOLD INIȚIAL]])=1,ValoareÎmprumut,INDEX(PlanificarePlăți[SOLD FINAL],ROW()-ROW(PlanificarePlăți[[#Headers],[SOLD INIȚIAL]])-1)),"") ->  | E105: =IF(PlanificarePlăți[[#This Row],[NR. PLĂȚI]]<>"",PlatăPlanificată,"") ->  | F105: =IF(PlanificarePlăți[[#This Row],[NR. PLĂȚI]]<>"",IF(PlanificarePlăți[[#This Row],[PLATĂ PLANIFICATĂ]]+PlățiSuplimentare<PlanificarePlăți[[#This Row],[SOLD INIȚIAL]],PlățiSuplimentare,IF(PlanificarePlăți[[#This Row],[SOLD INIȚIAL]]-PlanificarePlăți[[#This Row],[PLATĂ PLANIFICATĂ]]>0,PlanificarePlăți[[#This Row],[SOLD INIȚIAL]]-PlanificarePlăți[[#This Row],[PLATĂ PLANIFICATĂ]],0)),"") ->  | G105: =IF(PlanificarePlăți[[#This Row],[NR. PLĂȚI]]<>"",IF(PlanificarePlăți[[#This Row],[PLATĂ PLANIFICATĂ]]+PlanificarePlăți[[#This Row],[PLATĂ SUPLIMENTARĂ]]<=PlanificarePlăți[[#This Row],[SOLD INIȚIAL]],PlanificarePlăți[[#This Row],[PLATĂ PLANIFICATĂ]]+PlanificarePlăți[[#This Row],[PLATĂ SUPLIMENTARĂ]],PlanificarePlăți[[#This Row],[SOLD INIȚIAL]]),"") ->  | H105: =IF(PlanificarePlăți[[#This Row],[NR. PLĂȚI]]<>"",PlanificarePlăți[[#This Row],[TOTAL DE PLATĂ]]-PlanificarePlăți[[#This Row],[DOBÂNDĂ]],"") ->  | I105: =IF(PlanificarePlăți[[#This Row],[NR. PLĂȚI]]<>"",PlanificarePlăți[[#This Row],[SOLD INIȚIAL]]*(RataDobânzii/PlățiPeAn),"") ->  | J105: =IF(PlanificarePlăți[[#This Row],[NR. PLĂȚI]]<>"",IF(PlanificarePlăți[[#This Row],[PLATĂ PLANIFICATĂ]]+PlanificarePlăți[[#This Row],[PLATĂ SUPLIMENTARĂ]]<=PlanificarePlăți[[#This Row],[SOLD INIȚIAL]],PlanificarePlăți[[#This Row],[SOLD INIȚIAL]]-PlanificarePlăți[[#This Row],[PRINCIPAL]],0),"") ->  | K105: =IF(PlanificarePlăți[[#This Row],[NR. PLĂȚI]]<>"",SUM(INDEX(PlanificarePlăți[DOBÂNDĂ],1,1):PlanificarePlăți[[#This Row],[DOBÂNDĂ]]),"") -> 
B106: =IF(ÎmprumutEsteBun,IF(ROW()-ROW(PlanificarePlăți[[#Headers],[NR. PLĂȚI]])>NumărPlanificatDePlăți,"",ROW()-ROW(PlanificarePlăți[[#Headers],[NR. PLĂȚI]])),"") ->  | C106: =IF(PlanificarePlăți[[#This Row],[NR. PLĂȚI]]<>"",EOMONTH(DataDeÎnceputÎmprumut,ROW(PlanificarePlăți[[#This Row],[NR. PLĂȚI]])-ROW(PlanificarePlăți[[#Headers],[NR. PLĂȚI]])-2)+DAY(DataDeÎnceputÎmprumut),"") ->  | D106: =IF(PlanificarePlăți[[#This Row],[NR. PLĂȚI]]<>"",IF(ROW()-ROW(PlanificarePlăți[[#Headers],[SOLD INIȚIAL]])=1,ValoareÎmprumut,INDEX(PlanificarePlăți[SOLD FINAL],ROW()-ROW(PlanificarePlăți[[#Headers],[SOLD INIȚIAL]])-1)),"") ->  | E106: =IF(PlanificarePlăți[[#This Row],[NR. PLĂȚI]]<>"",PlatăPlanificată,"") ->  | F106: =IF(PlanificarePlăți[[#This Row],[NR. PLĂȚI]]<>"",IF(PlanificarePlăți[[#This Row],[PLATĂ PLANIFICATĂ]]+PlățiSuplimentare<PlanificarePlăți[[#This Row],[SOLD INIȚIAL]],PlățiSuplimentare,IF(PlanificarePlăți[[#This Row],[SOLD INIȚIAL]]-PlanificarePlăți[[#This Row],[PLATĂ PLANIFICATĂ]]>0,PlanificarePlăți[[#This Row],[SOLD INIȚIAL]]-PlanificarePlăți[[#This Row],[PLATĂ PLANIFICATĂ]],0)),"") ->  | G106: =IF(PlanificarePlăți[[#This Row],[NR. PLĂȚI]]<>"",IF(PlanificarePlăți[[#This Row],[PLATĂ PLANIFICATĂ]]+PlanificarePlăți[[#This Row],[PLATĂ SUPLIMENTARĂ]]<=PlanificarePlăți[[#This Row],[SOLD INIȚIAL]],PlanificarePlăți[[#This Row],[PLATĂ PLANIFICATĂ]]+PlanificarePlăți[[#This Row],[PLATĂ SUPLIMENTARĂ]],PlanificarePlăți[[#This Row],[SOLD INIȚIAL]]),"") ->  | H106: =IF(PlanificarePlăți[[#This Row],[NR. PLĂȚI]]<>"",PlanificarePlăți[[#This Row],[TOTAL DE PLATĂ]]-PlanificarePlăți[[#This Row],[DOBÂNDĂ]],"") ->  | I106: =IF(PlanificarePlăți[[#This Row],[NR. PLĂȚI]]<>"",PlanificarePlăți[[#This Row],[SOLD INIȚIAL]]*(RataDobânzii/PlățiPeAn),"") ->  | J106: =IF(PlanificarePlăți[[#This Row],[NR. PLĂȚI]]<>"",IF(PlanificarePlăți[[#This Row],[PLATĂ PLANIFICATĂ]]+PlanificarePlăți[[#This Row],[PLATĂ SUPLIMENTARĂ]]<=PlanificarePlăți[[#This Row],[SOLD INIȚIAL]],PlanificarePlăți[[#This Row],[SOLD INIȚIAL]]-PlanificarePlăți[[#This Row],[PRINCIPAL]],0),"") ->  | K106: =IF(PlanificarePlăți[[#This Row],[NR. PLĂȚI]]<>"",SUM(INDEX(PlanificarePlăți[DOBÂNDĂ],1,1):PlanificarePlăți[[#This Row],[DOBÂNDĂ]]),"") -> 
B107: =IF(ÎmprumutEsteBun,IF(ROW()-ROW(PlanificarePlăți[[#Headers],[NR. PLĂȚI]])>NumărPlanificatDePlăți,"",ROW()-ROW(PlanificarePlăți[[#Headers],[NR. PLĂȚI]])),"") ->  | C107: =IF(PlanificarePlăți[[#This Row],[NR. PLĂȚI]]<>"",EOMONTH(DataDeÎnceputÎmprumut,ROW(PlanificarePlăți[[#This Row],[NR. PLĂȚI]])-ROW(PlanificarePlăți[[#Headers],[NR. PLĂȚI]])-2)+DAY(DataDeÎnceputÎmprumut),"") ->  | D107: =IF(PlanificarePlăți[[#This Row],[NR. PLĂȚI]]<>"",IF(ROW()-ROW(PlanificarePlăți[[#Headers],[SOLD INIȚIAL]])=1,ValoareÎmprumut,INDEX(PlanificarePlăți[SOLD FINAL],ROW()-ROW(PlanificarePlăți[[#Headers],[SOLD INIȚIAL]])-1)),"") ->  | E107: =IF(PlanificarePlăți[[#This Row],[NR. PLĂȚI]]<>"",PlatăPlanificată,"") ->  | F107: =IF(PlanificarePlăți[[#This Row],[NR. PLĂȚI]]<>"",IF(PlanificarePlăți[[#This Row],[PLATĂ PLANIFICATĂ]]+PlățiSuplimentare<PlanificarePlăți[[#This Row],[SOLD INIȚIAL]],PlățiSuplimentare,IF(PlanificarePlăți[[#This Row],[SOLD INIȚIAL]]-PlanificarePlăți[[#This Row],[PLATĂ PLANIFICATĂ]]>0,PlanificarePlăți[[#This Row],[SOLD INIȚIAL]]-PlanificarePlăți[[#This Row],[PLATĂ PLANIFICATĂ]],0)),"") ->  | G107: =IF(PlanificarePlăți[[#This Row],[NR. PLĂȚI]]<>"",IF(PlanificarePlăți[[#This Row],[PLATĂ PLANIFICATĂ]]+PlanificarePlăți[[#This Row],[PLATĂ SUPLIMENTARĂ]]<=PlanificarePlăți[[#This Row],[SOLD INIȚIAL]],PlanificarePlăți[[#This Row],[PLATĂ PLANIFICATĂ]]+PlanificarePlăți[[#This Row],[PLATĂ SUPLIMENTARĂ]],PlanificarePlăți[[#This Row],[SOLD INIȚIAL]]),"") ->  | H107: =IF(PlanificarePlăți[[#This Row],[NR. PLĂȚI]]<>"",PlanificarePlăți[[#This Row],[TOTAL DE PLATĂ]]-PlanificarePlăți[[#This Row],[DOBÂNDĂ]],"") ->  | I107: =IF(PlanificarePlăți[[#This Row],[NR. PLĂȚI]]<>"",PlanificarePlăți[[#This Row],[SOLD INIȚIAL]]*(RataDobânzii/PlățiPeAn),"") ->  | J107: =IF(PlanificarePlăți[[#This Row],[NR. PLĂȚI]]<>"",IF(PlanificarePlăți[[#This Row],[PLATĂ PLANIFICATĂ]]+PlanificarePlăți[[#This Row],[PLATĂ SUPLIMENTARĂ]]<=PlanificarePlăți[[#This Row],[SOLD INIȚIAL]],PlanificarePlăți[[#This Row],[SOLD INIȚIAL]]-PlanificarePlăți[[#This Row],[PRINCIPAL]],0),"") ->  | K107: =IF(PlanificarePlăți[[#This Row],[NR. PLĂȚI]]<>"",SUM(INDEX(PlanificarePlăți[DOBÂNDĂ],1,1):PlanificarePlăți[[#This Row],[DOBÂNDĂ]]),"") -> 
B108: =IF(ÎmprumutEsteBun,IF(ROW()-ROW(PlanificarePlăți[[#Headers],[NR. PLĂȚI]])>NumărPlanificatDePlăți,"",ROW()-ROW(PlanificarePlăți[[#Headers],[NR. PLĂȚI]])),"") ->  | C108: =IF(PlanificarePlăți[[#This Row],[NR. PLĂȚI]]<>"",EOMONTH(DataDeÎnceputÎmprumut,ROW(PlanificarePlăți[[#This Row],[NR. PLĂȚI]])-ROW(PlanificarePlăți[[#Headers],[NR. PLĂȚI]])-2)+DAY(DataDeÎnceputÎmprumut),"") ->  | D108: =IF(PlanificarePlăți[[#This Row],[NR. PLĂȚI]]<>"",IF(ROW()-ROW(PlanificarePlăți[[#Headers],[SOLD INIȚIAL]])=1,ValoareÎmprumut,INDEX(PlanificarePlăți[SOLD FINAL],ROW()-ROW(PlanificarePlăți[[#Headers],[SOLD INIȚIAL]])-1)),"") ->  | E108: =IF(PlanificarePlăți[[#This Row],[NR. PLĂȚI]]<>"",PlatăPlanificată,"") ->  | F108: =IF(PlanificarePlăți[[#This Row],[NR. PLĂȚI]]<>"",IF(PlanificarePlăți[[#This Row],[PLATĂ PLANIFICATĂ]]+PlățiSuplimentare<PlanificarePlăți[[#This Row],[SOLD INIȚIAL]],PlățiSuplimentare,IF(PlanificarePlăți[[#This Row],[SOLD INIȚIAL]]-PlanificarePlăți[[#This Row],[PLATĂ PLANIFICATĂ]]>0,PlanificarePlăți[[#This Row],[SOLD INIȚIAL]]-PlanificarePlăți[[#This Row],[PLATĂ PLANIFICATĂ]],0)),"") ->  | G108: =IF(PlanificarePlăți[[#This Row],[NR. PLĂȚI]]<>"",IF(PlanificarePlăți[[#This Row],[PLATĂ PLANIFICATĂ]]+PlanificarePlăți[[#This Row],[PLATĂ SUPLIMENTARĂ]]<=PlanificarePlăți[[#This Row],[SOLD INIȚIAL]],PlanificarePlăți[[#This Row],[PLATĂ PLANIFICATĂ]]+PlanificarePlăți[[#This Row],[PLATĂ SUPLIMENTARĂ]],PlanificarePlăți[[#This Row],[SOLD INIȚIAL]]),"") ->  | H108: =IF(PlanificarePlăți[[#This Row],[NR. PLĂȚI]]<>"",PlanificarePlăți[[#This Row],[TOTAL DE PLATĂ]]-PlanificarePlăți[[#This Row],[DOBÂNDĂ]],"") ->  | I108: =IF(PlanificarePlăți[[#This Row],[NR. PLĂȚI]]<>"",PlanificarePlăți[[#This Row],[SOLD INIȚIAL]]*(RataDobânzii/PlățiPeAn),"") ->  | J108: =IF(PlanificarePlăți[[#This Row],[NR. PLĂȚI]]<>"",IF(PlanificarePlăți[[#This Row],[PLATĂ PLANIFICATĂ]]+PlanificarePlăți[[#This Row],[PLATĂ SUPLIMENTARĂ]]<=PlanificarePlăți[[#This Row],[SOLD INIȚIAL]],PlanificarePlăți[[#This Row],[SOLD INIȚIAL]]-PlanificarePlăți[[#This Row],[PRINCIPAL]],0),"") ->  | K108: =IF(PlanificarePlăți[[#This Row],[NR. PLĂȚI]]<>"",SUM(INDEX(PlanificarePlăți[DOBÂNDĂ],1,1):PlanificarePlăți[[#This Row],[DOBÂNDĂ]]),"") -> 
B109: =IF(ÎmprumutEsteBun,IF(ROW()-ROW(PlanificarePlăți[[#Headers],[NR. PLĂȚI]])>NumărPlanificatDePlăți,"",ROW()-ROW(PlanificarePlăți[[#Headers],[NR. PLĂȚI]])),"") ->  | C109: =IF(PlanificarePlăți[[#This Row],[NR. PLĂȚI]]<>"",EOMONTH(DataDeÎnceputÎmprumut,ROW(PlanificarePlăți[[#This Row],[NR. PLĂȚI]])-ROW(PlanificarePlăți[[#Headers],[NR. PLĂȚI]])-2)+DAY(DataDeÎnceputÎmprumut),"") ->  | D109: =IF(PlanificarePlăți[[#This Row],[NR. PLĂȚI]]<>"",IF(ROW()-ROW(PlanificarePlăți[[#Headers],[SOLD INIȚIAL]])=1,ValoareÎmprumut,INDEX(PlanificarePlăți[SOLD FINAL],ROW()-ROW(PlanificarePlăți[[#Headers],[SOLD INIȚIAL]])-1)),"") ->  | E109: =IF(PlanificarePlăți[[#This Row],[NR. PLĂȚI]]<>"",PlatăPlanificată,"") ->  | F109: =IF(PlanificarePlăți[[#This Row],[NR. PLĂȚI]]<>"",IF(PlanificarePlăți[[#This Row],[PLATĂ PLANIFICATĂ]]+PlățiSuplimentare<PlanificarePlăți[[#This Row],[SOLD INIȚIAL]],PlățiSuplimentare,IF(PlanificarePlăți[[#This Row],[SOLD INIȚIAL]]-PlanificarePlăți[[#This Row],[PLATĂ PLANIFICATĂ]]>0,PlanificarePlăți[[#This Row],[SOLD INIȚIAL]]-PlanificarePlăți[[#This Row],[PLATĂ PLANIFICATĂ]],0)),"") ->  | G109: =IF(PlanificarePlăți[[#This Row],[NR. PLĂȚI]]<>"",IF(PlanificarePlăți[[#This Row],[PLATĂ PLANIFICATĂ]]+PlanificarePlăți[[#This Row],[PLATĂ SUPLIMENTARĂ]]<=PlanificarePlăți[[#This Row],[SOLD INIȚIAL]],PlanificarePlăți[[#This Row],[PLATĂ PLANIFICATĂ]]+PlanificarePlăți[[#This Row],[PLATĂ SUPLIMENTARĂ]],PlanificarePlăți[[#This Row],[SOLD INIȚIAL]]),"") ->  | H109: =IF(PlanificarePlăți[[#This Row],[NR. PLĂȚI]]<>"",PlanificarePlăți[[#This Row],[TOTAL DE PLATĂ]]-PlanificarePlăți[[#This Row],[DOBÂNDĂ]],"") ->  | I109: =IF(PlanificarePlăți[[#This Row],[NR. PLĂȚI]]<>"",PlanificarePlăți[[#This Row],[SOLD INIȚIAL]]*(RataDobânzii/PlățiPeAn),"") ->  | J109: =IF(PlanificarePlăți[[#This Row],[NR. PLĂȚI]]<>"",IF(PlanificarePlăți[[#This Row],[PLATĂ PLANIFICATĂ]]+PlanificarePlăți[[#This Row],[PLATĂ SUPLIMENTARĂ]]<=PlanificarePlăți[[#This Row],[SOLD INIȚIAL]],PlanificarePlăți[[#This Row],[SOLD INIȚIAL]]-PlanificarePlăți[[#This Row],[PRINCIPAL]],0),"") ->  | K109: =IF(PlanificarePlăți[[#This Row],[NR. PLĂȚI]]<>"",SUM(INDEX(PlanificarePlăți[DOBÂNDĂ],1,1):PlanificarePlăți[[#This Row],[DOBÂNDĂ]]),"") -> 
B110: =IF(ÎmprumutEsteBun,IF(ROW()-ROW(PlanificarePlăți[[#Headers],[NR. PLĂȚI]])>NumărPlanificatDePlăți,"",ROW()-ROW(PlanificarePlăți[[#Headers],[NR. PLĂȚI]])),"") ->  | C110: =IF(PlanificarePlăți[[#This Row],[NR. PLĂȚI]]<>"",EOMONTH(DataDeÎnceputÎmprumut,ROW(PlanificarePlăți[[#This Row],[NR. PLĂȚI]])-ROW(PlanificarePlăți[[#Headers],[NR. PLĂȚI]])-2)+DAY(DataDeÎnceputÎmprumut),"") ->  | D110: =IF(PlanificarePlăți[[#This Row],[NR. PLĂȚI]]<>"",IF(ROW()-ROW(PlanificarePlăți[[#Headers],[SOLD INIȚIAL]])=1,ValoareÎmprumut,INDEX(PlanificarePlăți[SOLD FINAL],ROW()-ROW(PlanificarePlăți[[#Headers],[SOLD INIȚIAL]])-1)),"") ->  | E110: =IF(PlanificarePlăți[[#This Row],[NR. PLĂȚI]]<>"",PlatăPlanificată,"") ->  | F110: =IF(PlanificarePlăți[[#This Row],[NR. PLĂȚI]]<>"",IF(PlanificarePlăți[[#This Row],[PLATĂ PLANIFICATĂ]]+PlățiSuplimentare<PlanificarePlăți[[#This Row],[SOLD INIȚIAL]],PlățiSuplimentare,IF(PlanificarePlăți[[#This Row],[SOLD INIȚIAL]]-PlanificarePlăți[[#This Row],[PLATĂ PLANIFICATĂ]]>0,PlanificarePlăți[[#This Row],[SOLD INIȚIAL]]-PlanificarePlăți[[#This Row],[PLATĂ PLANIFICATĂ]],0)),"") ->  | G110: =IF(PlanificarePlăți[[#This Row],[NR. PLĂȚI]]<>"",IF(PlanificarePlăți[[#This Row],[PLATĂ PLANIFICATĂ]]+PlanificarePlăți[[#This Row],[PLATĂ SUPLIMENTARĂ]]<=PlanificarePlăți[[#This Row],[SOLD INIȚIAL]],PlanificarePlăți[[#This Row],[PLATĂ PLANIFICATĂ]]+PlanificarePlăți[[#This Row],[PLATĂ SUPLIMENTARĂ]],PlanificarePlăți[[#This Row],[SOLD INIȚIAL]]),"") ->  | H110: =IF(PlanificarePlăți[[#This Row],[NR. PLĂȚI]]<>"",PlanificarePlăți[[#This Row],[TOTAL DE PLATĂ]]-PlanificarePlăți[[#This Row],[DOBÂNDĂ]],"") ->  | I110: =IF(PlanificarePlăți[[#This Row],[NR. PLĂȚI]]<>"",PlanificarePlăți[[#This Row],[SOLD INIȚIAL]]*(RataDobânzii/PlățiPeAn),"") ->  | J110: =IF(PlanificarePlăți[[#This Row],[NR. PLĂȚI]]<>"",IF(PlanificarePlăți[[#This Row],[PLATĂ PLANIFICATĂ]]+PlanificarePlăți[[#This Row],[PLATĂ SUPLIMENTARĂ]]<=PlanificarePlăți[[#This Row],[SOLD INIȚIAL]],PlanificarePlăți[[#This Row],[SOLD INIȚIAL]]-PlanificarePlăți[[#This Row],[PRINCIPAL]],0),"") ->  | K110: =IF(PlanificarePlăți[[#This Row],[NR. PLĂȚI]]<>"",SUM(INDEX(PlanificarePlăți[DOBÂNDĂ],1,1):PlanificarePlăți[[#This Row],[DOBÂNDĂ]]),"") -> 
B111: =IF(ÎmprumutEsteBun,IF(ROW()-ROW(PlanificarePlăți[[#Headers],[NR. PLĂȚI]])>NumărPlanificatDePlăți,"",ROW()-ROW(PlanificarePlăți[[#Headers],[NR. PLĂȚI]])),"") ->  | C111: =IF(PlanificarePlăți[[#This Row],[NR. PLĂȚI]]<>"",EOMONTH(DataDeÎnceputÎmprumut,ROW(PlanificarePlăți[[#This Row],[NR. PLĂȚI]])-ROW(PlanificarePlăți[[#Headers],[NR. PLĂȚI]])-2)+DAY(DataDeÎnceputÎmprumut),"") ->  | D111: =IF(PlanificarePlăți[[#This Row],[NR. PLĂȚI]]<>"",IF(ROW()-ROW(PlanificarePlăți[[#Headers],[SOLD INIȚIAL]])=1,ValoareÎmprumut,INDEX(PlanificarePlăți[SOLD FINAL],ROW()-ROW(PlanificarePlăți[[#Headers],[SOLD INIȚIAL]])-1)),"") ->  | E111: =IF(PlanificarePlăți[[#This Row],[NR. PLĂȚI]]<>"",PlatăPlanificată,"") ->  | F111: =IF(PlanificarePlăți[[#This Row],[NR. PLĂȚI]]<>"",IF(PlanificarePlăți[[#This Row],[PLATĂ PLANIFICATĂ]]+PlățiSuplimentare<PlanificarePlăți[[#This Row],[SOLD INIȚIAL]],PlățiSuplimentare,IF(PlanificarePlăți[[#This Row],[SOLD INIȚIAL]]-PlanificarePlăți[[#This Row],[PLATĂ PLANIFICATĂ]]>0,PlanificarePlăți[[#This Row],[SOLD INIȚIAL]]-PlanificarePlăți[[#This Row],[PLATĂ PLANIFICATĂ]],0)),"") ->  | G111: =IF(PlanificarePlăți[[#This Row],[NR. PLĂȚI]]<>"",IF(PlanificarePlăți[[#This Row],[PLATĂ PLANIFICATĂ]]+PlanificarePlăți[[#This Row],[PLATĂ SUPLIMENTARĂ]]<=PlanificarePlăți[[#This Row],[SOLD INIȚIAL]],PlanificarePlăți[[#This Row],[PLATĂ PLANIFICATĂ]]+PlanificarePlăți[[#This Row],[PLATĂ SUPLIMENTARĂ]],PlanificarePlăți[[#This Row],[SOLD INIȚIAL]]),"") ->  | H111: =IF(PlanificarePlăți[[#This Row],[NR. PLĂȚI]]<>"",PlanificarePlăți[[#This Row],[TOTAL DE PLATĂ]]-PlanificarePlăți[[#This Row],[DOBÂNDĂ]],"") ->  | I111: =IF(PlanificarePlăți[[#This Row],[NR. PLĂȚI]]<>"",PlanificarePlăți[[#This Row],[SOLD INIȚIAL]]*(RataDobânzii/PlățiPeAn),"") ->  | J111: =IF(PlanificarePlăți[[#This Row],[NR. PLĂȚI]]<>"",IF(PlanificarePlăți[[#This Row],[PLATĂ PLANIFICATĂ]]+PlanificarePlăți[[#This Row],[PLATĂ SUPLIMENTARĂ]]<=PlanificarePlăți[[#This Row],[SOLD INIȚIAL]],PlanificarePlăți[[#This Row],[SOLD INIȚIAL]]-PlanificarePlăți[[#This Row],[PRINCIPAL]],0),"") ->  | K111: =IF(PlanificarePlăți[[#This Row],[NR. PLĂȚI]]<>"",SUM(INDEX(PlanificarePlăți[DOBÂNDĂ],1,1):PlanificarePlăți[[#This Row],[DOBÂNDĂ]]),"") -> 
B112: =IF(ÎmprumutEsteBun,IF(ROW()-ROW(PlanificarePlăți[[#Headers],[NR. PLĂȚI]])>NumărPlanificatDePlăți,"",ROW()-ROW(PlanificarePlăți[[#Headers],[NR. PLĂȚI]])),"") ->  | C112: =IF(PlanificarePlăți[[#This Row],[NR. PLĂȚI]]<>"",EOMONTH(DataDeÎnceputÎmprumut,ROW(PlanificarePlăți[[#This Row],[NR. PLĂȚI]])-ROW(PlanificarePlăți[[#Headers],[NR. PLĂȚI]])-2)+DAY(DataDeÎnceputÎmprumut),"") ->  | D112: =IF(PlanificarePlăți[[#This Row],[NR. PLĂȚI]]<>"",IF(ROW()-ROW(PlanificarePlăți[[#Headers],[SOLD INIȚIAL]])=1,ValoareÎmprumut,INDEX(PlanificarePlăți[SOLD FINAL],ROW()-ROW(PlanificarePlăți[[#Headers],[SOLD INIȚIAL]])-1)),"") ->  | E112: =IF(PlanificarePlăți[[#This Row],[NR. PLĂȚI]]<>"",PlatăPlanificată,"") ->  | F112: =IF(PlanificarePlăți[[#This Row],[NR. PLĂȚI]]<>"",IF(PlanificarePlăți[[#This Row],[PLATĂ PLANIFICATĂ]]+PlățiSuplimentare<PlanificarePlăți[[#This Row],[SOLD INIȚIAL]],PlățiSuplimentare,IF(PlanificarePlăți[[#This Row],[SOLD INIȚIAL]]-PlanificarePlăți[[#This Row],[PLATĂ PLANIFICATĂ]]>0,PlanificarePlăți[[#This Row],[SOLD INIȚIAL]]-PlanificarePlăți[[#This Row],[PLATĂ PLANIFICATĂ]],0)),"") ->  | G112: =IF(PlanificarePlăți[[#This Row],[NR. PLĂȚI]]<>"",IF(PlanificarePlăți[[#This Row],[PLATĂ PLANIFICATĂ]]+PlanificarePlăți[[#This Row],[PLATĂ SUPLIMENTARĂ]]<=PlanificarePlăți[[#This Row],[SOLD INIȚIAL]],PlanificarePlăți[[#This Row],[PLATĂ PLANIFICATĂ]]+PlanificarePlăți[[#This Row],[PLATĂ SUPLIMENTARĂ]],PlanificarePlăți[[#This Row],[SOLD INIȚIAL]]),"") ->  | H112: =IF(PlanificarePlăți[[#This Row],[NR. PLĂȚI]]<>"",PlanificarePlăți[[#This Row],[TOTAL DE PLATĂ]]-PlanificarePlăți[[#This Row],[DOBÂNDĂ]],"") ->  | I112: =IF(PlanificarePlăți[[#This Row],[NR. PLĂȚI]]<>"",PlanificarePlăți[[#This Row],[SOLD INIȚIAL]]*(RataDobânzii/PlățiPeAn),"") ->  | J112: =IF(PlanificarePlăți[[#This Row],[NR. PLĂȚI]]<>"",IF(PlanificarePlăți[[#This Row],[PLATĂ PLANIFICATĂ]]+PlanificarePlăți[[#This Row],[PLATĂ SUPLIMENTARĂ]]<=PlanificarePlăți[[#This Row],[SOLD INIȚIAL]],PlanificarePlăți[[#This Row],[SOLD INIȚIAL]]-PlanificarePlăți[[#This Row],[PRINCIPAL]],0),"") ->  | K112: =IF(PlanificarePlăți[[#This Row],[NR. PLĂȚI]]<>"",SUM(INDEX(PlanificarePlăți[DOBÂNDĂ],1,1):PlanificarePlăți[[#This Row],[DOBÂNDĂ]]),"") -> 
B113: =IF(ÎmprumutEsteBun,IF(ROW()-ROW(PlanificarePlăți[[#Headers],[NR. PLĂȚI]])>NumărPlanificatDePlăți,"",ROW()-ROW(PlanificarePlăți[[#Headers],[NR. PLĂȚI]])),"") ->  | C113: =IF(PlanificarePlăți[[#This Row],[NR. PLĂȚI]]<>"",EOMONTH(DataDeÎnceputÎmprumut,ROW(PlanificarePlăți[[#This Row],[NR. PLĂȚI]])-ROW(PlanificarePlăți[[#Headers],[NR. PLĂȚI]])-2)+DAY(DataDeÎnceputÎmprumut),"") ->  | D113: =IF(PlanificarePlăți[[#This Row],[NR. PLĂȚI]]<>"",IF(ROW()-ROW(PlanificarePlăți[[#Headers],[SOLD INIȚIAL]])=1,ValoareÎmprumut,INDEX(PlanificarePlăți[SOLD FINAL],ROW()-ROW(PlanificarePlăți[[#Headers],[SOLD INIȚIAL]])-1)),"") ->  | E113: =IF(PlanificarePlăți[[#This Row],[NR. PLĂȚI]]<>"",PlatăPlanificată,"") ->  | F113: =IF(PlanificarePlăți[[#This Row],[NR. PLĂȚI]]<>"",IF(PlanificarePlăți[[#This Row],[PLATĂ PLANIFICATĂ]]+PlățiSuplimentare<PlanificarePlăți[[#This Row],[SOLD INIȚIAL]],PlățiSuplimentare,IF(PlanificarePlăți[[#This Row],[SOLD INIȚIAL]]-PlanificarePlăți[[#This Row],[PLATĂ PLANIFICATĂ]]>0,PlanificarePlăți[[#This Row],[SOLD INIȚIAL]]-PlanificarePlăți[[#This Row],[PLATĂ PLANIFICATĂ]],0)),"") ->  | G113: =IF(PlanificarePlăți[[#This Row],[NR. PLĂȚI]]<>"",IF(PlanificarePlăți[[#This Row],[PLATĂ PLANIFICATĂ]]+PlanificarePlăți[[#This Row],[PLATĂ SUPLIMENTARĂ]]<=PlanificarePlăți[[#This Row],[SOLD INIȚIAL]],PlanificarePlăți[[#This Row],[PLATĂ PLANIFICATĂ]]+PlanificarePlăți[[#This Row],[PLATĂ SUPLIMENTARĂ]],PlanificarePlăți[[#This Row],[SOLD INIȚIAL]]),"") ->  | H113: =IF(PlanificarePlăți[[#This Row],[NR. PLĂȚI]]<>"",PlanificarePlăți[[#This Row],[TOTAL DE PLATĂ]]-PlanificarePlăți[[#This Row],[DOBÂNDĂ]],"") ->  | I113: =IF(PlanificarePlăți[[#This Row],[NR. PLĂȚI]]<>"",PlanificarePlăți[[#This Row],[SOLD INIȚIAL]]*(RataDobânzii/PlățiPeAn),"") ->  | J113: =IF(PlanificarePlăți[[#This Row],[NR. PLĂȚI]]<>"",IF(PlanificarePlăți[[#This Row],[PLATĂ PLANIFICATĂ]]+PlanificarePlăți[[#This Row],[PLATĂ SUPLIMENTARĂ]]<=PlanificarePlăți[[#This Row],[SOLD INIȚIAL]],PlanificarePlăți[[#This Row],[SOLD INIȚIAL]]-PlanificarePlăți[[#This Row],[PRINCIPAL]],0),"") ->  | K113: =IF(PlanificarePlăți[[#This Row],[NR. PLĂȚI]]<>"",SUM(INDEX(PlanificarePlăți[DOBÂNDĂ],1,1):PlanificarePlăți[[#This Row],[DOBÂNDĂ]]),"") -> 
B114: =IF(ÎmprumutEsteBun,IF(ROW()-ROW(PlanificarePlăți[[#Headers],[NR. PLĂȚI]])>NumărPlanificatDePlăți,"",ROW()-ROW(PlanificarePlăți[[#Headers],[NR. PLĂȚI]])),"") ->  | C114: =IF(PlanificarePlăți[[#This Row],[NR. PLĂȚI]]<>"",EOMONTH(DataDeÎnceputÎmprumut,ROW(PlanificarePlăți[[#This Row],[NR. PLĂȚI]])-ROW(PlanificarePlăți[[#Headers],[NR. PLĂȚI]])-2)+DAY(DataDeÎnceputÎmprumut),"") ->  | D114: =IF(PlanificarePlăți[[#This Row],[NR. PLĂȚI]]<>"",IF(ROW()-ROW(PlanificarePlăți[[#Headers],[SOLD INIȚIAL]])=1,ValoareÎmprumut,INDEX(PlanificarePlăți[SOLD FINAL],ROW()-ROW(PlanificarePlăți[[#Headers],[SOLD INIȚIAL]])-1)),"") ->  | E114: =IF(PlanificarePlăți[[#This Row],[NR. PLĂȚI]]<>"",PlatăPlanificată,"") ->  | F114: =IF(PlanificarePlăți[[#This Row],[NR. PLĂȚI]]<>"",IF(PlanificarePlăți[[#This Row],[PLATĂ PLANIFICATĂ]]+PlățiSuplimentare<PlanificarePlăți[[#This Row],[SOLD INIȚIAL]],PlățiSuplimentare,IF(PlanificarePlăți[[#This Row],[SOLD INIȚIAL]]-PlanificarePlăți[[#This Row],[PLATĂ PLANIFICATĂ]]>0,PlanificarePlăți[[#This Row],[SOLD INIȚIAL]]-PlanificarePlăți[[#This Row],[PLATĂ PLANIFICATĂ]],0)),"") ->  | G114: =IF(PlanificarePlăți[[#This Row],[NR. PLĂȚI]]<>"",IF(PlanificarePlăți[[#This Row],[PLATĂ PLANIFICATĂ]]+PlanificarePlăți[[#This Row],[PLATĂ SUPLIMENTARĂ]]<=PlanificarePlăți[[#This Row],[SOLD INIȚIAL]],PlanificarePlăți[[#This Row],[PLATĂ PLANIFICATĂ]]+PlanificarePlăți[[#This Row],[PLATĂ SUPLIMENTARĂ]],PlanificarePlăți[[#This Row],[SOLD INIȚIAL]]),"") ->  | H114: =IF(PlanificarePlăți[[#This Row],[NR. PLĂȚI]]<>"",PlanificarePlăți[[#This Row],[TOTAL DE PLATĂ]]-PlanificarePlăți[[#This Row],[DOBÂNDĂ]],"") ->  | I114: =IF(PlanificarePlăți[[#This Row],[NR. PLĂȚI]]<>"",PlanificarePlăți[[#This Row],[SOLD INIȚIAL]]*(RataDobânzii/PlățiPeAn),"") ->  | J114: =IF(PlanificarePlăți[[#This Row],[NR. PLĂȚI]]<>"",IF(PlanificarePlăți[[#This Row],[PLATĂ PLANIFICATĂ]]+PlanificarePlăți[[#This Row],[PLATĂ SUPLIMENTARĂ]]<=PlanificarePlăți[[#This Row],[SOLD INIȚIAL]],PlanificarePlăți[[#This Row],[SOLD INIȚIAL]]-PlanificarePlăți[[#This Row],[PRINCIPAL]],0),"") ->  | K114: =IF(PlanificarePlăți[[#This Row],[NR. PLĂȚI]]<>"",SUM(INDEX(PlanificarePlăți[DOBÂNDĂ],1,1):PlanificarePlăți[[#This Row],[DOBÂNDĂ]]),"") -> 
B115: =IF(ÎmprumutEsteBun,IF(ROW()-ROW(PlanificarePlăți[[#Headers],[NR. PLĂȚI]])>NumărPlanificatDePlăți,"",ROW()-ROW(PlanificarePlăți[[#Headers],[NR. PLĂȚI]])),"") ->  | C115: =IF(PlanificarePlăți[[#This Row],[NR. PLĂȚI]]<>"",EOMONTH(DataDeÎnceputÎmprumut,ROW(PlanificarePlăți[[#This Row],[NR. PLĂȚI]])-ROW(PlanificarePlăți[[#Headers],[NR. PLĂȚI]])-2)+DAY(DataDeÎnceputÎmprumut),"") ->  | D115: =IF(PlanificarePlăți[[#This Row],[NR. PLĂȚI]]<>"",IF(ROW()-ROW(PlanificarePlăți[[#Headers],[SOLD INIȚIAL]])=1,ValoareÎmprumut,INDEX(PlanificarePlăți[SOLD FINAL],ROW()-ROW(PlanificarePlăți[[#Headers],[SOLD INIȚIAL]])-1)),"") ->  | E115: =IF(PlanificarePlăți[[#This Row],[NR. PLĂȚI]]<>"",PlatăPlanificată,"") ->  | F115: =IF(PlanificarePlăți[[#This Row],[NR. PLĂȚI]]<>"",IF(PlanificarePlăți[[#This Row],[PLATĂ PLANIFICATĂ]]+PlățiSuplimentare<PlanificarePlăți[[#This Row],[SOLD INIȚIAL]],PlățiSuplimentare,IF(PlanificarePlăți[[#This Row],[SOLD INIȚIAL]]-PlanificarePlăți[[#This Row],[PLATĂ PLANIFICATĂ]]>0,PlanificarePlăți[[#This Row],[SOLD INIȚIAL]]-PlanificarePlăți[[#This Row],[PLATĂ PLANIFICATĂ]],0)),"") ->  | G115: =IF(PlanificarePlăți[[#This Row],[NR. PLĂȚI]]<>"",IF(PlanificarePlăți[[#This Row],[PLATĂ PLANIFICATĂ]]+PlanificarePlăți[[#This Row],[PLATĂ SUPLIMENTARĂ]]<=PlanificarePlăți[[#This Row],[SOLD INIȚIAL]],PlanificarePlăți[[#This Row],[PLATĂ PLANIFICATĂ]]+PlanificarePlăți[[#This Row],[PLATĂ SUPLIMENTARĂ]],PlanificarePlăți[[#This Row],[SOLD INIȚIAL]]),"") ->  | H115: =IF(PlanificarePlăți[[#This Row],[NR. PLĂȚI]]<>"",PlanificarePlăți[[#This Row],[TOTAL DE PLATĂ]]-PlanificarePlăți[[#This Row],[DOBÂNDĂ]],"") ->  | I115: =IF(PlanificarePlăți[[#This Row],[NR. PLĂȚI]]<>"",PlanificarePlăți[[#This Row],[SOLD INIȚIAL]]*(RataDobânzii/PlățiPeAn),"") ->  | J115: =IF(PlanificarePlăți[[#This Row],[NR. PLĂȚI]]<>"",IF(PlanificarePlăți[[#This Row],[PLATĂ PLANIFICATĂ]]+PlanificarePlăți[[#This Row],[PLATĂ SUPLIMENTARĂ]]<=PlanificarePlăți[[#This Row],[SOLD INIȚIAL]],PlanificarePlăți[[#This Row],[SOLD INIȚIAL]]-PlanificarePlăți[[#This Row],[PRINCIPAL]],0),"") ->  | K115: =IF(PlanificarePlăți[[#This Row],[NR. PLĂȚI]]<>"",SUM(INDEX(PlanificarePlăți[DOBÂNDĂ],1,1):PlanificarePlăți[[#This Row],[DOBÂNDĂ]]),"") -> 
B116: =IF(ÎmprumutEsteBun,IF(ROW()-ROW(PlanificarePlăți[[#Headers],[NR. PLĂȚI]])>NumărPlanificatDePlăți,"",ROW()-ROW(PlanificarePlăți[[#Headers],[NR. PLĂȚI]])),"") ->  | C116: =IF(PlanificarePlăți[[#This Row],[NR. PLĂȚI]]<>"",EOMONTH(DataDeÎnceputÎmprumut,ROW(PlanificarePlăți[[#This Row],[NR. PLĂȚI]])-ROW(PlanificarePlăți[[#Headers],[NR. PLĂȚI]])-2)+DAY(DataDeÎnceputÎmprumut),"") ->  | D116: =IF(PlanificarePlăți[[#This Row],[NR. PLĂȚI]]<>"",IF(ROW()-ROW(PlanificarePlăți[[#Headers],[SOLD INIȚIAL]])=1,ValoareÎmprumut,INDEX(PlanificarePlăți[SOLD FINAL],ROW()-ROW(PlanificarePlăți[[#Headers],[SOLD INIȚIAL]])-1)),"") ->  | E116: =IF(PlanificarePlăți[[#This Row],[NR. PLĂȚI]]<>"",PlatăPlanificată,"") ->  | F116: =IF(PlanificarePlăți[[#This Row],[NR. PLĂȚI]]<>"",IF(PlanificarePlăți[[#This Row],[PLATĂ PLANIFICATĂ]]+PlățiSuplimentare<PlanificarePlăți[[#This Row],[SOLD INIȚIAL]],PlățiSuplimentare,IF(PlanificarePlăți[[#This Row],[SOLD INIȚIAL]]-PlanificarePlăți[[#This Row],[PLATĂ PLANIFICATĂ]]>0,PlanificarePlăți[[#This Row],[SOLD INIȚIAL]]-PlanificarePlăți[[#This Row],[PLATĂ PLANIFICATĂ]],0)),"") ->  | G116: =IF(PlanificarePlăți[[#This Row],[NR. PLĂȚI]]<>"",IF(PlanificarePlăți[[#This Row],[PLATĂ PLANIFICATĂ]]+PlanificarePlăți[[#This Row],[PLATĂ SUPLIMENTARĂ]]<=PlanificarePlăți[[#This Row],[SOLD INIȚIAL]],PlanificarePlăți[[#This Row],[PLATĂ PLANIFICATĂ]]+PlanificarePlăți[[#This Row],[PLATĂ SUPLIMENTARĂ]],PlanificarePlăți[[#This Row],[SOLD INIȚIAL]]),"") ->  | H116: =IF(PlanificarePlăți[[#This Row],[NR. PLĂȚI]]<>"",PlanificarePlăți[[#This Row],[TOTAL DE PLATĂ]]-PlanificarePlăți[[#This Row],[DOBÂNDĂ]],"") ->  | I116: =IF(PlanificarePlăți[[#This Row],[NR. PLĂȚI]]<>"",PlanificarePlăți[[#This Row],[SOLD INIȚIAL]]*(RataDobânzii/PlățiPeAn),"") ->  | J116: =IF(PlanificarePlăți[[#This Row],[NR. PLĂȚI]]<>"",IF(PlanificarePlăți[[#This Row],[PLATĂ PLANIFICATĂ]]+PlanificarePlăți[[#This Row],[PLATĂ SUPLIMENTARĂ]]<=PlanificarePlăți[[#This Row],[SOLD INIȚIAL]],PlanificarePlăți[[#This Row],[SOLD INIȚIAL]]-PlanificarePlăți[[#This Row],[PRINCIPAL]],0),"") ->  | K116: =IF(PlanificarePlăți[[#This Row],[NR. PLĂȚI]]<>"",SUM(INDEX(PlanificarePlăți[DOBÂNDĂ],1,1):PlanificarePlăți[[#This Row],[DOBÂNDĂ]]),"") -> 
B117: =IF(ÎmprumutEsteBun,IF(ROW()-ROW(PlanificarePlăți[[#Headers],[NR. PLĂȚI]])>NumărPlanificatDePlăți,"",ROW()-ROW(PlanificarePlăți[[#Headers],[NR. PLĂȚI]])),"") ->  | C117: =IF(PlanificarePlăți[[#This Row],[NR. PLĂȚI]]<>"",EOMONTH(DataDeÎnceputÎmprumut,ROW(PlanificarePlăți[[#This Row],[NR. PLĂȚI]])-ROW(PlanificarePlăți[[#Headers],[NR. PLĂȚI]])-2)+DAY(DataDeÎnceputÎmprumut),"") ->  | D117: =IF(PlanificarePlăți[[#This Row],[NR. PLĂȚI]]<>"",IF(ROW()-ROW(PlanificarePlăți[[#Headers],[SOLD INIȚIAL]])=1,ValoareÎmprumut,INDEX(PlanificarePlăți[SOLD FINAL],ROW()-ROW(PlanificarePlăți[[#Headers],[SOLD INIȚIAL]])-1)),"") ->  | E117: =IF(PlanificarePlăți[[#This Row],[NR. PLĂȚI]]<>"",PlatăPlanificată,"") ->  | F117: =IF(PlanificarePlăți[[#This Row],[NR. PLĂȚI]]<>"",IF(PlanificarePlăți[[#This Row],[PLATĂ PLANIFICATĂ]]+PlățiSuplimentare<PlanificarePlăți[[#This Row],[SOLD INIȚIAL]],PlățiSuplimentare,IF(PlanificarePlăți[[#This Row],[SOLD INIȚIAL]]-PlanificarePlăți[[#This Row],[PLATĂ PLANIFICATĂ]]>0,PlanificarePlăți[[#This Row],[SOLD INIȚIAL]]-PlanificarePlăți[[#This Row],[PLATĂ PLANIFICATĂ]],0)),"") ->  | G117: =IF(PlanificarePlăți[[#This Row],[NR. PLĂȚI]]<>"",IF(PlanificarePlăți[[#This Row],[PLATĂ PLANIFICATĂ]]+PlanificarePlăți[[#This Row],[PLATĂ SUPLIMENTARĂ]]<=PlanificarePlăți[[#This Row],[SOLD INIȚIAL]],PlanificarePlăți[[#This Row],[PLATĂ PLANIFICATĂ]]+PlanificarePlăți[[#This Row],[PLATĂ SUPLIMENTARĂ]],PlanificarePlăți[[#This Row],[SOLD INIȚIAL]]),"") ->  | H117: =IF(PlanificarePlăți[[#This Row],[NR. PLĂȚI]]<>"",PlanificarePlăți[[#This Row],[TOTAL DE PLATĂ]]-PlanificarePlăți[[#This Row],[DOBÂNDĂ]],"") ->  | I117: =IF(PlanificarePlăți[[#This Row],[NR. PLĂȚI]]<>"",PlanificarePlăți[[#This Row],[SOLD INIȚIAL]]*(RataDobânzii/PlățiPeAn),"") ->  | J117: =IF(PlanificarePlăți[[#This Row],[NR. PLĂȚI]]<>"",IF(PlanificarePlăți[[#This Row],[PLATĂ PLANIFICATĂ]]+PlanificarePlăți[[#This Row],[PLATĂ SUPLIMENTARĂ]]<=PlanificarePlăți[[#This Row],[SOLD INIȚIAL]],PlanificarePlăți[[#This Row],[SOLD INIȚIAL]]-PlanificarePlăți[[#This Row],[PRINCIPAL]],0),"") ->  | K117: =IF(PlanificarePlăți[[#This Row],[NR. PLĂȚI]]<>"",SUM(INDEX(PlanificarePlăți[DOBÂNDĂ],1,1):PlanificarePlăți[[#This Row],[DOBÂNDĂ]]),"") -> 
B118: =IF(ÎmprumutEsteBun,IF(ROW()-ROW(PlanificarePlăți[[#Headers],[NR. PLĂȚI]])>NumărPlanificatDePlăți,"",ROW()-ROW(PlanificarePlăți[[#Headers],[NR. PLĂȚI]])),"") ->  | C118: =IF(PlanificarePlăți[[#This Row],[NR. PLĂȚI]]<>"",EOMONTH(DataDeÎnceputÎmprumut,ROW(PlanificarePlăți[[#This Row],[NR. PLĂȚI]])-ROW(PlanificarePlăți[[#Headers],[NR. PLĂȚI]])-2)+DAY(DataDeÎnceputÎmprumut),"") ->  | D118: =IF(PlanificarePlăți[[#This Row],[NR. PLĂȚI]]<>"",IF(ROW()-ROW(PlanificarePlăți[[#Headers],[SOLD INIȚIAL]])=1,ValoareÎmprumut,INDEX(PlanificarePlăți[SOLD FINAL],ROW()-ROW(PlanificarePlăți[[#Headers],[SOLD INIȚIAL]])-1)),"") ->  | E118: =IF(PlanificarePlăți[[#This Row],[NR. PLĂȚI]]<>"",PlatăPlanificată,"") ->  | F118: =IF(PlanificarePlăți[[#This Row],[NR. PLĂȚI]]<>"",IF(PlanificarePlăți[[#This Row],[PLATĂ PLANIFICATĂ]]+PlățiSuplimentare<PlanificarePlăți[[#This Row],[SOLD INIȚIAL]],PlățiSuplimentare,IF(PlanificarePlăți[[#This Row],[SOLD INIȚIAL]]-PlanificarePlăți[[#This Row],[PLATĂ PLANIFICATĂ]]>0,PlanificarePlăți[[#This Row],[SOLD INIȚIAL]]-PlanificarePlăți[[#This Row],[PLATĂ PLANIFICATĂ]],0)),"") ->  | G118: =IF(PlanificarePlăți[[#This Row],[NR. PLĂȚI]]<>"",IF(PlanificarePlăți[[#This Row],[PLATĂ PLANIFICATĂ]]+PlanificarePlăți[[#This Row],[PLATĂ SUPLIMENTARĂ]]<=PlanificarePlăți[[#This Row],[SOLD INIȚIAL]],PlanificarePlăți[[#This Row],[PLATĂ PLANIFICATĂ]]+PlanificarePlăți[[#This Row],[PLATĂ SUPLIMENTARĂ]],PlanificarePlăți[[#This Row],[SOLD INIȚIAL]]),"") ->  | H118: =IF(PlanificarePlăți[[#This Row],[NR. PLĂȚI]]<>"",PlanificarePlăți[[#This Row],[TOTAL DE PLATĂ]]-PlanificarePlăți[[#This Row],[DOBÂNDĂ]],"") ->  | I118: =IF(PlanificarePlăți[[#This Row],[NR. PLĂȚI]]<>"",PlanificarePlăți[[#This Row],[SOLD INIȚIAL]]*(RataDobânzii/PlățiPeAn),"") ->  | J118: =IF(PlanificarePlăți[[#This Row],[NR. PLĂȚI]]<>"",IF(PlanificarePlăți[[#This Row],[PLATĂ PLANIFICATĂ]]+PlanificarePlăți[[#This Row],[PLATĂ SUPLIMENTARĂ]]<=PlanificarePlăți[[#This Row],[SOLD INIȚIAL]],PlanificarePlăți[[#This Row],[SOLD INIȚIAL]]-PlanificarePlăți[[#This Row],[PRINCIPAL]],0),"") ->  | K118: =IF(PlanificarePlăți[[#This Row],[NR. PLĂȚI]]<>"",SUM(INDEX(PlanificarePlăți[DOBÂNDĂ],1,1):PlanificarePlăți[[#This Row],[DOBÂNDĂ]]),"") -> 
B119: =IF(ÎmprumutEsteBun,IF(ROW()-ROW(PlanificarePlăți[[#Headers],[NR. PLĂȚI]])>NumărPlanificatDePlăți,"",ROW()-ROW(PlanificarePlăți[[#Headers],[NR. PLĂȚI]])),"") ->  | C119: =IF(PlanificarePlăți[[#This Row],[NR. PLĂȚI]]<>"",EOMONTH(DataDeÎnceputÎmprumut,ROW(PlanificarePlăți[[#This Row],[NR. PLĂȚI]])-ROW(PlanificarePlăți[[#Headers],[NR. PLĂȚI]])-2)+DAY(DataDeÎnceputÎmprumut),"") ->  | D119: =IF(PlanificarePlăți[[#This Row],[NR. PLĂȚI]]<>"",IF(ROW()-ROW(PlanificarePlăți[[#Headers],[SOLD INIȚIAL]])=1,ValoareÎmprumut,INDEX(PlanificarePlăți[SOLD FINAL],ROW()-ROW(PlanificarePlăți[[#Headers],[SOLD INIȚIAL]])-1)),"") ->  | E119: =IF(PlanificarePlăți[[#This Row],[NR. PLĂȚI]]<>"",PlatăPlanificată,"") ->  | F119: =IF(PlanificarePlăți[[#This Row],[NR. PLĂȚI]]<>"",IF(PlanificarePlăți[[#This Row],[PLATĂ PLANIFICATĂ]]+PlățiSuplimentare<PlanificarePlăți[[#This Row],[SOLD INIȚIAL]],PlățiSuplimentare,IF(PlanificarePlăți[[#This Row],[SOLD INIȚIAL]]-PlanificarePlăți[[#This Row],[PLATĂ PLANIFICATĂ]]>0,PlanificarePlăți[[#This Row],[SOLD INIȚIAL]]-PlanificarePlăți[[#This Row],[PLATĂ PLANIFICATĂ]],0)),"") ->  | G119: =IF(PlanificarePlăți[[#This Row],[NR. PLĂȚI]]<>"",IF(PlanificarePlăți[[#This Row],[PLATĂ PLANIFICATĂ]]+PlanificarePlăți[[#This Row],[PLATĂ SUPLIMENTARĂ]]<=PlanificarePlăți[[#This Row],[SOLD INIȚIAL]],PlanificarePlăți[[#This Row],[PLATĂ PLANIFICATĂ]]+PlanificarePlăți[[#This Row],[PLATĂ SUPLIMENTARĂ]],PlanificarePlăți[[#This Row],[SOLD INIȚIAL]]),"") ->  | H119: =IF(PlanificarePlăți[[#This Row],[NR. PLĂȚI]]<>"",PlanificarePlăți[[#This Row],[TOTAL DE PLATĂ]]-PlanificarePlăți[[#This Row],[DOBÂNDĂ]],"") ->  | I119: =IF(PlanificarePlăți[[#This Row],[NR. PLĂȚI]]<>"",PlanificarePlăți[[#This Row],[SOLD INIȚIAL]]*(RataDobânzii/PlățiPeAn),"") ->  | J119: =IF(PlanificarePlăți[[#This Row],[NR. PLĂȚI]]<>"",IF(PlanificarePlăți[[#This Row],[PLATĂ PLANIFICATĂ]]+PlanificarePlăți[[#This Row],[PLATĂ SUPLIMENTARĂ]]<=PlanificarePlăți[[#This Row],[SOLD INIȚIAL]],PlanificarePlăți[[#This Row],[SOLD INIȚIAL]]-PlanificarePlăți[[#This Row],[PRINCIPAL]],0),"") ->  | K119: =IF(PlanificarePlăți[[#This Row],[NR. PLĂȚI]]<>"",SUM(INDEX(PlanificarePlăți[DOBÂNDĂ],1,1):PlanificarePlăți[[#This Row],[DOBÂNDĂ]]),"") -> 
B120: =IF(ÎmprumutEsteBun,IF(ROW()-ROW(PlanificarePlăți[[#Headers],[NR. PLĂȚI]])>NumărPlanificatDePlăți,"",ROW()-ROW(PlanificarePlăți[[#Headers],[NR. PLĂȚI]])),"") ->  | C120: =IF(PlanificarePlăți[[#This Row],[NR. PLĂȚI]]<>"",EOMONTH(DataDeÎnceputÎmprumut,ROW(PlanificarePlăți[[#This Row],[NR. PLĂȚI]])-ROW(PlanificarePlăți[[#Headers],[NR. PLĂȚI]])-2)+DAY(DataDeÎnceputÎmprumut),"") ->  | D120: =IF(PlanificarePlăți[[#This Row],[NR. PLĂȚI]]<>"",IF(ROW()-ROW(PlanificarePlăți[[#Headers],[SOLD INIȚIAL]])=1,ValoareÎmprumut,INDEX(PlanificarePlăți[SOLD FINAL],ROW()-ROW(PlanificarePlăți[[#Headers],[SOLD INIȚIAL]])-1)),"") ->  | E120: =IF(PlanificarePlăți[[#This Row],[NR. PLĂȚI]]<>"",PlatăPlanificată,"") ->  | F120: =IF(PlanificarePlăți[[#This Row],[NR. PLĂȚI]]<>"",IF(PlanificarePlăți[[#This Row],[PLATĂ PLANIFICATĂ]]+PlățiSuplimentare<PlanificarePlăți[[#This Row],[SOLD INIȚIAL]],PlățiSuplimentare,IF(PlanificarePlăți[[#This Row],[SOLD INIȚIAL]]-PlanificarePlăți[[#This Row],[PLATĂ PLANIFICATĂ]]>0,PlanificarePlăți[[#This Row],[SOLD INIȚIAL]]-PlanificarePlăți[[#This Row],[PLATĂ PLANIFICATĂ]],0)),"") ->  | G120: =IF(PlanificarePlăți[[#This Row],[NR. PLĂȚI]]<>"",IF(PlanificarePlăți[[#This Row],[PLATĂ PLANIFICATĂ]]+PlanificarePlăți[[#This Row],[PLATĂ SUPLIMENTARĂ]]<=PlanificarePlăți[[#This Row],[SOLD INIȚIAL]],PlanificarePlăți[[#This Row],[PLATĂ PLANIFICATĂ]]+PlanificarePlăți[[#This Row],[PLATĂ SUPLIMENTARĂ]],PlanificarePlăți[[#This Row],[SOLD INIȚIAL]]),"") ->  | H120: =IF(PlanificarePlăți[[#This Row],[NR. PLĂȚI]]<>"",PlanificarePlăți[[#This Row],[TOTAL DE PLATĂ]]-PlanificarePlăți[[#This Row],[DOBÂNDĂ]],"") ->  | I120: =IF(PlanificarePlăți[[#This Row],[NR. PLĂȚI]]<>"",PlanificarePlăți[[#This Row],[SOLD INIȚIAL]]*(RataDobânzii/PlățiPeAn),"") ->  | J120: =IF(PlanificarePlăți[[#This Row],[NR. PLĂȚI]]<>"",IF(PlanificarePlăți[[#This Row],[PLATĂ PLANIFICATĂ]]+PlanificarePlăți[[#This Row],[PLATĂ SUPLIMENTARĂ]]<=PlanificarePlăți[[#This Row],[SOLD INIȚIAL]],PlanificarePlăți[[#This Row],[SOLD INIȚIAL]]-PlanificarePlăți[[#This Row],[PRINCIPAL]],0),"") ->  | K120: =IF(PlanificarePlăți[[#This Row],[NR. PLĂȚI]]<>"",SUM(INDEX(PlanificarePlăți[DOBÂNDĂ],1,1):PlanificarePlăți[[#This Row],[DOBÂNDĂ]]),"") -> 
B121: =IF(ÎmprumutEsteBun,IF(ROW()-ROW(PlanificarePlăți[[#Headers],[NR. PLĂȚI]])>NumărPlanificatDePlăți,"",ROW()-ROW(PlanificarePlăți[[#Headers],[NR. PLĂȚI]])),"") ->  | C121: =IF(PlanificarePlăți[[#This Row],[NR. PLĂȚI]]<>"",EOMONTH(DataDeÎnceputÎmprumut,ROW(PlanificarePlăți[[#This Row],[NR. PLĂȚI]])-ROW(PlanificarePlăți[[#Headers],[NR. PLĂȚI]])-2)+DAY(DataDeÎnceputÎmprumut),"") ->  | D121: =IF(PlanificarePlăți[[#This Row],[NR. PLĂȚI]]<>"",IF(ROW()-ROW(PlanificarePlăți[[#Headers],[SOLD INIȚIAL]])=1,ValoareÎmprumut,INDEX(PlanificarePlăți[SOLD FINAL],ROW()-ROW(PlanificarePlăți[[#Headers],[SOLD INIȚIAL]])-1)),"") ->  | E121: =IF(PlanificarePlăți[[#This Row],[NR. PLĂȚI]]<>"",PlatăPlanificată,"") ->  | F121: =IF(PlanificarePlăți[[#This Row],[NR. PLĂȚI]]<>"",IF(PlanificarePlăți[[#This Row],[PLATĂ PLANIFICATĂ]]+PlățiSuplimentare<PlanificarePlăți[[#This Row],[SOLD INIȚIAL]],PlățiSuplimentare,IF(PlanificarePlăți[[#This Row],[SOLD INIȚIAL]]-PlanificarePlăți[[#This Row],[PLATĂ PLANIFICATĂ]]>0,PlanificarePlăți[[#This Row],[SOLD INIȚIAL]]-PlanificarePlăți[[#This Row],[PLATĂ PLANIFICATĂ]],0)),"") ->  | G121: =IF(PlanificarePlăți[[#This Row],[NR. PLĂȚI]]<>"",IF(PlanificarePlăți[[#This Row],[PLATĂ PLANIFICATĂ]]+PlanificarePlăți[[#This Row],[PLATĂ SUPLIMENTARĂ]]<=PlanificarePlăți[[#This Row],[SOLD INIȚIAL]],PlanificarePlăți[[#This Row],[PLATĂ PLANIFICATĂ]]+PlanificarePlăți[[#This Row],[PLATĂ SUPLIMENTARĂ]],PlanificarePlăți[[#This Row],[SOLD INIȚIAL]]),"") ->  | H121: =IF(PlanificarePlăți[[#This Row],[NR. PLĂȚI]]<>"",PlanificarePlăți[[#This Row],[TOTAL DE PLATĂ]]-PlanificarePlăți[[#This Row],[DOBÂNDĂ]],"") ->  | I121: =IF(PlanificarePlăți[[#This Row],[NR. PLĂȚI]]<>"",PlanificarePlăți[[#This Row],[SOLD INIȚIAL]]*(RataDobânzii/PlățiPeAn),"") ->  | J121: =IF(PlanificarePlăți[[#This Row],[NR. PLĂȚI]]<>"",IF(PlanificarePlăți[[#This Row],[PLATĂ PLANIFICATĂ]]+PlanificarePlăți[[#This Row],[PLATĂ SUPLIMENTARĂ]]<=PlanificarePlăți[[#This Row],[SOLD INIȚIAL]],PlanificarePlăți[[#This Row],[SOLD INIȚIAL]]-PlanificarePlăți[[#This Row],[PRINCIPAL]],0),"") ->  | K121: =IF(PlanificarePlăți[[#This Row],[NR. PLĂȚI]]<>"",SUM(INDEX(PlanificarePlăți[DOBÂNDĂ],1,1):PlanificarePlăți[[#This Row],[DOBÂNDĂ]]),"") -> 
B122: =IF(ÎmprumutEsteBun,IF(ROW()-ROW(PlanificarePlăți[[#Headers],[NR. PLĂȚI]])>NumărPlanificatDePlăți,"",ROW()-ROW(PlanificarePlăți[[#Headers],[NR. PLĂȚI]])),"") ->  | C122: =IF(PlanificarePlăți[[#This Row],[NR. PLĂȚI]]<>"",EOMONTH(DataDeÎnceputÎmprumut,ROW(PlanificarePlăți[[#This Row],[NR. PLĂȚI]])-ROW(PlanificarePlăți[[#Headers],[NR. PLĂȚI]])-2)+DAY(DataDeÎnceputÎmprumut),"") ->  | D122: =IF(PlanificarePlăți[[#This Row],[NR. PLĂȚI]]<>"",IF(ROW()-ROW(PlanificarePlăți[[#Headers],[SOLD INIȚIAL]])=1,ValoareÎmprumut,INDEX(PlanificarePlăți[SOLD FINAL],ROW()-ROW(PlanificarePlăți[[#Headers],[SOLD INIȚIAL]])-1)),"") ->  | E122: =IF(PlanificarePlăți[[#This Row],[NR. PLĂȚI]]<>"",PlatăPlanificată,"") ->  | F122: =IF(PlanificarePlăți[[#This Row],[NR. PLĂȚI]]<>"",IF(PlanificarePlăți[[#This Row],[PLATĂ PLANIFICATĂ]]+PlățiSuplimentare<PlanificarePlăți[[#This Row],[SOLD INIȚIAL]],PlățiSuplimentare,IF(PlanificarePlăți[[#This Row],[SOLD INIȚIAL]]-PlanificarePlăți[[#This Row],[PLATĂ PLANIFICATĂ]]>0,PlanificarePlăți[[#This Row],[SOLD INIȚIAL]]-PlanificarePlăți[[#This Row],[PLATĂ PLANIFICATĂ]],0)),"") ->  | G122: =IF(PlanificarePlăți[[#This Row],[NR. PLĂȚI]]<>"",IF(PlanificarePlăți[[#This Row],[PLATĂ PLANIFICATĂ]]+PlanificarePlăți[[#This Row],[PLATĂ SUPLIMENTARĂ]]<=PlanificarePlăți[[#This Row],[SOLD INIȚIAL]],PlanificarePlăți[[#This Row],[PLATĂ PLANIFICATĂ]]+PlanificarePlăți[[#This Row],[PLATĂ SUPLIMENTARĂ]],PlanificarePlăți[[#This Row],[SOLD INIȚIAL]]),"") ->  | H122: =IF(PlanificarePlăți[[#This Row],[NR. PLĂȚI]]<>"",PlanificarePlăți[[#This Row],[TOTAL DE PLATĂ]]-PlanificarePlăți[[#This Row],[DOBÂNDĂ]],"") ->  | I122: =IF(PlanificarePlăți[[#This Row],[NR. PLĂȚI]]<>"",PlanificarePlăți[[#This Row],[SOLD INIȚIAL]]*(RataDobânzii/PlățiPeAn),"") ->  | J122: =IF(PlanificarePlăți[[#This Row],[NR. PLĂȚI]]<>"",IF(PlanificarePlăți[[#This Row],[PLATĂ PLANIFICATĂ]]+PlanificarePlăți[[#This Row],[PLATĂ SUPLIMENTARĂ]]<=PlanificarePlăți[[#This Row],[SOLD INIȚIAL]],PlanificarePlăți[[#This Row],[SOLD INIȚIAL]]-PlanificarePlăți[[#This Row],[PRINCIPAL]],0),"") ->  | K122: =IF(PlanificarePlăți[[#This Row],[NR. PLĂȚI]]<>"",SUM(INDEX(PlanificarePlăți[DOBÂNDĂ],1,1):PlanificarePlăți[[#This Row],[DOBÂNDĂ]]),"") -> 
B123: =IF(ÎmprumutEsteBun,IF(ROW()-ROW(PlanificarePlăți[[#Headers],[NR. PLĂȚI]])>NumărPlanificatDePlăți,"",ROW()-ROW(PlanificarePlăți[[#Headers],[NR. PLĂȚI]])),"") ->  | C123: =IF(PlanificarePlăți[[#This Row],[NR. PLĂȚI]]<>"",EOMONTH(DataDeÎnceputÎmprumut,ROW(PlanificarePlăți[[#This Row],[NR. PLĂȚI]])-ROW(PlanificarePlăți[[#Headers],[NR. PLĂȚI]])-2)+DAY(DataDeÎnceputÎmprumut),"") ->  | D123: =IF(PlanificarePlăți[[#This Row],[NR. PLĂȚI]]<>"",IF(ROW()-ROW(PlanificarePlăți[[#Headers],[SOLD INIȚIAL]])=1,ValoareÎmprumut,INDEX(PlanificarePlăți[SOLD FINAL],ROW()-ROW(PlanificarePlăți[[#Headers],[SOLD INIȚIAL]])-1)),"") ->  | E123: =IF(PlanificarePlăți[[#This Row],[NR. PLĂȚI]]<>"",PlatăPlanificată,"") ->  | F123: =IF(PlanificarePlăți[[#This Row],[NR. PLĂȚI]]<>"",IF(PlanificarePlăți[[#This Row],[PLATĂ PLANIFICATĂ]]+PlățiSuplimentare<PlanificarePlăți[[#This Row],[SOLD INIȚIAL]],PlățiSuplimentare,IF(PlanificarePlăți[[#This Row],[SOLD INIȚIAL]]-PlanificarePlăți[[#This Row],[PLATĂ PLANIFICATĂ]]>0,PlanificarePlăți[[#This Row],[SOLD INIȚIAL]]-PlanificarePlăți[[#This Row],[PLATĂ PLANIFICATĂ]],0)),"") ->  | G123: =IF(PlanificarePlăți[[#This Row],[NR. PLĂȚI]]<>"",IF(PlanificarePlăți[[#This Row],[PLATĂ PLANIFICATĂ]]+PlanificarePlăți[[#This Row],[PLATĂ SUPLIMENTARĂ]]<=PlanificarePlăți[[#This Row],[SOLD INIȚIAL]],PlanificarePlăți[[#This Row],[PLATĂ PLANIFICATĂ]]+PlanificarePlăți[[#This Row],[PLATĂ SUPLIMENTARĂ]],PlanificarePlăți[[#This Row],[SOLD INIȚIAL]]),"") ->  | H123: =IF(PlanificarePlăți[[#This Row],[NR. PLĂȚI]]<>"",PlanificarePlăți[[#This Row],[TOTAL DE PLATĂ]]-PlanificarePlăți[[#This Row],[DOBÂNDĂ]],"") ->  | I123: =IF(PlanificarePlăți[[#This Row],[NR. PLĂȚI]]<>"",PlanificarePlăți[[#This Row],[SOLD INIȚIAL]]*(RataDobânzii/PlățiPeAn),"") ->  | J123: =IF(PlanificarePlăți[[#This Row],[NR. PLĂȚI]]<>"",IF(PlanificarePlăți[[#This Row],[PLATĂ PLANIFICATĂ]]+PlanificarePlăți[[#This Row],[PLATĂ SUPLIMENTARĂ]]<=PlanificarePlăți[[#This Row],[SOLD INIȚIAL]],PlanificarePlăți[[#This Row],[SOLD INIȚIAL]]-PlanificarePlăți[[#This Row],[PRINCIPAL]],0),"") ->  | K123: =IF(PlanificarePlăți[[#This Row],[NR. PLĂȚI]]<>"",SUM(INDEX(PlanificarePlăți[DOBÂNDĂ],1,1):PlanificarePlăți[[#This Row],[DOBÂNDĂ]]),"") -> 
B124: =IF(ÎmprumutEsteBun,IF(ROW()-ROW(PlanificarePlăți[[#Headers],[NR. PLĂȚI]])>NumărPlanificatDePlăți,"",ROW()-ROW(PlanificarePlăți[[#Headers],[NR. PLĂȚI]])),"") ->  | C124: =IF(PlanificarePlăți[[#This Row],[NR. PLĂȚI]]<>"",EOMONTH(DataDeÎnceputÎmprumut,ROW(PlanificarePlăți[[#This Row],[NR. PLĂȚI]])-ROW(PlanificarePlăți[[#Headers],[NR. PLĂȚI]])-2)+DAY(DataDeÎnceputÎmprumut),"") ->  | D124: =IF(PlanificarePlăți[[#This Row],[NR. PLĂȚI]]<>"",IF(ROW()-ROW(PlanificarePlăți[[#Headers],[SOLD INIȚIAL]])=1,ValoareÎmprumut,INDEX(PlanificarePlăți[SOLD FINAL],ROW()-ROW(PlanificarePlăți[[#Headers],[SOLD INIȚIAL]])-1)),"") ->  | E124: =IF(PlanificarePlăți[[#This Row],[NR. PLĂȚI]]<>"",PlatăPlanificată,"") ->  | F124: =IF(PlanificarePlăți[[#This Row],[NR. PLĂȚI]]<>"",IF(PlanificarePlăți[[#This Row],[PLATĂ PLANIFICATĂ]]+PlățiSuplimentare<PlanificarePlăți[[#This Row],[SOLD INIȚIAL]],PlățiSuplimentare,IF(PlanificarePlăți[[#This Row],[SOLD INIȚIAL]]-PlanificarePlăți[[#This Row],[PLATĂ PLANIFICATĂ]]>0,PlanificarePlăți[[#This Row],[SOLD INIȚIAL]]-PlanificarePlăți[[#This Row],[PLATĂ PLANIFICATĂ]],0)),"") ->  | G124: =IF(PlanificarePlăți[[#This Row],[NR. PLĂȚI]]<>"",IF(PlanificarePlăți[[#This Row],[PLATĂ PLANIFICATĂ]]+PlanificarePlăți[[#This Row],[PLATĂ SUPLIMENTARĂ]]<=PlanificarePlăți[[#This Row],[SOLD INIȚIAL]],PlanificarePlăți[[#This Row],[PLATĂ PLANIFICATĂ]]+PlanificarePlăți[[#This Row],[PLATĂ SUPLIMENTARĂ]],PlanificarePlăți[[#This Row],[SOLD INIȚIAL]]),"") ->  | H124: =IF(PlanificarePlăți[[#This Row],[NR. PLĂȚI]]<>"",PlanificarePlăți[[#This Row],[TOTAL DE PLATĂ]]-PlanificarePlăți[[#This Row],[DOBÂNDĂ]],"") ->  | I124: =IF(PlanificarePlăți[[#This Row],[NR. PLĂȚI]]<>"",PlanificarePlăți[[#This Row],[SOLD INIȚIAL]]*(RataDobânzii/PlățiPeAn),"") ->  | J124: =IF(PlanificarePlăți[[#This Row],[NR. PLĂȚI]]<>"",IF(PlanificarePlăți[[#This Row],[PLATĂ PLANIFICATĂ]]+PlanificarePlăți[[#This Row],[PLATĂ SUPLIMENTARĂ]]<=PlanificarePlăți[[#This Row],[SOLD INIȚIAL]],PlanificarePlăți[[#This Row],[SOLD INIȚIAL]]-PlanificarePlăți[[#This Row],[PRINCIPAL]],0),"") ->  | K124: =IF(PlanificarePlăți[[#This Row],[NR. PLĂȚI]]<>"",SUM(INDEX(PlanificarePlăți[DOBÂNDĂ],1,1):PlanificarePlăți[[#This Row],[DOBÂNDĂ]]),"") -> 
B125: =IF(ÎmprumutEsteBun,IF(ROW()-ROW(PlanificarePlăți[[#Headers],[NR. PLĂȚI]])>NumărPlanificatDePlăți,"",ROW()-ROW(PlanificarePlăți[[#Headers],[NR. PLĂȚI]])),"") ->  | C125: =IF(PlanificarePlăți[[#This Row],[NR. PLĂȚI]]<>"",EOMONTH(DataDeÎnceputÎmprumut,ROW(PlanificarePlăți[[#This Row],[NR. PLĂȚI]])-ROW(PlanificarePlăți[[#Headers],[NR. PLĂȚI]])-2)+DAY(DataDeÎnceputÎmprumut),"") ->  | D125: =IF(PlanificarePlăți[[#This Row],[NR. PLĂȚI]]<>"",IF(ROW()-ROW(PlanificarePlăți[[#Headers],[SOLD INIȚIAL]])=1,ValoareÎmprumut,INDEX(PlanificarePlăți[SOLD FINAL],ROW()-ROW(PlanificarePlăți[[#Headers],[SOLD INIȚIAL]])-1)),"") ->  | E125: =IF(PlanificarePlăți[[#This Row],[NR. PLĂȚI]]<>"",PlatăPlanificată,"") ->  | F125: =IF(PlanificarePlăți[[#This Row],[NR. PLĂȚI]]<>"",IF(PlanificarePlăți[[#This Row],[PLATĂ PLANIFICATĂ]]+PlățiSuplimentare<PlanificarePlăți[[#This Row],[SOLD INIȚIAL]],PlățiSuplimentare,IF(PlanificarePlăți[[#This Row],[SOLD INIȚIAL]]-PlanificarePlăți[[#This Row],[PLATĂ PLANIFICATĂ]]>0,PlanificarePlăți[[#This Row],[SOLD INIȚIAL]]-PlanificarePlăți[[#This Row],[PLATĂ PLANIFICATĂ]],0)),"") ->  | G125: =IF(PlanificarePlăți[[#This Row],[NR. PLĂȚI]]<>"",IF(PlanificarePlăți[[#This Row],[PLATĂ PLANIFICATĂ]]+PlanificarePlăți[[#This Row],[PLATĂ SUPLIMENTARĂ]]<=PlanificarePlăți[[#This Row],[SOLD INIȚIAL]],PlanificarePlăți[[#This Row],[PLATĂ PLANIFICATĂ]]+PlanificarePlăți[[#This Row],[PLATĂ SUPLIMENTARĂ]],PlanificarePlăți[[#This Row],[SOLD INIȚIAL]]),"") ->  | H125: =IF(PlanificarePlăți[[#This Row],[NR. PLĂȚI]]<>"",PlanificarePlăți[[#This Row],[TOTAL DE PLATĂ]]-PlanificarePlăți[[#This Row],[DOBÂNDĂ]],"") ->  | I125: =IF(PlanificarePlăți[[#This Row],[NR. PLĂȚI]]<>"",PlanificarePlăți[[#This Row],[SOLD INIȚIAL]]*(RataDobânzii/PlățiPeAn),"") ->  | J125: =IF(PlanificarePlăți[[#This Row],[NR. PLĂȚI]]<>"",IF(PlanificarePlăți[[#This Row],[PLATĂ PLANIFICATĂ]]+PlanificarePlăți[[#This Row],[PLATĂ SUPLIMENTARĂ]]<=PlanificarePlăți[[#This Row],[SOLD INIȚIAL]],PlanificarePlăți[[#This Row],[SOLD INIȚIAL]]-PlanificarePlăți[[#This Row],[PRINCIPAL]],0),"") ->  | K125: =IF(PlanificarePlăți[[#This Row],[NR. PLĂȚI]]<>"",SUM(INDEX(PlanificarePlăți[DOBÂNDĂ],1,1):PlanificarePlăți[[#This Row],[DOBÂNDĂ]]),"") -> 
B126: =IF(ÎmprumutEsteBun,IF(ROW()-ROW(PlanificarePlăți[[#Headers],[NR. PLĂȚI]])>NumărPlanificatDePlăți,"",ROW()-ROW(PlanificarePlăți[[#Headers],[NR. PLĂȚI]])),"") ->  | C126: =IF(PlanificarePlăți[[#This Row],[NR. PLĂȚI]]<>"",EOMONTH(DataDeÎnceputÎmprumut,ROW(PlanificarePlăți[[#This Row],[NR. PLĂȚI]])-ROW(PlanificarePlăți[[#Headers],[NR. PLĂȚI]])-2)+DAY(DataDeÎnceputÎmprumut),"") ->  | D126: =IF(PlanificarePlăți[[#This Row],[NR. PLĂȚI]]<>"",IF(ROW()-ROW(PlanificarePlăți[[#Headers],[SOLD INIȚIAL]])=1,ValoareÎmprumut,INDEX(PlanificarePlăți[SOLD FINAL],ROW()-ROW(PlanificarePlăți[[#Headers],[SOLD INIȚIAL]])-1)),"") ->  | E126: =IF(PlanificarePlăți[[#This Row],[NR. PLĂȚI]]<>"",PlatăPlanificată,"") ->  | F126: =IF(PlanificarePlăți[[#This Row],[NR. PLĂȚI]]<>"",IF(PlanificarePlăți[[#This Row],[PLATĂ PLANIFICATĂ]]+PlățiSuplimentare<PlanificarePlăți[[#This Row],[SOLD INIȚIAL]],PlățiSuplimentare,IF(PlanificarePlăți[[#This Row],[SOLD INIȚIAL]]-PlanificarePlăți[[#This Row],[PLATĂ PLANIFICATĂ]]>0,PlanificarePlăți[[#This Row],[SOLD INIȚIAL]]-PlanificarePlăți[[#This Row],[PLATĂ PLANIFICATĂ]],0)),"") ->  | G126: =IF(PlanificarePlăți[[#This Row],[NR. PLĂȚI]]<>"",IF(PlanificarePlăți[[#This Row],[PLATĂ PLANIFICATĂ]]+PlanificarePlăți[[#This Row],[PLATĂ SUPLIMENTARĂ]]<=PlanificarePlăți[[#This Row],[SOLD INIȚIAL]],PlanificarePlăți[[#This Row],[PLATĂ PLANIFICATĂ]]+PlanificarePlăți[[#This Row],[PLATĂ SUPLIMENTARĂ]],PlanificarePlăți[[#This Row],[SOLD INIȚIAL]]),"") ->  | H126: =IF(PlanificarePlăți[[#This Row],[NR. PLĂȚI]]<>"",PlanificarePlăți[[#This Row],[TOTAL DE PLATĂ]]-PlanificarePlăți[[#This Row],[DOBÂNDĂ]],"") ->  | I126: =IF(PlanificarePlăți[[#This Row],[NR. PLĂȚI]]<>"",PlanificarePlăți[[#This Row],[SOLD INIȚIAL]]*(RataDobânzii/PlățiPeAn),"") ->  | J126: =IF(PlanificarePlăți[[#This Row],[NR. PLĂȚI]]<>"",IF(PlanificarePlăți[[#This Row],[PLATĂ PLANIFICATĂ]]+PlanificarePlăți[[#This Row],[PLATĂ SUPLIMENTARĂ]]<=PlanificarePlăți[[#This Row],[SOLD INIȚIAL]],PlanificarePlăți[[#This Row],[SOLD INIȚIAL]]-PlanificarePlăți[[#This Row],[PRINCIPAL]],0),"") ->  | K126: =IF(PlanificarePlăți[[#This Row],[NR. PLĂȚI]]<>"",SUM(INDEX(PlanificarePlăți[DOBÂNDĂ],1,1):PlanificarePlăți[[#This Row],[DOBÂNDĂ]]),"") -> 
B127: =IF(ÎmprumutEsteBun,IF(ROW()-ROW(PlanificarePlăți[[#Headers],[NR. PLĂȚI]])>NumărPlanificatDePlăți,"",ROW()-ROW(PlanificarePlăți[[#Headers],[NR. PLĂȚI]])),"") ->  | C127: =IF(PlanificarePlăți[[#This Row],[NR. PLĂȚI]]<>"",EOMONTH(DataDeÎnceputÎmprumut,ROW(PlanificarePlăți[[#This Row],[NR. PLĂȚI]])-ROW(PlanificarePlăți[[#Headers],[NR. PLĂȚI]])-2)+DAY(DataDeÎnceputÎmprumut),"") ->  | D127: =IF(PlanificarePlăți[[#This Row],[NR. PLĂȚI]]<>"",IF(ROW()-ROW(PlanificarePlăți[[#Headers],[SOLD INIȚIAL]])=1,ValoareÎmprumut,INDEX(PlanificarePlăți[SOLD FINAL],ROW()-ROW(PlanificarePlăți[[#Headers],[SOLD INIȚIAL]])-1)),"") ->  | E127: =IF(PlanificarePlăți[[#This Row],[NR. PLĂȚI]]<>"",PlatăPlanificată,"") ->  | F127: =IF(PlanificarePlăți[[#This Row],[NR. PLĂȚI]]<>"",IF(PlanificarePlăți[[#This Row],[PLATĂ PLANIFICATĂ]]+PlățiSuplimentare<PlanificarePlăți[[#This Row],[SOLD INIȚIAL]],PlățiSuplimentare,IF(PlanificarePlăți[[#This Row],[SOLD INIȚIAL]]-PlanificarePlăți[[#This Row],[PLATĂ PLANIFICATĂ]]>0,PlanificarePlăți[[#This Row],[SOLD INIȚIAL]]-PlanificarePlăți[[#This Row],[PLATĂ PLANIFICATĂ]],0)),"") ->  | G127: =IF(PlanificarePlăți[[#This Row],[NR. PLĂȚI]]<>"",IF(PlanificarePlăți[[#This Row],[PLATĂ PLANIFICATĂ]]+PlanificarePlăți[[#This Row],[PLATĂ SUPLIMENTARĂ]]<=PlanificarePlăți[[#This Row],[SOLD INIȚIAL]],PlanificarePlăți[[#This Row],[PLATĂ PLANIFICATĂ]]+PlanificarePlăți[[#This Row],[PLATĂ SUPLIMENTARĂ]],PlanificarePlăți[[#This Row],[SOLD INIȚIAL]]),"") ->  | H127: =IF(PlanificarePlăți[[#This Row],[NR. PLĂȚI]]<>"",PlanificarePlăți[[#This Row],[TOTAL DE PLATĂ]]-PlanificarePlăți[[#This Row],[DOBÂNDĂ]],"") ->  | I127: =IF(PlanificarePlăți[[#This Row],[NR. PLĂȚI]]<>"",PlanificarePlăți[[#This Row],[SOLD INIȚIAL]]*(RataDobânzii/PlățiPeAn),"") ->  | J127: =IF(PlanificarePlăți[[#This Row],[NR. PLĂȚI]]<>"",IF(PlanificarePlăți[[#This Row],[PLATĂ PLANIFICATĂ]]+PlanificarePlăți[[#This Row],[PLATĂ SUPLIMENTARĂ]]<=PlanificarePlăți[[#This Row],[SOLD INIȚIAL]],PlanificarePlăți[[#This Row],[SOLD INIȚIAL]]-PlanificarePlăți[[#This Row],[PRINCIPAL]],0),"") ->  | K127: =IF(PlanificarePlăți[[#This Row],[NR. PLĂȚI]]<>"",SUM(INDEX(PlanificarePlăți[DOBÂNDĂ],1,1):PlanificarePlăți[[#This Row],[DOBÂNDĂ]]),"") -> 
B128: =IF(ÎmprumutEsteBun,IF(ROW()-ROW(PlanificarePlăți[[#Headers],[NR. PLĂȚI]])>NumărPlanificatDePlăți,"",ROW()-ROW(PlanificarePlăți[[#Headers],[NR. PLĂȚI]])),"") ->  | C128: =IF(PlanificarePlăți[[#This Row],[NR. PLĂȚI]]<>"",EOMONTH(DataDeÎnceputÎmprumut,ROW(PlanificarePlăți[[#This Row],[NR. PLĂȚI]])-ROW(PlanificarePlăți[[#Headers],[NR. PLĂȚI]])-2)+DAY(DataDeÎnceputÎmprumut),"") ->  | D128: =IF(PlanificarePlăți[[#This Row],[NR. PLĂȚI]]<>"",IF(ROW()-ROW(PlanificarePlăți[[#Headers],[SOLD INIȚIAL]])=1,ValoareÎmprumut,INDEX(PlanificarePlăți[SOLD FINAL],ROW()-ROW(PlanificarePlăți[[#Headers],[SOLD INIȚIAL]])-1)),"") ->  | E128: =IF(PlanificarePlăți[[#This Row],[NR. PLĂȚI]]<>"",PlatăPlanificată,"") ->  | F128: =IF(PlanificarePlăți[[#This Row],[NR. PLĂȚI]]<>"",IF(PlanificarePlăți[[#This Row],[PLATĂ PLANIFICATĂ]]+PlățiSuplimentare<PlanificarePlăți[[#This Row],[SOLD INIȚIAL]],PlățiSuplimentare,IF(PlanificarePlăți[[#This Row],[SOLD INIȚIAL]]-PlanificarePlăți[[#This Row],[PLATĂ PLANIFICATĂ]]>0,PlanificarePlăți[[#This Row],[SOLD INIȚIAL]]-PlanificarePlăți[[#This Row],[PLATĂ PLANIFICATĂ]],0)),"") ->  | G128: =IF(PlanificarePlăți[[#This Row],[NR. PLĂȚI]]<>"",IF(PlanificarePlăți[[#This Row],[PLATĂ PLANIFICATĂ]]+PlanificarePlăți[[#This Row],[PLATĂ SUPLIMENTARĂ]]<=PlanificarePlăți[[#This Row],[SOLD INIȚIAL]],PlanificarePlăți[[#This Row],[PLATĂ PLANIFICATĂ]]+PlanificarePlăți[[#This Row],[PLATĂ SUPLIMENTARĂ]],PlanificarePlăți[[#This Row],[SOLD INIȚIAL]]),"") ->  | H128: =IF(PlanificarePlăți[[#This Row],[NR. PLĂȚI]]<>"",PlanificarePlăți[[#This Row],[TOTAL DE PLATĂ]]-PlanificarePlăți[[#This Row],[DOBÂNDĂ]],"") ->  | I128: =IF(PlanificarePlăți[[#This Row],[NR. PLĂȚI]]<>"",PlanificarePlăți[[#This Row],[SOLD INIȚIAL]]*(RataDobânzii/PlățiPeAn),"") ->  | J128: =IF(PlanificarePlăți[[#This Row],[NR. PLĂȚI]]<>"",IF(PlanificarePlăți[[#This Row],[PLATĂ PLANIFICATĂ]]+PlanificarePlăți[[#This Row],[PLATĂ SUPLIMENTARĂ]]<=PlanificarePlăți[[#This Row],[SOLD INIȚIAL]],PlanificarePlăți[[#This Row],[SOLD INIȚIAL]]-PlanificarePlăți[[#This Row],[PRINCIPAL]],0),"") ->  | K128: =IF(PlanificarePlăți[[#This Row],[NR. PLĂȚI]]<>"",SUM(INDEX(PlanificarePlăți[DOBÂNDĂ],1,1):PlanificarePlăți[[#This Row],[DOBÂNDĂ]]),"") -> 
B129: =IF(ÎmprumutEsteBun,IF(ROW()-ROW(PlanificarePlăți[[#Headers],[NR. PLĂȚI]])>NumărPlanificatDePlăți,"",ROW()-ROW(PlanificarePlăți[[#Headers],[NR. PLĂȚI]])),"") ->  | C129: =IF(PlanificarePlăți[[#This Row],[NR. PLĂȚI]]<>"",EOMONTH(DataDeÎnceputÎmprumut,ROW(PlanificarePlăți[[#This Row],[NR. PLĂȚI]])-ROW(PlanificarePlăți[[#Headers],[NR. PLĂȚI]])-2)+DAY(DataDeÎnceputÎmprumut),"") ->  | D129: =IF(PlanificarePlăți[[#This Row],[NR. PLĂȚI]]<>"",IF(ROW()-ROW(PlanificarePlăți[[#Headers],[SOLD INIȚIAL]])=1,ValoareÎmprumut,INDEX(PlanificarePlăți[SOLD FINAL],ROW()-ROW(PlanificarePlăți[[#Headers],[SOLD INIȚIAL]])-1)),"") ->  | E129: =IF(PlanificarePlăți[[#This Row],[NR. PLĂȚI]]<>"",PlatăPlanificată,"") ->  | F129: =IF(PlanificarePlăți[[#This Row],[NR. PLĂȚI]]<>"",IF(PlanificarePlăți[[#This Row],[PLATĂ PLANIFICATĂ]]+PlățiSuplimentare<PlanificarePlăți[[#This Row],[SOLD INIȚIAL]],PlățiSuplimentare,IF(PlanificarePlăți[[#This Row],[SOLD INIȚIAL]]-PlanificarePlăți[[#This Row],[PLATĂ PLANIFICATĂ]]>0,PlanificarePlăți[[#This Row],[SOLD INIȚIAL]]-PlanificarePlăți[[#This Row],[PLATĂ PLANIFICATĂ]],0)),"") ->  | G129: =IF(PlanificarePlăți[[#This Row],[NR. PLĂȚI]]<>"",IF(PlanificarePlăți[[#This Row],[PLATĂ PLANIFICATĂ]]+PlanificarePlăți[[#This Row],[PLATĂ SUPLIMENTARĂ]]<=PlanificarePlăți[[#This Row],[SOLD INIȚIAL]],PlanificarePlăți[[#This Row],[PLATĂ PLANIFICATĂ]]+PlanificarePlăți[[#This Row],[PLATĂ SUPLIMENTARĂ]],PlanificarePlăți[[#This Row],[SOLD INIȚIAL]]),"") ->  | H129: =IF(PlanificarePlăți[[#This Row],[NR. PLĂȚI]]<>"",PlanificarePlăți[[#This Row],[TOTAL DE PLATĂ]]-PlanificarePlăți[[#This Row],[DOBÂNDĂ]],"") ->  | I129: =IF(PlanificarePlăți[[#This Row],[NR. PLĂȚI]]<>"",PlanificarePlăți[[#This Row],[SOLD INIȚIAL]]*(RataDobânzii/PlățiPeAn),"") ->  | J129: =IF(PlanificarePlăți[[#This Row],[NR. PLĂȚI]]<>"",IF(PlanificarePlăți[[#This Row],[PLATĂ PLANIFICATĂ]]+PlanificarePlăți[[#This Row],[PLATĂ SUPLIMENTARĂ]]<=PlanificarePlăți[[#This Row],[SOLD INIȚIAL]],PlanificarePlăți[[#This Row],[SOLD INIȚIAL]]-PlanificarePlăți[[#This Row],[PRINCIPAL]],0),"") ->  | K129: =IF(PlanificarePlăți[[#This Row],[NR. PLĂȚI]]<>"",SUM(INDEX(PlanificarePlăți[DOBÂNDĂ],1,1):PlanificarePlăți[[#This Row],[DOBÂNDĂ]]),"") -> 
B130: =IF(ÎmprumutEsteBun,IF(ROW()-ROW(PlanificarePlăți[[#Headers],[NR. PLĂȚI]])>NumărPlanificatDePlăți,"",ROW()-ROW(PlanificarePlăți[[#Headers],[NR. PLĂȚI]])),"") ->  | C130: =IF(PlanificarePlăți[[#This Row],[NR. PLĂȚI]]<>"",EOMONTH(DataDeÎnceputÎmprumut,ROW(PlanificarePlăți[[#This Row],[NR. PLĂȚI]])-ROW(PlanificarePlăți[[#Headers],[NR. PLĂȚI]])-2)+DAY(DataDeÎnceputÎmprumut),"") ->  | D130: =IF(PlanificarePlăți[[#This Row],[NR. PLĂȚI]]<>"",IF(ROW()-ROW(PlanificarePlăți[[#Headers],[SOLD INIȚIAL]])=1,ValoareÎmprumut,INDEX(PlanificarePlăți[SOLD FINAL],ROW()-ROW(PlanificarePlăți[[#Headers],[SOLD INIȚIAL]])-1)),"") ->  | E130: =IF(PlanificarePlăți[[#This Row],[NR. PLĂȚI]]<>"",PlatăPlanificată,"") ->  | F130: =IF(PlanificarePlăți[[#This Row],[NR. PLĂȚI]]<>"",IF(PlanificarePlăți[[#This Row],[PLATĂ PLANIFICATĂ]]+PlățiSuplimentare<PlanificarePlăți[[#This Row],[SOLD INIȚIAL]],PlățiSuplimentare,IF(PlanificarePlăți[[#This Row],[SOLD INIȚIAL]]-PlanificarePlăți[[#This Row],[PLATĂ PLANIFICATĂ]]>0,PlanificarePlăți[[#This Row],[SOLD INIȚIAL]]-PlanificarePlăți[[#This Row],[PLATĂ PLANIFICATĂ]],0)),"") ->  | G130: =IF(PlanificarePlăți[[#This Row],[NR. PLĂȚI]]<>"",IF(PlanificarePlăți[[#This Row],[PLATĂ PLANIFICATĂ]]+PlanificarePlăți[[#This Row],[PLATĂ SUPLIMENTARĂ]]<=PlanificarePlăți[[#This Row],[SOLD INIȚIAL]],PlanificarePlăți[[#This Row],[PLATĂ PLANIFICATĂ]]+PlanificarePlăți[[#This Row],[PLATĂ SUPLIMENTARĂ]],PlanificarePlăți[[#This Row],[SOLD INIȚIAL]]),"") ->  | H130: =IF(PlanificarePlăți[[#This Row],[NR. PLĂȚI]]<>"",PlanificarePlăți[[#This Row],[TOTAL DE PLATĂ]]-PlanificarePlăți[[#This Row],[DOBÂNDĂ]],"") ->  | I130: =IF(PlanificarePlăți[[#This Row],[NR. PLĂȚI]]<>"",PlanificarePlăți[[#This Row],[SOLD INIȚIAL]]*(RataDobânzii/PlățiPeAn),"") ->  | J130: =IF(PlanificarePlăți[[#This Row],[NR. PLĂȚI]]<>"",IF(PlanificarePlăți[[#This Row],[PLATĂ PLANIFICATĂ]]+PlanificarePlăți[[#This Row],[PLATĂ SUPLIMENTARĂ]]<=PlanificarePlăți[[#This Row],[SOLD INIȚIAL]],PlanificarePlăți[[#This Row],[SOLD INIȚIAL]]-PlanificarePlăți[[#This Row],[PRINCIPAL]],0),"") ->  | K130: =IF(PlanificarePlăți[[#This Row],[NR. PLĂȚI]]<>"",SUM(INDEX(PlanificarePlăți[DOBÂNDĂ],1,1):PlanificarePlăți[[#This Row],[DOBÂNDĂ]]),"") -> 
B131: =IF(ÎmprumutEsteBun,IF(ROW()-ROW(PlanificarePlăți[[#Headers],[NR. PLĂȚI]])>NumărPlanificatDePlăți,"",ROW()-ROW(PlanificarePlăți[[#Headers],[NR. PLĂȚI]])),"") ->  | C131: =IF(PlanificarePlăți[[#This Row],[NR. PLĂȚI]]<>"",EOMONTH(DataDeÎnceputÎmprumut,ROW(PlanificarePlăți[[#This Row],[NR. PLĂȚI]])-ROW(PlanificarePlăți[[#Headers],[NR. PLĂȚI]])-2)+DAY(DataDeÎnceputÎmprumut),"") ->  | D131: =IF(PlanificarePlăți[[#This Row],[NR. PLĂȚI]]<>"",IF(ROW()-ROW(PlanificarePlăți[[#Headers],[SOLD INIȚIAL]])=1,ValoareÎmprumut,INDEX(PlanificarePlăți[SOLD FINAL],ROW()-ROW(PlanificarePlăți[[#Headers],[SOLD INIȚIAL]])-1)),"") ->  | E131: =IF(PlanificarePlăți[[#This Row],[NR. PLĂȚI]]<>"",PlatăPlanificată,"") ->  | F131: =IF(PlanificarePlăți[[#This Row],[NR. PLĂȚI]]<>"",IF(PlanificarePlăți[[#This Row],[PLATĂ PLANIFICATĂ]]+PlățiSuplimentare<PlanificarePlăți[[#This Row],[SOLD INIȚIAL]],PlățiSuplimentare,IF(PlanificarePlăți[[#This Row],[SOLD INIȚIAL]]-PlanificarePlăți[[#This Row],[PLATĂ PLANIFICATĂ]]>0,PlanificarePlăți[[#This Row],[SOLD INIȚIAL]]-PlanificarePlăți[[#This Row],[PLATĂ PLANIFICATĂ]],0)),"") ->  | G131: =IF(PlanificarePlăți[[#This Row],[NR. PLĂȚI]]<>"",IF(PlanificarePlăți[[#This Row],[PLATĂ PLANIFICATĂ]]+PlanificarePlăți[[#This Row],[PLATĂ SUPLIMENTARĂ]]<=PlanificarePlăți[[#This Row],[SOLD INIȚIAL]],PlanificarePlăți[[#This Row],[PLATĂ PLANIFICATĂ]]+PlanificarePlăți[[#This Row],[PLATĂ SUPLIMENTARĂ]],PlanificarePlăți[[#This Row],[SOLD INIȚIAL]]),"") ->  | H131: =IF(PlanificarePlăți[[#This Row],[NR. PLĂȚI]]<>"",PlanificarePlăți[[#This Row],[TOTAL DE PLATĂ]]-PlanificarePlăți[[#This Row],[DOBÂNDĂ]],"") ->  | I131: =IF(PlanificarePlăți[[#This Row],[NR. PLĂȚI]]<>"",PlanificarePlăți[[#This Row],[SOLD INIȚIAL]]*(RataDobânzii/PlățiPeAn),"") ->  | J131: =IF(PlanificarePlăți[[#This Row],[NR. PLĂȚI]]<>"",IF(PlanificarePlăți[[#This Row],[PLATĂ PLANIFICATĂ]]+PlanificarePlăți[[#This Row],[PLATĂ SUPLIMENTARĂ]]<=PlanificarePlăți[[#This Row],[SOLD INIȚIAL]],PlanificarePlăți[[#This Row],[SOLD INIȚIAL]]-PlanificarePlăți[[#This Row],[PRINCIPAL]],0),"") ->  | K131: =IF(PlanificarePlăți[[#This Row],[NR. PLĂȚI]]<>"",SUM(INDEX(PlanificarePlăți[DOBÂNDĂ],1,1):PlanificarePlăți[[#This Row],[DOBÂNDĂ]]),"") -> 
B132: =IF(ÎmprumutEsteBun,IF(ROW()-ROW(PlanificarePlăți[[#Headers],[NR. PLĂȚI]])>NumărPlanificatDePlăți,"",ROW()-ROW(PlanificarePlăți[[#Headers],[NR. PLĂȚI]])),"") ->  | C132: =IF(PlanificarePlăți[[#This Row],[NR. PLĂȚI]]<>"",EOMONTH(DataDeÎnceputÎmprumut,ROW(PlanificarePlăți[[#This Row],[NR. PLĂȚI]])-ROW(PlanificarePlăți[[#Headers],[NR. PLĂȚI]])-2)+DAY(DataDeÎnceputÎmprumut),"") ->  | D132: =IF(PlanificarePlăți[[#This Row],[NR. PLĂȚI]]<>"",IF(ROW()-ROW(PlanificarePlăți[[#Headers],[SOLD INIȚIAL]])=1,ValoareÎmprumut,INDEX(PlanificarePlăți[SOLD FINAL],ROW()-ROW(PlanificarePlăți[[#Headers],[SOLD INIȚIAL]])-1)),"") ->  | E132: =IF(PlanificarePlăți[[#This Row],[NR. PLĂȚI]]<>"",PlatăPlanificată,"") ->  | F132: =IF(PlanificarePlăți[[#This Row],[NR. PLĂȚI]]<>"",IF(PlanificarePlăți[[#This Row],[PLATĂ PLANIFICATĂ]]+PlățiSuplimentare<PlanificarePlăți[[#This Row],[SOLD INIȚIAL]],PlățiSuplimentare,IF(PlanificarePlăți[[#This Row],[SOLD INIȚIAL]]-PlanificarePlăți[[#This Row],[PLATĂ PLANIFICATĂ]]>0,PlanificarePlăți[[#This Row],[SOLD INIȚIAL]]-PlanificarePlăți[[#This Row],[PLATĂ PLANIFICATĂ]],0)),"") ->  | G132: =IF(PlanificarePlăți[[#This Row],[NR. PLĂȚI]]<>"",IF(PlanificarePlăți[[#This Row],[PLATĂ PLANIFICATĂ]]+PlanificarePlăți[[#This Row],[PLATĂ SUPLIMENTARĂ]]<=PlanificarePlăți[[#This Row],[SOLD INIȚIAL]],PlanificarePlăți[[#This Row],[PLATĂ PLANIFICATĂ]]+PlanificarePlăți[[#This Row],[PLATĂ SUPLIMENTARĂ]],PlanificarePlăți[[#This Row],[SOLD INIȚIAL]]),"") ->  | H132: =IF(PlanificarePlăți[[#This Row],[NR. PLĂȚI]]<>"",PlanificarePlăți[[#This Row],[TOTAL DE PLATĂ]]-PlanificarePlăți[[#This Row],[DOBÂNDĂ]],"") ->  | I132: =IF(PlanificarePlăți[[#This Row],[NR. PLĂȚI]]<>"",PlanificarePlăți[[#This Row],[SOLD INIȚIAL]]*(RataDobânzii/PlățiPeAn),"") ->  | J132: =IF(PlanificarePlăți[[#This Row],[NR. PLĂȚI]]<>"",IF(PlanificarePlăți[[#This Row],[PLATĂ PLANIFICATĂ]]+PlanificarePlăți[[#This Row],[PLATĂ SUPLIMENTARĂ]]<=PlanificarePlăți[[#This Row],[SOLD INIȚIAL]],PlanificarePlăți[[#This Row],[SOLD INIȚIAL]]-PlanificarePlăți[[#This Row],[PRINCIPAL]],0),"") ->  | K132: =IF(PlanificarePlăți[[#This Row],[NR. PLĂȚI]]<>"",SUM(INDEX(PlanificarePlăți[DOBÂNDĂ],1,1):PlanificarePlăți[[#This Row],[DOBÂNDĂ]]),"") -> 
B133: =IF(ÎmprumutEsteBun,IF(ROW()-ROW(PlanificarePlăți[[#Headers],[NR. PLĂȚI]])>NumărPlanificatDePlăți,"",ROW()-ROW(PlanificarePlăți[[#Headers],[NR. PLĂȚI]])),"") ->  | C133: =IF(PlanificarePlăți[[#This Row],[NR. PLĂȚI]]<>"",EOMONTH(DataDeÎnceputÎmprumut,ROW(PlanificarePlăți[[#This Row],[NR. PLĂȚI]])-ROW(PlanificarePlăți[[#Headers],[NR. PLĂȚI]])-2)+DAY(DataDeÎnceputÎmprumut),"") ->  | D133: =IF(PlanificarePlăți[[#This Row],[NR. PLĂȚI]]<>"",IF(ROW()-ROW(PlanificarePlăți[[#Headers],[SOLD INIȚIAL]])=1,ValoareÎmprumut,INDEX(PlanificarePlăți[SOLD FINAL],ROW()-ROW(PlanificarePlăți[[#Headers],[SOLD INIȚIAL]])-1)),"") ->  | E133: =IF(PlanificarePlăți[[#This Row],[NR. PLĂȚI]]<>"",PlatăPlanificată,"") ->  | F133: =IF(PlanificarePlăți[[#This Row],[NR. PLĂȚI]]<>"",IF(PlanificarePlăți[[#This Row],[PLATĂ PLANIFICATĂ]]+PlățiSuplimentare<PlanificarePlăți[[#This Row],[SOLD INIȚIAL]],PlățiSuplimentare,IF(PlanificarePlăți[[#This Row],[SOLD INIȚIAL]]-PlanificarePlăți[[#This Row],[PLATĂ PLANIFICATĂ]]>0,PlanificarePlăți[[#This Row],[SOLD INIȚIAL]]-PlanificarePlăți[[#This Row],[PLATĂ PLANIFICATĂ]],0)),"") ->  | G133: =IF(PlanificarePlăți[[#This Row],[NR. PLĂȚI]]<>"",IF(PlanificarePlăți[[#This Row],[PLATĂ PLANIFICATĂ]]+PlanificarePlăți[[#This Row],[PLATĂ SUPLIMENTARĂ]]<=PlanificarePlăți[[#This Row],[SOLD INIȚIAL]],PlanificarePlăți[[#This Row],[PLATĂ PLANIFICATĂ]]+PlanificarePlăți[[#This Row],[PLATĂ SUPLIMENTARĂ]],PlanificarePlăți[[#This Row],[SOLD INIȚIAL]]),"") ->  | H133: =IF(PlanificarePlăți[[#This Row],[NR. PLĂȚI]]<>"",PlanificarePlăți[[#This Row],[TOTAL DE PLATĂ]]-PlanificarePlăți[[#This Row],[DOBÂNDĂ]],"") ->  | I133: =IF(PlanificarePlăți[[#This Row],[NR. PLĂȚI]]<>"",PlanificarePlăți[[#This Row],[SOLD INIȚIAL]]*(RataDobânzii/PlățiPeAn),"") ->  | J133: =IF(PlanificarePlăți[[#This Row],[NR. PLĂȚI]]<>"",IF(PlanificarePlăți[[#This Row],[PLATĂ PLANIFICATĂ]]+PlanificarePlăți[[#This Row],[PLATĂ SUPLIMENTARĂ]]<=PlanificarePlăți[[#This Row],[SOLD INIȚIAL]],PlanificarePlăți[[#This Row],[SOLD INIȚIAL]]-PlanificarePlăți[[#This Row],[PRINCIPAL]],0),"") ->  | K133: =IF(PlanificarePlăți[[#This Row],[NR. PLĂȚI]]<>"",SUM(INDEX(PlanificarePlăți[DOBÂNDĂ],1,1):PlanificarePlăți[[#This Row],[DOBÂNDĂ]]),"") -> 
B134: =IF(ÎmprumutEsteBun,IF(ROW()-ROW(PlanificarePlăți[[#Headers],[NR. PLĂȚI]])>NumărPlanificatDePlăți,"",ROW()-ROW(PlanificarePlăți[[#Headers],[NR. PLĂȚI]])),"") ->  | C134: =IF(PlanificarePlăți[[#This Row],[NR. PLĂȚI]]<>"",EOMONTH(DataDeÎnceputÎmprumut,ROW(PlanificarePlăți[[#This Row],[NR. PLĂȚI]])-ROW(PlanificarePlăți[[#Headers],[NR. PLĂȚI]])-2)+DAY(DataDeÎnceputÎmprumut),"") ->  | D134: =IF(PlanificarePlăți[[#This Row],[NR. PLĂȚI]]<>"",IF(ROW()-ROW(PlanificarePlăți[[#Headers],[SOLD INIȚIAL]])=1,ValoareÎmprumut,INDEX(PlanificarePlăți[SOLD FINAL],ROW()-ROW(PlanificarePlăți[[#Headers],[SOLD INIȚIAL]])-1)),"") ->  | E134: =IF(PlanificarePlăți[[#This Row],[NR. PLĂȚI]]<>"",PlatăPlanificată,"") ->  | F134: =IF(PlanificarePlăți[[#This Row],[NR. PLĂȚI]]<>"",IF(PlanificarePlăți[[#This Row],[PLATĂ PLANIFICATĂ]]+PlățiSuplimentare<PlanificarePlăți[[#This Row],[SOLD INIȚIAL]],PlățiSuplimentare,IF(PlanificarePlăți[[#This Row],[SOLD INIȚIAL]]-PlanificarePlăți[[#This Row],[PLATĂ PLANIFICATĂ]]>0,PlanificarePlăți[[#This Row],[SOLD INIȚIAL]]-PlanificarePlăți[[#This Row],[PLATĂ PLANIFICATĂ]],0)),"") ->  | G134: =IF(PlanificarePlăți[[#This Row],[NR. PLĂȚI]]<>"",IF(PlanificarePlăți[[#This Row],[PLATĂ PLANIFICATĂ]]+PlanificarePlăți[[#This Row],[PLATĂ SUPLIMENTARĂ]]<=PlanificarePlăți[[#This Row],[SOLD INIȚIAL]],PlanificarePlăți[[#This Row],[PLATĂ PLANIFICATĂ]]+PlanificarePlăți[[#This Row],[PLATĂ SUPLIMENTARĂ]],PlanificarePlăți[[#This Row],[SOLD INIȚIAL]]),"") ->  | H134: =IF(PlanificarePlăți[[#This Row],[NR. PLĂȚI]]<>"",PlanificarePlăți[[#This Row],[TOTAL DE PLATĂ]]-PlanificarePlăți[[#This Row],[DOBÂNDĂ]],"") ->  | I134: =IF(PlanificarePlăți[[#This Row],[NR. PLĂȚI]]<>"",PlanificarePlăți[[#This Row],[SOLD INIȚIAL]]*(RataDobânzii/PlățiPeAn),"") ->  | J134: =IF(PlanificarePlăți[[#This Row],[NR. PLĂȚI]]<>"",IF(PlanificarePlăți[[#This Row],[PLATĂ PLANIFICATĂ]]+PlanificarePlăți[[#This Row],[PLATĂ SUPLIMENTARĂ]]<=PlanificarePlăți[[#This Row],[SOLD INIȚIAL]],PlanificarePlăți[[#This Row],[SOLD INIȚIAL]]-PlanificarePlăți[[#This Row],[PRINCIPAL]],0),"") ->  | K134: =IF(PlanificarePlăți[[#This Row],[NR. PLĂȚI]]<>"",SUM(INDEX(PlanificarePlăți[DOBÂNDĂ],1,1):PlanificarePlăți[[#This Row],[DOBÂNDĂ]]),"") -> 
B135: =IF(ÎmprumutEsteBun,IF(ROW()-ROW(PlanificarePlăți[[#Headers],[NR. PLĂȚI]])>NumărPlanificatDePlăți,"",ROW()-ROW(PlanificarePlăți[[#Headers],[NR. PLĂȚI]])),"") ->  | C135: =IF(PlanificarePlăți[[#This Row],[NR. PLĂȚI]]<>"",EOMONTH(DataDeÎnceputÎmprumut,ROW(PlanificarePlăți[[#This Row],[NR. PLĂȚI]])-ROW(PlanificarePlăți[[#Headers],[NR. PLĂȚI]])-2)+DAY(DataDeÎnceputÎmprumut),"") ->  | D135: =IF(PlanificarePlăți[[#This Row],[NR. PLĂȚI]]<>"",IF(ROW()-ROW(PlanificarePlăți[[#Headers],[SOLD INIȚIAL]])=1,ValoareÎmprumut,INDEX(PlanificarePlăți[SOLD FINAL],ROW()-ROW(PlanificarePlăți[[#Headers],[SOLD INIȚIAL]])-1)),"") ->  | E135: =IF(PlanificarePlăți[[#This Row],[NR. PLĂȚI]]<>"",PlatăPlanificată,"") ->  | F135: =IF(PlanificarePlăți[[#This Row],[NR. PLĂȚI]]<>"",IF(PlanificarePlăți[[#This Row],[PLATĂ PLANIFICATĂ]]+PlățiSuplimentare<PlanificarePlăți[[#This Row],[SOLD INIȚIAL]],PlățiSuplimentare,IF(PlanificarePlăți[[#This Row],[SOLD INIȚIAL]]-PlanificarePlăți[[#This Row],[PLATĂ PLANIFICATĂ]]>0,PlanificarePlăți[[#This Row],[SOLD INIȚIAL]]-PlanificarePlăți[[#This Row],[PLATĂ PLANIFICATĂ]],0)),"") ->  | G135: =IF(PlanificarePlăți[[#This Row],[NR. PLĂȚI]]<>"",IF(PlanificarePlăți[[#This Row],[PLATĂ PLANIFICATĂ]]+PlanificarePlăți[[#This Row],[PLATĂ SUPLIMENTARĂ]]<=PlanificarePlăți[[#This Row],[SOLD INIȚIAL]],PlanificarePlăți[[#This Row],[PLATĂ PLANIFICATĂ]]+PlanificarePlăți[[#This Row],[PLATĂ SUPLIMENTARĂ]],PlanificarePlăți[[#This Row],[SOLD INIȚIAL]]),"") ->  | H135: =IF(PlanificarePlăți[[#This Row],[NR. PLĂȚI]]<>"",PlanificarePlăți[[#This Row],[TOTAL DE PLATĂ]]-PlanificarePlăți[[#This Row],[DOBÂNDĂ]],"") ->  | I135: =IF(PlanificarePlăți[[#This Row],[NR. PLĂȚI]]<>"",PlanificarePlăți[[#This Row],[SOLD INIȚIAL]]*(RataDobânzii/PlățiPeAn),"") ->  | J135: =IF(PlanificarePlăți[[#This Row],[NR. PLĂȚI]]<>"",IF(PlanificarePlăți[[#This Row],[PLATĂ PLANIFICATĂ]]+PlanificarePlăți[[#This Row],[PLATĂ SUPLIMENTARĂ]]<=PlanificarePlăți[[#This Row],[SOLD INIȚIAL]],PlanificarePlăți[[#This Row],[SOLD INIȚIAL]]-PlanificarePlăți[[#This Row],[PRINCIPAL]],0),"") ->  | K135: =IF(PlanificarePlăți[[#This Row],[NR. PLĂȚI]]<>"",SUM(INDEX(PlanificarePlăți[DOBÂNDĂ],1,1):PlanificarePlăți[[#This Row],[DOBÂNDĂ]]),"") -> 
B136: =IF(ÎmprumutEsteBun,IF(ROW()-ROW(PlanificarePlăți[[#Headers],[NR. PLĂȚI]])>NumărPlanificatDePlăți,"",ROW()-ROW(PlanificarePlăți[[#Headers],[NR. PLĂȚI]])),"") ->  | C136: =IF(PlanificarePlăți[[#This Row],[NR. PLĂȚI]]<>"",EOMONTH(DataDeÎnceputÎmprumut,ROW(PlanificarePlăți[[#This Row],[NR. PLĂȚI]])-ROW(PlanificarePlăți[[#Headers],[NR. PLĂȚI]])-2)+DAY(DataDeÎnceputÎmprumut),"") ->  | D136: =IF(PlanificarePlăți[[#This Row],[NR. PLĂȚI]]<>"",IF(ROW()-ROW(PlanificarePlăți[[#Headers],[SOLD INIȚIAL]])=1,ValoareÎmprumut,INDEX(PlanificarePlăți[SOLD FINAL],ROW()-ROW(PlanificarePlăți[[#Headers],[SOLD INIȚIAL]])-1)),"") ->  | E136: =IF(PlanificarePlăți[[#This Row],[NR. PLĂȚI]]<>"",PlatăPlanificată,"") ->  | F136: =IF(PlanificarePlăți[[#This Row],[NR. PLĂȚI]]<>"",IF(PlanificarePlăți[[#This Row],[PLATĂ PLANIFICATĂ]]+PlățiSuplimentare<PlanificarePlăți[[#This Row],[SOLD INIȚIAL]],PlățiSuplimentare,IF(PlanificarePlăți[[#This Row],[SOLD INIȚIAL]]-PlanificarePlăți[[#This Row],[PLATĂ PLANIFICATĂ]]>0,PlanificarePlăți[[#This Row],[SOLD INIȚIAL]]-PlanificarePlăți[[#This Row],[PLATĂ PLANIFICATĂ]],0)),"") ->  | G136: =IF(PlanificarePlăți[[#This Row],[NR. PLĂȚI]]<>"",IF(PlanificarePlăți[[#This Row],[PLATĂ PLANIFICATĂ]]+PlanificarePlăți[[#This Row],[PLATĂ SUPLIMENTARĂ]]<=PlanificarePlăți[[#This Row],[SOLD INIȚIAL]],PlanificarePlăți[[#This Row],[PLATĂ PLANIFICATĂ]]+PlanificarePlăți[[#This Row],[PLATĂ SUPLIMENTARĂ]],PlanificarePlăți[[#This Row],[SOLD INIȚIAL]]),"") ->  | H136: =IF(PlanificarePlăți[[#This Row],[NR. PLĂȚI]]<>"",PlanificarePlăți[[#This Row],[TOTAL DE PLATĂ]]-PlanificarePlăți[[#This Row],[DOBÂNDĂ]],"") ->  | I136: =IF(PlanificarePlăți[[#This Row],[NR. PLĂȚI]]<>"",PlanificarePlăți[[#This Row],[SOLD INIȚIAL]]*(RataDobânzii/PlățiPeAn),"") ->  | J136: =IF(PlanificarePlăți[[#This Row],[NR. PLĂȚI]]<>"",IF(PlanificarePlăți[[#This Row],[PLATĂ PLANIFICATĂ]]+PlanificarePlăți[[#This Row],[PLATĂ SUPLIMENTARĂ]]<=PlanificarePlăți[[#This Row],[SOLD INIȚIAL]],PlanificarePlăți[[#This Row],[SOLD INIȚIAL]]-PlanificarePlăți[[#This Row],[PRINCIPAL]],0),"") ->  | K136: =IF(PlanificarePlăți[[#This Row],[NR. PLĂȚI]]<>"",SUM(INDEX(PlanificarePlăți[DOBÂNDĂ],1,1):PlanificarePlăți[[#This Row],[DOBÂNDĂ]]),"") -> 
B137: =IF(ÎmprumutEsteBun,IF(ROW()-ROW(PlanificarePlăți[[#Headers],[NR. PLĂȚI]])>NumărPlanificatDePlăți,"",ROW()-ROW(PlanificarePlăți[[#Headers],[NR. PLĂȚI]])),"") ->  | C137: =IF(PlanificarePlăți[[#This Row],[NR. PLĂȚI]]<>"",EOMONTH(DataDeÎnceputÎmprumut,ROW(PlanificarePlăți[[#This Row],[NR. PLĂȚI]])-ROW(PlanificarePlăți[[#Headers],[NR. PLĂȚI]])-2)+DAY(DataDeÎnceputÎmprumut),"") ->  | D137: =IF(PlanificarePlăți[[#This Row],[NR. PLĂȚI]]<>"",IF(ROW()-ROW(PlanificarePlăți[[#Headers],[SOLD INIȚIAL]])=1,ValoareÎmprumut,INDEX(PlanificarePlăți[SOLD FINAL],ROW()-ROW(PlanificarePlăți[[#Headers],[SOLD INIȚIAL]])-1)),"") ->  | E137: =IF(PlanificarePlăți[[#This Row],[NR. PLĂȚI]]<>"",PlatăPlanificată,"") ->  | F137: =IF(PlanificarePlăți[[#This Row],[NR. PLĂȚI]]<>"",IF(PlanificarePlăți[[#This Row],[PLATĂ PLANIFICATĂ]]+PlățiSuplimentare<PlanificarePlăți[[#This Row],[SOLD INIȚIAL]],PlățiSuplimentare,IF(PlanificarePlăți[[#This Row],[SOLD INIȚIAL]]-PlanificarePlăți[[#This Row],[PLATĂ PLANIFICATĂ]]>0,PlanificarePlăți[[#This Row],[SOLD INIȚIAL]]-PlanificarePlăți[[#This Row],[PLATĂ PLANIFICATĂ]],0)),"") ->  | G137: =IF(PlanificarePlăți[[#This Row],[NR. PLĂȚI]]<>"",IF(PlanificarePlăți[[#This Row],[PLATĂ PLANIFICATĂ]]+PlanificarePlăți[[#This Row],[PLATĂ SUPLIMENTARĂ]]<=PlanificarePlăți[[#This Row],[SOLD INIȚIAL]],PlanificarePlăți[[#This Row],[PLATĂ PLANIFICATĂ]]+PlanificarePlăți[[#This Row],[PLATĂ SUPLIMENTARĂ]],PlanificarePlăți[[#This Row],[SOLD INIȚIAL]]),"") ->  | H137: =IF(PlanificarePlăți[[#This Row],[NR. PLĂȚI]]<>"",PlanificarePlăți[[#This Row],[TOTAL DE PLATĂ]]-PlanificarePlăți[[#This Row],[DOBÂNDĂ]],"") ->  | I137: =IF(PlanificarePlăți[[#This Row],[NR. PLĂȚI]]<>"",PlanificarePlăți[[#This Row],[SOLD INIȚIAL]]*(RataDobânzii/PlățiPeAn),"") ->  | J137: =IF(PlanificarePlăți[[#This Row],[NR. PLĂȚI]]<>"",IF(PlanificarePlăți[[#This Row],[PLATĂ PLANIFICATĂ]]+PlanificarePlăți[[#This Row],[PLATĂ SUPLIMENTARĂ]]<=PlanificarePlăți[[#This Row],[SOLD INIȚIAL]],PlanificarePlăți[[#This Row],[SOLD INIȚIAL]]-PlanificarePlăți[[#This Row],[PRINCIPAL]],0),"") ->  | K137: =IF(PlanificarePlăți[[#This Row],[NR. PLĂȚI]]<>"",SUM(INDEX(PlanificarePlăți[DOBÂNDĂ],1,1):PlanificarePlăți[[#This Row],[DOBÂNDĂ]]),"") -> 
B138: =IF(ÎmprumutEsteBun,IF(ROW()-ROW(PlanificarePlăți[[#Headers],[NR. PLĂȚI]])>NumărPlanificatDePlăți,"",ROW()-ROW(PlanificarePlăți[[#Headers],[NR. PLĂȚI]])),"") ->  | C138: =IF(PlanificarePlăți[[#This Row],[NR. PLĂȚI]]<>"",EOMONTH(DataDeÎnceputÎmprumut,ROW(PlanificarePlăți[[#This Row],[NR. PLĂȚI]])-ROW(PlanificarePlăți[[#Headers],[NR. PLĂȚI]])-2)+DAY(DataDeÎnceputÎmprumut),"") ->  | D138: =IF(PlanificarePlăți[[#This Row],[NR. PLĂȚI]]<>"",IF(ROW()-ROW(PlanificarePlăți[[#Headers],[SOLD INIȚIAL]])=1,ValoareÎmprumut,INDEX(PlanificarePlăți[SOLD FINAL],ROW()-ROW(PlanificarePlăți[[#Headers],[SOLD INIȚIAL]])-1)),"") ->  | E138: =IF(PlanificarePlăți[[#This Row],[NR. PLĂȚI]]<>"",PlatăPlanificată,"") ->  | F138: =IF(PlanificarePlăți[[#This Row],[NR. PLĂȚI]]<>"",IF(PlanificarePlăți[[#This Row],[PLATĂ PLANIFICATĂ]]+PlățiSuplimentare<PlanificarePlăți[[#This Row],[SOLD INIȚIAL]],PlățiSuplimentare,IF(PlanificarePlăți[[#This Row],[SOLD INIȚIAL]]-PlanificarePlăți[[#This Row],[PLATĂ PLANIFICATĂ]]>0,PlanificarePlăți[[#This Row],[SOLD INIȚIAL]]-PlanificarePlăți[[#This Row],[PLATĂ PLANIFICATĂ]],0)),"") ->  | G138: =IF(PlanificarePlăți[[#This Row],[NR. PLĂȚI]]<>"",IF(PlanificarePlăți[[#This Row],[PLATĂ PLANIFICATĂ]]+PlanificarePlăți[[#This Row],[PLATĂ SUPLIMENTARĂ]]<=PlanificarePlăți[[#This Row],[SOLD INIȚIAL]],PlanificarePlăți[[#This Row],[PLATĂ PLANIFICATĂ]]+PlanificarePlăți[[#This Row],[PLATĂ SUPLIMENTARĂ]],PlanificarePlăți[[#This Row],[SOLD INIȚIAL]]),"") ->  | H138: =IF(PlanificarePlăți[[#This Row],[NR. PLĂȚI]]<>"",PlanificarePlăți[[#This Row],[TOTAL DE PLATĂ]]-PlanificarePlăți[[#This Row],[DOBÂNDĂ]],"") ->  | I138: =IF(PlanificarePlăți[[#This Row],[NR. PLĂȚI]]<>"",PlanificarePlăți[[#This Row],[SOLD INIȚIAL]]*(RataDobânzii/PlățiPeAn),"") ->  | J138: =IF(PlanificarePlăți[[#This Row],[NR. PLĂȚI]]<>"",IF(PlanificarePlăți[[#This Row],[PLATĂ PLANIFICATĂ]]+PlanificarePlăți[[#This Row],[PLATĂ SUPLIMENTARĂ]]<=PlanificarePlăți[[#This Row],[SOLD INIȚIAL]],PlanificarePlăți[[#This Row],[SOLD INIȚIAL]]-PlanificarePlăți[[#This Row],[PRINCIPAL]],0),"") ->  | K138: =IF(PlanificarePlăți[[#This Row],[NR. PLĂȚI]]<>"",SUM(INDEX(PlanificarePlăți[DOBÂNDĂ],1,1):PlanificarePlăți[[#This Row],[DOBÂNDĂ]]),"") -> 
B139: =IF(ÎmprumutEsteBun,IF(ROW()-ROW(PlanificarePlăți[[#Headers],[NR. PLĂȚI]])>NumărPlanificatDePlăți,"",ROW()-ROW(PlanificarePlăți[[#Headers],[NR. PLĂȚI]])),"") ->  | C139: =IF(PlanificarePlăți[[#This Row],[NR. PLĂȚI]]<>"",EOMONTH(DataDeÎnceputÎmprumut,ROW(PlanificarePlăți[[#This Row],[NR. PLĂȚI]])-ROW(PlanificarePlăți[[#Headers],[NR. PLĂȚI]])-2)+DAY(DataDeÎnceputÎmprumut),"") ->  | D139: =IF(PlanificarePlăți[[#This Row],[NR. PLĂȚI]]<>"",IF(ROW()-ROW(PlanificarePlăți[[#Headers],[SOLD INIȚIAL]])=1,ValoareÎmprumut,INDEX(PlanificarePlăți[SOLD FINAL],ROW()-ROW(PlanificarePlăți[[#Headers],[SOLD INIȚIAL]])-1)),"") ->  | E139: =IF(PlanificarePlăți[[#This Row],[NR. PLĂȚI]]<>"",PlatăPlanificată,"") ->  | F139: =IF(PlanificarePlăți[[#This Row],[NR. PLĂȚI]]<>"",IF(PlanificarePlăți[[#This Row],[PLATĂ PLANIFICATĂ]]+PlățiSuplimentare<PlanificarePlăți[[#This Row],[SOLD INIȚIAL]],PlățiSuplimentare,IF(PlanificarePlăți[[#This Row],[SOLD INIȚIAL]]-PlanificarePlăți[[#This Row],[PLATĂ PLANIFICATĂ]]>0,PlanificarePlăți[[#This Row],[SOLD INIȚIAL]]-PlanificarePlăți[[#This Row],[PLATĂ PLANIFICATĂ]],0)),"") ->  | G139: =IF(PlanificarePlăți[[#This Row],[NR. PLĂȚI]]<>"",IF(PlanificarePlăți[[#This Row],[PLATĂ PLANIFICATĂ]]+PlanificarePlăți[[#This Row],[PLATĂ SUPLIMENTARĂ]]<=PlanificarePlăți[[#This Row],[SOLD INIȚIAL]],PlanificarePlăți[[#This Row],[PLATĂ PLANIFICATĂ]]+PlanificarePlăți[[#This Row],[PLATĂ SUPLIMENTARĂ]],PlanificarePlăți[[#This Row],[SOLD INIȚIAL]]),"") ->  | H139: =IF(PlanificarePlăți[[#This Row],[NR. PLĂȚI]]<>"",PlanificarePlăți[[#This Row],[TOTAL DE PLATĂ]]-PlanificarePlăți[[#This Row],[DOBÂNDĂ]],"") ->  | I139: =IF(PlanificarePlăți[[#This Row],[NR. PLĂȚI]]<>"",PlanificarePlăți[[#This Row],[SOLD INIȚIAL]]*(RataDobânzii/PlățiPeAn),"") ->  | J139: =IF(PlanificarePlăți[[#This Row],[NR. PLĂȚI]]<>"",IF(PlanificarePlăți[[#This Row],[PLATĂ PLANIFICATĂ]]+PlanificarePlăți[[#This Row],[PLATĂ SUPLIMENTARĂ]]<=PlanificarePlăți[[#This Row],[SOLD INIȚIAL]],PlanificarePlăți[[#This Row],[SOLD INIȚIAL]]-PlanificarePlăți[[#This Row],[PRINCIPAL]],0),"") ->  | K139: =IF(PlanificarePlăți[[#This Row],[NR. PLĂȚI]]<>"",SUM(INDEX(PlanificarePlăți[DOBÂNDĂ],1,1):PlanificarePlăți[[#This Row],[DOBÂNDĂ]]),"") -> 
B140: =IF(ÎmprumutEsteBun,IF(ROW()-ROW(PlanificarePlăți[[#Headers],[NR. PLĂȚI]])>NumărPlanificatDePlăți,"",ROW()-ROW(PlanificarePlăți[[#Headers],[NR. PLĂȚI]])),"") ->  | C140: =IF(PlanificarePlăți[[#This Row],[NR. PLĂȚI]]<>"",EOMONTH(DataDeÎnceputÎmprumut,ROW(PlanificarePlăți[[#This Row],[NR. PLĂȚI]])-ROW(PlanificarePlăți[[#Headers],[NR. PLĂȚI]])-2)+DAY(DataDeÎnceputÎmprumut),"") ->  | D140: =IF(PlanificarePlăți[[#This Row],[NR. PLĂȚI]]<>"",IF(ROW()-ROW(PlanificarePlăți[[#Headers],[SOLD INIȚIAL]])=1,ValoareÎmprumut,INDEX(PlanificarePlăți[SOLD FINAL],ROW()-ROW(PlanificarePlăți[[#Headers],[SOLD INIȚIAL]])-1)),"") ->  | E140: =IF(PlanificarePlăți[[#This Row],[NR. PLĂȚI]]<>"",PlatăPlanificată,"") ->  | F140: =IF(PlanificarePlăți[[#This Row],[NR. PLĂȚI]]<>"",IF(PlanificarePlăți[[#This Row],[PLATĂ PLANIFICATĂ]]+PlățiSuplimentare<PlanificarePlăți[[#This Row],[SOLD INIȚIAL]],PlățiSuplimentare,IF(PlanificarePlăți[[#This Row],[SOLD INIȚIAL]]-PlanificarePlăți[[#This Row],[PLATĂ PLANIFICATĂ]]>0,PlanificarePlăți[[#This Row],[SOLD INIȚIAL]]-PlanificarePlăți[[#This Row],[PLATĂ PLANIFICATĂ]],0)),"") ->  | G140: =IF(PlanificarePlăți[[#This Row],[NR. PLĂȚI]]<>"",IF(PlanificarePlăți[[#This Row],[PLATĂ PLANIFICATĂ]]+PlanificarePlăți[[#This Row],[PLATĂ SUPLIMENTARĂ]]<=PlanificarePlăți[[#This Row],[SOLD INIȚIAL]],PlanificarePlăți[[#This Row],[PLATĂ PLANIFICATĂ]]+PlanificarePlăți[[#This Row],[PLATĂ SUPLIMENTARĂ]],PlanificarePlăți[[#This Row],[SOLD INIȚIAL]]),"") ->  | H140: =IF(PlanificarePlăți[[#This Row],[NR. PLĂȚI]]<>"",PlanificarePlăți[[#This Row],[TOTAL DE PLATĂ]]-PlanificarePlăți[[#This Row],[DOBÂNDĂ]],"") ->  | I140: =IF(PlanificarePlăți[[#This Row],[NR. PLĂȚI]]<>"",PlanificarePlăți[[#This Row],[SOLD INIȚIAL]]*(RataDobânzii/PlățiPeAn),"") ->  | J140: =IF(PlanificarePlăți[[#This Row],[NR. PLĂȚI]]<>"",IF(PlanificarePlăți[[#This Row],[PLATĂ PLANIFICATĂ]]+PlanificarePlăți[[#This Row],[PLATĂ SUPLIMENTARĂ]]<=PlanificarePlăți[[#This Row],[SOLD INIȚIAL]],PlanificarePlăți[[#This Row],[SOLD INIȚIAL]]-PlanificarePlăți[[#This Row],[PRINCIPAL]],0),"") ->  | K140: =IF(PlanificarePlăți[[#This Row],[NR. PLĂȚI]]<>"",SUM(INDEX(PlanificarePlăți[DOBÂNDĂ],1,1):PlanificarePlăți[[#This Row],[DOBÂNDĂ]]),"") -> 
B141: =IF(ÎmprumutEsteBun,IF(ROW()-ROW(PlanificarePlăți[[#Headers],[NR. PLĂȚI]])>NumărPlanificatDePlăți,"",ROW()-ROW(PlanificarePlăți[[#Headers],[NR. PLĂȚI]])),"") ->  | C141: =IF(PlanificarePlăți[[#This Row],[NR. PLĂȚI]]<>"",EOMONTH(DataDeÎnceputÎmprumut,ROW(PlanificarePlăți[[#This Row],[NR. PLĂȚI]])-ROW(PlanificarePlăți[[#Headers],[NR. PLĂȚI]])-2)+DAY(DataDeÎnceputÎmprumut),"") ->  | D141: =IF(PlanificarePlăți[[#This Row],[NR. PLĂȚI]]<>"",IF(ROW()-ROW(PlanificarePlăți[[#Headers],[SOLD INIȚIAL]])=1,ValoareÎmprumut,INDEX(PlanificarePlăți[SOLD FINAL],ROW()-ROW(PlanificarePlăți[[#Headers],[SOLD INIȚIAL]])-1)),"") ->  | E141: =IF(PlanificarePlăți[[#This Row],[NR. PLĂȚI]]<>"",PlatăPlanificată,"") ->  | F141: =IF(PlanificarePlăți[[#This Row],[NR. PLĂȚI]]<>"",IF(PlanificarePlăți[[#This Row],[PLATĂ PLANIFICATĂ]]+PlățiSuplimentare<PlanificarePlăți[[#This Row],[SOLD INIȚIAL]],PlățiSuplimentare,IF(PlanificarePlăți[[#This Row],[SOLD INIȚIAL]]-PlanificarePlăți[[#This Row],[PLATĂ PLANIFICATĂ]]>0,PlanificarePlăți[[#This Row],[SOLD INIȚIAL]]-PlanificarePlăți[[#This Row],[PLATĂ PLANIFICATĂ]],0)),"") ->  | G141: =IF(PlanificarePlăți[[#This Row],[NR. PLĂȚI]]<>"",IF(PlanificarePlăți[[#This Row],[PLATĂ PLANIFICATĂ]]+PlanificarePlăți[[#This Row],[PLATĂ SUPLIMENTARĂ]]<=PlanificarePlăți[[#This Row],[SOLD INIȚIAL]],PlanificarePlăți[[#This Row],[PLATĂ PLANIFICATĂ]]+PlanificarePlăți[[#This Row],[PLATĂ SUPLIMENTARĂ]],PlanificarePlăți[[#This Row],[SOLD INIȚIAL]]),"") ->  | H141: =IF(PlanificarePlăți[[#This Row],[NR. PLĂȚI]]<>"",PlanificarePlăți[[#This Row],[TOTAL DE PLATĂ]]-PlanificarePlăți[[#This Row],[DOBÂNDĂ]],"") ->  | I141: =IF(PlanificarePlăți[[#This Row],[NR. PLĂȚI]]<>"",PlanificarePlăți[[#This Row],[SOLD INIȚIAL]]*(RataDobânzii/PlățiPeAn),"") ->  | J141: =IF(PlanificarePlăți[[#This Row],[NR. PLĂȚI]]<>"",IF(PlanificarePlăți[[#This Row],[PLATĂ PLANIFICATĂ]]+PlanificarePlăți[[#This Row],[PLATĂ SUPLIMENTARĂ]]<=PlanificarePlăți[[#This Row],[SOLD INIȚIAL]],PlanificarePlăți[[#This Row],[SOLD INIȚIAL]]-PlanificarePlăți[[#This Row],[PRINCIPAL]],0),"") ->  | K141: =IF(PlanificarePlăți[[#This Row],[NR. PLĂȚI]]<>"",SUM(INDEX(PlanificarePlăți[DOBÂNDĂ],1,1):PlanificarePlăți[[#This Row],[DOBÂNDĂ]]),"") -> 
B142: =IF(ÎmprumutEsteBun,IF(ROW()-ROW(PlanificarePlăți[[#Headers],[NR. PLĂȚI]])>NumărPlanificatDePlăți,"",ROW()-ROW(PlanificarePlăți[[#Headers],[NR. PLĂȚI]])),"") ->  | C142: =IF(PlanificarePlăți[[#This Row],[NR. PLĂȚI]]<>"",EOMONTH(DataDeÎnceputÎmprumut,ROW(PlanificarePlăți[[#This Row],[NR. PLĂȚI]])-ROW(PlanificarePlăți[[#Headers],[NR. PLĂȚI]])-2)+DAY(DataDeÎnceputÎmprumut),"") ->  | D142: =IF(PlanificarePlăți[[#This Row],[NR. PLĂȚI]]<>"",IF(ROW()-ROW(PlanificarePlăți[[#Headers],[SOLD INIȚIAL]])=1,ValoareÎmprumut,INDEX(PlanificarePlăți[SOLD FINAL],ROW()-ROW(PlanificarePlăți[[#Headers],[SOLD INIȚIAL]])-1)),"") ->  | E142: =IF(PlanificarePlăți[[#This Row],[NR. PLĂȚI]]<>"",PlatăPlanificată,"") ->  | F142: =IF(PlanificarePlăți[[#This Row],[NR. PLĂȚI]]<>"",IF(PlanificarePlăți[[#This Row],[PLATĂ PLANIFICATĂ]]+PlățiSuplimentare<PlanificarePlăți[[#This Row],[SOLD INIȚIAL]],PlățiSuplimentare,IF(PlanificarePlăți[[#This Row],[SOLD INIȚIAL]]-PlanificarePlăți[[#This Row],[PLATĂ PLANIFICATĂ]]>0,PlanificarePlăți[[#This Row],[SOLD INIȚIAL]]-PlanificarePlăți[[#This Row],[PLATĂ PLANIFICATĂ]],0)),"") ->  | G142: =IF(PlanificarePlăți[[#This Row],[NR. PLĂȚI]]<>"",IF(PlanificarePlăți[[#This Row],[PLATĂ PLANIFICATĂ]]+PlanificarePlăți[[#This Row],[PLATĂ SUPLIMENTARĂ]]<=PlanificarePlăți[[#This Row],[SOLD INIȚIAL]],PlanificarePlăți[[#This Row],[PLATĂ PLANIFICATĂ]]+PlanificarePlăți[[#This Row],[PLATĂ SUPLIMENTARĂ]],PlanificarePlăți[[#This Row],[SOLD INIȚIAL]]),"") ->  | H142: =IF(PlanificarePlăți[[#This Row],[NR. PLĂȚI]]<>"",PlanificarePlăți[[#This Row],[TOTAL DE PLATĂ]]-PlanificarePlăți[[#This Row],[DOBÂNDĂ]],"") ->  | I142: =IF(PlanificarePlăți[[#This Row],[NR. PLĂȚI]]<>"",PlanificarePlăți[[#This Row],[SOLD INIȚIAL]]*(RataDobânzii/PlățiPeAn),"") ->  | J142: =IF(PlanificarePlăți[[#This Row],[NR. PLĂȚI]]<>"",IF(PlanificarePlăți[[#This Row],[PLATĂ PLANIFICATĂ]]+PlanificarePlăți[[#This Row],[PLATĂ SUPLIMENTARĂ]]<=PlanificarePlăți[[#This Row],[SOLD INIȚIAL]],PlanificarePlăți[[#This Row],[SOLD INIȚIAL]]-PlanificarePlăți[[#This Row],[PRINCIPAL]],0),"") ->  | K142: =IF(PlanificarePlăți[[#This Row],[NR. PLĂȚI]]<>"",SUM(INDEX(PlanificarePlăți[DOBÂNDĂ],1,1):PlanificarePlăți[[#This Row],[DOBÂNDĂ]]),"") -> 
B143: =IF(ÎmprumutEsteBun,IF(ROW()-ROW(PlanificarePlăți[[#Headers],[NR. PLĂȚI]])>NumărPlanificatDePlăți,"",ROW()-ROW(PlanificarePlăți[[#Headers],[NR. PLĂȚI]])),"") ->  | C143: =IF(PlanificarePlăți[[#This Row],[NR. PLĂȚI]]<>"",EOMONTH(DataDeÎnceputÎmprumut,ROW(PlanificarePlăți[[#This Row],[NR. PLĂȚI]])-ROW(PlanificarePlăți[[#Headers],[NR. PLĂȚI]])-2)+DAY(DataDeÎnceputÎmprumut),"") ->  | D143: =IF(PlanificarePlăți[[#This Row],[NR. PLĂȚI]]<>"",IF(ROW()-ROW(PlanificarePlăți[[#Headers],[SOLD INIȚIAL]])=1,ValoareÎmprumut,INDEX(PlanificarePlăți[SOLD FINAL],ROW()-ROW(PlanificarePlăți[[#Headers],[SOLD INIȚIAL]])-1)),"") ->  | E143: =IF(PlanificarePlăți[[#This Row],[NR. PLĂȚI]]<>"",PlatăPlanificată,"") ->  | F143: =IF(PlanificarePlăți[[#This Row],[NR. PLĂȚI]]<>"",IF(PlanificarePlăți[[#This Row],[PLATĂ PLANIFICATĂ]]+PlățiSuplimentare<PlanificarePlăți[[#This Row],[SOLD INIȚIAL]],PlățiSuplimentare,IF(PlanificarePlăți[[#This Row],[SOLD INIȚIAL]]-PlanificarePlăți[[#This Row],[PLATĂ PLANIFICATĂ]]>0,PlanificarePlăți[[#This Row],[SOLD INIȚIAL]]-PlanificarePlăți[[#This Row],[PLATĂ PLANIFICATĂ]],0)),"") ->  | G143: =IF(PlanificarePlăți[[#This Row],[NR. PLĂȚI]]<>"",IF(PlanificarePlăți[[#This Row],[PLATĂ PLANIFICATĂ]]+PlanificarePlăți[[#This Row],[PLATĂ SUPLIMENTARĂ]]<=PlanificarePlăți[[#This Row],[SOLD INIȚIAL]],PlanificarePlăți[[#This Row],[PLATĂ PLANIFICATĂ]]+PlanificarePlăți[[#This Row],[PLATĂ SUPLIMENTARĂ]],PlanificarePlăți[[#This Row],[SOLD INIȚIAL]]),"") ->  | H143: =IF(PlanificarePlăți[[#This Row],[NR. PLĂȚI]]<>"",PlanificarePlăți[[#This Row],[TOTAL DE PLATĂ]]-PlanificarePlăți[[#This Row],[DOBÂNDĂ]],"") ->  | I143: =IF(PlanificarePlăți[[#This Row],[NR. PLĂȚI]]<>"",PlanificarePlăți[[#This Row],[SOLD INIȚIAL]]*(RataDobânzii/PlățiPeAn),"") ->  | J143: =IF(PlanificarePlăți[[#This Row],[NR. PLĂȚI]]<>"",IF(PlanificarePlăți[[#This Row],[PLATĂ PLANIFICATĂ]]+PlanificarePlăți[[#This Row],[PLATĂ SUPLIMENTARĂ]]<=PlanificarePlăți[[#This Row],[SOLD INIȚIAL]],PlanificarePlăți[[#This Row],[SOLD INIȚIAL]]-PlanificarePlăți[[#This Row],[PRINCIPAL]],0),"") ->  | K143: =IF(PlanificarePlăți[[#This Row],[NR. PLĂȚI]]<>"",SUM(INDEX(PlanificarePlăți[DOBÂNDĂ],1,1):PlanificarePlăți[[#This Row],[DOBÂNDĂ]]),"") -> 
B144: =IF(ÎmprumutEsteBun,IF(ROW()-ROW(PlanificarePlăți[[#Headers],[NR. PLĂȚI]])>NumărPlanificatDePlăți,"",ROW()-ROW(PlanificarePlăți[[#Headers],[NR. PLĂȚI]])),"") ->  | C144: =IF(PlanificarePlăți[[#This Row],[NR. PLĂȚI]]<>"",EOMONTH(DataDeÎnceputÎmprumut,ROW(PlanificarePlăți[[#This Row],[NR. PLĂȚI]])-ROW(PlanificarePlăți[[#Headers],[NR. PLĂȚI]])-2)+DAY(DataDeÎnceputÎmprumut),"") ->  | D144: =IF(PlanificarePlăți[[#This Row],[NR. PLĂȚI]]<>"",IF(ROW()-ROW(PlanificarePlăți[[#Headers],[SOLD INIȚIAL]])=1,ValoareÎmprumut,INDEX(PlanificarePlăți[SOLD FINAL],ROW()-ROW(PlanificarePlăți[[#Headers],[SOLD INIȚIAL]])-1)),"") ->  | E144: =IF(PlanificarePlăți[[#This Row],[NR. PLĂȚI]]<>"",PlatăPlanificată,"") ->  | F144: =IF(PlanificarePlăți[[#This Row],[NR. PLĂȚI]]<>"",IF(PlanificarePlăți[[#This Row],[PLATĂ PLANIFICATĂ]]+PlățiSuplimentare<PlanificarePlăți[[#This Row],[SOLD INIȚIAL]],PlățiSuplimentare,IF(PlanificarePlăți[[#This Row],[SOLD INIȚIAL]]-PlanificarePlăți[[#This Row],[PLATĂ PLANIFICATĂ]]>0,PlanificarePlăți[[#This Row],[SOLD INIȚIAL]]-PlanificarePlăți[[#This Row],[PLATĂ PLANIFICATĂ]],0)),"") ->  | G144: =IF(PlanificarePlăți[[#This Row],[NR. PLĂȚI]]<>"",IF(PlanificarePlăți[[#This Row],[PLATĂ PLANIFICATĂ]]+PlanificarePlăți[[#This Row],[PLATĂ SUPLIMENTARĂ]]<=PlanificarePlăți[[#This Row],[SOLD INIȚIAL]],PlanificarePlăți[[#This Row],[PLATĂ PLANIFICATĂ]]+PlanificarePlăți[[#This Row],[PLATĂ SUPLIMENTARĂ]],PlanificarePlăți[[#This Row],[SOLD INIȚIAL]]),"") ->  | H144: =IF(PlanificarePlăți[[#This Row],[NR. PLĂȚI]]<>"",PlanificarePlăți[[#This Row],[TOTAL DE PLATĂ]]-PlanificarePlăți[[#This Row],[DOBÂNDĂ]],"") ->  | I144: =IF(PlanificarePlăți[[#This Row],[NR. PLĂȚI]]<>"",PlanificarePlăți[[#This Row],[SOLD INIȚIAL]]*(RataDobânzii/PlățiPeAn),"") ->  | J144: =IF(PlanificarePlăți[[#This Row],[NR. PLĂȚI]]<>"",IF(PlanificarePlăți[[#This Row],[PLATĂ PLANIFICATĂ]]+PlanificarePlăți[[#This Row],[PLATĂ SUPLIMENTARĂ]]<=PlanificarePlăți[[#This Row],[SOLD INIȚIAL]],PlanificarePlăți[[#This Row],[SOLD INIȚIAL]]-PlanificarePlăți[[#This Row],[PRINCIPAL]],0),"") ->  | K144: =IF(PlanificarePlăți[[#This Row],[NR. PLĂȚI]]<>"",SUM(INDEX(PlanificarePlăți[DOBÂNDĂ],1,1):PlanificarePlăți[[#This Row],[DOBÂNDĂ]]),"") -> 
B145: =IF(ÎmprumutEsteBun,IF(ROW()-ROW(PlanificarePlăți[[#Headers],[NR. PLĂȚI]])>NumărPlanificatDePlăți,"",ROW()-ROW(PlanificarePlăți[[#Headers],[NR. PLĂȚI]])),"") ->  | C145: =IF(PlanificarePlăți[[#This Row],[NR. PLĂȚI]]<>"",EOMONTH(DataDeÎnceputÎmprumut,ROW(PlanificarePlăți[[#This Row],[NR. PLĂȚI]])-ROW(PlanificarePlăți[[#Headers],[NR. PLĂȚI]])-2)+DAY(DataDeÎnceputÎmprumut),"") ->  | D145: =IF(PlanificarePlăți[[#This Row],[NR. PLĂȚI]]<>"",IF(ROW()-ROW(PlanificarePlăți[[#Headers],[SOLD INIȚIAL]])=1,ValoareÎmprumut,INDEX(PlanificarePlăți[SOLD FINAL],ROW()-ROW(PlanificarePlăți[[#Headers],[SOLD INIȚIAL]])-1)),"") ->  | E145: =IF(PlanificarePlăți[[#This Row],[NR. PLĂȚI]]<>"",PlatăPlanificată,"") ->  | F145: =IF(PlanificarePlăți[[#This Row],[NR. PLĂȚI]]<>"",IF(PlanificarePlăți[[#This Row],[PLATĂ PLANIFICATĂ]]+PlățiSuplimentare<PlanificarePlăți[[#This Row],[SOLD INIȚIAL]],PlățiSuplimentare,IF(PlanificarePlăți[[#This Row],[SOLD INIȚIAL]]-PlanificarePlăți[[#This Row],[PLATĂ PLANIFICATĂ]]>0,PlanificarePlăți[[#This Row],[SOLD INIȚIAL]]-PlanificarePlăți[[#This Row],[PLATĂ PLANIFICATĂ]],0)),"") ->  | G145: =IF(PlanificarePlăți[[#This Row],[NR. PLĂȚI]]<>"",IF(PlanificarePlăți[[#This Row],[PLATĂ PLANIFICATĂ]]+PlanificarePlăți[[#This Row],[PLATĂ SUPLIMENTARĂ]]<=PlanificarePlăți[[#This Row],[SOLD INIȚIAL]],PlanificarePlăți[[#This Row],[PLATĂ PLANIFICATĂ]]+PlanificarePlăți[[#This Row],[PLATĂ SUPLIMENTARĂ]],PlanificarePlăți[[#This Row],[SOLD INIȚIAL]]),"") ->  | H145: =IF(PlanificarePlăți[[#This Row],[NR. PLĂȚI]]<>"",PlanificarePlăți[[#This Row],[TOTAL DE PLATĂ]]-PlanificarePlăți[[#This Row],[DOBÂNDĂ]],"") ->  | I145: =IF(PlanificarePlăți[[#This Row],[NR. PLĂȚI]]<>"",PlanificarePlăți[[#This Row],[SOLD INIȚIAL]]*(RataDobânzii/PlățiPeAn),"") ->  | J145: =IF(PlanificarePlăți[[#This Row],[NR. PLĂȚI]]<>"",IF(PlanificarePlăți[[#This Row],[PLATĂ PLANIFICATĂ]]+PlanificarePlăți[[#This Row],[PLATĂ SUPLIMENTARĂ]]<=PlanificarePlăți[[#This Row],[SOLD INIȚIAL]],PlanificarePlăți[[#This Row],[SOLD INIȚIAL]]-PlanificarePlăți[[#This Row],[PRINCIPAL]],0),"") ->  | K145: =IF(PlanificarePlăți[[#This Row],[NR. PLĂȚI]]<>"",SUM(INDEX(PlanificarePlăți[DOBÂNDĂ],1,1):PlanificarePlăți[[#This Row],[DOBÂNDĂ]]),"") -> 
B146: =IF(ÎmprumutEsteBun,IF(ROW()-ROW(PlanificarePlăți[[#Headers],[NR. PLĂȚI]])>NumărPlanificatDePlăți,"",ROW()-ROW(PlanificarePlăți[[#Headers],[NR. PLĂȚI]])),"") ->  | C146: =IF(PlanificarePlăți[[#This Row],[NR. PLĂȚI]]<>"",EOMONTH(DataDeÎnceputÎmprumut,ROW(PlanificarePlăți[[#This Row],[NR. PLĂȚI]])-ROW(PlanificarePlăți[[#Headers],[NR. PLĂȚI]])-2)+DAY(DataDeÎnceputÎmprumut),"") ->  | D146: =IF(PlanificarePlăți[[#This Row],[NR. PLĂȚI]]<>"",IF(ROW()-ROW(PlanificarePlăți[[#Headers],[SOLD INIȚIAL]])=1,ValoareÎmprumut,INDEX(PlanificarePlăți[SOLD FINAL],ROW()-ROW(PlanificarePlăți[[#Headers],[SOLD INIȚIAL]])-1)),"") ->  | E146: =IF(PlanificarePlăți[[#This Row],[NR. PLĂȚI]]<>"",PlatăPlanificată,"") ->  | F146: =IF(PlanificarePlăți[[#This Row],[NR. PLĂȚI]]<>"",IF(PlanificarePlăți[[#This Row],[PLATĂ PLANIFICATĂ]]+PlățiSuplimentare<PlanificarePlăți[[#This Row],[SOLD INIȚIAL]],PlățiSuplimentare,IF(PlanificarePlăți[[#This Row],[SOLD INIȚIAL]]-PlanificarePlăți[[#This Row],[PLATĂ PLANIFICATĂ]]>0,PlanificarePlăți[[#This Row],[SOLD INIȚIAL]]-PlanificarePlăți[[#This Row],[PLATĂ PLANIFICATĂ]],0)),"") ->  | G146: =IF(PlanificarePlăți[[#This Row],[NR. PLĂȚI]]<>"",IF(PlanificarePlăți[[#This Row],[PLATĂ PLANIFICATĂ]]+PlanificarePlăți[[#This Row],[PLATĂ SUPLIMENTARĂ]]<=PlanificarePlăți[[#This Row],[SOLD INIȚIAL]],PlanificarePlăți[[#This Row],[PLATĂ PLANIFICATĂ]]+PlanificarePlăți[[#This Row],[PLATĂ SUPLIMENTARĂ]],PlanificarePlăți[[#This Row],[SOLD INIȚIAL]]),"") ->  | H146: =IF(PlanificarePlăți[[#This Row],[NR. PLĂȚI]]<>"",PlanificarePlăți[[#This Row],[TOTAL DE PLATĂ]]-PlanificarePlăți[[#This Row],[DOBÂNDĂ]],"") ->  | I146: =IF(PlanificarePlăți[[#This Row],[NR. PLĂȚI]]<>"",PlanificarePlăți[[#This Row],[SOLD INIȚIAL]]*(RataDobânzii/PlățiPeAn),"") ->  | J146: =IF(PlanificarePlăți[[#This Row],[NR. PLĂȚI]]<>"",IF(PlanificarePlăți[[#This Row],[PLATĂ PLANIFICATĂ]]+PlanificarePlăți[[#This Row],[PLATĂ SUPLIMENTARĂ]]<=PlanificarePlăți[[#This Row],[SOLD INIȚIAL]],PlanificarePlăți[[#This Row],[SOLD INIȚIAL]]-PlanificarePlăți[[#This Row],[PRINCIPAL]],0),"") ->  | K146: =IF(PlanificarePlăți[[#This Row],[NR. PLĂȚI]]<>"",SUM(INDEX(PlanificarePlăți[DOBÂNDĂ],1,1):PlanificarePlăți[[#This Row],[DOBÂNDĂ]]),"") -> 
